Workbook

Sheet Nastavení
A4: Vyber počet disciplín
A14: Vyber počet střelců
B17: 44

Sheet Prezentace
A1: Střelecký víceboj | T1: Datum: 4. 5. 2019 Horní Cerekev KVZ Policie Počátky
A4: Druž. | B4: Kap. | C4: Start. číslo | D4: Zbraň | E4: Příjmení | F4: Jméno | G4: Klub (organizace) | H4: Disc. 1 | I4: Disc. 1 | J4: Disc. 2 | K4: Disc. 2 | L4: Disc. 3 | M4: Disc. 3 | N4: Disc. 4 | O4: Disc. 4 | P4: Disc. 5 | Q4: Disc. 5 | R4: Disc. 6 | S4: Disc. 6 | T4: Celkový výsledek | U4: Pořadí | V4: Celkem družstvo | W4: Pořadí družstvo
C6: 1 | D6: P | E6: Adensam | F6: Martin | G6: SK Žirovnice | H6: ='1'!V4 -> 229.89 | I6: ='1(M)'!T4 -> 0 | J6: ='2'!V4 -> 288.41 | K6: ='2(M)'!T4 -> 0 | L6: ='3'!V4 -> 269.75 | M6: ='3(M)'!T4 -> 0 | N6: ='4'!V4 -> 0 | O6: ='4(M)'!T4 -> 0 | P6: ='5'!V4 -> 0 | Q6: ='5(M)'!T4 -> 0 | R6: ='6'!V4 -> 0 | S6: ='6(M)'!T4 -> 0 | T6: =IF(SUM(H6:S6)<0,0,SUM(H6:S6)) -> 788.05 | U6: =RANK(T6,$T$6:$T$104) -> 11 | V6: =IF($B6="K",SUMIFS($T$6:$T$104,$A$6:$A$104,A6),"") ->  | W6: =IF($B6="K",RANK(V6,$V$6:$V$104),"") -> 
C7: 2 | D7: R | E7: Adensam | F7: Martin | G7: SK Žirovnice | H7: ='1'!V5 -> 160.4 | I7: ='1(M)'!T5 -> 0 | J7: ='2'!V5 -> 196.54 | K7: ='2(M)'!T5 -> 0 | L7: ='3'!V5 -> 203.88 | M7: ='3(M)'!T5 -> 0 | N7: ='4'!V5 -> 0 | O7: ='4(M)'!T5 -> 0 | P7: ='5'!V5 -> 0 | Q7: ='5(M)'!T5 -> 0 | R7: ='6'!V5 -> 0 | S7: ='6(M)'!T5 -> 0 | T7: =IF(SUM(H7:S7)<0,0,SUM(H7:S7)) -> 560.82 | U7: =RANK(T7,$T$6:$T$104) -> 41 | V7: =IF($B7="K",SUMIFS($T$6:$T$104,$A$6:$A$104,A7),"") ->  | W7: =IF($B7="K",RANK(V7,$V$6:$V$104),"") -> 
C8: 3 | D8: P | E8: Kostříž | F8: Jaroslav | G8: Kvz Policie Počátky | H8: ='1'!V6 -> 193 | I8: ='1(M)'!T6 -> 0 | J8: ='2'!V6 -> 305.2 | K8: ='2(M)'!T6 -> 0 | L8: ='3'!V6 -> 211.72 | M8: ='3(M)'!T6 -> 0 | N8: ='4'!V6 -> 0 | O8: ='4(M)'!T6 -> 0 | P8: ='5'!V6 -> 0 | Q8: ='5(M)'!T6 -> 0 | R8: ='6'!V6 -> 0 | S8: ='6(M)'!T6 -> 0 | T8: 709.92 | U8: 31
C9: 4 | D9: P | E9: Koch ml. | F9: Miroslav | G9: Kvz Policie Počátky | H9: ='1'!V7 -> 207.94 | I9: ='1(M)'!T7 -> 0 | J9: ='2'!V7 -> 265.3 | K9: ='2(M)'!T7 -> 0 | L9: ='3'!V7 -> 247.88 | M9: ='3(M)'!T7 -> 0 | N9: ='4'!V7 -> 0 | O9: ='4(M)'!T7 -> 0 | P9: ='5'!V7 -> 0 | Q9: ='5(M)'!T7 -> 0 | R9: ='6'!V7 -> 0 | S9: ='6(M)'!T7 -> 0 | T9: 721.12 | U9: 29
C10: 5 | D10: P | E10: Koch st. | F10: Miroslav | G10: Kvz Policie Počátky | H10: ='1'!V8 -> 208.92 | I10: ='1(M)'!T8 -> 0 | J10: ='2'!V8 -> 298.31 | K10: ='2(M)'!T8 -> 0 | L10: ='3'!V8 -> 244.06 | M10: ='3(M)'!T8 -> 0 | N10: ='4'!V8 -> 0 | O10: ='4(M)'!T8 -> 0 | P10: ='5'!V8 -> 0 | Q10: ='5(M)'!T8 -> 0 | R10: ='6'!V8 -> 0 | S10: ='6(M)'!T8 -> 0 | T10: 751.29 | U10: 20
C11: 6 | D11: P | E11: Herceg | F11: Bohumil | G11: Kvz Policie Počátky | H11: ='1'!V9 -> 186.4 | I11: ='1(M)'!T9 -> 0 | J11: ='2'!V9 -> 254.5 | K11: ='2(M)'!T9 -> 0 | L11: ='3'!V9 -> 223.31 | M11: ='3(M)'!T9 -> 0 | N11: ='4'!V9 -> 0 | O11: ='4(M)'!T9 -> 0 | P11: ='5'!V9 -> 0 | Q11: ='5(M)'!T9 -> 0 | R11: ='6'!V9 -> 0 | S11: ='6(M)'!T9 -> 0 | T11: 664.21 | U11: 35
C12: 7 | D12: P | E12: Fuksa | F12: Viktor | G12: Kvz Policie Počátky | H12: ='1'!V10 -> 205.21 | I12: ='1(M)'!T10 -> 0 | J12: ='2'!V10 -> 288.56 | K12: ='2(M)'!T10 -> 0 | L12: ='3'!V10 -> 253.94 | M12: ='3(M)'!T10 -> 0 | N12: ='4'!V10 -> 0 | O12: ='4(M)'!T10 -> 0 | P12: ='5'!V10 -> 0 | Q12: ='5(M)'!T10 -> 0 | R12: ='6'!V10 -> 0 | S12: ='6(M)'!T10 -> 0 | T12: 747.71 | U12: 23
C13: 8 | D13: P | E13: Matějka ml. | F13: Milan | G13: KVZ Policie Počátky | H13: ='1'!V11 -> 210.54 | I13: ='1(M)'!T11 -> 0 | J13: ='2'!V11 -> 307.44 | K13: ='2(M)'!T11 -> 0 | L13: ='3'!V11 -> 225.87 | M13: ='3(M)'!T11 -> 0 | N13: ='4'!V11 -> 0 | O13: ='4(M)'!T11 -> 0 | P13: ='5'!V11 -> 0 | Q13: ='5(M)'!T11 -> 0 | R13: ='6'!V11 -> 0 | S13: ='6(M)'!T11 -> 0 | T13: 743.85 | U13: 25
C14: 9 | D14: P | E14: Svoboda | F14: Michal | G14: KVZ Počátky | H14: ='1'!V12 -> 237.59 | I14: ='1(M)'!T12 -> 0 | J14: ='2'!V12 -> 327.87 | K14: ='2(M)'!T12 -> 0 | L14: ='3'!V12 -> 264.4 | M14: ='3(M)'!T12 -> 0 | N14: ='4'!V12 -> 0 | O14: ='4(M)'!T12 -> 0 | P14: ='5'!V12 -> 0 | Q14: ='5(M)'!T12 -> 0 | R14: ='6'!V12 -> 0 | S14: ='6(M)'!T12 -> 0 | T14: 829.86 | U14: 7
C15: 10 | D15: R | E15: Bouda | F15: Lukáš | G15: KVZ Telč | H15: ='1'!V13 -> 217.31 | I15: ='1(M)'!T13 -> 0 | J15: ='2'!V13 -> 284.9 | K15: ='2(M)'!T13 -> 0 | L15: ='3'!V13 -> 246.3 | M15: ='3(M)'!T13 -> 0 | N15: ='4'!V13 -> 0 | O15: ='4(M)'!T13 -> 0 | P15: ='5'!V13 -> 0 | Q15: ='5(M)'!T13 -> 0 | R15: ='6'!V13 -> 0 | S15: ='6(M)'!T13 -> 0 | T15: 748.51 | U15: 22
C16: 11 | D16: P | E16: Bouda | F16: Lukáš | G16: KVZ Telč | H16: ='1'!V14 -> 245.92 | I16: ='1(M)'!T14 -> 0 | J16: ='2'!V14 -> 328.95 | K16: ='2(M)'!T14 -> 0 | L16: ='3'!V14 -> 282.78 | M16: ='3(M)'!T14 -> 0 | N16: ='4'!V14 -> 0 | O16: ='4(M)'!T14 -> 0 | P16: ='5'!V14 -> 0 | Q16: ='5(M)'!T14 -> 0 | R16: ='6'!V14 -> 0 | S16: ='6(M)'!T14 -> 0 | T16: 857.65 | U16: 2
C17: 12 | D17: P | E17: Koltai | F17: Pavel | G17: KVZ Telč | H17: ='1'!V15 -> 251.88 | I17: ='1(M)'!T15 -> 0 | J17: ='2'!V15 -> 316.28 | K17: ='2(M)'!T15 -> 0 | L17: ='3'!V15 -> 266.41 | M17: ='3(M)'!T15 -> 0 | N17: ='4'!V15 -> 0 | O17: ='4(M)'!T15 -> 0 | P17: ='5'!V15 -> 0 | Q17: ='5(M)'!T15 -> 0 | R17: ='6'!V15 -> 0 | S17: ='6(M)'!T15 -> 0 | T17: 834.57 | U17: 6
C18: 13 | D18: P | E18: Přibyl | F18: Vladislav | G18: KVZ Telč | H18: ='1'!V16 -> 186.4 | I18: ='1(M)'!T16 -> 0 | J18: ='2'!V16 -> 181.3 | K18: ='2(M)'!T16 -> 0 | L18: ='3'!V16 -> 160.5 | M18: ='3(M)'!T16 -> 0 | N18: ='4'!V16 -> 0 | O18: ='4(M)'!T16 -> 0 | P18: ='5'!V16 -> 0 | Q18: ='5(M)'!T16 -> 0 | R18: ='6'!V16 -> 0 | S18: ='6(M)'!T16 -> 0 | T18: 528.2 | U18: 42
C19: 14 | D19: P | E19: Matějka st. | F19: Milan | G19: Jindřichův Hradec | H19: ='1'!V17 -> 104.4 | I19: ='1(M)'!T17 -> 0 | J19: ='2'!V17 -> 140.8 | K19: ='2(M)'!T17 -> 0 | L19: ='3'!V17 -> 116.6 | M19: ='3(M)'!T17 -> 0 | N19: ='4'!V17 -> 0 | O19: ='4(M)'!T17 -> 0 | P19: ='5'!V17 -> 0 | Q19: ='5(M)'!T17 -> 0 | R19: ='6'!V17 -> 0 | S19: ='6(M)'!T17 -> 0 | T19: 361.8 | U19: 43
C20: 15 | D20: P | E20: Fiala | F20: Miroslav | G20: KVZ Fruko J.Hradec | H20: ='1'!V18 -> 181.28 | I20: ='1(M)'!T18 -> 0 | J20: ='2'!V18 -> 298.62 | K20: ='2(M)'!T18 -> 0 | L20: ='3'!V18 -> 252.75 | M20: ='3(M)'!T18 -> 0 | N20: ='4'!V18 -> 0 | O20: ='4(M)'!T18 -> 0 | P20: ='5'!V18 -> 0 | Q20: ='5(M)'!T18 -> 0 | R20: ='6'!V18 -> 0 | S20: ='6(M)'!T18 -> 0 | T20: 732.65 | U20: 26
C21: 16 | D21: P | E21: Gažák | F21: Karel | G21: SSK Borek | H21: ='1'!V19 -> 204.57 | I21: ='1(M)'!T19 -> 0 | J21: ='2'!V19 -> 309.1 | K21: ='2(M)'!T19 -> 0 | L21: ='3'!V19 -> 251.85 | M21: ='3(M)'!T19 -> 0 | N21: ='4'!V19 -> 0 | O21: ='4(M)'!T19 -> 0 | P21: ='5'!V19 -> 0 | Q21: ='5(M)'!T19 -> 0 | R21: ='6'!V19 -> 0 | S21: ='6(M)'!T19 -> 0 | T21: 765.52 | U21: 18
C22: 17 | D22: P | E22: Landkammer | F22: Václav | G22: KVZ Fruko J.Hradec | H22: ='1'!V20 -> 199.85 | I22: ='1(M)'!T20 -> 0 | J22: ='2'!V20 -> 272.8 | K22: ='2(M)'!T20 -> 0 | L22: ='3'!V20 -> 233.04 | M22: ='3(M)'!T20 -> 0 | N22: ='4'!V20 -> 0 | O22: ='4(M)'!T20 -> 0 | P22: ='5'!V20 -> 0 | Q22: ='5(M)'!T20 -> 0 | R22: ='6'!V20 -> 0 | S22: ='6(M)'!T20 -> 0 | T22: 705.69 | U22: 32
C23: 18 | D23: P | E23: Brejžek | F23: Vojtěch | G23: KVZ Fruko J.Hradec | H23: ='1'!V21 -> 212.96 | I23: ='1(M)'!T21 -> 0 | J23: ='2'!V21 -> 269.27 | K23: ='2(M)'!T21 -> 0 | L23: ='3'!V21 -> 247.63 | M23: ='3(M)'!T21 -> 0 | N23: ='4'!V21 -> 0 | O23: ='4(M)'!T21 -> 0 | P23: ='5'!V21 -> 0 | Q23: ='5(M)'!T21 -> 0 | R23: ='6'!V21 -> 0 | S23: ='6(M)'!T21 -> 0 | T23: 729.86 | U23: 27
C24: 19 | D24: P | E24: Urbanec | F24: Antonín | G24: KVZ Fruko J.Hradec | H24: ='1'!V22 -> 111.7 | I24: ='1(M)'!T22 -> 0 | J24: ='2'!V22 -> 163.4 | K24: ='2(M)'!T22 -> 0 | L24: ='3'!V22 -> 79.3 | M24: ='3(M)'!T22 -> 0 | N24: ='4'!V22 -> 0 | O24: ='4(M)'!T22 -> 0 | P24: ='5'!V22 -> 0 | Q24: ='5(M)'!T22 -> 0 | R24: ='6'!V22 -> 0 | S24: ='6(M)'!T22 -> 0 | T24: 354.4 | U24: 44
C25: 20 | D25: P | E25: Jílek | F25: Milan | G25: KVZ Fruko J.Hradec | H25: ='1'!V23 -> 166.8 | I25: ='1(M)'!T23 -> 0 | J25: ='2'!V23 -> 248.3 | K25: ='2(M)'!T23 -> 0 | L25: ='3'!V23 -> 203.3 | M25: ='3(M)'!T23 -> 0 | N25: ='4'!V23 -> 0 | O25: ='4(M)'!T23 -> 0 | P25: ='5'!V23 -> 0 | Q25: ='5(M)'!T23 -> 0 | R25: ='6'!V23 -> 0 | S25: ='6(M)'!T23 -> 0 | T25: 618.4 | U25: 38
C26: 21 | D26: P | E26: Jírů | F26: Václav | G26: SK Jednorožec | H26: ='1'!V24 -> 223.54 | I26: ='1(M)'!T24 -> 0 | J26: ='2'!V24 -> 315.93 | K26: ='2(M)'!T24 -> 0 | L26: ='3'!V24 -> 254.14 | M26: ='3(M)'!T24 -> 0 | N26: ='4'!V24 -> 0 | O26: ='4(M)'!T24 -> 0 | P26: ='5'!V24 -> 0 | Q26: ='5(M)'!T24 -> 0 | R26: ='6'!V24 -> 0 | S26: ='6(M)'!T24 -> 0 | T26: 793.61 | U26: 10
C27: 22 | D27: P | E27: Krupica | F27: Milan | G27: SK Jednorožec | H27: ='1'!V25 -> 214.14 | I27: ='1(M)'!T25 -> 0 | J27: ='2'!V25 -> 307.42 | K27: ='2(M)'!T25 -> 0 | L27: ='3'!V25 -> 252.93 | M27: ='3(M)'!T25 -> 0 | N27: ='4'!V25 -> 0 | O27: ='4(M)'!T25 -> 0 | P27: ='5'!V25 -> 0 | Q27: ='5(M)'!T25 -> 0 | R27: ='6'!V25 -> 0 | S27: ='6(M)'!T25 -> 0 | T27: 774.49 | U27: 15
C28: 23 | D28: R | E28: Krupica | F28: Milan | G28: SK Jednorožec | H28: ='1'!V26 -> 196.3 | I28: ='1(M)'!T26 -> 0 | J28: ='2'!V26 -> 251.7 | K28: ='2(M)'!T26 -> 0 | L28: ='3'!V26 -> 195.7 | M28: ='3(M)'!T26 -> 0 | N28: ='4'!V26 -> 0 | O28: ='4(M)'!T26 -> 0 | P28: ='5'!V26 -> 0 | Q28: ='5(M)'!T26 -> 0 | R28: ='6'!V26 -> 0 | S28: ='6(M)'!T26 -> 0 | T28: 643.7 | U28: 37
C29: 24 | D29: P | E29: Petržílka | F29: Miloslav | G29: KVZ UVS J.Hradec | H29: ='1'!V27 -> 207.37 | I29: ='1(M)'!T27 -> 0 | J29: ='2'!V27 -> 300.45 | K29: ='2(M)'!T27 -> 0 | L29: ='3'!V27 -> 261.49 | M29: ='3(M)'!T27 -> 0 | N29: ='4'!V27 -> 0 | O29: ='4(M)'!T27 -> 0 | P29: ='5'!V27 -> 0 | Q29: ='5(M)'!T27 -> 0 | R29: ='6'!V27 -> 0 | S29: ='6(M)'!T27 -> 0 | T29: 769.31 | U29: 17
C30: 25 | D30: R | E30: Seitl | F30: Aleš | G30: SSK lavonice | H30: ='1'!V28 -> 189.8 | I30: ='1(M)'!T28 -> 0 | J30: ='2'!V28 -> 272.8 | K30: ='2(M)'!T28 -> 0 | L30: ='3'!V28 -> 235.38 | M30: ='3(M)'!T28 -> 0 | N30: ='4'!V28 -> 0 | O30: ='4(M)'!T28 -> 0 | P30: ='5'!V28 -> 0 | Q30: ='5(M)'!T28 -> 0 | R30: ='6'!V28 -> 0 | S30: ='6(M)'!T28 -> 0 | T30: 697.98 | U30: 33
C31: 26 | D31: P | E31: Seitl | F31: Aleš | G31: SSK lavonice | H31: ='1'!V29 -> 150.92 | I31: ='1(M)'!T29 -> 0 | J31: ='2'!V29 -> 221.69 | K31: ='2(M)'!T29 -> 0 | L31: ='3'!V29 -> 195.3 | M31: ='3(M)'!T29 -> 0 | N31: ='4'!V29 -> 0 | O31: ='4(M)'!T29 -> 0 | P31: ='5'!V29 -> 0 | Q31: ='5(M)'!T29 -> 0 | R31: ='6'!V29 -> 0 | S31: ='6(M)'!T29 -> 0 | T31: 567.91 | U31: 40
C32: 27 | D32: P | E32: Seitl | F32: Karel | G32: SSK lavonice | H32: ='1'!V30 -> 194.6 | I32: ='1(M)'!T30 -> 0 | J32: ='2'!V30 -> 280.22 | K32: ='2(M)'!T30 -> 0 | L32: ='3'!V30 -> 240.15 | M32: ='3(M)'!T30 -> 0 | N32: ='4'!V30 -> 0 | O32: ='4(M)'!T30 -> 0 | P32: ='5'!V30 -> 0 | Q32: ='5(M)'!T30 -> 0 | R32: ='6'!V30 -> 0 | S32: ='6(M)'!T30 -> 0 | T32: 714.97 | U32: 30
C33: 28 | D33: P | E33: Nikodým | F33: David | G33: KVZ Pelhřimov | H33: ='1'!V31 -> 251.88 | I33: ='1(M)'!T31 -> 0 | J33: ='2'!V31 -> 311.7 | K33: ='2(M)'!T31 -> 0 | L33: ='3'!V31 -> 249.32 | M33: ='3(M)'!T31 -> 0 | N33: ='4'!V31 -> 0 | O33: ='4(M)'!T31 -> 0 | P33: ='5'!V31 -> 0 | Q33: ='5(M)'!T31 -> 0 | R33: ='6'!V31 -> 0 | S33: ='6(M)'!T31 -> 0 | T33: 812.9 | U33: 8
C34: 29 | D34: R | E34: Nikodým | F34: David | G34: KVZ Pelhřimov | H34: ='1'!V32 -> 231.07 | I34: ='1(M)'!T32 -> 0 | J34: ='2'!V32 -> 286.1 | K34: ='2(M)'!T32 -> 0 | L34: ='3'!V32 -> 253.49 | M34: ='3(M)'!T32 -> 0 | N34: ='4'!V32 -> 0 | O34: ='4(M)'!T32 -> 0 | P34: ='5'!V32 -> 0 | Q34: ='5(M)'!T32 -> 0 | R34: ='6'!V32 -> 0 | S34: ='6(M)'!T32 -> 0 | T34: 770.66 | U34: 16
C35: 30 | D35: P | E35: Hobza | F35: Lukáš | G35: KVZ Telč | H35: ='1'!V33 -> 231.56 | I35: ='1(M)'!T33 -> 0 | J35: ='2'!V33 -> 289.79 | K35: ='2(M)'!T33 -> 0 | L35: ='3'!V33 -> 258.34 | M35: ='3(M)'!T33 -> 0 | N35: ='4'!V33 -> 0 | O35: ='4(M)'!T33 -> 0 | P35: ='5'!V33 -> 0 | Q35: ='5(M)'!T33 -> 0 | R35: ='6'!V33 -> 0 | S35: ='6(M)'!T33 -> 0 | T35: 779.69 | U35: 13
C36: 31 | D36: P | E36: Jelínek | F36: Antonín | G36: KVZ Pelhřimov | H36: ='1'!V34 -> 173.43 | I36: ='1(M)'!T34 -> 0 | J36: ='2'!V34 -> 288 | K36: ='2(M)'!T34 -> 0 | L36: ='3'!V34 -> 231.74 | M36: ='3(M)'!T34 -> 0 | N36: ='4'!V34 -> 0 | O36: ='4(M)'!T34 -> 0 | P36: ='5'!V34 -> 0 | Q36: ='5(M)'!T34 -> 0 | R36: ='6'!V34 -> 0 | S36: ='6(M)'!T34 -> 0 | T36: 693.17 | U36: 34
C37: 32 | D37: R | E37: Jelínek | F37: Antonín | G37: KVZ Pelhřimov | H37: ='1'!V35 -> 207.58 | I37: ='1(M)'!T35 -> 0 | J37: ='2'!V35 -> 304.68 | K37: ='2(M)'!T35 -> 0 | L37: ='3'!V35 -> 246.56 | M37: ='3(M)'!T35 -> 0 | N37: ='4'!V35 -> 0 | O37: ='4(M)'!T35 -> 0 | P37: ='5'!V35 -> 0 | Q37: ='5(M)'!T35 -> 0 | R37: ='6'!V35 -> 0 | S37: ='6(M)'!T35 -> 0 | T37: 758.82 | U37: 19
C38: 33 | D38: P | E38: Píša | F38: Ladislav | G38: KVZ Třebíč | H38: ='1'!V36 -> 219.33 | I38: ='1(M)'!T36 -> 0 | J38: ='2'!V36 -> 186.61 | K38: ='2(M)'!T36 -> 0 | L38: ='3'!V36 -> 241.47 | M38: ='3(M)'!T36 -> 0 | N38: ='4'!V36 -> 0 | O38: ='4(M)'!T36 -> 0 | P38: ='5'!V36 -> 0 | Q38: ='5(M)'!T36 -> 0 | R38: ='6'!V36 -> 0 | S38: ='6(M)'!T36 -> 0 | T38: 647.41 | U38: 36
C39: 34 | D39: P | E39: Mesároš | F39: Štefan | G39: KVZ Fruko J.Hradec | H39: ='1'!V37 -> 242.25 | I39: ='1(M)'!T37 -> 0 | J39: ='2'!V37 -> 322.92 | K39: ='2(M)'!T37 -> 0 | L39: ='3'!V37 -> 281.7 | M39: ='3(M)'!T37 -> 0 | N39: ='4'!V37 -> 0 | O39: ='4(M)'!T37 -> 0 | P39: ='5'!V37 -> 0 | Q39: ='5(M)'!T37 -> 0 | R39: ='6'!V37 -> 0 | S39: ='6(M)'!T37 -> 0 | T39: 846.87 | U39: 4
C40: 35 | D40: P | E40: Červenka | F40: Pavel | G40: KVZ Perlhřimov | H40: ='1'!V38 -> 242.75 | I40: ='1(M)'!T38 -> 0 | J40: ='2'!V38 -> 326.95 | K40: ='2(M)'!T38 -> 0 | L40: ='3'!V38 -> 268.23 | M40: ='3(M)'!T38 -> 0 | N40: ='4'!V38 -> 0 | O40: ='4(M)'!T38 -> 0 | P40: ='5'!V38 -> 0 | Q40: ='5(M)'!T38 -> 0 | R40: ='6'!V38 -> 0 | S40: ='6(M)'!T38 -> 0 | T40: =IF(SUM(H40:S40)<0,0,SUM(H40:S40)) -> 837.93 | U40: 5
C41: 36 | D41: R | E41: Červenka | F41: Pavel | G41: KVZ Perlhřimov | H41: ='1'!V39 -> 199.4 | I41: ='1(M)'!T39 -> 0 | J41: ='2'!V39 -> 281.83 | K41: ='2(M)'!T39 -> 0 | L41: ='3'!V39 -> 263.29 | M41: ='3(M)'!T39 -> 0 | N41: ='4'!V39 -> 0 | O41: ='4(M)'!T39 -> 0 | P41: ='5'!V39 -> 0 | Q41: ='5(M)'!T39 -> 0 | R41: ='6'!V39 -> 0 | S41: ='6(M)'!T39 -> 0 | T41: 744.52 | U41: 24
C42: 37 | D42: P | E42: Švihálek | F42: Jiří | G42: KVZ Fruko J.Hradec | H42: ='1'!V40 -> 234.12 | I42: ='1(M)'!T40 -> 0 | J42: ='2'!V40 -> 300.48 | K42: ='2(M)'!T40 -> 0 | L42: ='3'!V40 -> 250.61 | M42: ='3(M)'!T40 -> 0 | N42: ='4'!V40 -> 0 | O42: ='4(M)'!T40 -> 0 | P42: ='5'!V40 -> 0 | Q42: ='5(M)'!T40 -> 0 | R42: ='6'!V40 -> 0 | S42: ='6(M)'!T40 -> 0 | T42: 785.21 | U42: 12
C43: 38 | D43: R | E43: Švihálek | F43: Jiří | G43: KVZ Fruko J.Hradec | H43: ='1'!V41 -> 205.12 | I43: ='1(M)'!T41 -> 0 | J43: ='2'!V41 -> 295.47 | K43: ='2(M)'!T41 -> 0 | L43: ='3'!V41 -> 249.31 | M43: ='3(M)'!T41 -> 0 | N43: ='4'!V41 -> 0 | O43: ='4(M)'!T41 -> 0 | P43: ='5'!V41 -> 0 | Q43: ='5(M)'!T41 -> 0 | R43: ='6'!V41 -> 0 | S43: ='6(M)'!T41 -> 0 | T43: 749.9 | U43: 21
C44: 39 | D44: P | E44: Toman | F44: František | G44: KVZ Fruko J.Hradec | H44: ='1'!V42 -> 169.3 | I44: ='1(M)'!T42 -> 0 | J44: ='2'!V42 -> 317.1 | K44: ='2(M)'!T42 -> 0 | L44: ='3'!V42 -> 240.08 | M44: ='3(M)'!T42 -> 0 | N44: ='4'!V42 -> 0 | O44: ='4(M)'!T42 -> 0 | P44: ='5'!V42 -> 0 | Q44: ='5(M)'!T42 -> 0 | R44: ='6'!V42 -> 0 | S44: ='6(M)'!T42 -> 0 | T44: 726.48 | U44: 28
C45: 40 | D45: P | E45: VejslíK | F45: Vladimír | G45: KVZ Fruko J.Hradec | H45: ='1'!V43 -> 253.31 | I45: ='1(M)'!T43 -> 0 | J45: ='2'!V43 -> 328.19 | K45: ='2(M)'!T43 -> 0 | L45: ='3'!V43 -> 270.96 | M45: ='3(M)'!T43 -> 0 | N45: ='4'!V43 -> 0 | O45: ='4(M)'!T43 -> 0 | P45: ='5'!V43 -> 0 | Q45: ='5(M)'!T43 -> 0 | R45: ='6'!V43 -> 0 | S45: ='6(M)'!T43 -> 0 | T45: 852.46 | U45: 3
C46: 41 | D46: P | E46: Získal | F46: Karel | G46: KVZ Pelhřimov | H46: ='1'!V44 -> 215.02 | I46: ='1(M)'!T44 -> 0 | J46: ='2'!V44 -> 312.35 | K46: ='2(M)'!T44 -> 0 | L46: ='3'!V44 -> 251.39 | M46: ='3(M)'!T44 -> 0 | N46: ='4'!V44 -> 0 | O46: ='4(M)'!T44 -> 0 | P46: ='5'!V44 -> 0 | Q46: ='5(M)'!T44 -> 0 | R46: ='6'!V44 -> 0 | S46: ='6(M)'!T44 -> 0 | T46: 778.76 | U46: 14
C47: 42 | D47: R | E47: Získal | F47: Karel | G47: KVZ Pelhřimov | H47: ='1'!V45 -> 181.9 | I47: ='1(M)'!T45 -> 0 | J47: ='2'!V45 -> 245 | K47: ='2(M)'!T45 -> 0 | L47: ='3'!V45 -> 155.6 | M47: ='3(M)'!T45 -> 0 | N47: ='4'!V45 -> 0 | O47: ='4(M)'!T45 -> 0 | P47: ='5'!V45 -> 0 | Q47: ='5(M)'!T45 -> 0 | R47: ='6'!V45 -> 0 | S47: ='6(M)'!T45 -> 0 | T47: 582.5 | U47: 39
C48: 43 | D48: P | E48: Sokolík | F48: Jaroslav | G48: KVZ Fruko J.Hradec | H48: ='1'!V46 -> 239.99 | I48: ='1(M)'!T46 -> 0 | J48: ='2'!V46 -> 332.53 | K48: ='2(M)'!T46 -> 0 | L48: ='3'!V46 -> 289.62 | M48: ='3(M)'!T46 -> 0 | N48: ='4'!V46 -> 0 | O48: ='4(M)'!T46 -> 0 | P48: ='5'!V46 -> 0 | Q48: ='5(M)'!T46 -> 0 | R48: ='6'!V46 -> 0 | S48: ='6(M)'!T46 -> 0 | T48: 862.14 | U48: 1
C49: 44 | D49: P | E49: Kraus | F49: Milan | G49: KVZ Týn n Vltavou | H49: ='1'!V47 -> 237.91 | I49: ='1(M)'!T47 -> 0 | J49: ='2'!V47 -> 310.47 | K49: ='2(M)'!T47 -> 0 | L49: ='3'!V47 -> 261.14 | M49: ='3(M)'!T47 -> 0 | N49: ='4'!V47 -> 0 | O49: ='4(M)'!T47 -> 0 | P49: ='5'!V47 -> 0 | Q49: ='5(M)'!T47 -> 0 | R49: ='6'!V47 -> 0 | S49: ='6(M)'!T47 -> 0 | T49: 809.52 | U49: 9
C50: 45 | D50: P | H50: ='1'!V48 -> 0 | I50: ='1(M)'!T48 -> 0 | J50: ='2'!V48 -> 0 | K50: ='2(M)'!T48 -> 0 | L50: ='3'!V48 -> 0 | M50: ='3(M)'!T48 -> 0 | N50: ='4'!V48 -> 0 | O50: ='4(M)'!T48 -> 0 | P50: ='5'!V48 -> 0 | Q50: ='5(M)'!T48 -> 0 | R50: ='6'!V48 -> 0 | S50: ='6(M)'!T48 -> 0 | T50: 0 | U50: 45
C51: 46 | D51: P | H51: ='1'!V49 -> 0 | I51: ='1(M)'!T49 -> 0 | J51: ='2'!V49 -> 0 | K51: ='2(M)'!T49 -> 0 | L51: ='3'!V49 -> 0 | M51: ='3(M)'!T49 -> 0 | N51: ='4'!V49 -> 0 | O51: ='4(M)'!T49 -> 0 | P51: ='5'!V49 -> 0 | Q51: ='5(M)'!T49 -> 0 | R51: ='6'!V49 -> 0 | S51: ='6(M)'!T49 -> 0 | T51: 0 | U51: 45
C52: 47 | D52: P | H52: ='1'!V50 -> 0 | I52: ='1(M)'!T50 -> 0 | J52: ='2'!V50 -> 0 | K52: ='2(M)'!T50 -> 0 | L52: ='3'!V50 -> 0 | M52: ='3(M)'!T50 -> 0 | N52: ='4'!V50 -> 0 | O52: ='4(M)'!T50 -> 0 | P52: ='5'!V50 -> 0 | Q52: ='5(M)'!T50 -> 0 | R52: ='6'!V50 -> 0 | S52: ='6(M)'!T50 -> 0 | T52: 0 | U52: 45
C53: 48 | D53: P | H53: ='1'!V51 -> 0 | I53: ='1(M)'!T51 -> 0 | J53: ='2'!V51 -> 0 | K53: ='2(M)'!T51 -> 0 | L53: ='3'!V51 -> 0 | M53: ='3(M)'!T51 -> 0 | N53: ='4'!V51 -> 0 | O53: ='4(M)'!T51 -> 0 | P53: ='5'!V51 -> 0 | Q53: ='5(M)'!T51 -> 0 | R53: ='6'!V51 -> 0 | S53: ='6(M)'!T51 -> 0 | T53: 0 | U53: 45
C54: 49 | D54: P | H54: ='1'!V52 -> 0 | I54: ='1(M)'!T52 -> 0 | J54: ='2'!V52 -> 0 | K54: ='2(M)'!T52 -> 0 | L54: ='3'!V52 -> 0 | M54: ='3(M)'!T52 -> 0 | N54: ='4'!V52 -> 0 | O54: ='4(M)'!T52 -> 0 | P54: ='5'!V52 -> 0 | Q54: ='5(M)'!T52 -> 0 | R54: ='6'!V52 -> 0 | S54: ='6(M)'!T52 -> 0 | T54: 0 | U54: 45
C55: 50 | D55: P | H55: ='1'!V53 -> 0 | I55: ='1(M)'!T53 -> 0 | J55: ='2'!V53 -> 0 | K55: ='2(M)'!T53 -> 0 | L55: ='3'!V53 -> 0 | M55: ='3(M)'!T53 -> 0 | N55: ='4'!V53 -> 0 | O55: ='4(M)'!T53 -> 0 | P55: ='5'!V53 -> 0 | Q55: ='5(M)'!T53 -> 0 | R55: ='6'!V53 -> 0 | S55: ='6(M)'!T53 -> 0 | T55: 0 | U55: 45
C56: 51 | D56: P | H56: ='1'!V54 -> 0 | I56: ='1(M)'!T54 -> 0 | J56: ='2'!V54 -> 0 | K56: ='2(M)'!T54 -> 0 | L56: ='3'!V54 -> 0 | M56: ='3(M)'!T54 -> 0 | N56: ='4'!V54 -> 0 | O56: ='4(M)'!T54 -> 0 | P56: ='5'!V54 -> 0 | Q56: ='5(M)'!T54 -> 0 | R56: ='6'!V54 -> 0 | S56: ='6(M)'!T54 -> 0 | T56: 0 | U56: 45
C57: 52 | D57: P | H57: ='1'!V55 -> 0 | I57: ='1(M)'!T55 -> 0 | J57: ='2'!V55 -> 0 | K57: ='2(M)'!T55 -> 0 | L57: ='3'!V55 -> 0 | M57: ='3(M)'!T55 -> 0 | N57: ='4'!V55 -> 0 | O57: ='4(M)'!T55 -> 0 | P57: ='5'!V55 -> 0 | Q57: ='5(M)'!T55 -> 0 | R57: ='6'!V55 -> 0 | S57: ='6(M)'!T55 -> 0 | T57: 0 | U57: 45
C58: 53 | D58: P | H58: ='1'!V56 -> 0 | I58: ='1(M)'!T56 -> 0 | J58: ='2'!V56 -> 0 | K58: ='2(M)'!T56 -> 0 | L58: ='3'!V56 -> 0 | M58: ='3(M)'!T56 -> 0 | N58: ='4'!V56 -> 0 | O58: ='4(M)'!T56 -> 0 | P58: ='5'!V56 -> 0 | Q58: ='5(M)'!T56 -> 0 | R58: ='6'!V56 -> 0 | S58: ='6(M)'!T56 -> 0 | T58: 0 | U58: 45
C59: 54 | D59: P | H59: ='1'!V57 -> 0 | I59: ='1(M)'!T57 -> 0 | J59: ='2'!V57 -> 0 | K59: ='2(M)'!T57 -> 0 | L59: ='3'!V57 -> 0 | M59: ='3(M)'!T57 -> 0 | N59: ='4'!V57 -> 0 | O59: ='4(M)'!T57 -> 0 | P59: ='5'!V57 -> 0 | Q59: ='5(M)'!T57 -> 0 | R59: ='6'!V57 -> 0 | S59: ='6(M)'!T57 -> 0 | T59: 0 | U59: 45
C60: 55 | D60: P | H60: ='1'!V58 -> 0 | I60: ='1(M)'!T58 -> 0 | J60: ='2'!V58 -> 0 | K60: ='2(M)'!T58 -> 0 | L60: ='3'!V58 -> 0 | M60: ='3(M)'!T58 -> 0 | N60: ='4'!V58 -> 0 | O60: ='4(M)'!T58 -> 0 | P60: ='5'!V58 -> 0 | Q60: ='5(M)'!T58 -> 0 | R60: ='6'!V58 -> 0 | S60: ='6(M)'!T58 -> 0 | T60: 0 | U60: 45
C61: 56 | D61: P | H61: ='1'!V59 -> 0 | I61: ='1(M)'!T59 -> 0 | J61: ='2'!V59 -> 0 | K61: ='2(M)'!T59 -> 0 | L61: ='3'!V59 -> 0 | M61: ='3(M)'!T59 -> 0 | N61: ='4'!V59 -> 0 | O61: ='4(M)'!T59 -> 0 | P61: ='5'!V59 -> 0 | Q61: ='5(M)'!T59 -> 0 | R61: ='6'!V59 -> 0 | S61: ='6(M)'!T59 -> 0 | T61: 0 | U61: 45
C62: 57 | D62: P | H62: ='1'!V60 -> 0 | I62: ='1(M)'!T60 -> 0 | J62: ='2'!V60 -> 0 | K62: ='2(M)'!T60 -> 0 | L62: ='3'!V60 -> 0 | M62: ='3(M)'!T60 -> 0 | N62: ='4'!V60 -> 0 | O62: ='4(M)'!T60 -> 0 | P62: ='5'!V60 -> 0 | Q62: ='5(M)'!T60 -> 0 | R62: ='6'!V60 -> 0 | S62: ='6(M)'!T60 -> 0 | T62: 0 | U62: 45
C63: 58 | D63: P | H63: ='1'!V61 -> 0 | I63: ='1(M)'!T61 -> 0 | J63: ='2'!V61 -> 0 | K63: ='2(M)'!T61 -> 0 | L63: ='3'!V61 -> 0 | M63: ='3(M)'!T61 -> 0 | N63: ='4'!V61 -> 0 | O63: ='4(M)'!T61 -> 0 | P63: ='5'!V61 -> 0 | Q63: ='5(M)'!T61 -> 0 | R63: ='6'!V61 -> 0 | S63: ='6(M)'!T61 -> 0 | T63: 0 | U63: 45
C64: 59 | D64: P | H64: ='1'!V62 -> 0 | I64: ='1(M)'!T62 -> 0 | J64: ='2'!V62 -> 0 | K64: ='2(M)'!T62 -> 0 | L64: ='3'!V62 -> 0 | M64: ='3(M)'!T62 -> 0 | N64: ='4'!V62 -> 0 | O64: ='4(M)'!T62 -> 0 | P64: ='5'!V62 -> 0 | Q64: ='5(M)'!T62 -> 0 | R64: ='6'!V62 -> 0 | S64: ='6(M)'!T62 -> 0 | T64: 0 | U64: 45
C65: 60 | D65: P | H65: ='1'!V63 -> 0 | I65: ='1(M)'!T63 -> 0 | J65: ='2'!V63 -> 0 | K65: ='2(M)'!T63 -> 0 | L65: ='3'!V63 -> 0 | M65: ='3(M)'!T63 -> 0 | N65: ='4'!V63 -> 0 | O65: ='4(M)'!T63 -> 0 | P65: ='5'!V63 -> 0 | Q65: ='5(M)'!T63 -> 0 | R65: ='6'!V63 -> 0 | S65: ='6(M)'!T63 -> 0 | T65: 0 | U65: 45
C66: 61 | D66: P | H66: ='1'!V64 -> 0 | I66: ='1(M)'!T64 -> 0 | J66: ='2'!V64 -> 0 | K66: ='2(M)'!T64 -> 0 | L66: ='3'!V64 -> 0 | M66: ='3(M)'!T64 -> 0 | N66: ='4'!V64 -> 0 | O66: ='4(M)'!T64 -> 0 | P66: ='5'!V64 -> 0 | Q66: ='5(M)'!T64 -> 0 | R66: ='6'!V64 -> 0 | S66: ='6(M)'!T64 -> 0 | T66: 0 | U66: 45
C67: 62 | D67: P | H67: ='1'!V65 -> 0 | I67: ='1(M)'!T65 -> 0 | J67: ='2'!V65 -> 0 | K67: ='2(M)'!T65 -> 0 | L67: ='3'!V65 -> 0 | M67: ='3(M)'!T65 -> 0 | N67: ='4'!V65 -> 0 | O67: ='4(M)'!T65 -> 0 | P67: ='5'!V65 -> 0 | Q67: ='5(M)'!T65 -> 0 | R67: ='6'!V65 -> 0 | S67: ='6(M)'!T65 -> 0 | T67: 0 | U67: 45
C68: 63 | D68: P | H68: ='1'!V66 -> 0 | I68: ='1(M)'!T66 -> 0 | J68: ='2'!V66 -> 0 | K68: ='2(M)'!T66 -> 0 | L68: ='3'!V66 -> 0 | M68: ='3(M)'!T66 -> 0 | N68: ='4'!V66 -> 0 | O68: ='4(M)'!T66 -> 0 | P68: ='5'!V66 -> 0 | Q68: ='5(M)'!T66 -> 0 | R68: ='6'!V66 -> 0 | S68: ='6(M)'!T66 -> 0 | T68: 0 | U68: 45
C69: 64 | D69: P | H69: ='1'!V67 -> 0 | I69: ='1(M)'!T67 -> 0 | J69: ='2'!V67 -> 0 | K69: ='2(M)'!T67 -> 0 | L69: ='3'!V67 -> 0 | M69: ='3(M)'!T67 -> 0 | N69: ='4'!V67 -> 0 | O69: ='4(M)'!T67 -> 0 | P69: ='5'!V67 -> 0 | Q69: ='5(M)'!T67 -> 0 | R69: ='6'!V67 -> 0 | S69: ='6(M)'!T67 -> 0 | T69: 0 | U69: 45
C70: 65 | D70: P | H70: ='1'!V68 -> 0 | I70: ='1(M)'!T68 -> 0 | J70: ='2'!V68 -> 0 | K70: ='2(M)'!T68 -> 0 | L70: ='3'!V68 -> 0 | M70: ='3(M)'!T68 -> 0 | N70: ='4'!V68 -> 0 | O70: ='4(M)'!T68 -> 0 | P70: ='5'!V68 -> 0 | Q70: ='5(M)'!T68 -> 0 | R70: ='6'!V68 -> 0 | S70: ='6(M)'!T68 -> 0 | T70: 0 | U70: 45
C71: 66 | D71: P | H71: ='1'!V69 -> 0 | I71: ='1(M)'!T69 -> 0 | J71: ='2'!V69 -> 0 | K71: ='2(M)'!T69 -> 0 | L71: ='3'!V69 -> 0 | M71: ='3(M)'!T69 -> 0 | N71: ='4'!V69 -> 0 | O71: ='4(M)'!T69 -> 0 | P71: ='5'!V69 -> 0 | Q71: ='5(M)'!T69 -> 0 | R71: ='6'!V69 -> 0 | S71: ='6(M)'!T69 -> 0 | T71: 0 | U71: =RANK(T71,$T$6:$T$104) -> 45 | V71: =IF($B71="K",SUMIFS($T$6:$T$104,$A$6:$A$104,A71),"") ->  | W71: =IF($B71="K",RANK(V71,$V$6:$V$104),"") -> 
C72: 67 | D72: P | H72: ='1'!V70 -> 0 | I72: ='1(M)'!T70 -> 0 | J72: ='2'!V70 -> 0 | K72: ='2(M)'!T70 -> 0 | L72: ='3'!V70 -> 0 | M72: ='3(M)'!T70 -> 0 | N72: ='4'!V70 -> 0 | O72: ='4(M)'!T70 -> 0 | P72: ='5'!V70 -> 0 | Q72: ='5(M)'!T70 -> 0 | R72: ='6'!V70 -> 0 | S72: ='6(M)'!T70 -> 0 | T72: 0 | U72: 45
C73: 68 | D73: P | H73: ='1'!V71 -> 0 | I73: ='1(M)'!T71 -> 0 | J73: ='2'!V71 -> 0 | K73: ='2(M)'!T71 -> 0 | L73: ='3'!V71 -> 0 | M73: ='3(M)'!T71 -> 0 | N73: ='4'!V71 -> 0 | O73: ='4(M)'!T71 -> 0 | P73: ='5'!V71 -> 0 | Q73: ='5(M)'!T71 -> 0 | R73: ='6'!V71 -> 0 | S73: ='6(M)'!T71 -> 0 | T73: 0 | U73: 45
C74: 69 | D74: P | H74: ='1'!V72 -> 0 | I74: ='1(M)'!T72 -> 0 | J74: ='2'!V72 -> 0 | K74: ='2(M)'!T72 -> 0 | L74: ='3'!V72 -> 0 | M74: ='3(M)'!T72 -> 0 | N74: ='4'!V72 -> 0 | O74: ='4(M)'!T72 -> 0 | P74: ='5'!V72 -> 0 | Q74: ='5(M)'!T72 -> 0 | R74: ='6'!V72 -> 0 | S74: ='6(M)'!T72 -> 0 | T74: 0 | U74: 45
C75: 70 | D75: P | H75: ='1'!V73 -> 0 | I75: ='1(M)'!T73 -> 0 | J75: ='2'!V73 -> 0 | K75: ='2(M)'!T73 -> 0 | L75: ='3'!V73 -> 0 | M75: ='3(M)'!T73 -> 0 | N75: ='4'!V73 -> 0 | O75: ='4(M)'!T73 -> 0 | P75: ='5'!V73 -> 0 | Q75: ='5(M)'!T73 -> 0 | R75: ='6'!V73 -> 0 | S75: ='6(M)'!T73 -> 0 | T75: 0 | U75: 45
C76: 71 | D76: P | H76: ='1'!V74 -> 0 | I76: ='1(M)'!T74 -> 0 | J76: ='2'!V74 -> 0 | K76: ='2(M)'!T74 -> 0 | L76: ='3'!V74 -> 0 | M76: ='3(M)'!T74 -> 0 | N76: ='4'!V74 -> 0 | O76: ='4(M)'!T74 -> 0 | P76: ='5'!V74 -> 0 | Q76: ='5(M)'!T74 -> 0 | R76: ='6'!V74 -> 0 | S76: ='6(M)'!T74 -> 0 | T76: 0 | U76: 45
C77: 72 | D77: P | H77: ='1'!V75 -> 0 | I77: ='1(M)'!T75 -> 0 | J77: ='2'!V75 -> 0 | K77: ='2(M)'!T75 -> 0 | L77: ='3'!V75 -> 0 | M77: ='3(M)'!T75 -> 0 | N77: ='4'!V75 -> 0 | O77: ='4(M)'!T75 -> 0 | P77: ='5'!V75 -> 0 | Q77: ='5(M)'!T75 -> 0 | R77: ='6'!V75 -> 0 | S77: ='6(M)'!T75 -> 0 | T77: 0 | U77: 45
C78: 73 | D78: P | H78: ='1'!V76 -> 0 | I78: ='1(M)'!T76 -> 0 | J78: ='2'!V76 -> 0 | K78: ='2(M)'!T76 -> 0 | L78: ='3'!V76 -> 0 | M78: ='3(M)'!T76 -> 0 | N78: ='4'!V76 -> 0 | O78: ='4(M)'!T76 -> 0 | P78: ='5'!V76 -> 0 | Q78: ='5(M)'!T76 -> 0 | R78: ='6'!V76 -> 0 | S78: ='6(M)'!T76 -> 0 | T78: 0 | U78: 45
C79: 74 | D79: P | H79: ='1'!V77 -> 0 | I79: ='1(M)'!T77 -> 0 | J79: ='2'!V77 -> 0 | K79: ='2(M)'!T77 -> 0 | L79: ='3'!V77 -> 0 | M79: ='3(M)'!T77 -> 0 | N79: ='4'!V77 -> 0 | O79: ='4(M)'!T77 -> 0 | P79: ='5'!V77 -> 0 | Q79: ='5(M)'!T77 -> 0 | R79: ='6'!V77 -> 0 | S79: ='6(M)'!T77 -> 0 | T79: 0 | U79: 45
C80: 75 | D80: P | H80: ='1'!V78 -> 0 | I80: ='1(M)'!T78 -> 0 | J80: ='2'!V78 -> 0 | K80: ='2(M)'!T78 -> 0 | L80: ='3'!V78 -> 0 | M80: ='3(M)'!T78 -> 0 | N80: ='4'!V78 -> 0 | O80: ='4(M)'!T78 -> 0 | P80: ='5'!V78 -> 0 | Q80: ='5(M)'!T78 -> 0 | R80: ='6'!V78 -> 0 | S80: ='6(M)'!T78 -> 0 | T80: 0 | U80: 45
C81: 76 | D81: P | H81: ='1'!V79 -> 0 | I81: ='1(M)'!T79 -> 0 | J81: ='2'!V79 -> 0 | K81: ='2(M)'!T79 -> 0 | L81: ='3'!V79 -> 0 | M81: ='3(M)'!T79 -> 0 | N81: ='4'!V79 -> 0 | O81: ='4(M)'!T79 -> 0 | P81: ='5'!V79 -> 0 | Q81: ='5(M)'!T79 -> 0 | R81: ='6'!V79 -> 0 | S81: ='6(M)'!T79 -> 0 | T81: 0 | U81: 45
C82: 77 | D82: P | H82: ='1'!V80 -> 0 | I82: ='1(M)'!T80 -> 0 | J82: ='2'!V80 -> 0 | K82: ='2(M)'!T80 -> 0 | L82: ='3'!V80 -> 0 | M82: ='3(M)'!T80 -> 0 | N82: ='4'!V80 -> 0 | O82: ='4(M)'!T80 -> 0 | P82: ='5'!V80 -> 0 | Q82: ='5(M)'!T80 -> 0 | R82: ='6'!V80 -> 0 | S82: ='6(M)'!T80 -> 0 | T82: 0 | U82: 45
C83: 78 | D83: P | H83: ='1'!V81 -> 0 | I83: ='1(M)'!T81 -> 0 | J83: ='2'!V81 -> 0 | K83: ='2(M)'!T81 -> 0 | L83: ='3'!V81 -> 0 | M83: ='3(M)'!T81 -> 0 | N83: ='4'!V81 -> 0 | O83: ='4(M)'!T81 -> 0 | P83: ='5'!V81 -> 0 | Q83: ='5(M)'!T81 -> 0 | R83: ='6'!V81 -> 0 | S83: ='6(M)'!T81 -> 0 | T83: 0 | U83: 45
C84: 79 | D84: P | H84: ='1'!V82 -> 0 | I84: ='1(M)'!T82 -> 0 | J84: ='2'!V82 -> 0 | K84: ='2(M)'!T82 -> 0 | L84: ='3'!V82 -> 0 | M84: ='3(M)'!T82 -> 0 | N84: ='4'!V82 -> 0 | O84: ='4(M)'!T82 -> 0 | P84: ='5'!V82 -> 0 | Q84: ='5(M)'!T82 -> 0 | R84: ='6'!V82 -> 0 | S84: ='6(M)'!T82 -> 0 | T84: 0 | U84: 45
C85: 80 | D85: P | H85: ='1'!V83 -> 0 | I85: ='1(M)'!T83 -> 0 | J85: ='2'!V83 -> 0 | K85: ='2(M)'!T83 -> 0 | L85: ='3'!V83 -> 0 | M85: ='3(M)'!T83 -> 0 | N85: ='4'!V83 -> 0 | O85: ='4(M)'!T83 -> 0 | P85: ='5'!V83 -> 0 | Q85: ='5(M)'!T83 -> 0 | R85: ='6'!V83 -> 0 | S85: ='6(M)'!T83 -> 0 | T85: 0 | U85: 45
C86: 81 | D86: P | H86: ='1'!V84 -> 0 | I86: ='1(M)'!T84 -> 0 | J86: ='2'!V84 -> 0 | K86: ='2(M)'!T84 -> 0 | L86: ='3'!V84 -> 0 | M86: ='3(M)'!T84 -> 0 | N86: ='4'!V84 -> 0 | O86: ='4(M)'!T84 -> 0 | P86: ='5'!V84 -> 0 | Q86: ='5(M)'!T84 -> 0 | R86: ='6'!V84 -> 0 | S86: ='6(M)'!T84 -> 0 | T86: 0 | U86: 45
C87: 82 | D87: P | H87: ='1'!V85 -> 0 | I87: ='1(M)'!T85 -> 0 | J87: ='2'!V85 -> 0 | K87: ='2(M)'!T85 -> 0 | L87: ='3'!V85 -> 0 | M87: ='3(M)'!T85 -> 0 | N87: ='4'!V85 -> 0 | O87: ='4(M)'!T85 -> 0 | P87: ='5'!V85 -> 0 | Q87: ='5(M)'!T85 -> 0 | R87: ='6'!V85 -> 0 | S87: ='6(M)'!T85 -> 0 | T87: 0 | U87: 45
C88: 83 | D88: P | H88: ='1'!V86 -> 0 | I88: ='1(M)'!T86 -> 0 | J88: ='2'!V86 -> 0 | K88: ='2(M)'!T86 -> 0 | L88: ='3'!V86 -> 0 | M88: ='3(M)'!T86 -> 0 | N88: ='4'!V86 -> 0 | O88: ='4(M)'!T86 -> 0 | P88: ='5'!V86 -> 0 | Q88: ='5(M)'!T86 -> 0 | R88: ='6'!V86 -> 0 | S88: ='6(M)'!T86 -> 0 | T88: 0 | U88: 45
C89: 84 | D89: P | H89: ='1'!V87 -> 0 | I89: ='1(M)'!T87 -> 0 | J89: ='2'!V87 -> 0 | K89: ='2(M)'!T87 -> 0 | L89: ='3'!V87 -> 0 | M89: ='3(M)'!T87 -> 0 | N89: ='4'!V87 -> 0 | O89: ='4(M)'!T87 -> 0 | P89: ='5'!V87 -> 0 | Q89: ='5(M)'!T87 -> 0 | R89: ='6'!V87 -> 0 | S89: ='6(M)'!T87 -> 0 | T89: 0 | U89: 45
C90: 85 | D90: P | H90: ='1'!V88 -> 0 | I90: ='1(M)'!T88 -> 0 | J90: ='2'!V88 -> 0 | K90: ='2(M)'!T88 -> 0 | L90: ='3'!V88 -> 0 | M90: ='3(M)'!T88 -> 0 | N90: ='4'!V88 -> 0 | O90: ='4(M)'!T88 -> 0 | P90: ='5'!V88 -> 0 | Q90: ='5(M)'!T88 -> 0 | R90: ='6'!V88 -> 0 | S90: ='6(M)'!T88 -> 0 | T90: 0 | U90: 45
C91: 86 | D91: P | H91: ='1'!V89 -> 0 | I91: ='1(M)'!T89 -> 0 | J91: ='2'!V89 -> 0 | K91: ='2(M)'!T89 -> 0 | L91: ='3'!V89 -> 0 | M91: ='3(M)'!T89 -> 0 | N91: ='4'!V89 -> 0 | O91: ='4(M)'!T89 -> 0 | P91: ='5'!V89 -> 0 | Q91: ='5(M)'!T89 -> 0 | R91: ='6'!V89 -> 0 | S91: ='6(M)'!T89 -> 0 | T91: 0 | U91: 45
C92: 87 | D92: P | H92: ='1'!V90 -> 0 | I92: ='1(M)'!T90 -> 0 | J92: ='2'!V90 -> 0 | K92: ='2(M)'!T90 -> 0 | L92: ='3'!V90 -> 0 | M92: ='3(M)'!T90 -> 0 | N92: ='4'!V90 -> 0 | O92: ='4(M)'!T90 -> 0 | P92: ='5'!V90 -> 0 | Q92: ='5(M)'!T90 -> 0 | R92: ='6'!V90 -> 0 | S92: ='6(M)'!T90 -> 0 | T92: 0 | U92: 45
C93: 88 | D93: P | H93: ='1'!V91 -> 0 | I93: ='1(M)'!T91 -> 0 | J93: ='2'!V91 -> 0 | K93: ='2(M)'!T91 -> 0 | L93: ='3'!V91 -> 0 | M93: ='3(M)'!T91 -> 0 | N93: ='4'!V91 -> 0 | O93: ='4(M)'!T91 -> 0 | P93: ='5'!V91 -> 0 | Q93: ='5(M)'!T91 -> 0 | R93: ='6'!V91 -> 0 | S93: ='6(M)'!T91 -> 0 | T93: 0 | U93: 45
C94: 89 | D94: P | H94: ='1'!V92 -> 0 | I94: ='1(M)'!T92 -> 0 | J94: ='2'!V92 -> 0 | K94: ='2(M)'!T92 -> 0 | L94: ='3'!V92 -> 0 | M94: ='3(M)'!T92 -> 0 | N94: ='4'!V92 -> 0 | O94: ='4(M)'!T92 -> 0 | P94: ='5'!V92 -> 0 | Q94: ='5(M)'!T92 -> 0 | R94: ='6'!V92 -> 0 | S94: ='6(M)'!T92 -> 0 | T94: 0 | U94: 45
C95: 90 | D95: P | H95: ='1'!V93 -> 0 | I95: ='1(M)'!T93 -> 0 | J95: ='2'!V93 -> 0 | K95: ='2(M)'!T93 -> 0 | L95: ='3'!V93 -> 0 | M95: ='3(M)'!T93 -> 0 | N95: ='4'!V93 -> 0 | O95: ='4(M)'!T93 -> 0 | P95: ='5'!V93 -> 0 | Q95: ='5(M)'!T93 -> 0 | R95: ='6'!V93 -> 0 | S95: ='6(M)'!T93 -> 0 | T95: 0 | U95: 45
C96: 91 | D96: P | H96: ='1'!V94 -> 0 | I96: ='1(M)'!T94 -> 0 | J96: ='2'!V94 -> 0 | K96: ='2(M)'!T94 -> 0 | L96: ='3'!V94 -> 0 | M96: ='3(M)'!T94 -> 0 | N96: ='4'!V94 -> 0 | O96: ='4(M)'!T94 -> 0 | P96: ='5'!V94 -> 0 | Q96: ='5(M)'!T94 -> 0 | R96: ='6'!V94 -> 0 | S96: ='6(M)'!T94 -> 0 | T96: 0 | U96: 45
C97: 92 | D97: P | H97: ='1'!V95 -> 0 | I97: ='1(M)'!T95 -> 0 | J97: ='2'!V95 -> 0 | K97: ='2(M)'!T95 -> 0 | L97: ='3'!V95 -> 0 | M97: ='3(M)'!T95 -> 0 | N97: ='4'!V95 -> 0 | O97: ='4(M)'!T95 -> 0 | P97: ='5'!V95 -> 0 | Q97: ='5(M)'!T95 -> 0 | R97: ='6'!V95 -> 0 | S97: ='6(M)'!T95 -> 0 | T97: 0 | U97: 45
C98: 93 | D98: P | H98: ='1'!V96 -> 0 | I98: ='1(M)'!T96 -> 0 | J98: ='2'!V96 -> 0 | K98: ='2(M)'!T96 -> 0 | L98: ='3'!V96 -> 0 | M98: ='3(M)'!T96 -> 0 | N98: ='4'!V96 -> 0 | O98: ='4(M)'!T96 -> 0 | P98: ='5'!V96 -> 0 | Q98: ='5(M)'!T96 -> 0 | R98: ='6'!V96 -> 0 | S98: ='6(M)'!T96 -> 0 | T98: 0 | U98: 45
C99: 94 | D99: P | H99: ='1'!V97 -> 0 | I99: ='1(M)'!T97 -> 0 | J99: ='2'!V97 -> 0 | K99: ='2(M)'!T97 -> 0 | L99: ='3'!V97 -> 0 | M99: ='3(M)'!T97 -> 0 | N99: ='4'!V97 -> 0 | O99: ='4(M)'!T97 -> 0 | P99: ='5'!V97 -> 0 | Q99: ='5(M)'!T97 -> 0 | R99: ='6'!V97 -> 0 | S99: ='6(M)'!T97 -> 0 | T99: 0 | U99: 45
C100: 95 | D100: P | H100: ='1'!V98 -> 0 | I100: ='1(M)'!T98 -> 0 | J100: ='2'!V98 -> 0 | K100: ='2(M)'!T98 -> 0 | L100: ='3'!V98 -> 0 | M100: ='3(M)'!T98 -> 0 | N100: ='4'!V98 -> 0 | O100: ='4(M)'!T98 -> 0 | P100: ='5'!V98 -> 0 | Q100: ='5(M)'!T98 -> 0 | R100: ='6'!V98 -> 0 | S100: ='6(M)'!T98 -> 0 | T100: 0 | U100: 45
C101: 96 | D101: P | H101: ='1'!V99 -> 0 | I101: ='1(M)'!T99 -> 0 | J101: ='2'!V99 -> 0 | K101: ='2(M)'!T99 -> 0 | L101: ='3'!V99 -> 0 | M101: ='3(M)'!T99 -> 0 | N101: ='4'!V99 -> 0 | O101: ='4(M)'!T99 -> 0 | P101: ='5'!V99 -> 0 | Q101: ='5(M)'!T99 -> 0 | R101: ='6'!V99 -> 0 | S101: ='6(M)'!T99 -> 0 | T101: 0 | U101: 45
C102: 97 | D102: P | H102: ='1'!V100 -> 0 | I102: ='1(M)'!T100 -> 0 | J102: ='2'!V100 -> 0 | K102: ='2(M)'!T100 -> 0 | L102: ='3'!V100 -> 0 | M102: ='3(M)'!T100 -> 0 | N102: ='4'!V100 -> 0 | O102: ='4(M)'!T100 -> 0 | P102: ='5'!V100 -> 0 | Q102: ='5(M)'!T100 -> 0 | R102: ='6'!V100 -> 0 | S102: ='6(M)'!T100 -> 0 | T102: 0 | U102: 45
C103: 98 | D103: P | H103: ='1'!V101 -> 0 | I103: ='1(M)'!T101 -> 0 | J103: ='2'!V101 -> 0 | K103: ='2(M)'!T101 -> 0 | L103: ='3'!V101 -> 0 | M103: ='3(M)'!T101 -> 0 | N103: ='4'!V101 -> 0 | O103: ='4(M)'!T101 -> 0 | P103: ='5'!V101 -> 0 | Q103: ='5(M)'!T101 -> 0 | R103: ='6'!V101 -> 0 | S103: ='6(M)'!T101 -> 0 | T103: 0 | U103: 45
C104: 99 | D104: P | H104: ='1'!V102 -> 0 | I104: ='1(M)'!T102 -> 0 | J104: ='2'!V102 -> 0 | K104: ='2(M)'!T102 -> 0 | L104: ='3'!V102 -> 0 | M104: ='3(M)'!T102 -> 0 | N104: ='4'!V102 -> 0 | O104: ='4(M)'!T102 -> 0 | P104: ='5'!V102 -> 0 | Q104: ='5(M)'!T102 -> 0 | R104: ='6'!V102 -> 0 | S104: ='6(M)'!T102 -> 0 | T104: =IF(SUM(H104:S104)<0,0,SUM(H104:S104)) -> 0 | U104: 45

Sheet 1
A1: Druž. | B1: Kap. | D1: Disciplina 1
F3: K | G3: M | H3: 1 | I3: 2 | J3: 3 | K3: 4 | L3: 5 | M3: 6 | N3: 7 | O3: 8 | P3: 9 | Q3: 10 | R3: 11 | S3: 12 | T3: TB | U3: Čas | V3: Součet
A4: =IF(Prezentace!A6=0,"",Prezentace!A6) ->  | B4: =IF(Prezentace!B6=0,"",Prezentace!B6) ->  | C4: =Prezentace!D6 -> P | D4: =IF(Prezentace!F6=0,"",Prezentace!F6) -> Martin | E4: =IF(Prezentace!E6=0,"",Prezentace!E6) -> Adensam | F4: 300 | U4: 70.11 | V4: =(SUM(F4:T4))-U4 -> 229.89
A5: =IF(Prezentace!A7=0,"",Prezentace!A7) ->  | B5: =IF(Prezentace!B7=0,"",Prezentace!B7) ->  | C5: =Prezentace!D7 -> R | D5: =IF(Prezentace!F7=0,"",Prezentace!F7) -> Martin | E5: =IF(Prezentace!E7=0,"",Prezentace!E7) -> Adensam | F5: 300 | U5: 139.6 | V5: =(SUM(F5:T5))-U5 -> 160.4
A6: =IF(Prezentace!A8=0,"",Prezentace!A8) ->  | B6: =IF(Prezentace!B8=0,"",Prezentace!B8) ->  | C6: =Prezentace!D8 -> P | D6: =IF(Prezentace!F8=0,"",Prezentace!F8) -> Jaroslav | E6: =IF(Prezentace!E8=0,"",Prezentace!E8) -> Kostříž | F6: 300 | U6: 107 | V6: 193
A7: =IF(Prezentace!A9=0,"",Prezentace!A9) ->  | B7: =IF(Prezentace!B9=0,"",Prezentace!B9) ->  | C7: =Prezentace!D9 -> P | D7: =IF(Prezentace!F9=0,"",Prezentace!F9) -> Miroslav | E7: =IF(Prezentace!E9=0,"",Prezentace!E9) -> Koch ml. | F7: 300 | U7: 92.06 | V7: 207.94
A8: =IF(Prezentace!A10=0,"",Prezentace!A10) ->  | B8: =IF(Prezentace!B10=0,"",Prezentace!B10) ->  | C8: =Prezentace!D10 -> P | D8: =IF(Prezentace!F10=0,"",Prezentace!F10) -> Miroslav | E8: =IF(Prezentace!E10=0,"",Prezentace!E10) -> Koch st. | F8: 300 | U8: 91.08 | V8: 208.92
A9: =IF(Prezentace!A11=0,"",Prezentace!A11) ->  | B9: =IF(Prezentace!B11=0,"",Prezentace!B11) ->  | C9: =Prezentace!D11 -> P | D9: =IF(Prezentace!F11=0,"",Prezentace!F11) -> Bohumil | E9: =IF(Prezentace!E11=0,"",Prezentace!E11) -> Herceg | F9: 300 | U9: 113.6 | V9: 186.4
A10: =IF(Prezentace!A12=0,"",Prezentace!A12) ->  | B10: =IF(Prezentace!B12=0,"",Prezentace!B12) ->  | C10: =Prezentace!D12 -> P | D10: =IF(Prezentace!F12=0,"",Prezentace!F12) -> Viktor | E10: =IF(Prezentace!E12=0,"",Prezentace!E12) -> Fuksa | F10: 290 | U10: 84.79 | V10: 205.21
A11: =IF(Prezentace!A13=0,"",Prezentace!A13) ->  | B11: =IF(Prezentace!B13=0,"",Prezentace!B13) ->  | C11: =Prezentace!D13 -> P | D11: =IF(Prezentace!F13=0,"",Prezentace!F13) -> Milan | E11: =IF(Prezentace!E13=0,"",Prezentace!E13) -> Matějka ml. | F11: 290 | U11: 79.46 | V11: 210.54
A12: =IF(Prezentace!A14=0,"",Prezentace!A14) ->  | B12: =IF(Prezentace!B14=0,"",Prezentace!B14) ->  | C12: =Prezentace!D14 -> P | D12: =IF(Prezentace!F14=0,"",Prezentace!F14) -> Michal | E12: =IF(Prezentace!E14=0,"",Prezentace!E14) -> Svoboda | F12: 300 | U12: 62.41 | V12: 237.59
A13: =IF(Prezentace!A15=0,"",Prezentace!A15) ->  | B13: =IF(Prezentace!B15=0,"",Prezentace!B15) ->  | C13: =Prezentace!D15 -> R | D13: =IF(Prezentace!F15=0,"",Prezentace!F15) -> Lukáš | E13: =IF(Prezentace!E15=0,"",Prezentace!E15) -> Bouda | F13: 300 | U13: 82.69 | V13: 217.31
A14: =IF(Prezentace!A16=0,"",Prezentace!A16) ->  | B14: =IF(Prezentace!B16=0,"",Prezentace!B16) ->  | C14: =Prezentace!D16 -> P | D14: =IF(Prezentace!F16=0,"",Prezentace!F16) -> Lukáš | E14: =IF(Prezentace!E16=0,"",Prezentace!E16) -> Bouda | F14: 300 | U14: 54.08 | V14: 245.92
A15: =IF(Prezentace!A17=0,"",Prezentace!A17) ->  | B15: =IF(Prezentace!B17=0,"",Prezentace!B17) ->  | C15: =Prezentace!D17 -> P | D15: =IF(Prezentace!F17=0,"",Prezentace!F17) -> Pavel | E15: =IF(Prezentace!E17=0,"",Prezentace!E17) -> Koltai | F15: 300 | U15: 48.12 | V15: 251.88
A16: =IF(Prezentace!A18=0,"",Prezentace!A18) ->  | B16: =IF(Prezentace!B18=0,"",Prezentace!B18) ->  | C16: =Prezentace!D18 -> P | D16: =IF(Prezentace!F18=0,"",Prezentace!F18) -> Vladislav | E16: =IF(Prezentace!E18=0,"",Prezentace!E18) -> Přibyl | F16: 300 | U16: 113.6 | V16: 186.4
A17: =IF(Prezentace!A19=0,"",Prezentace!A19) ->  | B17: =IF(Prezentace!B19=0,"",Prezentace!B19) ->  | C17: =Prezentace!D19 -> P | D17: =IF(Prezentace!F19=0,"",Prezentace!F19) -> Milan | E17: =IF(Prezentace!E19=0,"",Prezentace!E19) -> Matějka st. | F17: 290 | U17: 185.6 | V17: 104.4
A18: =IF(Prezentace!A20=0,"",Prezentace!A20) ->  | B18: =IF(Prezentace!B20=0,"",Prezentace!B20) ->  | C18: =Prezentace!D20 -> P | D18: =IF(Prezentace!F20=0,"",Prezentace!F20) -> Miroslav | E18: =IF(Prezentace!E20=0,"",Prezentace!E20) -> Fiala | F18: 280 | U18: 98.72 | V18: 181.28
A19: =IF(Prezentace!A21=0,"",Prezentace!A21) ->  | B19: =IF(Prezentace!B21=0,"",Prezentace!B21) ->  | C19: =Prezentace!D21 -> P | D19: =IF(Prezentace!F21=0,"",Prezentace!F21) -> Karel | E19: =IF(Prezentace!E21=0,"",Prezentace!E21) -> Gažák | F19: 290 | U19: 85.43 | V19: 204.57
A20: =IF(Prezentace!A22=0,"",Prezentace!A22) ->  | B20: =IF(Prezentace!B22=0,"",Prezentace!B22) ->  | C20: =Prezentace!D22 -> P | D20: =IF(Prezentace!F22=0,"",Prezentace!F22) -> Václav | E20: =IF(Prezentace!E22=0,"",Prezentace!E22) -> Landkammer | F20: 290 | U20: 90.15 | V20: 199.85
A21: =IF(Prezentace!A23=0,"",Prezentace!A23) ->  | B21: =IF(Prezentace!B23=0,"",Prezentace!B23) ->  | C21: =Prezentace!D23 -> P | D21: =IF(Prezentace!F23=0,"",Prezentace!F23) -> Vojtěch | E21: =IF(Prezentace!E23=0,"",Prezentace!E23) -> Brejžek | F21: 300 | U21: 87.04 | V21: 212.96
A22: =IF(Prezentace!A24=0,"",Prezentace!A24) ->  | B22: =IF(Prezentace!B24=0,"",Prezentace!B24) ->  | C22: =Prezentace!D24 -> P | D22: =IF(Prezentace!F24=0,"",Prezentace!F24) -> Antonín | E22: =IF(Prezentace!E24=0,"",Prezentace!E24) -> Urbanec | F22: 280 | U22: 168.3 | V22: 111.7
A23: =IF(Prezentace!A25=0,"",Prezentace!A25) ->  | B23: =IF(Prezentace!B25=0,"",Prezentace!B25) ->  | C23: =Prezentace!D25 -> P | D23: =IF(Prezentace!F25=0,"",Prezentace!F25) -> Milan | E23: =IF(Prezentace!E25=0,"",Prezentace!E25) -> Jílek | F23: 280 | U23: 113.2 | V23: 166.8
A24: =IF(Prezentace!A26=0,"",Prezentace!A26) ->  | B24: =IF(Prezentace!B26=0,"",Prezentace!B26) ->  | C24: =Prezentace!D26 -> P | D24: =IF(Prezentace!F26=0,"",Prezentace!F26) -> Václav | E24: =IF(Prezentace!E26=0,"",Prezentace!E26) -> Jírů | F24: 290 | U24: 66.46 | V24: 223.54
A25: =IF(Prezentace!A27=0,"",Prezentace!A27) ->  | B25: =IF(Prezentace!B27=0,"",Prezentace!B27) ->  | C25: =Prezentace!D27 -> P | D25: =IF(Prezentace!F27=0,"",Prezentace!F27) -> Milan | E25: =IF(Prezentace!E27=0,"",Prezentace!E27) -> Krupica | F25: 300 | U25: 85.86 | V25: 214.14
A26: =IF(Prezentace!A28=0,"",Prezentace!A28) ->  | B26: =IF(Prezentace!B28=0,"",Prezentace!B28) ->  | C26: =Prezentace!D28 -> R | D26: =IF(Prezentace!F28=0,"",Prezentace!F28) -> Milan | E26: =IF(Prezentace!E28=0,"",Prezentace!E28) -> Krupica | F26: 300 | U26: 103.7 | V26: 196.3
A27: =IF(Prezentace!A29=0,"",Prezentace!A29) ->  | B27: =IF(Prezentace!B29=0,"",Prezentace!B29) ->  | C27: =Prezentace!D29 -> P | D27: =IF(Prezentace!F29=0,"",Prezentace!F29) -> Miloslav | E27: =IF(Prezentace!E29=0,"",Prezentace!E29) -> Petržílka | F27: 290 | U27: 82.63 | V27: 207.37
A28: =IF(Prezentace!A30=0,"",Prezentace!A30) ->  | B28: =IF(Prezentace!B30=0,"",Prezentace!B30) ->  | C28: =Prezentace!D30 -> R | D28: =IF(Prezentace!F30=0,"",Prezentace!F30) -> Aleš | E28: =IF(Prezentace!E30=0,"",Prezentace!E30) -> Seitl | F28: 290 | U28: 100.2 | V28: 189.8
A29: =IF(Prezentace!A31=0,"",Prezentace!A31) ->  | B29: =IF(Prezentace!B31=0,"",Prezentace!B31) ->  | C29: =Prezentace!D31 -> P | D29: =IF(Prezentace!F31=0,"",Prezentace!F31) -> Aleš | E29: =IF(Prezentace!E31=0,"",Prezentace!E31) -> Seitl | F29: 250 | U29: 99.08 | V29: 150.92
A30: =IF(Prezentace!A32=0,"",Prezentace!A32) ->  | B30: =IF(Prezentace!B32=0,"",Prezentace!B32) ->  | C30: =Prezentace!D32 -> P | D30: =IF(Prezentace!F32=0,"",Prezentace!F32) -> Karel | E30: =IF(Prezentace!E32=0,"",Prezentace!E32) -> Seitl | F30: 300 | U30: 105.4 | V30: 194.6
A31: =IF(Prezentace!A33=0,"",Prezentace!A33) ->  | B31: =IF(Prezentace!B33=0,"",Prezentace!B33) ->  | C31: =Prezentace!D33 -> P | D31: =IF(Prezentace!F33=0,"",Prezentace!F33) -> David | E31: =IF(Prezentace!E33=0,"",Prezentace!E33) -> Nikodým | F31: 300 | U31: 48.12 | V31: 251.88
A32: =IF(Prezentace!A34=0,"",Prezentace!A34) ->  | B32: =IF(Prezentace!B34=0,"",Prezentace!B34) ->  | C32: =Prezentace!D34 -> R | D32: =IF(Prezentace!F34=0,"",Prezentace!F34) -> David | E32: =IF(Prezentace!E34=0,"",Prezentace!E34) -> Nikodým | F32: 300 | U32: 68.93 | V32: 231.07
A33: =IF(Prezentace!A35=0,"",Prezentace!A35) ->  | B33: =IF(Prezentace!B35=0,"",Prezentace!B35) ->  | C33: =Prezentace!D35 -> P | D33: =IF(Prezentace!F35=0,"",Prezentace!F35) -> Lukáš | E33: =IF(Prezentace!E35=0,"",Prezentace!E35) -> Hobza | F33: 290 | U33: 58.44 | V33: 231.56
A34: =IF(Prezentace!A36=0,"",Prezentace!A36) ->  | B34: =IF(Prezentace!B36=0,"",Prezentace!B36) ->  | C34: =Prezentace!D36 -> P | D34: =IF(Prezentace!F36=0,"",Prezentace!F36) -> Antonín | E34: =IF(Prezentace!E36=0,"",Prezentace!E36) -> Jelínek | F34: 270 | U34: 96.57 | V34: 173.43
A35: =IF(Prezentace!A37=0,"",Prezentace!A37) ->  | B35: =IF(Prezentace!B37=0,"",Prezentace!B37) ->  | C35: =Prezentace!D37 -> R | D35: =IF(Prezentace!F37=0,"",Prezentace!F37) -> Antonín | E35: =IF(Prezentace!E37=0,"",Prezentace!E37) -> Jelínek | F35: 290 | U35: 82.42 | V35: 207.58
A36: =IF(Prezentace!A38=0,"",Prezentace!A38) ->  | B36: =IF(Prezentace!B38=0,"",Prezentace!B38) ->  | C36: =Prezentace!D38 -> P | D36: =IF(Prezentace!F38=0,"",Prezentace!F38) -> Ladislav | E36: =IF(Prezentace!E38=0,"",Prezentace!E38) -> Píša | F36: 300 | U36: 80.67 | V36: 219.33
A37: =IF(Prezentace!A39=0,"",Prezentace!A39) ->  | B37: =IF(Prezentace!B39=0,"",Prezentace!B39) ->  | C37: =Prezentace!D39 -> P | D37: =IF(Prezentace!F39=0,"",Prezentace!F39) -> Štefan | E37: =IF(Prezentace!E39=0,"",Prezentace!E39) -> Mesároš | F37: 300 | U37: 57.75 | V37: 242.25
A38: =IF(Prezentace!A40=0,"",Prezentace!A40) ->  | B38: =IF(Prezentace!B40=0,"",Prezentace!B40) ->  | C38: =Prezentace!D40 -> P | D38: =IF(Prezentace!F40=0,"",Prezentace!F40) -> Pavel | E38: =IF(Prezentace!E40=0,"",Prezentace!E40) -> Červenka | F38: 290 | U38: 47.25 | V38: =(SUM(F38:T38))-U38 -> 242.75
A39: =IF(Prezentace!A41=0,"",Prezentace!A41) ->  | B39: =IF(Prezentace!B41=0,"",Prezentace!B41) ->  | C39: =Prezentace!D41 -> R | D39: =IF(Prezentace!F41=0,"",Prezentace!F41) -> Pavel | E39: =IF(Prezentace!E41=0,"",Prezentace!E41) -> Červenka | F39: 300 | U39: 100.6 | V39: 199.4
A40: =IF(Prezentace!A42=0,"",Prezentace!A42) ->  | B40: =IF(Prezentace!B42=0,"",Prezentace!B42) ->  | C40: =Prezentace!D42 -> P | D40: =IF(Prezentace!F42=0,"",Prezentace!F42) -> Jiří | E40: =IF(Prezentace!E42=0,"",Prezentace!E42) -> Švihálek | F40: 300 | U40: 65.88 | V40: 234.12
A41: =IF(Prezentace!A43=0,"",Prezentace!A43) ->  | B41: =IF(Prezentace!B43=0,"",Prezentace!B43) ->  | C41: =Prezentace!D43 -> R | D41: =IF(Prezentace!F43=0,"",Prezentace!F43) -> Jiří | E41: =IF(Prezentace!E43=0,"",Prezentace!E43) -> Švihálek | F41: 290 | U41: 84.88 | V41: 205.12
A42: =IF(Prezentace!A44=0,"",Prezentace!A44) ->  | B42: =IF(Prezentace!B44=0,"",Prezentace!B44) ->  | C42: =Prezentace!D44 -> P | D42: =IF(Prezentace!F44=0,"",Prezentace!F44) -> František | E42: =IF(Prezentace!E44=0,"",Prezentace!E44) -> Toman | F42: 300 | U42: 130.7 | V42: 169.3
A43: =IF(Prezentace!A45=0,"",Prezentace!A45) ->  | B43: =IF(Prezentace!B45=0,"",Prezentace!B45) ->  | C43: =Prezentace!D45 -> P | D43: =IF(Prezentace!F45=0,"",Prezentace!F45) -> Vladimír | E43: =IF(Prezentace!E45=0,"",Prezentace!E45) -> VejslíK | F43: 300 | U43: 46.69 | V43: 253.31
A44: =IF(Prezentace!A46=0,"",Prezentace!A46) ->  | B44: =IF(Prezentace!B46=0,"",Prezentace!B46) ->  | C44: =Prezentace!D46 -> P | D44: =IF(Prezentace!F46=0,"",Prezentace!F46) -> Karel | E44: =IF(Prezentace!E46=0,"",Prezentace!E46) -> Získal | F44: 270 | U44: 54.98 | V44: 215.02
A45: =IF(Prezentace!A47=0,"",Prezentace!A47) ->  | B45: =IF(Prezentace!B47=0,"",Prezentace!B47) ->  | C45: =Prezentace!D47 -> R | D45: =IF(Prezentace!F47=0,"",Prezentace!F47) -> Karel | E45: =IF(Prezentace!E47=0,"",Prezentace!E47) -> Získal | F45: 300 | U45: 118.1 | V45: 181.9
A46: =IF(Prezentace!A48=0,"",Prezentace!A48) ->  | B46: =IF(Prezentace!B48=0,"",Prezentace!B48) ->  | C46: =Prezentace!D48 -> P | D46: =IF(Prezentace!F48=0,"",Prezentace!F48) -> Jaroslav | E46: =IF(Prezentace!E48=0,"",Prezentace!E48) -> Sokolík | F46: 290 | U46: 50.01 | V46: 239.99
A47: =IF(Prezentace!A49=0,"",Prezentace!A49) ->  | B47: =IF(Prezentace!B49=0,"",Prezentace!B49) ->  | C47: =Prezentace!D49 -> P | D47: =IF(Prezentace!F49=0,"",Prezentace!F49) -> Milan | E47: =IF(Prezentace!E49=0,"",Prezentace!E49) -> Kraus | F47: 300 | U47: 62.09 | V47: 237.91
A48: =IF(Prezentace!A50=0,"",Prezentace!A50) ->  | B48: =IF(Prezentace!B50=0,"",Prezentace!B50) ->  | C48: =Prezentace!D50 -> P | D48: =IF(Prezentace!F50=0,"",Prezentace!F50) ->  | E48: =IF(Prezentace!E50=0,"",Prezentace!E50) ->  | V48: 0
A49: =IF(Prezentace!A51=0,"",Prezentace!A51) ->  | B49: =IF(Prezentace!B51=0,"",Prezentace!B51) ->  | C49: =Prezentace!D51 -> P | D49: =IF(Prezentace!F51=0,"",Prezentace!F51) ->  | E49: =IF(Prezentace!E51=0,"",Prezentace!E51) ->  | V49: 0
A50: =IF(Prezentace!A52=0,"",Prezentace!A52) ->  | B50: =IF(Prezentace!B52=0,"",Prezentace!B52) ->  | C50: =Prezentace!D52 -> P | D50: =IF(Prezentace!F52=0,"",Prezentace!F52) ->  | E50: =IF(Prezentace!E52=0,"",Prezentace!E52) ->  | V50: 0
A51: =IF(Prezentace!A53=0,"",Prezentace!A53) ->  | B51: =IF(Prezentace!B53=0,"",Prezentace!B53) ->  | C51: =Prezentace!D53 -> P | D51: =IF(Prezentace!F53=0,"",Prezentace!F53) ->  | E51: =IF(Prezentace!E53=0,"",Prezentace!E53) ->  | V51: 0
A52: =IF(Prezentace!A54=0,"",Prezentace!A54) ->  | B52: =IF(Prezentace!B54=0,"",Prezentace!B54) ->  | C52: =Prezentace!D54 -> P | D52: =IF(Prezentace!F54=0,"",Prezentace!F54) ->  | E52: =IF(Prezentace!E54=0,"",Prezentace!E54) ->  | V52: 0
A53: =IF(Prezentace!A55=0,"",Prezentace!A55) ->  | B53: =IF(Prezentace!B55=0,"",Prezentace!B55) ->  | C53: =Prezentace!D55 -> P | D53: =IF(Prezentace!F55=0,"",Prezentace!F55) ->  | E53: =IF(Prezentace!E55=0,"",Prezentace!E55) ->  | V53: 0
A54: =IF(Prezentace!A56=0,"",Prezentace!A56) ->  | B54: =IF(Prezentace!B56=0,"",Prezentace!B56) ->  | C54: =Prezentace!D56 -> P | D54: =IF(Prezentace!F56=0,"",Prezentace!F56) ->  | E54: =IF(Prezentace!E56=0,"",Prezentace!E56) ->  | V54: 0
A55: =IF(Prezentace!A57=0,"",Prezentace!A57) ->  | B55: =IF(Prezentace!B57=0,"",Prezentace!B57) ->  | C55: =Prezentace!D57 -> P | D55: =IF(Prezentace!F57=0,"",Prezentace!F57) ->  | E55: =IF(Prezentace!E57=0,"",Prezentace!E57) ->  | V55: 0
A56: =IF(Prezentace!A58=0,"",Prezentace!A58) ->  | B56: =IF(Prezentace!B58=0,"",Prezentace!B58) ->  | C56: =Prezentace!D58 -> P | D56: =IF(Prezentace!F58=0,"",Prezentace!F58) ->  | E56: =IF(Prezentace!E58=0,"",Prezentace!E58) ->  | V56: 0
A57: =IF(Prezentace!A59=0,"",Prezentace!A59) ->  | B57: =IF(Prezentace!B59=0,"",Prezentace!B59) ->  | C57: =Prezentace!D59 -> P | D57: =IF(Prezentace!F59=0,"",Prezentace!F59) ->  | E57: =IF(Prezentace!E59=0,"",Prezentace!E59) ->  | V57: 0
A58: =IF(Prezentace!A60=0,"",Prezentace!A60) ->  | B58: =IF(Prezentace!B60=0,"",Prezentace!B60) ->  | C58: =Prezentace!D60 -> P | D58: =IF(Prezentace!F60=0,"",Prezentace!F60) ->  | E58: =IF(Prezentace!E60=0,"",Prezentace!E60) ->  | V58: 0
A59: =IF(Prezentace!A61=0,"",Prezentace!A61) ->  | B59: =IF(Prezentace!B61=0,"",Prezentace!B61) ->  | C59: =Prezentace!D61 -> P | D59: =IF(Prezentace!F61=0,"",Prezentace!F61) ->  | E59: =IF(Prezentace!E61=0,"",Prezentace!E61) ->  | V59: 0
A60: =IF(Prezentace!A62=0,"",Prezentace!A62) ->  | B60: =IF(Prezentace!B62=0,"",Prezentace!B62) ->  | C60: =Prezentace!D62 -> P | D60: =IF(Prezentace!F62=0,"",Prezentace!F62) ->  | E60: =IF(Prezentace!E62=0,"",Prezentace!E62) ->  | V60: 0
A61: =IF(Prezentace!A63=0,"",Prezentace!A63) ->  | B61: =IF(Prezentace!B63=0,"",Prezentace!B63) ->  | C61: =Prezentace!D63 -> P | D61: =IF(Prezentace!F63=0,"",Prezentace!F63) ->  | E61: =IF(Prezentace!E63=0,"",Prezentace!E63) ->  | V61: 0
A62: =IF(Prezentace!A64=0,"",Prezentace!A64) ->  | B62: =IF(Prezentace!B64=0,"",Prezentace!B64) ->  | C62: =Prezentace!D64 -> P | D62: =IF(Prezentace!F64=0,"",Prezentace!F64) ->  | E62: =IF(Prezentace!E64=0,"",Prezentace!E64) ->  | V62: 0
A63: =IF(Prezentace!A65=0,"",Prezentace!A65) ->  | B63: =IF(Prezentace!B65=0,"",Prezentace!B65) ->  | C63: =Prezentace!D65 -> P | D63: =IF(Prezentace!F65=0,"",Prezentace!F65) ->  | E63: =IF(Prezentace!E65=0,"",Prezentace!E65) ->  | V63: 0
A64: =IF(Prezentace!A66=0,"",Prezentace!A66) ->  | B64: =IF(Prezentace!B66=0,"",Prezentace!B66) ->  | C64: =Prezentace!D66 -> P | D64: =IF(Prezentace!F66=0,"",Prezentace!F66) ->  | E64: =IF(Prezentace!E66=0,"",Prezentace!E66) ->  | V64: 0
A65: =IF(Prezentace!A67=0,"",Prezentace!A67) ->  | B65: =IF(Prezentace!B67=0,"",Prezentace!B67) ->  | C65: =Prezentace!D67 -> P | D65: =IF(Prezentace!F67=0,"",Prezentace!F67) ->  | E65: =IF(Prezentace!E67=0,"",Prezentace!E67) ->  | V65: 0
A66: =IF(Prezentace!A68=0,"",Prezentace!A68) ->  | B66: =IF(Prezentace!B68=0,"",Prezentace!B68) ->  | C66: =Prezentace!D68 -> P | D66: =IF(Prezentace!F68=0,"",Prezentace!F68) ->  | E66: =IF(Prezentace!E68=0,"",Prezentace!E68) ->  | V66: 0
A67: =IF(Prezentace!A69=0,"",Prezentace!A69) ->  | B67: =IF(Prezentace!B69=0,"",Prezentace!B69) ->  | C67: =Prezentace!D69 -> P | D67: =IF(Prezentace!F69=0,"",Prezentace!F69) ->  | E67: =IF(Prezentace!E69=0,"",Prezentace!E69) ->  | V67: 0
A68: =IF(Prezentace!A70=0,"",Prezentace!A70) ->  | B68: =IF(Prezentace!B70=0,"",Prezentace!B70) ->  | C68: =Prezentace!D70 -> P | D68: =IF(Prezentace!F70=0,"",Prezentace!F70) ->  | E68: =IF(Prezentace!E70=0,"",Prezentace!E70) ->  | V68: 0
A69: =IF(Prezentace!A71=0,"",Prezentace!A71) ->  | B69: =IF(Prezentace!B71=0,"",Prezentace!B71) ->  | C69: =Prezentace!D71 -> P | D69: =IF(Prezentace!F71=0,"",Prezentace!F71) ->  | E69: =IF(Prezentace!E71=0,"",Prezentace!E71) ->  | V69: 0
A70: =IF(Prezentace!A72=0,"",Prezentace!A72) ->  | B70: =IF(Prezentace!B72=0,"",Prezentace!B72) ->  | C70: =Prezentace!D72 -> P | D70: =IF(Prezentace!F72=0,"",Prezentace!F72) ->  | E70: =IF(Prezentace!E72=0,"",Prezentace!E72) ->  | V70: 0
A71: =IF(Prezentace!A73=0,"",Prezentace!A73) ->  | B71: =IF(Prezentace!B73=0,"",Prezentace!B73) ->  | C71: =Prezentace!D73 -> P | D71: =IF(Prezentace!F73=0,"",Prezentace!F73) ->  | E71: =IF(Prezentace!E73=0,"",Prezentace!E73) ->  | V71: 0
A72: =IF(Prezentace!A74=0,"",Prezentace!A74) ->  | B72: =IF(Prezentace!B74=0,"",Prezentace!B74) ->  | C72: =Prezentace!D74 -> P | D72: =IF(Prezentace!F74=0,"",Prezentace!F74) ->  | E72: =IF(Prezentace!E74=0,"",Prezentace!E74) ->  | V72: 0
A73: =IF(Prezentace!A75=0,"",Prezentace!A75) ->  | B73: =IF(Prezentace!B75=0,"",Prezentace!B75) ->  | C73: =Prezentace!D75 -> P | D73: =IF(Prezentace!F75=0,"",Prezentace!F75) ->  | E73: =IF(Prezentace!E75=0,"",Prezentace!E75) ->  | V73: 0
A74: =IF(Prezentace!A76=0,"",Prezentace!A76) ->  | B74: =IF(Prezentace!B76=0,"",Prezentace!B76) ->  | C74: =Prezentace!D76 -> P | D74: =IF(Prezentace!F76=0,"",Prezentace!F76) ->  | E74: =IF(Prezentace!E76=0,"",Prezentace!E76) ->  | V74: 0
A75: =IF(Prezentace!A77=0,"",Prezentace!A77) ->  | B75: =IF(Prezentace!B77=0,"",Prezentace!B77) ->  | C75: =Prezentace!D77 -> P | D75: =IF(Prezentace!F77=0,"",Prezentace!F77) ->  | E75: =IF(Prezentace!E77=0,"",Prezentace!E77) ->  | V75: 0
A76: =IF(Prezentace!A78=0,"",Prezentace!A78) ->  | B76: =IF(Prezentace!B78=0,"",Prezentace!B78) ->  | C76: =Prezentace!D78 -> P | D76: =IF(Prezentace!F78=0,"",Prezentace!F78) ->  | E76: =IF(Prezentace!E78=0,"",Prezentace!E78) ->  | V76: 0
A77: =IF(Prezentace!A79=0,"",Prezentace!A79) ->  | B77: =IF(Prezentace!B79=0,"",Prezentace!B79) ->  | C77: =Prezentace!D79 -> P | D77: =IF(Prezentace!F79=0,"",Prezentace!F79) ->  | E77: =IF(Prezentace!E79=0,"",Prezentace!E79) ->  | V77: 0
A78: =IF(Prezentace!A80=0,"",Prezentace!A80) ->  | B78: =IF(Prezentace!B80=0,"",Prezentace!B80) ->  | C78: =Prezentace!D80 -> P | D78: =IF(Prezentace!F80=0,"",Prezentace!F80) ->  | E78: =IF(Prezentace!E80=0,"",Prezentace!E80) ->  | V78: 0
A79: =IF(Prezentace!A81=0,"",Prezentace!A81) ->  | B79: =IF(Prezentace!B81=0,"",Prezentace!B81) ->  | C79: =Prezentace!D81 -> P | D79: =IF(Prezentace!F81=0,"",Prezentace!F81) ->  | E79: =IF(Prezentace!E81=0,"",Prezentace!E81) ->  | V79: 0
A80: =IF(Prezentace!A82=0,"",Prezentace!A82) ->  | B80: =IF(Prezentace!B82=0,"",Prezentace!B82) ->  | C80: =Prezentace!D82 -> P | D80: =IF(Prezentace!F82=0,"",Prezentace!F82) ->  | E80: =IF(Prezentace!E82=0,"",Prezentace!E82) ->  | V80: 0
A81: =IF(Prezentace!A83=0,"",Prezentace!A83) ->  | B81: =IF(Prezentace!B83=0,"",Prezentace!B83) ->  | C81: =Prezentace!D83 -> P | D81: =IF(Prezentace!F83=0,"",Prezentace!F83) ->  | E81: =IF(Prezentace!E83=0,"",Prezentace!E83) ->  | V81: 0
A82: =IF(Prezentace!A84=0,"",Prezentace!A84) ->  | B82: =IF(Prezentace!B84=0,"",Prezentace!B84) ->  | C82: =Prezentace!D84 -> P | D82: =IF(Prezentace!F84=0,"",Prezentace!F84) ->  | E82: =IF(Prezentace!E84=0,"",Prezentace!E84) ->  | V82: 0
A83: =IF(Prezentace!A85=0,"",Prezentace!A85) ->  | B83: =IF(Prezentace!B85=0,"",Prezentace!B85) ->  | C83: =Prezentace!D85 -> P | D83: =IF(Prezentace!F85=0,"",Prezentace!F85) ->  | E83: =IF(Prezentace!E85=0,"",Prezentace!E85) ->  | V83: 0
A84: =IF(Prezentace!A86=0,"",Prezentace!A86) ->  | B84: =IF(Prezentace!B86=0,"",Prezentace!B86) ->  | C84: =Prezentace!D86 -> P | D84: =IF(Prezentace!F86=0,"",Prezentace!F86) ->  | E84: =IF(Prezentace!E86=0,"",Prezentace!E86) ->  | V84: 0
A85: =IF(Prezentace!A87=0,"",Prezentace!A87) ->  | B85: =IF(Prezentace!B87=0,"",Prezentace!B87) ->  | C85: =Prezentace!D87 -> P | D85: =IF(Prezentace!F87=0,"",Prezentace!F87) ->  | E85: =IF(Prezentace!E87=0,"",Prezentace!E87) ->  | V85: 0
A86: =IF(Prezentace!A88=0,"",Prezentace!A88) ->  | B86: =IF(Prezentace!B88=0,"",Prezentace!B88) ->  | C86: =Prezentace!D88 -> P | D86: =IF(Prezentace!F88=0,"",Prezentace!F88) ->  | E86: =IF(Prezentace!E88=0,"",Prezentace!E88) ->  | V86: 0
A87: =IF(Prezentace!A89=0,"",Prezentace!A89) ->  | B87: =IF(Prezentace!B89=0,"",Prezentace!B89) ->  | C87: =Prezentace!D89 -> P | D87: =IF(Prezentace!F89=0,"",Prezentace!F89) ->  | E87: =IF(Prezentace!E89=0,"",Prezentace!E89) ->  | V87: 0
A88: =IF(Prezentace!A90=0,"",Prezentace!A90) ->  | B88: =IF(Prezentace!B90=0,"",Prezentace!B90) ->  | C88: =Prezentace!D90 -> P | D88: =IF(Prezentace!F90=0,"",Prezentace!F90) ->  | E88: =IF(Prezentace!E90=0,"",Prezentace!E90) ->  | V88: 0
A89: =IF(Prezentace!A91=0,"",Prezentace!A91) ->  | B89: =IF(Prezentace!B91=0,"",Prezentace!B91) ->  | C89: =Prezentace!D91 -> P | D89: =IF(Prezentace!F91=0,"",Prezentace!F91) ->  | E89: =IF(Prezentace!E91=0,"",Prezentace!E91) ->  | V89: 0
A90: =IF(Prezentace!A92=0,"",Prezentace!A92) ->  | B90: =IF(Prezentace!B92=0,"",Prezentace!B92) ->  | C90: =Prezentace!D92 -> P | D90: =IF(Prezentace!F92=0,"",Prezentace!F92) ->  | E90: =IF(Prezentace!E92=0,"",Prezentace!E92) ->  | V90: 0
A91: =IF(Prezentace!A93=0,"",Prezentace!A93) ->  | B91: =IF(Prezentace!B93=0,"",Prezentace!B93) ->  | C91: =Prezentace!D93 -> P | D91: =IF(Prezentace!F93=0,"",Prezentace!F93) ->  | E91: =IF(Prezentace!E93=0,"",Prezentace!E93) ->  | V91: 0
A92: =IF(Prezentace!A94=0,"",Prezentace!A94) ->  | B92: =IF(Prezentace!B94=0,"",Prezentace!B94) ->  | C92: =Prezentace!D94 -> P | D92: =IF(Prezentace!F94=0,"",Prezentace!F94) ->  | E92: =IF(Prezentace!E94=0,"",Prezentace!E94) ->  | V92: 0
A93: =IF(Prezentace!A95=0,"",Prezentace!A95) ->  | B93: =IF(Prezentace!B95=0,"",Prezentace!B95) ->  | C93: =Prezentace!D95 -> P | D93: =IF(Prezentace!F95=0,"",Prezentace!F95) ->  | E93: =IF(Prezentace!E95=0,"",Prezentace!E95) ->  | V93: 0
A94: =IF(Prezentace!A96=0,"",Prezentace!A96) ->  | B94: =IF(Prezentace!B96=0,"",Prezentace!B96) ->  | C94: =Prezentace!D96 -> P | D94: =IF(Prezentace!F96=0,"",Prezentace!F96) ->  | E94: =IF(Prezentace!E96=0,"",Prezentace!E96) ->  | V94: 0
A95: =IF(Prezentace!A97=0,"",Prezentace!A97) ->  | B95: =IF(Prezentace!B97=0,"",Prezentace!B97) ->  | C95: =Prezentace!D97 -> P | D95: =IF(Prezentace!F97=0,"",Prezentace!F97) ->  | E95: =IF(Prezentace!E97=0,"",Prezentace!E97) ->  | V95: 0
A96: =IF(Prezentace!A98=0,"",Prezentace!A98) ->  | B96: =IF(Prezentace!B98=0,"",Prezentace!B98) ->  | C96: =Prezentace!D98 -> P | D96: =IF(Prezentace!F98=0,"",Prezentace!F98) ->  | E96: =IF(Prezentace!E98=0,"",Prezentace!E98) ->  | V96: 0
A97: =IF(Prezentace!A99=0,"",Prezentace!A99) ->  | B97: =IF(Prezentace!B99=0,"",Prezentace!B99) ->  | C97: =Prezentace!D99 -> P | D97: =IF(Prezentace!F99=0,"",Prezentace!F99) ->  | E97: =IF(Prezentace!E99=0,"",Prezentace!E99) ->  | V97: 0
A98: =IF(Prezentace!A100=0,"",Prezentace!A100) ->  | B98: =IF(Prezentace!B100=0,"",Prezentace!B100) ->  | C98: =Prezentace!D100 -> P | D98: =IF(Prezentace!F100=0,"",Prezentace!F100) ->  | E98: =IF(Prezentace!E100=0,"",Prezentace!E100) ->  | V98: 0
A99: =IF(Prezentace!A101=0,"",Prezentace!A101) ->  | B99: =IF(Prezentace!B101=0,"",Prezentace!B101) ->  | C99: =Prezentace!D101 -> P | D99: =IF(Prezentace!F101=0,"",Prezentace!F101) ->  | E99: =IF(Prezentace!E101=0,"",Prezentace!E101) ->  | V99: 0
A100: =IF(Prezentace!A102=0,"",Prezentace!A102) ->  | B100: =IF(Prezentace!B102=0,"",Prezentace!B102) ->  | C100: =Prezentace!D102 -> P | D100: =IF(Prezentace!F102=0,"",Prezentace!F102) ->  | E100: =IF(Prezentace!E102=0,"",Prezentace!E102) ->  | V100: 0
A101: =IF(Prezentace!A103=0,"",Prezentace!A103) ->  | B101: =IF(Prezentace!B103=0,"",Prezentace!B103) ->  | C101: =Prezentace!D103 -> P | D101: =IF(Prezentace!F103=0,"",Prezentace!F103) ->  | E101: =IF(Prezentace!E103=0,"",Prezentace!E103) ->  | V101: 0
A102: =IF(Prezentace!A104=0,"",Prezentace!A104) ->  | B102: =IF(Prezentace!B104=0,"",Prezentace!B104) ->  | C102: =Prezentace!D104 -> P | D102: =IF(Prezentace!F104=0,"",Prezentace!F104) ->  | E102: =IF(Prezentace!E104=0,"",Prezentace!E104) ->  | V102: =(SUM(F102:T102))-U102 -> 0

Sheet 1(M) (hidden)
A1: Druž. | B1: Kap. | D1: Disciplina 1
F3: 0 | G3: 1 | H3: 2 | I3: 3 | J3: 4 | K3: 5 | L3: 6 | M3: 7 | N3: 8 | O3: 9 | P3: 10 | Q3: 12 | R3: 15 | S3: Čas | T3: Součet
A4: =IF(Prezentace!A6=0,"",Prezentace!A6) ->  | B4: =IF(Prezentace!B6=0,"",Prezentace!B6) ->  | C4: =Prezentace!D6 -> P | D4: =IF(Prezentace!F6=0,"",Prezentace!F6) -> Martin | E4: =IF(Prezentace!E6=0,"",Prezentace!E6) -> Adensam | T4: =(SUM(F4*$F$3,G4*$G$3,H4*$H$3,I4*$I$3,J4*$J$3,K4*$K$3,L4*$L$3,M4*$M$3,N4*$N$3,O4*$O$3,P4*$P$3,Q4*$Q$3,R4*$R$3))-S4 -> 0
A5: =IF(Prezentace!A7=0,"",Prezentace!A7) ->  | B5: =IF(Prezentace!B7=0,"",Prezentace!B7) ->  | C5: =Prezentace!D7 -> R | D5: =IF(Prezentace!F7=0,"",Prezentace!F7) -> Martin | E5: =IF(Prezentace!E7=0,"",Prezentace!E7) -> Adensam | T5: =(SUM(F5*$F$3,G5*$G$3,H5*$H$3,I5*$I$3,J5*$J$3,K5*$K$3,L5*$L$3,M5*$M$3,N5*$N$3,O5*$O$3,P5*$P$3,Q5*$Q$3,R5*$R$3))-S5 -> 0
A6: =IF(Prezentace!A8=0,"",Prezentace!A8) ->  | B6: =IF(Prezentace!B8=0,"",Prezentace!B8) ->  | C6: =Prezentace!D8 -> P | D6: =IF(Prezentace!F8=0,"",Prezentace!F8) -> Jaroslav | E6: =IF(Prezentace!E8=0,"",Prezentace!E8) -> Kostříž | T6: 0
A7: =IF(Prezentace!A9=0,"",Prezentace!A9) ->  | B7: =IF(Prezentace!B9=0,"",Prezentace!B9) ->  | C7: =Prezentace!D9 -> P | D7: =IF(Prezentace!F9=0,"",Prezentace!F9) -> Miroslav | E7: =IF(Prezentace!E9=0,"",Prezentace!E9) -> Koch ml. | T7: 0
A8: =IF(Prezentace!A10=0,"",Prezentace!A10) ->  | B8: =IF(Prezentace!B10=0,"",Prezentace!B10) ->  | C8: =Prezentace!D10 -> P | D8: =IF(Prezentace!F10=0,"",Prezentace!F10) -> Miroslav | E8: =IF(Prezentace!E10=0,"",Prezentace!E10) -> Koch st. | T8: 0
A9: =IF(Prezentace!A11=0,"",Prezentace!A11) ->  | B9: =IF(Prezentace!B11=0,"",Prezentace!B11) ->  | C9: =Prezentace!D11 -> P | D9: =IF(Prezentace!F11=0,"",Prezentace!F11) -> Bohumil | E9: =IF(Prezentace!E11=0,"",Prezentace!E11) -> Herceg | T9: 0
A10: =IF(Prezentace!A12=0,"",Prezentace!A12) ->  | B10: =IF(Prezentace!B12=0,"",Prezentace!B12) ->  | C10: =Prezentace!D12 -> P | D10: =IF(Prezentace!F12=0,"",Prezentace!F12) -> Viktor | E10: =IF(Prezentace!E12=0,"",Prezentace!E12) -> Fuksa | T10: 0
A11: =IF(Prezentace!A13=0,"",Prezentace!A13) ->  | B11: =IF(Prezentace!B13=0,"",Prezentace!B13) ->  | C11: =Prezentace!D13 -> P | D11: =IF(Prezentace!F13=0,"",Prezentace!F13) -> Milan | E11: =IF(Prezentace!E13=0,"",Prezentace!E13) -> Matějka ml. | T11: 0
A12: =IF(Prezentace!A14=0,"",Prezentace!A14) ->  | B12: =IF(Prezentace!B14=0,"",Prezentace!B14) ->  | C12: =Prezentace!D14 -> P | D12: =IF(Prezentace!F14=0,"",Prezentace!F14) -> Michal | E12: =IF(Prezentace!E14=0,"",Prezentace!E14) -> Svoboda | T12: 0
A13: =IF(Prezentace!A15=0,"",Prezentace!A15) ->  | B13: =IF(Prezentace!B15=0,"",Prezentace!B15) ->  | C13: =Prezentace!D15 -> R | D13: =IF(Prezentace!F15=0,"",Prezentace!F15) -> Lukáš | E13: =IF(Prezentace!E15=0,"",Prezentace!E15) -> Bouda | T13: 0
A14: =IF(Prezentace!A16=0,"",Prezentace!A16) ->  | B14: =IF(Prezentace!B16=0,"",Prezentace!B16) ->  | C14: =Prezentace!D16 -> P | D14: =IF(Prezentace!F16=0,"",Prezentace!F16) -> Lukáš | E14: =IF(Prezentace!E16=0,"",Prezentace!E16) -> Bouda | T14: 0
A15: =IF(Prezentace!A17=0,"",Prezentace!A17) ->  | B15: =IF(Prezentace!B17=0,"",Prezentace!B17) ->  | C15: =Prezentace!D17 -> P | D15: =IF(Prezentace!F17=0,"",Prezentace!F17) -> Pavel | E15: =IF(Prezentace!E17=0,"",Prezentace!E17) -> Koltai | T15: 0
A16: =IF(Prezentace!A18=0,"",Prezentace!A18) ->  | B16: =IF(Prezentace!B18=0,"",Prezentace!B18) ->  | C16: =Prezentace!D18 -> P | D16: =IF(Prezentace!F18=0,"",Prezentace!F18) -> Vladislav | E16: =IF(Prezentace!E18=0,"",Prezentace!E18) -> Přibyl | T16: 0
A17: =IF(Prezentace!A19=0,"",Prezentace!A19) ->  | B17: =IF(Prezentace!B19=0,"",Prezentace!B19) ->  | C17: =Prezentace!D19 -> P | D17: =IF(Prezentace!F19=0,"",Prezentace!F19) -> Milan | E17: =IF(Prezentace!E19=0,"",Prezentace!E19) -> Matějka st. | T17: 0
A18: =IF(Prezentace!A20=0,"",Prezentace!A20) ->  | B18: =IF(Prezentace!B20=0,"",Prezentace!B20) ->  | C18: =Prezentace!D20 -> P | D18: =IF(Prezentace!F20=0,"",Prezentace!F20) -> Miroslav | E18: =IF(Prezentace!E20=0,"",Prezentace!E20) -> Fiala | T18: 0
A19: =IF(Prezentace!A21=0,"",Prezentace!A21) ->  | B19: =IF(Prezentace!B21=0,"",Prezentace!B21) ->  | C19: =Prezentace!D21 -> P | D19: =IF(Prezentace!F21=0,"",Prezentace!F21) -> Karel | E19: =IF(Prezentace!E21=0,"",Prezentace!E21) -> Gažák | T19: 0
A20: =IF(Prezentace!A22=0,"",Prezentace!A22) ->  | B20: =IF(Prezentace!B22=0,"",Prezentace!B22) ->  | C20: =Prezentace!D22 -> P | D20: =IF(Prezentace!F22=0,"",Prezentace!F22) -> Václav | E20: =IF(Prezentace!E22=0,"",Prezentace!E22) -> Landkammer | T20: 0
A21: =IF(Prezentace!A23=0,"",Prezentace!A23) ->  | B21: =IF(Prezentace!B23=0,"",Prezentace!B23) ->  | C21: =Prezentace!D23 -> P | D21: =IF(Prezentace!F23=0,"",Prezentace!F23) -> Vojtěch | E21: =IF(Prezentace!E23=0,"",Prezentace!E23) -> Brejžek | T21: 0
A22: =IF(Prezentace!A24=0,"",Prezentace!A24) ->  | B22: =IF(Prezentace!B24=0,"",Prezentace!B24) ->  | C22: =Prezentace!D24 -> P | D22: =IF(Prezentace!F24=0,"",Prezentace!F24) -> Antonín | E22: =IF(Prezentace!E24=0,"",Prezentace!E24) -> Urbanec | T22: 0
A23: =IF(Prezentace!A25=0,"",Prezentace!A25) ->  | B23: =IF(Prezentace!B25=0,"",Prezentace!B25) ->  | C23: =Prezentace!D25 -> P | D23: =IF(Prezentace!F25=0,"",Prezentace!F25) -> Milan | E23: =IF(Prezentace!E25=0,"",Prezentace!E25) -> Jílek | T23: 0
A24: =IF(Prezentace!A26=0,"",Prezentace!A26) ->  | B24: =IF(Prezentace!B26=0,"",Prezentace!B26) ->  | C24: =Prezentace!D26 -> P | D24: =IF(Prezentace!F26=0,"",Prezentace!F26) -> Václav | E24: =IF(Prezentace!E26=0,"",Prezentace!E26) -> Jírů | T24: 0
A25: =IF(Prezentace!A27=0,"",Prezentace!A27) ->  | B25: =IF(Prezentace!B27=0,"",Prezentace!B27) ->  | C25: =Prezentace!D27 -> P | D25: =IF(Prezentace!F27=0,"",Prezentace!F27) -> Milan | E25: =IF(Prezentace!E27=0,"",Prezentace!E27) -> Krupica | T25: 0
A26: =IF(Prezentace!A28=0,"",Prezentace!A28) ->  | B26: =IF(Prezentace!B28=0,"",Prezentace!B28) ->  | C26: =Prezentace!D28 -> R | D26: =IF(Prezentace!F28=0,"",Prezentace!F28) -> Milan | E26: =IF(Prezentace!E28=0,"",Prezentace!E28) -> Krupica | T26: 0
A27: =IF(Prezentace!A29=0,"",Prezentace!A29) ->  | B27: =IF(Prezentace!B29=0,"",Prezentace!B29) ->  | C27: =Prezentace!D29 -> P | D27: =IF(Prezentace!F29=0,"",Prezentace!F29) -> Miloslav | E27: =IF(Prezentace!E29=0,"",Prezentace!E29) -> Petržílka | T27: 0
A28: =IF(Prezentace!A30=0,"",Prezentace!A30) ->  | B28: =IF(Prezentace!B30=0,"",Prezentace!B30) ->  | C28: =Prezentace!D30 -> R | D28: =IF(Prezentace!F30=0,"",Prezentace!F30) -> Aleš | E28: =IF(Prezentace!E30=0,"",Prezentace!E30) -> Seitl | T28: 0
A29: =IF(Prezentace!A31=0,"",Prezentace!A31) ->  | B29: =IF(Prezentace!B31=0,"",Prezentace!B31) ->  | C29: =Prezentace!D31 -> P | D29: =IF(Prezentace!F31=0,"",Prezentace!F31) -> Aleš | E29: =IF(Prezentace!E31=0,"",Prezentace!E31) -> Seitl | T29: 0
A30: =IF(Prezentace!A32=0,"",Prezentace!A32) ->  | B30: =IF(Prezentace!B32=0,"",Prezentace!B32) ->  | C30: =Prezentace!D32 -> P | D30: =IF(Prezentace!F32=0,"",Prezentace!F32) -> Karel | E30: =IF(Prezentace!E32=0,"",Prezentace!E32) -> Seitl | T30: 0
A31: =IF(Prezentace!A33=0,"",Prezentace!A33) ->  | B31: =IF(Prezentace!B33=0,"",Prezentace!B33) ->  | C31: =Prezentace!D33 -> P | D31: =IF(Prezentace!F33=0,"",Prezentace!F33) -> David | E31: =IF(Prezentace!E33=0,"",Prezentace!E33) -> Nikodým | T31: 0
A32: =IF(Prezentace!A34=0,"",Prezentace!A34) ->  | B32: =IF(Prezentace!B34=0,"",Prezentace!B34) ->  | C32: =Prezentace!D34 -> R | D32: =IF(Prezentace!F34=0,"",Prezentace!F34) -> David | E32: =IF(Prezentace!E34=0,"",Prezentace!E34) -> Nikodým | T32: 0
A33: =IF(Prezentace!A35=0,"",Prezentace!A35) ->  | B33: =IF(Prezentace!B35=0,"",Prezentace!B35) ->  | C33: =Prezentace!D35 -> P | D33: =IF(Prezentace!F35=0,"",Prezentace!F35) -> Lukáš | E33: =IF(Prezentace!E35=0,"",Prezentace!E35) -> Hobza | T33: 0
A34: =IF(Prezentace!A36=0,"",Prezentace!A36) ->  | B34: =IF(Prezentace!B36=0,"",Prezentace!B36) ->  | C34: =Prezentace!D36 -> P | D34: =IF(Prezentace!F36=0,"",Prezentace!F36) -> Antonín | E34: =IF(Prezentace!E36=0,"",Prezentace!E36) -> Jelínek | T34: 0
A35: =IF(Prezentace!A37=0,"",Prezentace!A37) ->  | B35: =IF(Prezentace!B37=0,"",Prezentace!B37) ->  | C35: =Prezentace!D37 -> R | D35: =IF(Prezentace!F37=0,"",Prezentace!F37) -> Antonín | E35: =IF(Prezentace!E37=0,"",Prezentace!E37) -> Jelínek | T35: 0
A36: =IF(Prezentace!A38=0,"",Prezentace!A38) ->  | B36: =IF(Prezentace!B38=0,"",Prezentace!B38) ->  | C36: =Prezentace!D38 -> P | D36: =IF(Prezentace!F38=0,"",Prezentace!F38) -> Ladislav | E36: =IF(Prezentace!E38=0,"",Prezentace!E38) -> Píša | T36: 0
A37: =IF(Prezentace!A39=0,"",Prezentace!A39) ->  | B37: =IF(Prezentace!B39=0,"",Prezentace!B39) ->  | C37: =Prezentace!D39 -> P | D37: =IF(Prezentace!F39=0,"",Prezentace!F39) -> Štefan | E37: =IF(Prezentace!E39=0,"",Prezentace!E39) -> Mesároš | T37: 0
A38: =IF(Prezentace!A40=0,"",Prezentace!A40) ->  | B38: =IF(Prezentace!B40=0,"",Prezentace!B40) ->  | C38: =Prezentace!D40 -> P | D38: =IF(Prezentace!F40=0,"",Prezentace!F40) -> Pavel | E38: =IF(Prezentace!E40=0,"",Prezentace!E40) -> Červenka | T38: =(SUM(F38*$F$3,G38*$G$3,H38*$H$3,I38*$I$3,J38*$J$3,K38*$K$3,L38*$L$3,M38*$M$3,N38*$N$3,O38*$O$3,P38*$P$3,Q38*$Q$3,R38*$R$3))-S38 -> 0
A39: =IF(Prezentace!A41=0,"",Prezentace!A41) ->  | B39: =IF(Prezentace!B41=0,"",Prezentace!B41) ->  | C39: =Prezentace!D41 -> R | D39: =IF(Prezentace!F41=0,"",Prezentace!F41) -> Pavel | E39: =IF(Prezentace!E41=0,"",Prezentace!E41) -> Červenka | T39: 0
A40: =IF(Prezentace!A42=0,"",Prezentace!A42) ->  | B40: =IF(Prezentace!B42=0,"",Prezentace!B42) ->  | C40: =Prezentace!D42 -> P | D40: =IF(Prezentace!F42=0,"",Prezentace!F42) -> Jiří | E40: =IF(Prezentace!E42=0,"",Prezentace!E42) -> Švihálek | T40: 0
A41: =IF(Prezentace!A43=0,"",Prezentace!A43) ->  | B41: =IF(Prezentace!B43=0,"",Prezentace!B43) ->  | C41: =Prezentace!D43 -> R | D41: =IF(Prezentace!F43=0,"",Prezentace!F43) -> Jiří | E41: =IF(Prezentace!E43=0,"",Prezentace!E43) -> Švihálek | T41: 0
A42: =IF(Prezentace!A44=0,"",Prezentace!A44) ->  | B42: =IF(Prezentace!B44=0,"",Prezentace!B44) ->  | C42: =Prezentace!D44 -> P | D42: =IF(Prezentace!F44=0,"",Prezentace!F44) -> František | E42: =IF(Prezentace!E44=0,"",Prezentace!E44) -> Toman | T42: 0
A43: =IF(Prezentace!A45=0,"",Prezentace!A45) ->  | B43: =IF(Prezentace!B45=0,"",Prezentace!B45) ->  | C43: =Prezentace!D45 -> P | D43: =IF(Prezentace!F45=0,"",Prezentace!F45) -> Vladimír | E43: =IF(Prezentace!E45=0,"",Prezentace!E45) -> VejslíK | T43: 0
A44: =IF(Prezentace!A46=0,"",Prezentace!A46) ->  | B44: =IF(Prezentace!B46=0,"",Prezentace!B46) ->  | C44: =Prezentace!D46 -> P | D44: =IF(Prezentace!F46=0,"",Prezentace!F46) -> Karel | E44: =IF(Prezentace!E46=0,"",Prezentace!E46) -> Získal | T44: 0
A45: =IF(Prezentace!A47=0,"",Prezentace!A47) ->  | B45: =IF(Prezentace!B47=0,"",Prezentace!B47) ->  | C45: =Prezentace!D47 -> R | D45: =IF(Prezentace!F47=0,"",Prezentace!F47) -> Karel | E45: =IF(Prezentace!E47=0,"",Prezentace!E47) -> Získal | T45: 0
A46: =IF(Prezentace!A48=0,"",Prezentace!A48) ->  | B46: =IF(Prezentace!B48=0,"",Prezentace!B48) ->  | C46: =Prezentace!D48 -> P | D46: =IF(Prezentace!F48=0,"",Prezentace!F48) -> Jaroslav | E46: =IF(Prezentace!E48=0,"",Prezentace!E48) -> Sokolík | T46: 0
A47: =IF(Prezentace!A49=0,"",Prezentace!A49) ->  | B47: =IF(Prezentace!B49=0,"",Prezentace!B49) ->  | C47: =Prezentace!D49 -> P | D47: =IF(Prezentace!F49=0,"",Prezentace!F49) -> Milan | E47: =IF(Prezentace!E49=0,"",Prezentace!E49) -> Kraus | T47: 0
A48: =IF(Prezentace!A50=0,"",Prezentace!A50) ->  | B48: =IF(Prezentace!B50=0,"",Prezentace!B50) ->  | C48: =Prezentace!D50 -> P | D48: =IF(Prezentace!F50=0,"",Prezentace!F50) ->  | E48: =IF(Prezentace!E50=0,"",Prezentace!E50) ->  | T48: 0
A49: =IF(Prezentace!A51=0,"",Prezentace!A51) ->  | B49: =IF(Prezentace!B51=0,"",Prezentace!B51) ->  | C49: =Prezentace!D51 -> P | D49: =IF(Prezentace!F51=0,"",Prezentace!F51) ->  | E49: =IF(Prezentace!E51=0,"",Prezentace!E51) ->  | T49: 0
A50: =IF(Prezentace!A52=0,"",Prezentace!A52) ->  | B50: =IF(Prezentace!B52=0,"",Prezentace!B52) ->  | C50: =Prezentace!D52 -> P | D50: =IF(Prezentace!F52=0,"",Prezentace!F52) ->  | E50: =IF(Prezentace!E52=0,"",Prezentace!E52) ->  | T50: 0
A51: =IF(Prezentace!A53=0,"",Prezentace!A53) ->  | B51: =IF(Prezentace!B53=0,"",Prezentace!B53) ->  | C51: =Prezentace!D53 -> P | D51: =IF(Prezentace!F53=0,"",Prezentace!F53) ->  | E51: =IF(Prezentace!E53=0,"",Prezentace!E53) ->  | T51: 0
A52: =IF(Prezentace!A54=0,"",Prezentace!A54) ->  | B52: =IF(Prezentace!B54=0,"",Prezentace!B54) ->  | C52: =Prezentace!D54 -> P | D52: =IF(Prezentace!F54=0,"",Prezentace!F54) ->  | E52: =IF(Prezentace!E54=0,"",Prezentace!E54) ->  | T52: 0
A53: =IF(Prezentace!A55=0,"",Prezentace!A55) ->  | B53: =IF(Prezentace!B55=0,"",Prezentace!B55) ->  | C53: =Prezentace!D55 -> P | D53: =IF(Prezentace!F55=0,"",Prezentace!F55) ->  | E53: =IF(Prezentace!E55=0,"",Prezentace!E55) ->  | T53: 0
A54: =IF(Prezentace!A56=0,"",Prezentace!A56) ->  | B54: =IF(Prezentace!B56=0,"",Prezentace!B56) ->  | C54: =Prezentace!D56 -> P | D54: =IF(Prezentace!F56=0,"",Prezentace!F56) ->  | E54: =IF(Prezentace!E56=0,"",Prezentace!E56) ->  | T54: 0
A55: =IF(Prezentace!A57=0,"",Prezentace!A57) ->  | B55: =IF(Prezentace!B57=0,"",Prezentace!B57) ->  | C55: =Prezentace!D57 -> P | D55: =IF(Prezentace!F57=0,"",Prezentace!F57) ->  | E55: =IF(Prezentace!E57=0,"",Prezentace!E57) ->  | T55: 0
A56: =IF(Prezentace!A58=0,"",Prezentace!A58) ->  | B56: =IF(Prezentace!B58=0,"",Prezentace!B58) ->  | C56: =Prezentace!D58 -> P | D56: =IF(Prezentace!F58=0,"",Prezentace!F58) ->  | E56: =IF(Prezentace!E58=0,"",Prezentace!E58) ->  | T56: 0
A57: =IF(Prezentace!A59=0,"",Prezentace!A59) ->  | B57: =IF(Prezentace!B59=0,"",Prezentace!B59) ->  | C57: =Prezentace!D59 -> P | D57: =IF(Prezentace!F59=0,"",Prezentace!F59) ->  | E57: =IF(Prezentace!E59=0,"",Prezentace!E59) ->  | T57: 0
A58: =IF(Prezentace!A60=0,"",Prezentace!A60) ->  | B58: =IF(Prezentace!B60=0,"",Prezentace!B60) ->  | C58: =Prezentace!D60 -> P | D58: =IF(Prezentace!F60=0,"",Prezentace!F60) ->  | E58: =IF(Prezentace!E60=0,"",Prezentace!E60) ->  | T58: 0
A59: =IF(Prezentace!A61=0,"",Prezentace!A61) ->  | B59: =IF(Prezentace!B61=0,"",Prezentace!B61) ->  | C59: =Prezentace!D61 -> P | D59: =IF(Prezentace!F61=0,"",Prezentace!F61) ->  | E59: =IF(Prezentace!E61=0,"",Prezentace!E61) ->  | T59: 0
A60: =IF(Prezentace!A62=0,"",Prezentace!A62) ->  | B60: =IF(Prezentace!B62=0,"",Prezentace!B62) ->  | C60: =Prezentace!D62 -> P | D60: =IF(Prezentace!F62=0,"",Prezentace!F62) ->  | E60: =IF(Prezentace!E62=0,"",Prezentace!E62) ->  | T60: 0
A61: =IF(Prezentace!A63=0,"",Prezentace!A63) ->  | B61: =IF(Prezentace!B63=0,"",Prezentace!B63) ->  | C61: =Prezentace!D63 -> P | D61: =IF(Prezentace!F63=0,"",Prezentace!F63) ->  | E61: =IF(Prezentace!E63=0,"",Prezentace!E63) ->  | T61: 0
A62: =IF(Prezentace!A64=0,"",Prezentace!A64) ->  | B62: =IF(Prezentace!B64=0,"",Prezentace!B64) ->  | C62: =Prezentace!D64 -> P | D62: =IF(Prezentace!F64=0,"",Prezentace!F64) ->  | E62: =IF(Prezentace!E64=0,"",Prezentace!E64) ->  | T62: 0
A63: =IF(Prezentace!A65=0,"",Prezentace!A65) ->  | B63: =IF(Prezentace!B65=0,"",Prezentace!B65) ->  | C63: =Prezentace!D65 -> P | D63: =IF(Prezentace!F65=0,"",Prezentace!F65) ->  | E63: =IF(Prezentace!E65=0,"",Prezentace!E65) ->  | T63: 0
A64: =IF(Prezentace!A66=0,"",Prezentace!A66) ->  | B64: =IF(Prezentace!B66=0,"",Prezentace!B66) ->  | C64: =Prezentace!D66 -> P | D64: =IF(Prezentace!F66=0,"",Prezentace!F66) ->  | E64: =IF(Prezentace!E66=0,"",Prezentace!E66) ->  | T64: 0
A65: =IF(Prezentace!A67=0,"",Prezentace!A67) ->  | B65: =IF(Prezentace!B67=0,"",Prezentace!B67) ->  | C65: =Prezentace!D67 -> P | D65: =IF(Prezentace!F67=0,"",Prezentace!F67) ->  | E65: =IF(Prezentace!E67=0,"",Prezentace!E67) ->  | T65: 0
A66: =IF(Prezentace!A68=0,"",Prezentace!A68) ->  | B66: =IF(Prezentace!B68=0,"",Prezentace!B68) ->  | C66: =Prezentace!D68 -> P | D66: =IF(Prezentace!F68=0,"",Prezentace!F68) ->  | E66: =IF(Prezentace!E68=0,"",Prezentace!E68) ->  | T66: 0
A67: =IF(Prezentace!A69=0,"",Prezentace!A69) ->  | B67: =IF(Prezentace!B69=0,"",Prezentace!B69) ->  | C67: =Prezentace!D69 -> P | D67: =IF(Prezentace!F69=0,"",Prezentace!F69) ->  | E67: =IF(Prezentace!E69=0,"",Prezentace!E69) ->  | T67: 0
A68: =IF(Prezentace!A70=0,"",Prezentace!A70) ->  | B68: =IF(Prezentace!B70=0,"",Prezentace!B70) ->  | C68: =Prezentace!D70 -> P | D68: =IF(Prezentace!F70=0,"",Prezentace!F70) ->  | E68: =IF(Prezentace!E70=0,"",Prezentace!E70) ->  | T68: 0
A69: =IF(Prezentace!A71=0,"",Prezentace!A71) ->  | B69: =IF(Prezentace!B71=0,"",Prezentace!B71) ->  | C69: =Prezentace!D71 -> P | D69: =IF(Prezentace!F71=0,"",Prezentace!F71) ->  | E69: =IF(Prezentace!E71=0,"",Prezentace!E71) ->  | T69: 0
A70: =IF(Prezentace!A72=0,"",Prezentace!A72) ->  | B70: =IF(Prezentace!B72=0,"",Prezentace!B72) ->  | C70: =Prezentace!D72 -> P | D70: =IF(Prezentace!F72=0,"",Prezentace!F72) ->  | E70: =IF(Prezentace!E72=0,"",Prezentace!E72) ->  | T70: 0
A71: =IF(Prezentace!A73=0,"",Prezentace!A73) ->  | B71: =IF(Prezentace!B73=0,"",Prezentace!B73) ->  | C71: =Prezentace!D73 -> P | D71: =IF(Prezentace!F73=0,"",Prezentace!F73) ->  | E71: =IF(Prezentace!E73=0,"",Prezentace!E73) ->  | T71: 0
A72: =IF(Prezentace!A74=0,"",Prezentace!A74) ->  | B72: =IF(Prezentace!B74=0,"",Prezentace!B74) ->  | C72: =Prezentace!D74 -> P | D72: =IF(Prezentace!F74=0,"",Prezentace!F74) ->  | E72: =IF(Prezentace!E74=0,"",Prezentace!E74) ->  | T72: 0
A73: =IF(Prezentace!A75=0,"",Prezentace!A75) ->  | B73: =IF(Prezentace!B75=0,"",Prezentace!B75) ->  | C73: =Prezentace!D75 -> P | D73: =IF(Prezentace!F75=0,"",Prezentace!F75) ->  | E73: =IF(Prezentace!E75=0,"",Prezentace!E75) ->  | T73: 0
A74: =IF(Prezentace!A76=0,"",Prezentace!A76) ->  | B74: =IF(Prezentace!B76=0,"",Prezentace!B76) ->  | C74: =Prezentace!D76 -> P | D74: =IF(Prezentace!F76=0,"",Prezentace!F76) ->  | E74: =IF(Prezentace!E76=0,"",Prezentace!E76) ->  | T74: 0
A75: =IF(Prezentace!A77=0,"",Prezentace!A77) ->  | B75: =IF(Prezentace!B77=0,"",Prezentace!B77) ->  | C75: =Prezentace!D77 -> P | D75: =IF(Prezentace!F77=0,"",Prezentace!F77) ->  | E75: =IF(Prezentace!E77=0,"",Prezentace!E77) ->  | T75: 0
A76: =IF(Prezentace!A78=0,"",Prezentace!A78) ->  | B76: =IF(Prezentace!B78=0,"",Prezentace!B78) ->  | C76: =Prezentace!D78 -> P | D76: =IF(Prezentace!F78=0,"",Prezentace!F78) ->  | E76: =IF(Prezentace!E78=0,"",Prezentace!E78) ->  | T76: 0
A77: =IF(Prezentace!A79=0,"",Prezentace!A79) ->  | B77: =IF(Prezentace!B79=0,"",Prezentace!B79) ->  | C77: =Prezentace!D79 -> P | D77: =IF(Prezentace!F79=0,"",Prezentace!F79) ->  | E77: =IF(Prezentace!E79=0,"",Prezentace!E79) ->  | T77: 0
A78: =IF(Prezentace!A80=0,"",Prezentace!A80) ->  | B78: =IF(Prezentace!B80=0,"",Prezentace!B80) ->  | C78: =Prezentace!D80 -> P | D78: =IF(Prezentace!F80=0,"",Prezentace!F80) ->  | E78: =IF(Prezentace!E80=0,"",Prezentace!E80) ->  | T78: 0
A79: =IF(Prezentace!A81=0,"",Prezentace!A81) ->  | B79: =IF(Prezentace!B81=0,"",Prezentace!B81) ->  | C79: =Prezentace!D81 -> P | D79: =IF(Prezentace!F81=0,"",Prezentace!F81) ->  | E79: =IF(Prezentace!E81=0,"",Prezentace!E81) ->  | T79: 0
A80: =IF(Prezentace!A82=0,"",Prezentace!A82) ->  | B80: =IF(Prezentace!B82=0,"",Prezentace!B82) ->  | C80: =Prezentace!D82 -> P | D80: =IF(Prezentace!F82=0,"",Prezentace!F82) ->  | E80: =IF(Prezentace!E82=0,"",Prezentace!E82) ->  | T80: 0
A81: =IF(Prezentace!A83=0,"",Prezentace!A83) ->  | B81: =IF(Prezentace!B83=0,"",Prezentace!B83) ->  | C81: =Prezentace!D83 -> P | D81: =IF(Prezentace!F83=0,"",Prezentace!F83) ->  | E81: =IF(Prezentace!E83=0,"",Prezentace!E83) ->  | T81: 0
A82: =IF(Prezentace!A84=0,"",Prezentace!A84) ->  | B82: =IF(Prezentace!B84=0,"",Prezentace!B84) ->  | C82: =Prezentace!D84 -> P | D82: =IF(Prezentace!F84=0,"",Prezentace!F84) ->  | E82: =IF(Prezentace!E84=0,"",Prezentace!E84) ->  | T82: 0
A83: =IF(Prezentace!A85=0,"",Prezentace!A85) ->  | B83: =IF(Prezentace!B85=0,"",Prezentace!B85) ->  | C83: =Prezentace!D85 -> P | D83: =IF(Prezentace!F85=0,"",Prezentace!F85) ->  | E83: =IF(Prezentace!E85=0,"",Prezentace!E85) ->  | T83: 0
A84: =IF(Prezentace!A86=0,"",Prezentace!A86) ->  | B84: =IF(Prezentace!B86=0,"",Prezentace!B86) ->  | C84: =Prezentace!D86 -> P | D84: =IF(Prezentace!F86=0,"",Prezentace!F86) ->  | E84: =IF(Prezentace!E86=0,"",Prezentace!E86) ->  | T84: 0
A85: =IF(Prezentace!A87=0,"",Prezentace!A87) ->  | B85: =IF(Prezentace!B87=0,"",Prezentace!B87) ->  | C85: =Prezentace!D87 -> P | D85: =IF(Prezentace!F87=0,"",Prezentace!F87) ->  | E85: =IF(Prezentace!E87=0,"",Prezentace!E87) ->  | T85: 0
A86: =IF(Prezentace!A88=0,"",Prezentace!A88) ->  | B86: =IF(Prezentace!B88=0,"",Prezentace!B88) ->  | C86: =Prezentace!D88 -> P | D86: =IF(Prezentace!F88=0,"",Prezentace!F88) ->  | E86: =IF(Prezentace!E88=0,"",Prezentace!E88) ->  | T86: 0
A87: =IF(Prezentace!A89=0,"",Prezentace!A89) ->  | B87: =IF(Prezentace!B89=0,"",Prezentace!B89) ->  | C87: =Prezentace!D89 -> P | D87: =IF(Prezentace!F89=0,"",Prezentace!F89) ->  | E87: =IF(Prezentace!E89=0,"",Prezentace!E89) ->  | T87: 0
A88: =IF(Prezentace!A90=0,"",Prezentace!A90) ->  | B88: =IF(Prezentace!B90=0,"",Prezentace!B90) ->  | C88: =Prezentace!D90 -> P | D88: =IF(Prezentace!F90=0,"",Prezentace!F90) ->  | E88: =IF(Prezentace!E90=0,"",Prezentace!E90) ->  | T88: 0
A89: =IF(Prezentace!A91=0,"",Prezentace!A91) ->  | B89: =IF(Prezentace!B91=0,"",Prezentace!B91) ->  | C89: =Prezentace!D91 -> P | D89: =IF(Prezentace!F91=0,"",Prezentace!F91) ->  | E89: =IF(Prezentace!E91=0,"",Prezentace!E91) ->  | T89: 0
A90: =IF(Prezentace!A92=0,"",Prezentace!A92) ->  | B90: =IF(Prezentace!B92=0,"",Prezentace!B92) ->  | C90: =Prezentace!D92 -> P | D90: =IF(Prezentace!F92=0,"",Prezentace!F92) ->  | E90: =IF(Prezentace!E92=0,"",Prezentace!E92) ->  | T90: 0
A91: =IF(Prezentace!A93=0,"",Prezentace!A93) ->  | B91: =IF(Prezentace!B93=0,"",Prezentace!B93) ->  | C91: =Prezentace!D93 -> P | D91: =IF(Prezentace!F93=0,"",Prezentace!F93) ->  | E91: =IF(Prezentace!E93=0,"",Prezentace!E93) ->  | T91: 0
A92: =IF(Prezentace!A94=0,"",Prezentace!A94) ->  | B92: =IF(Prezentace!B94=0,"",Prezentace!B94) ->  | C92: =Prezentace!D94 -> P | D92: =IF(Prezentace!F94=0,"",Prezentace!F94) ->  | E92: =IF(Prezentace!E94=0,"",Prezentace!E94) ->  | T92: 0
A93: =IF(Prezentace!A95=0,"",Prezentace!A95) ->  | B93: =IF(Prezentace!B95=0,"",Prezentace!B95) ->  | C93: =Prezentace!D95 -> P | D93: =IF(Prezentace!F95=0,"",Prezentace!F95) ->  | E93: =IF(Prezentace!E95=0,"",Prezentace!E95) ->  | T93: 0
A94: =IF(Prezentace!A96=0,"",Prezentace!A96) ->  | B94: =IF(Prezentace!B96=0,"",Prezentace!B96) ->  | C94: =Prezentace!D96 -> P | D94: =IF(Prezentace!F96=0,"",Prezentace!F96) ->  | E94: =IF(Prezentace!E96=0,"",Prezentace!E96) ->  | T94: 0
A95: =IF(Prezentace!A97=0,"",Prezentace!A97) ->  | B95: =IF(Prezentace!B97=0,"",Prezentace!B97) ->  | C95: =Prezentace!D97 -> P | D95: =IF(Prezentace!F97=0,"",Prezentace!F97) ->  | E95: =IF(Prezentace!E97=0,"",Prezentace!E97) ->  | T95: 0
A96: =IF(Prezentace!A98=0,"",Prezentace!A98) ->  | B96: =IF(Prezentace!B98=0,"",Prezentace!B98) ->  | C96: =Prezentace!D98 -> P | D96: =IF(Prezentace!F98=0,"",Prezentace!F98) ->  | E96: =IF(Prezentace!E98=0,"",Prezentace!E98) ->  | T96: 0
A97: =IF(Prezentace!A99=0,"",Prezentace!A99) ->  | B97: =IF(Prezentace!B99=0,"",Prezentace!B99) ->  | C97: =Prezentace!D99 -> P | D97: =IF(Prezentace!F99=0,"",Prezentace!F99) ->  | E97: =IF(Prezentace!E99=0,"",Prezentace!E99) ->  | T97: 0
A98: =IF(Prezentace!A100=0,"",Prezentace!A100) ->  | B98: =IF(Prezentace!B100=0,"",Prezentace!B100) ->  | C98: P | D98: =IF(Prezentace!F100=0,"",Prezentace!F100) ->  | E98: =IF(Prezentace!E100=0,"",Prezentace!E100) ->  | T98: 0
A99: =IF(Prezentace!A101=0,"",Prezentace!A101) ->  | B99: =IF(Prezentace!B101=0,"",Prezentace!B101) ->  | C99: =Prezentace!D101 -> P | D99: =IF(Prezentace!F101=0,"",Prezentace!F101) ->  | E99: =IF(Prezentace!E101=0,"",Prezentace!E101) ->  | T99: 0
A100: =IF(Prezentace!A102=0,"",Prezentace!A102) ->  | B100: =IF(Prezentace!B102=0,"",Prezentace!B102) ->  | C100: =Prezentace!D102 -> P | D100: =IF(Prezentace!F102=0,"",Prezentace!F102) ->  | E100: =IF(Prezentace!E102=0,"",Prezentace!E102) ->  | T100: 0
A101: =IF(Prezentace!A103=0,"",Prezentace!A103) ->  | B101: =IF(Prezentace!B103=0,"",Prezentace!B103) ->  | C101: =Prezentace!D103 -> P | D101: =IF(Prezentace!F103=0,"",Prezentace!F103) ->  | E101: =IF(Prezentace!E103=0,"",Prezentace!E103) ->  | T101: 0
A102: =IF(Prezentace!A104=0,"",Prezentace!A104) ->  | B102: =IF(Prezentace!B104=0,"",Prezentace!B104) ->  | C102: P | D102: =IF(Prezentace!F104=0,"",Prezentace!F104) ->  | E102: =IF(Prezentace!E104=0,"",Prezentace!E104) ->  | T102: =(SUM(F102*$F$3,G102*$G$3,H102*$H$3,I102*$I$3,J102*$J$3,K102*$K$3,L102*$L$3,M102*$M$3,N102*$N$3,O102*$O$3,P102*$P$3,Q102*$Q$3,R102*$R$3))-S102 -> 0

Sheet 2
A1: Druž. | B1: Kap. | D1: Disciplina 2
F3: K | G3: M | H3: 1 | I3: 2 | J3: 3 | K3: 4 | L3: 5 | M3: 6 | N3: 7 | O3: 8 | P3: 9 | Q3: 10 | R3: 11 | S3: 12 | T3: TB | U3: Čas | V3: Součet
A4: =IF(Prezentace!A6=0,"",Prezentace!A6) ->  | B4: =IF(Prezentace!B6=0,"",Prezentace!B6) ->  | C4: =Prezentace!D6 -> P | D4: =IF(Prezentace!F6=0,"",Prezentace!F6) -> Martin | E4: =IF(Prezentace!E6=0,"",Prezentace!E6) -> Adensam | F4: 320 | H4: 10 | I4: 7 | J4: 10 | K4: 10 | L4: 7 | M4: 7 | U4: 82.59 | V4: =(SUM(F4:T4))-U4 -> 288.41
A5: =IF(Prezentace!A7=0,"",Prezentace!A7) ->  | B5: =IF(Prezentace!B7=0,"",Prezentace!B7) ->  | C5: =Prezentace!D7 -> R | D5: =IF(Prezentace!F7=0,"",Prezentace!F7) -> Martin | E5: =IF(Prezentace!E7=0,"",Prezentace!E7) -> Adensam | F5: 240 | H5: 7 | I5: 6 | J5: 9 | K5: 9 | L5: 9 | M5: 6 | U5: 89.46 | V5: =(SUM(F5:T5))-U5 -> 196.54
A6: =IF(Prezentace!A8=0,"",Prezentace!A8) ->  | B6: =IF(Prezentace!B8=0,"",Prezentace!B8) ->  | C6: =Prezentace!D8 -> P | D6: =IF(Prezentace!F8=0,"",Prezentace!F8) -> Jaroslav | E6: =IF(Prezentace!E8=0,"",Prezentace!E8) -> Kostříž | F6: 330 | H6: 10 | I6: 9 | J6: 10 | K6: 8 | L6: 9 | M6: 8 | U6: 78.8 | V6: 305.2
A7: =IF(Prezentace!A9=0,"",Prezentace!A9) ->  | B7: =IF(Prezentace!B9=0,"",Prezentace!B9) ->  | C7: =Prezentace!D9 -> P | D7: =IF(Prezentace!F9=0,"",Prezentace!F9) -> Miroslav | E7: =IF(Prezentace!E9=0,"",Prezentace!E9) -> Koch ml. | F7: 320 | H7: 8 | I7: 3 | J7: 11 | K7: 10 | L7: 9 | M7: 6 | U7: 101.7 | V7: 265.3
A8: =IF(Prezentace!A10=0,"",Prezentace!A10) ->  | B8: =IF(Prezentace!B10=0,"",Prezentace!B10) ->  | C8: =Prezentace!D10 -> P | D8: =IF(Prezentace!F10=0,"",Prezentace!F10) -> Miroslav | E8: =IF(Prezentace!E10=0,"",Prezentace!E10) -> Koch st. | F8: 330 | H8: 6 | I8: 8 | J8: 10 | K8: 10 | L8: 10 | M8: 8 | U8: 83.69 | V8: 298.31
A9: =IF(Prezentace!A11=0,"",Prezentace!A11) ->  | B9: =IF(Prezentace!B11=0,"",Prezentace!B11) ->  | C9: =Prezentace!D11 -> P | D9: =IF(Prezentace!F11=0,"",Prezentace!F11) -> Bohumil | E9: =IF(Prezentace!E11=0,"",Prezentace!E11) -> Herceg | F9: 330 | H9: 7 | I9: 5 | J9: 11 | K9: 9 | L9: 8 | M9: 8 | U9: 123.5 | V9: 254.5
A10: =IF(Prezentace!A12=0,"",Prezentace!A12) ->  | B10: =IF(Prezentace!B12=0,"",Prezentace!B12) ->  | C10: =Prezentace!D12 -> P | D10: =IF(Prezentace!F12=0,"",Prezentace!F12) -> Viktor | E10: =IF(Prezentace!E12=0,"",Prezentace!E12) -> Fuksa | F10: 330 | H10: 10 | I10: 5 | J10: 10 | K10: 10 | L10: 9 | M10: 6 | U10: 91.44 | V10: 288.56
A11: =IF(Prezentace!A13=0,"",Prezentace!A13) ->  | B11: =IF(Prezentace!B13=0,"",Prezentace!B13) ->  | C11: =Prezentace!D13 -> P | D11: =IF(Prezentace!F13=0,"",Prezentace!F13) -> Milan | E11: =IF(Prezentace!E13=0,"",Prezentace!E13) -> Matějka ml. | F11: 330 | H11: 9 | I11: 8 | J11: 11 | K11: 10 | L11: 10 | M11: 8 | U11: 78.56 | V11: 307.44
A12: =IF(Prezentace!A14=0,"",Prezentace!A14) ->  | B12: =IF(Prezentace!B14=0,"",Prezentace!B14) ->  | C12: =Prezentace!D14 -> P | D12: =IF(Prezentace!F14=0,"",Prezentace!F14) -> Michal | E12: =IF(Prezentace!E14=0,"",Prezentace!E14) -> Svoboda | F12: 330 | H12: 10 | I12: 7 | J12: 10 | K12: 9 | L12: 10 | M12: 9 | U12: 57.13 | V12: 327.87
A13: =IF(Prezentace!A15=0,"",Prezentace!A15) ->  | B13: =IF(Prezentace!B15=0,"",Prezentace!B15) ->  | C13: =Prezentace!D15 -> R | D13: =IF(Prezentace!F15=0,"",Prezentace!F15) -> Lukáš | E13: =IF(Prezentace!E15=0,"",Prezentace!E15) -> Bouda | F13: 330 | H13: 9 | I13: 7 | J13: 10 | K13: 10 | L13: 9 | M13: 7 | U13: 97.1 | V13: 284.9
A14: =IF(Prezentace!A16=0,"",Prezentace!A16) ->  | B14: =IF(Prezentace!B16=0,"",Prezentace!B16) ->  | C14: =Prezentace!D16 -> P | D14: =IF(Prezentace!F16=0,"",Prezentace!F16) -> Lukáš | E14: =IF(Prezentace!E16=0,"",Prezentace!E16) -> Bouda | F14: 330 | H14: 9 | I14: 8 | J14: 11 | K14: 10 | L14: 7 | M14: 7 | U14: 53.05 | V14: 328.95
A15: =IF(Prezentace!A17=0,"",Prezentace!A17) ->  | B15: =IF(Prezentace!B17=0,"",Prezentace!B17) ->  | C15: =Prezentace!D17 -> P | D15: =IF(Prezentace!F17=0,"",Prezentace!F17) -> Pavel | E15: =IF(Prezentace!E17=0,"",Prezentace!E17) -> Koltai | F15: 330 | H15: 10 | I15: 9 | J15: 10 | K15: 9 | L15: 10 | M15: 9 | U15: 70.72 | V15: 316.28
A16: =IF(Prezentace!A18=0,"",Prezentace!A18) ->  | B16: =IF(Prezentace!B18=0,"",Prezentace!B18) ->  | C16: =Prezentace!D18 -> P | D16: =IF(Prezentace!F18=0,"",Prezentace!F18) -> Vladislav | E16: =IF(Prezentace!E18=0,"",Prezentace!E18) -> Přibyl | F16: 260 | H16: 8 | I16: 6 | J16: 10 | K16: 9 | L16: 7 | M16: 4 | U16: 122.7 | V16: 181.3
A17: =IF(Prezentace!A19=0,"",Prezentace!A19) ->  | B17: =IF(Prezentace!B19=0,"",Prezentace!B19) ->  | C17: =Prezentace!D19 -> P | D17: =IF(Prezentace!F19=0,"",Prezentace!F19) -> Milan | E17: =IF(Prezentace!E19=0,"",Prezentace!E19) -> Matějka st. | F17: 330 | H17: 1 | I17: 2 | J17: 10 | K17: 8 | L17: 3 | M17: 3 | U17: 216.2 | V17: 140.8
A18: =IF(Prezentace!A20=0,"",Prezentace!A20) ->  | B18: =IF(Prezentace!B20=0,"",Prezentace!B20) ->  | C18: =Prezentace!D20 -> P | D18: =IF(Prezentace!F20=0,"",Prezentace!F20) -> Miroslav | E18: =IF(Prezentace!E20=0,"",Prezentace!E20) -> Fiala | F18: 330 | H18: 7 | I18: 7 | J18: 10 | K18: 10 | L18: 8 | M18: 7 | U18: 80.38 | V18: 298.62
A19: =IF(Prezentace!A21=0,"",Prezentace!A21) ->  | B19: =IF(Prezentace!B21=0,"",Prezentace!B21) ->  | C19: =Prezentace!D21 -> P | D19: =IF(Prezentace!F21=0,"",Prezentace!F21) -> Karel | E19: =IF(Prezentace!E21=0,"",Prezentace!E21) -> Gažák | F19: 330 | H19: 9 | I19: 6 | J19: 10 | K19: 9 | L19: 9 | M19: 5 | U19: 68.9 | V19: 309.1
A20: =IF(Prezentace!A22=0,"",Prezentace!A22) ->  | B20: =IF(Prezentace!B22=0,"",Prezentace!B22) ->  | C20: =Prezentace!D22 -> P | D20: =IF(Prezentace!F22=0,"",Prezentace!F22) -> Václav | E20: =IF(Prezentace!E22=0,"",Prezentace!E22) -> Landkammer | F20: 330 | H20: 6 | I20: 7 | J20: 9 | K20: 9 | L20: 9 | M20: 8 | U20: 105.2 | V20: 272.8
A21: =IF(Prezentace!A23=0,"",Prezentace!A23) ->  | B21: =IF(Prezentace!B23=0,"",Prezentace!B23) ->  | C21: =Prezentace!D23 -> P | D21: =IF(Prezentace!F23=0,"",Prezentace!F23) -> Vojtěch | E21: =IF(Prezentace!E23=0,"",Prezentace!E23) -> Brejžek | F21: 310 | H21: 10 | I21: 10 | J21: 9 | K21: 8 | L21: 8 | M21: 6 | U21: 91.73 | V21: 269.27
A22: =IF(Prezentace!A24=0,"",Prezentace!A24) ->  | B22: =IF(Prezentace!B24=0,"",Prezentace!B24) ->  | C22: =Prezentace!D24 -> P | D22: =IF(Prezentace!F24=0,"",Prezentace!F24) -> Antonín | E22: =IF(Prezentace!E24=0,"",Prezentace!E24) -> Urbanec | F22: 270 | H22: 6 | I22: 2 | J22: 10 | K22: 10 | L22: 7 | M22: 4 | U22: 145.6 | V22: 163.4
A23: =IF(Prezentace!A25=0,"",Prezentace!A25) ->  | B23: =IF(Prezentace!B25=0,"",Prezentace!B25) ->  | C23: =Prezentace!D25 -> P | D23: =IF(Prezentace!F25=0,"",Prezentace!F25) -> Milan | E23: =IF(Prezentace!E25=0,"",Prezentace!E25) -> Jílek | F23: 330 | H23: 5 | I23: 5 | J23: 10 | K23: 10 | L23: 8 | M23: 4 | U23: 123.7 | V23: 248.3
A24: =IF(Prezentace!A26=0,"",Prezentace!A26) ->  | B24: =IF(Prezentace!B26=0,"",Prezentace!B26) ->  | C24: =Prezentace!D26 -> P | D24: =IF(Prezentace!F26=0,"",Prezentace!F26) -> Václav | E24: =IF(Prezentace!E26=0,"",Prezentace!E26) -> Jírů | F24: 330 | H24: 9 | I24: 6 | J24: 10 | K24: 9 | L24: 10 | M24: 8 | U24: 66.07 | V24: 315.93
A25: =IF(Prezentace!A27=0,"",Prezentace!A27) ->  | B25: =IF(Prezentace!B27=0,"",Prezentace!B27) ->  | C25: =Prezentace!D27 -> P | D25: =IF(Prezentace!F27=0,"",Prezentace!F27) -> Milan | E25: =IF(Prezentace!E27=0,"",Prezentace!E27) -> Krupica | F25: 330 | H25: 8 | I25: 8 | J25: 11 | K25: 10 | L25: 9 | M25: 9 | U25: 77.58 | V25: 307.42
A26: =IF(Prezentace!A28=0,"",Prezentace!A28) ->  | B26: =IF(Prezentace!B28=0,"",Prezentace!B28) ->  | C26: =Prezentace!D28 -> R | D26: =IF(Prezentace!F28=0,"",Prezentace!F28) -> Milan | E26: =IF(Prezentace!E28=0,"",Prezentace!E28) -> Krupica | F26: 330 | H26: 10 | I26: 9 | J26: 9 | K26: 0 | L26: 9 | M26: 8 | U26: 123.3 | V26: 251.7
A27: =IF(Prezentace!A29=0,"",Prezentace!A29) ->  | B27: =IF(Prezentace!B29=0,"",Prezentace!B29) ->  | C27: =Prezentace!D29 -> P | D27: =IF(Prezentace!F29=0,"",Prezentace!F29) -> Miloslav | E27: =IF(Prezentace!E29=0,"",Prezentace!E29) -> Petržílka | F27: 330 | H27: 10 | I27: 7 | J27: 10 | K27: 9 | L27: 9 | M27: 6 | U27: 80.55 | V27: 300.45
A28: =IF(Prezentace!A30=0,"",Prezentace!A30) ->  | B28: =IF(Prezentace!B30=0,"",Prezentace!B30) ->  | C28: =Prezentace!D30 -> R | D28: =IF(Prezentace!F30=0,"",Prezentace!F30) -> Aleš | E28: =IF(Prezentace!E30=0,"",Prezentace!E30) -> Seitl | F28: 330 | H28: 8 | I28: 6 | J28: 11 | K28: 11 | L28: 8 | M28: 8 | U28: 109.2 | V28: 272.8
A29: =IF(Prezentace!A31=0,"",Prezentace!A31) ->  | B29: =IF(Prezentace!B31=0,"",Prezentace!B31) ->  | C29: =Prezentace!D31 -> P | D29: =IF(Prezentace!F31=0,"",Prezentace!F31) -> Aleš | E29: =IF(Prezentace!E31=0,"",Prezentace!E31) -> Seitl | F29: 270 | H29: 6 | I29: 0 | J29: 10 | K29: 9 | L29: 9 | M29: 4 | U29: 86.31 | V29: 221.69
A30: =IF(Prezentace!A32=0,"",Prezentace!A32) ->  | B30: =IF(Prezentace!B32=0,"",Prezentace!B32) ->  | C30: =Prezentace!D32 -> P | D30: =IF(Prezentace!F32=0,"",Prezentace!F32) -> Karel | E30: =IF(Prezentace!E32=0,"",Prezentace!E32) -> Seitl | F30: 330 | H30: 9 | I30: 5 | J30: 10 | K30: 10 | L30: 6 | M30: 6 | U30: 95.78 | V30: 280.22
A31: =IF(Prezentace!A33=0,"",Prezentace!A33) ->  | B31: =IF(Prezentace!B33=0,"",Prezentace!B33) ->  | C31: =Prezentace!D33 -> P | D31: =IF(Prezentace!F33=0,"",Prezentace!F33) -> David | E31: =IF(Prezentace!E33=0,"",Prezentace!E33) -> Nikodým | F31: 330 | H31: 8 | I31: 6 | J31: 8 | K31: 8 | L31: 6 | M31: 6 | U31: 60.3 | V31: 311.7
A32: =IF(Prezentace!A34=0,"",Prezentace!A34) ->  | B32: =IF(Prezentace!B34=0,"",Prezentace!B34) ->  | C32: =Prezentace!D34 -> R | D32: =IF(Prezentace!F34=0,"",Prezentace!F34) -> David | E32: =IF(Prezentace!E34=0,"",Prezentace!E34) -> Nikodým | F32: 330 | H32: 10 | I32: 8 | J32: 11 | K32: 10 | L32: 10 | M32: 9 | U32: 101.9 | V32: 286.1
A33: =IF(Prezentace!A35=0,"",Prezentace!A35) ->  | B33: =IF(Prezentace!B35=0,"",Prezentace!B35) ->  | C33: =Prezentace!D35 -> P | D33: =IF(Prezentace!F35=0,"",Prezentace!F35) -> Lukáš | E33: =IF(Prezentace!E35=0,"",Prezentace!E35) -> Hobza | F33: 330 | H33: 7 | I33: 6 | J33: 5 | K33: 5 | L33: 8 | M33: 7 | U33: 78.21 | V33: 289.79
A34: =IF(Prezentace!A36=0,"",Prezentace!A36) ->  | B34: =IF(Prezentace!B36=0,"",Prezentace!B36) ->  | C34: =Prezentace!D36 -> P | D34: =IF(Prezentace!F36=0,"",Prezentace!F36) -> Antonín | E34: =IF(Prezentace!E36=0,"",Prezentace!E36) -> Jelínek | F34: 320 | H34: 10 | I34: 6 | J34: 9 | K34: 9 | L34: 9 | M34: 7 | U34: 82 | V34: 288
A35: =IF(Prezentace!A37=0,"",Prezentace!A37) ->  | B35: =IF(Prezentace!B37=0,"",Prezentace!B37) ->  | C35: =Prezentace!D37 -> R | D35: =IF(Prezentace!F37=0,"",Prezentace!F37) -> Antonín | E35: =IF(Prezentace!E37=0,"",Prezentace!E37) -> Jelínek | F35: 330 | H35: 10 | I35: 7 | J35: 10 | K35: 10 | L35: 9 | M35: 7 | U35: 78.32 | V35: 304.68
A36: =IF(Prezentace!A38=0,"",Prezentace!A38) ->  | B36: =IF(Prezentace!B38=0,"",Prezentace!B38) ->  | C36: =Prezentace!D38 -> P | D36: =IF(Prezentace!F38=0,"",Prezentace!F38) -> Ladislav | E36: =IF(Prezentace!E38=0,"",Prezentace!E38) -> Píša | F36: 270 | H36: 0 | I36: 0 | J36: 0 | K36: 0 | L36: 0 | M36: 0 | U36: 83.39 | V36: 186.61
A37: =IF(Prezentace!A39=0,"",Prezentace!A39) ->  | B37: =IF(Prezentace!B39=0,"",Prezentace!B39) ->  | C37: =Prezentace!D39 -> P | D37: =IF(Prezentace!F39=0,"",Prezentace!F39) -> Štefan | E37: =IF(Prezentace!E39=0,"",Prezentace!E39) -> Mesároš | F37: 330 | H37: 10 | I37: 9 | J37: 10 | K37: 10 | L37: 8 | M37: 6 | U37: 60.08 | V37: 322.92
A38: =IF(Prezentace!A40=0,"",Prezentace!A40) ->  | B38: =IF(Prezentace!B40=0,"",Prezentace!B40) ->  | C38: =Prezentace!D40 -> P | D38: =IF(Prezentace!F40=0,"",Prezentace!F40) -> Pavel | E38: =IF(Prezentace!E40=0,"",Prezentace!E40) -> Červenka | F38: 330 | H38: 9 | I38: 8 | J38: 10 | K38: 10 | L38: 10 | M38: 5 | U38: 55.05 | V38: =(SUM(F38:T38))-U38 -> 326.95
A39: =IF(Prezentace!A41=0,"",Prezentace!A41) ->  | B39: =IF(Prezentace!B41=0,"",Prezentace!B41) ->  | C39: =Prezentace!D41 -> R | D39: =IF(Prezentace!F41=0,"",Prezentace!F41) -> Pavel | E39: =IF(Prezentace!E41=0,"",Prezentace!E41) -> Červenka | F39: 330 | H39: 8 | I39: 2 | J39: 10 | K39: 9 | L39: 9 | M39: 9 | U39: 95.17 | V39: 281.83
A40: =IF(Prezentace!A42=0,"",Prezentace!A42) ->  | B40: =IF(Prezentace!B42=0,"",Prezentace!B42) ->  | C40: =Prezentace!D42 -> P | D40: =IF(Prezentace!F42=0,"",Prezentace!F42) -> Jiří | E40: =IF(Prezentace!E42=0,"",Prezentace!E42) -> Švihálek | F40: 330 | H40: 7 | I40: 6 | J40: 11 | K40: 9 | L40: 8 | M40: 6 | U40: 76.52 | V40: 300.48
A41: =IF(Prezentace!A43=0,"",Prezentace!A43) ->  | B41: =IF(Prezentace!B43=0,"",Prezentace!B43) ->  | C41: =Prezentace!D43 -> R | D41: =IF(Prezentace!F43=0,"",Prezentace!F43) -> Jiří | E41: =IF(Prezentace!E43=0,"",Prezentace!E43) -> Švihálek | F41: 330 | H41: 10 | I41: 7 | J41: 9 | K41: 9 | L41: 8 | M41: 8 | U41: 85.53 | V41: 295.47
A42: =IF(Prezentace!A44=0,"",Prezentace!A44) ->  | B42: =IF(Prezentace!B44=0,"",Prezentace!B44) ->  | C42: =Prezentace!D44 -> P | D42: =IF(Prezentace!F44=0,"",Prezentace!F44) -> František | E42: =IF(Prezentace!E44=0,"",Prezentace!E44) -> Toman | F42: 330 | H42: 8 | I42: 7 | J42: 10 | K42: 10 | L42: 9 | M42: 7 | U42: 63.9 | V42: 317.1
A43: =IF(Prezentace!A45=0,"",Prezentace!A45) ->  | B43: =IF(Prezentace!B45=0,"",Prezentace!B45) ->  | C43: =Prezentace!D45 -> P | D43: =IF(Prezentace!F45=0,"",Prezentace!F45) -> Vladimír | E43: =IF(Prezentace!E45=0,"",Prezentace!E45) -> VejslíK | F43: 330 | H43: 9 | I43: 8 | J43: 11 | K43: 10 | L43: 8 | M43: 7 | U43: 54.81 | V43: 328.19
A44: =IF(Prezentace!A46=0,"",Prezentace!A46) ->  | B44: =IF(Prezentace!B46=0,"",Prezentace!B46) ->  | C44: =Prezentace!D46 -> P | D44: =IF(Prezentace!F46=0,"",Prezentace!F46) -> Karel | E44: =IF(Prezentace!E46=0,"",Prezentace!E46) -> Získal | F44: 330 | H44: 9 | I44: 6 | J44: 10 | K44: 11 | L44: 7 | M44: 6 | U44: 66.65 | V44: 312.35
A45: =IF(Prezentace!A47=0,"",Prezentace!A47) ->  | B45: =IF(Prezentace!B47=0,"",Prezentace!B47) ->  | C45: =Prezentace!D47 -> R | D45: =IF(Prezentace!F47=0,"",Prezentace!F47) -> Karel | E45: =IF(Prezentace!E47=0,"",Prezentace!E47) -> Získal | F45: 330 | H45: 8 | I45: 8 | J45: 11 | K45: 11 | L45: 9 | M45: 9 | U45: 141 | V45: 245
A46: =IF(Prezentace!A48=0,"",Prezentace!A48) ->  | B46: =IF(Prezentace!B48=0,"",Prezentace!B48) ->  | C46: =Prezentace!D48 -> P | D46: =IF(Prezentace!F48=0,"",Prezentace!F48) -> Jaroslav | E46: =IF(Prezentace!E48=0,"",Prezentace!E48) -> Sokolík | F46: 330 | H46: 8 | I46: 8 | J46: 10 | K46: 10 | L46: 10 | M46: 8 | U46: 51.47 | V46: 332.53
A47: =IF(Prezentace!A49=0,"",Prezentace!A49) ->  | B47: =IF(Prezentace!B49=0,"",Prezentace!B49) ->  | C47: =Prezentace!D49 -> P | D47: =IF(Prezentace!F49=0,"",Prezentace!F49) -> Milan | E47: =IF(Prezentace!E49=0,"",Prezentace!E49) -> Kraus | F47: 330 | H47: 10 | I47: 7 | J47: 10 | K47: 9 | L47: 8 | M47: 4 | U47: 67.53 | V47: 310.47
A48: =IF(Prezentace!A50=0,"",Prezentace!A50) ->  | B48: =IF(Prezentace!B50=0,"",Prezentace!B50) ->  | C48: =Prezentace!D50 -> P | D48: =IF(Prezentace!F50=0,"",Prezentace!F50) ->  | E48: =IF(Prezentace!E50=0,"",Prezentace!E50) ->  | V48: 0
A49: =IF(Prezentace!A51=0,"",Prezentace!A51) ->  | B49: =IF(Prezentace!B51=0,"",Prezentace!B51) ->  | C49: =Prezentace!D51 -> P | D49: =IF(Prezentace!F51=0,"",Prezentace!F51) ->  | E49: =IF(Prezentace!E51=0,"",Prezentace!E51) ->  | V49: 0
A50: =IF(Prezentace!A52=0,"",Prezentace!A52) ->  | B50: =IF(Prezentace!B52=0,"",Prezentace!B52) ->  | C50: =Prezentace!D52 -> P | D50: =IF(Prezentace!F52=0,"",Prezentace!F52) ->  | E50: =IF(Prezentace!E52=0,"",Prezentace!E52) ->  | V50: 0
A51: =IF(Prezentace!A53=0,"",Prezentace!A53) ->  | B51: =IF(Prezentace!B53=0,"",Prezentace!B53) ->  | C51: =Prezentace!D53 -> P | D51: =IF(Prezentace!F53=0,"",Prezentace!F53) ->  | E51: =IF(Prezentace!E53=0,"",Prezentace!E53) ->  | V51: 0
A52: =IF(Prezentace!A54=0,"",Prezentace!A54) ->  | B52: =IF(Prezentace!B54=0,"",Prezentace!B54) ->  | C52: =Prezentace!D54 -> P | D52: =IF(Prezentace!F54=0,"",Prezentace!F54) ->  | E52: =IF(Prezentace!E54=0,"",Prezentace!E54) ->  | V52: 0
A53: =IF(Prezentace!A55=0,"",Prezentace!A55) ->  | B53: =IF(Prezentace!B55=0,"",Prezentace!B55) ->  | C53: =Prezentace!D55 -> P | D53: =IF(Prezentace!F55=0,"",Prezentace!F55) ->  | E53: =IF(Prezentace!E55=0,"",Prezentace!E55) ->  | V53: 0
A54: =IF(Prezentace!A56=0,"",Prezentace!A56) ->  | B54: =IF(Prezentace!B56=0,"",Prezentace!B56) ->  | C54: =Prezentace!D56 -> P | D54: =IF(Prezentace!F56=0,"",Prezentace!F56) ->  | E54: =IF(Prezentace!E56=0,"",Prezentace!E56) ->  | V54: 0
A55: =IF(Prezentace!A57=0,"",Prezentace!A57) ->  | B55: =IF(Prezentace!B57=0,"",Prezentace!B57) ->  | C55: =Prezentace!D57 -> P | D55: =IF(Prezentace!F57=0,"",Prezentace!F57) ->  | E55: =IF(Prezentace!E57=0,"",Prezentace!E57) ->  | V55: 0
A56: =IF(Prezentace!A58=0,"",Prezentace!A58) ->  | B56: =IF(Prezentace!B58=0,"",Prezentace!B58) ->  | C56: =Prezentace!D58 -> P | D56: =IF(Prezentace!F58=0,"",Prezentace!F58) ->  | E56: =IF(Prezentace!E58=0,"",Prezentace!E58) ->  | V56: 0
A57: =IF(Prezentace!A59=0,"",Prezentace!A59) ->  | B57: =IF(Prezentace!B59=0,"",Prezentace!B59) ->  | C57: =Prezentace!D59 -> P | D57: =IF(Prezentace!F59=0,"",Prezentace!F59) ->  | E57: =IF(Prezentace!E59=0,"",Prezentace!E59) ->  | V57: 0
A58: =IF(Prezentace!A60=0,"",Prezentace!A60) ->  | B58: =IF(Prezentace!B60=0,"",Prezentace!B60) ->  | C58: =Prezentace!D60 -> P | D58: =IF(Prezentace!F60=0,"",Prezentace!F60) ->  | E58: =IF(Prezentace!E60=0,"",Prezentace!E60) ->  | V58: 0
A59: =IF(Prezentace!A61=0,"",Prezentace!A61) ->  | B59: =IF(Prezentace!B61=0,"",Prezentace!B61) ->  | C59: =Prezentace!D61 -> P | D59: =IF(Prezentace!F61=0,"",Prezentace!F61) ->  | E59: =IF(Prezentace!E61=0,"",Prezentace!E61) ->  | V59: 0
A60: =IF(Prezentace!A62=0,"",Prezentace!A62) ->  | B60: =IF(Prezentace!B62=0,"",Prezentace!B62) ->  | C60: =Prezentace!D62 -> P | D60: =IF(Prezentace!F62=0,"",Prezentace!F62) ->  | E60: =IF(Prezentace!E62=0,"",Prezentace!E62) ->  | V60: 0
A61: =IF(Prezentace!A63=0,"",Prezentace!A63) ->  | B61: =IF(Prezentace!B63=0,"",Prezentace!B63) ->  | C61: =Prezentace!D63 -> P | D61: =IF(Prezentace!F63=0,"",Prezentace!F63) ->  | E61: =IF(Prezentace!E63=0,"",Prezentace!E63) ->  | V61: 0
A62: =IF(Prezentace!A64=0,"",Prezentace!A64) ->  | B62: =IF(Prezentace!B64=0,"",Prezentace!B64) ->  | C62: =Prezentace!D64 -> P | D62: =IF(Prezentace!F64=0,"",Prezentace!F64) ->  | E62: =IF(Prezentace!E64=0,"",Prezentace!E64) ->  | V62: 0
A63: =IF(Prezentace!A65=0,"",Prezentace!A65) ->  | B63: =IF(Prezentace!B65=0,"",Prezentace!B65) ->  | C63: =Prezentace!D65 -> P | D63: =IF(Prezentace!F65=0,"",Prezentace!F65) ->  | E63: =IF(Prezentace!E65=0,"",Prezentace!E65) ->  | V63: 0
A64: =IF(Prezentace!A66=0,"",Prezentace!A66) ->  | B64: =IF(Prezentace!B66=0,"",Prezentace!B66) ->  | C64: =Prezentace!D66 -> P | D64: =IF(Prezentace!F66=0,"",Prezentace!F66) ->  | E64: =IF(Prezentace!E66=0,"",Prezentace!E66) ->  | V64: 0
A65: =IF(Prezentace!A67=0,"",Prezentace!A67) ->  | B65: =IF(Prezentace!B67=0,"",Prezentace!B67) ->  | C65: =Prezentace!D67 -> P | D65: =IF(Prezentace!F67=0,"",Prezentace!F67) ->  | E65: =IF(Prezentace!E67=0,"",Prezentace!E67) ->  | V65: 0
A66: =IF(Prezentace!A68=0,"",Prezentace!A68) ->  | B66: =IF(Prezentace!B68=0,"",Prezentace!B68) ->  | C66: =Prezentace!D68 -> P | D66: =IF(Prezentace!F68=0,"",Prezentace!F68) ->  | E66: =IF(Prezentace!E68=0,"",Prezentace!E68) ->  | V66: 0
A67: =IF(Prezentace!A69=0,"",Prezentace!A69) ->  | B67: =IF(Prezentace!B69=0,"",Prezentace!B69) ->  | C67: =Prezentace!D69 -> P | D67: =IF(Prezentace!F69=0,"",Prezentace!F69) ->  | E67: =IF(Prezentace!E69=0,"",Prezentace!E69) ->  | V67: 0
A68: =IF(Prezentace!A70=0,"",Prezentace!A70) ->  | B68: =IF(Prezentace!B70=0,"",Prezentace!B70) ->  | C68: =Prezentace!D70 -> P | D68: =IF(Prezentace!F70=0,"",Prezentace!F70) ->  | E68: =IF(Prezentace!E70=0,"",Prezentace!E70) ->  | V68: 0
A69: =IF(Prezentace!A71=0,"",Prezentace!A71) ->  | B69: =IF(Prezentace!B71=0,"",Prezentace!B71) ->  | C69: =Prezentace!D71 -> P | D69: =IF(Prezentace!F71=0,"",Prezentace!F71) ->  | E69: =IF(Prezentace!E71=0,"",Prezentace!E71) ->  | V69: 0
A70: =IF(Prezentace!A72=0,"",Prezentace!A72) ->  | B70: =IF(Prezentace!B72=0,"",Prezentace!B72) ->  | C70: =Prezentace!D72 -> P | D70: =IF(Prezentace!F72=0,"",Prezentace!F72) ->  | E70: =IF(Prezentace!E72=0,"",Prezentace!E72) ->  | V70: 0
A71: =IF(Prezentace!A73=0,"",Prezentace!A73) ->  | B71: =IF(Prezentace!B73=0,"",Prezentace!B73) ->  | C71: =Prezentace!D73 -> P | D71: =IF(Prezentace!F73=0,"",Prezentace!F73) ->  | E71: =IF(Prezentace!E73=0,"",Prezentace!E73) ->  | V71: 0
A72: =IF(Prezentace!A74=0,"",Prezentace!A74) ->  | B72: =IF(Prezentace!B74=0,"",Prezentace!B74) ->  | C72: =Prezentace!D74 -> P | D72: =IF(Prezentace!F74=0,"",Prezentace!F74) ->  | E72: =IF(Prezentace!E74=0,"",Prezentace!E74) ->  | V72: 0
A73: =IF(Prezentace!A75=0,"",Prezentace!A75) ->  | B73: =IF(Prezentace!B75=0,"",Prezentace!B75) ->  | C73: =Prezentace!D75 -> P | D73: =IF(Prezentace!F75=0,"",Prezentace!F75) ->  | E73: =IF(Prezentace!E75=0,"",Prezentace!E75) ->  | V73: 0
A74: =IF(Prezentace!A76=0,"",Prezentace!A76) ->  | B74: =IF(Prezentace!B76=0,"",Prezentace!B76) ->  | C74: =Prezentace!D76 -> P | D74: =IF(Prezentace!F76=0,"",Prezentace!F76) ->  | E74: =IF(Prezentace!E76=0,"",Prezentace!E76) ->  | V74: 0
A75: =IF(Prezentace!A77=0,"",Prezentace!A77) ->  | B75: =IF(Prezentace!B77=0,"",Prezentace!B77) ->  | C75: =Prezentace!D77 -> P | D75: =IF(Prezentace!F77=0,"",Prezentace!F77) ->  | E75: =IF(Prezentace!E77=0,"",Prezentace!E77) ->  | V75: 0
A76: =IF(Prezentace!A78=0,"",Prezentace!A78) ->  | B76: =IF(Prezentace!B78=0,"",Prezentace!B78) ->  | C76: =Prezentace!D78 -> P | D76: =IF(Prezentace!F78=0,"",Prezentace!F78) ->  | E76: =IF(Prezentace!E78=0,"",Prezentace!E78) ->  | V76: 0
A77: =IF(Prezentace!A79=0,"",Prezentace!A79) ->  | B77: =IF(Prezentace!B79=0,"",Prezentace!B79) ->  | C77: =Prezentace!D79 -> P | D77: =IF(Prezentace!F79=0,"",Prezentace!F79) ->  | E77: =IF(Prezentace!E79=0,"",Prezentace!E79) ->  | V77: 0
A78: =IF(Prezentace!A80=0,"",Prezentace!A80) ->  | B78: =IF(Prezentace!B80=0,"",Prezentace!B80) ->  | C78: =Prezentace!D80 -> P | D78: =IF(Prezentace!F80=0,"",Prezentace!F80) ->  | E78: =IF(Prezentace!E80=0,"",Prezentace!E80) ->  | V78: 0
A79: =IF(Prezentace!A81=0,"",Prezentace!A81) ->  | B79: =IF(Prezentace!B81=0,"",Prezentace!B81) ->  | C79: =Prezentace!D81 -> P | D79: =IF(Prezentace!F81=0,"",Prezentace!F81) ->  | E79: =IF(Prezentace!E81=0,"",Prezentace!E81) ->  | V79: 0
A80: =IF(Prezentace!A82=0,"",Prezentace!A82) ->  | B80: =IF(Prezentace!B82=0,"",Prezentace!B82) ->  | C80: =Prezentace!D82 -> P | D80: =IF(Prezentace!F82=0,"",Prezentace!F82) ->  | E80: =IF(Prezentace!E82=0,"",Prezentace!E82) ->  | V80: 0
A81: =IF(Prezentace!A83=0,"",Prezentace!A83) ->  | B81: =IF(Prezentace!B83=0,"",Prezentace!B83) ->  | C81: =Prezentace!D83 -> P | D81: =IF(Prezentace!F83=0,"",Prezentace!F83) ->  | E81: =IF(Prezentace!E83=0,"",Prezentace!E83) ->  | V81: 0
A82: =IF(Prezentace!A84=0,"",Prezentace!A84) ->  | B82: =IF(Prezentace!B84=0,"",Prezentace!B84) ->  | C82: =Prezentace!D84 -> P | D82: =IF(Prezentace!F84=0,"",Prezentace!F84) ->  | E82: =IF(Prezentace!E84=0,"",Prezentace!E84) ->  | V82: 0
A83: =IF(Prezentace!A85=0,"",Prezentace!A85) ->  | B83: =IF(Prezentace!B85=0,"",Prezentace!B85) ->  | C83: =Prezentace!D85 -> P | D83: =IF(Prezentace!F85=0,"",Prezentace!F85) ->  | E83: =IF(Prezentace!E85=0,"",Prezentace!E85) ->  | V83: 0
A84: =IF(Prezentace!A86=0,"",Prezentace!A86) ->  | B84: =IF(Prezentace!B86=0,"",Prezentace!B86) ->  | C84: =Prezentace!D86 -> P | D84: =IF(Prezentace!F86=0,"",Prezentace!F86) ->  | E84: =IF(Prezentace!E86=0,"",Prezentace!E86) ->  | V84: 0
A85: =IF(Prezentace!A87=0,"",Prezentace!A87) ->  | B85: =IF(Prezentace!B87=0,"",Prezentace!B87) ->  | C85: =Prezentace!D87 -> P | D85: =IF(Prezentace!F87=0,"",Prezentace!F87) ->  | E85: =IF(Prezentace!E87=0,"",Prezentace!E87) ->  | V85: 0
A86: =IF(Prezentace!A88=0,"",Prezentace!A88) ->  | B86: =IF(Prezentace!B88=0,"",Prezentace!B88) ->  | C86: =Prezentace!D88 -> P | D86: =IF(Prezentace!F88=0,"",Prezentace!F88) ->  | E86: =IF(Prezentace!E88=0,"",Prezentace!E88) ->  | V86: 0
A87: =IF(Prezentace!A89=0,"",Prezentace!A89) ->  | B87: =IF(Prezentace!B89=0,"",Prezentace!B89) ->  | C87: =Prezentace!D89 -> P | D87: =IF(Prezentace!F89=0,"",Prezentace!F89) ->  | E87: =IF(Prezentace!E89=0,"",Prezentace!E89) ->  | V87: 0
A88: =IF(Prezentace!A90=0,"",Prezentace!A90) ->  | B88: =IF(Prezentace!B90=0,"",Prezentace!B90) ->  | C88: =Prezentace!D90 -> P | D88: =IF(Prezentace!F90=0,"",Prezentace!F90) ->  | E88: =IF(Prezentace!E90=0,"",Prezentace!E90) ->  | V88: 0
A89: =IF(Prezentace!A91=0,"",Prezentace!A91) ->  | B89: =IF(Prezentace!B91=0,"",Prezentace!B91) ->  | C89: =Prezentace!D91 -> P | D89: =IF(Prezentace!F91=0,"",Prezentace!F91) ->  | E89: =IF(Prezentace!E91=0,"",Prezentace!E91) ->  | V89: 0
A90: =IF(Prezentace!A92=0,"",Prezentace!A92) ->  | B90: =IF(Prezentace!B92=0,"",Prezentace!B92) ->  | C90: =Prezentace!D92 -> P | D90: =IF(Prezentace!F92=0,"",Prezentace!F92) ->  | E90: =IF(Prezentace!E92=0,"",Prezentace!E92) ->  | V90: 0
A91: =IF(Prezentace!A93=0,"",Prezentace!A93) ->  | B91: =IF(Prezentace!B93=0,"",Prezentace!B93) ->  | C91: =Prezentace!D93 -> P | D91: =IF(Prezentace!F93=0,"",Prezentace!F93) ->  | E91: =IF(Prezentace!E93=0,"",Prezentace!E93) ->  | V91: 0
A92: =IF(Prezentace!A94=0,"",Prezentace!A94) ->  | B92: =IF(Prezentace!B94=0,"",Prezentace!B94) ->  | C92: =Prezentace!D94 -> P | D92: =IF(Prezentace!F94=0,"",Prezentace!F94) ->  | E92: =IF(Prezentace!E94=0,"",Prezentace!E94) ->  | V92: 0
A93: =IF(Prezentace!A95=0,"",Prezentace!A95) ->  | B93: =IF(Prezentace!B95=0,"",Prezentace!B95) ->  | C93: =Prezentace!D95 -> P | D93: =IF(Prezentace!F95=0,"",Prezentace!F95) ->  | E93: =IF(Prezentace!E95=0,"",Prezentace!E95) ->  | V93: 0
A94: =IF(Prezentace!A96=0,"",Prezentace!A96) ->  | B94: =IF(Prezentace!B96=0,"",Prezentace!B96) ->  | C94: =Prezentace!D96 -> P | D94: =IF(Prezentace!F96=0,"",Prezentace!F96) ->  | E94: =IF(Prezentace!E96=0,"",Prezentace!E96) ->  | V94: 0
A95: =IF(Prezentace!A97=0,"",Prezentace!A97) ->  | B95: =IF(Prezentace!B97=0,"",Prezentace!B97) ->  | C95: =Prezentace!D97 -> P | D95: =IF(Prezentace!F97=0,"",Prezentace!F97) ->  | E95: =IF(Prezentace!E97=0,"",Prezentace!E97) ->  | V95: 0
A96: =IF(Prezentace!A98=0,"",Prezentace!A98) ->  | B96: =IF(Prezentace!B98=0,"",Prezentace!B98) ->  | C96: =Prezentace!D98 -> P | D96: =IF(Prezentace!F98=0,"",Prezentace!F98) ->  | E96: =IF(Prezentace!E98=0,"",Prezentace!E98) ->  | V96: 0
A97: =IF(Prezentace!A99=0,"",Prezentace!A99) ->  | B97: =IF(Prezentace!B99=0,"",Prezentace!B99) ->  | C97: =Prezentace!D99 -> P | D97: =IF(Prezentace!F99=0,"",Prezentace!F99) ->  | E97: =IF(Prezentace!E99=0,"",Prezentace!E99) ->  | V97: 0
A98: =IF(Prezentace!A100=0,"",Prezentace!A100) ->  | B98: =IF(Prezentace!B100=0,"",Prezentace!B100) ->  | C98: =Prezentace!D100 -> P | D98: =IF(Prezentace!F100=0,"",Prezentace!F100) ->  | E98: =IF(Prezentace!E100=0,"",Prezentace!E100) ->  | V98: 0
A99: =IF(Prezentace!A101=0,"",Prezentace!A101) ->  | B99: =IF(Prezentace!B101=0,"",Prezentace!B101) ->  | C99: =Prezentace!D101 -> P | D99: =IF(Prezentace!F101=0,"",Prezentace!F101) ->  | E99: =IF(Prezentace!E101=0,"",Prezentace!E101) ->  | V99: 0
A100: =IF(Prezentace!A102=0,"",Prezentace!A102) ->  | B100: =IF(Prezentace!B102=0,"",Prezentace!B102) ->  | C100: =Prezentace!D102 -> P | D100: =IF(Prezentace!F102=0,"",Prezentace!F102) ->  | E100: =IF(Prezentace!E102=0,"",Prezentace!E102) ->  | V100: 0
A101: =IF(Prezentace!A103=0,"",Prezentace!A103) ->  | B101: =IF(Prezentace!B103=0,"",Prezentace!B103) ->  | C101: =Prezentace!D103 -> P | D101: =IF(Prezentace!F103=0,"",Prezentace!F103) ->  | E101: =IF(Prezentace!E103=0,"",Prezentace!E103) ->  | V101: 0
A102: =IF(Prezentace!A104=0,"",Prezentace!A104) ->  | B102: =IF(Prezentace!B104=0,"",Prezentace!B104) ->  | C102: =Prezentace!D104 -> P | D102: =IF(Prezentace!F104=0,"",Prezentace!F104) ->  | E102: =IF(Prezentace!E104=0,"",Prezentace!E104) ->  | V102: =(SUM(F102:T102))-U102 -> 0

Sheet 2(M) (hidden)
A1: Druž. | B1: Kap. | D1: Disciplina 2
F3: 0 | G3: 1 | H3: 2 | I3: 3 | J3: 4 | K3: 5 | L3: 6 | M3: 7 | N3: 8 | O3: 9 | P3: 10 | Q3: 12 | R3: 15 | S3: Čas | T3: Součet
A4: =IF(Prezentace!A6=0,"",Prezentace!A6) ->  | B4: =IF(Prezentace!B6=0,"",Prezentace!B6) ->  | C4: =Prezentace!D6 -> P | D4: =IF(Prezentace!F6=0,"",Prezentace!F6) -> Martin | E4: =IF(Prezentace!E6=0,"",Prezentace!E6) -> Adensam | T4: =(SUM(F4*$F$3,G4*$G$3,H4*$H$3,I4*$I$3,J4*$J$3,K4*$K$3,L4*$L$3,M4*$M$3,N4*$N$3,O4*$O$3,P4*$P$3,Q4*$Q$3,R4*$R$3))-S4 -> 0
A5: =IF(Prezentace!A7=0,"",Prezentace!A7) ->  | B5: =IF(Prezentace!B7=0,"",Prezentace!B7) ->  | C5: =Prezentace!D7 -> R | D5: =IF(Prezentace!F7=0,"",Prezentace!F7) -> Martin | E5: =IF(Prezentace!E7=0,"",Prezentace!E7) -> Adensam | T5: =(SUM(F5*$F$3,G5*$G$3,H5*$H$3,I5*$I$3,J5*$J$3,K5*$K$3,L5*$L$3,M5*$M$3,N5*$N$3,O5*$O$3,P5*$P$3,Q5*$Q$3,R5*$R$3))-S5 -> 0
A6: =IF(Prezentace!A8=0,"",Prezentace!A8) ->  | B6: =IF(Prezentace!B8=0,"",Prezentace!B8) ->  | C6: =Prezentace!D8 -> P | D6: =IF(Prezentace!F8=0,"",Prezentace!F8) -> Jaroslav | E6: =IF(Prezentace!E8=0,"",Prezentace!E8) -> Kostříž | T6: 0
A7: =IF(Prezentace!A9=0,"",Prezentace!A9) ->  | B7: =IF(Prezentace!B9=0,"",Prezentace!B9) ->  | C7: =Prezentace!D9 -> P | D7: =IF(Prezentace!F9=0,"",Prezentace!F9) -> Miroslav | E7: =IF(Prezentace!E9=0,"",Prezentace!E9) -> Koch ml. | T7: 0
A8: =IF(Prezentace!A10=0,"",Prezentace!A10) ->  | B8: =IF(Prezentace!B10=0,"",Prezentace!B10) ->  | C8: =Prezentace!D10 -> P | D8: =IF(Prezentace!F10=0,"",Prezentace!F10) -> Miroslav | E8: =IF(Prezentace!E10=0,"",Prezentace!E10) -> Koch st. | T8: 0
A9: =IF(Prezentace!A11=0,"",Prezentace!A11) ->  | B9: =IF(Prezentace!B11=0,"",Prezentace!B11) ->  | C9: =Prezentace!D11 -> P | D9: =IF(Prezentace!F11=0,"",Prezentace!F11) -> Bohumil | E9: =IF(Prezentace!E11=0,"",Prezentace!E11) -> Herceg | T9: 0
A10: =IF(Prezentace!A12=0,"",Prezentace!A12) ->  | B10: =IF(Prezentace!B12=0,"",Prezentace!B12) ->  | C10: =Prezentace!D12 -> P | D10: =IF(Prezentace!F12=0,"",Prezentace!F12) -> Viktor | E10: =IF(Prezentace!E12=0,"",Prezentace!E12) -> Fuksa | T10: 0
A11: =IF(Prezentace!A13=0,"",Prezentace!A13) ->  | B11: =IF(Prezentace!B13=0,"",Prezentace!B13) ->  | C11: =Prezentace!D13 -> P | D11: =IF(Prezentace!F13=0,"",Prezentace!F13) -> Milan | E11: =IF(Prezentace!E13=0,"",Prezentace!E13) -> Matějka ml. | T11: 0
A12: =IF(Prezentace!A14=0,"",Prezentace!A14) ->  | B12: =IF(Prezentace!B14=0,"",Prezentace!B14) ->  | C12: =Prezentace!D14 -> P | D12: =IF(Prezentace!F14=0,"",Prezentace!F14) -> Michal | E12: =IF(Prezentace!E14=0,"",Prezentace!E14) -> Svoboda | T12: 0
A13: =IF(Prezentace!A15=0,"",Prezentace!A15) ->  | B13: =IF(Prezentace!B15=0,"",Prezentace!B15) ->  | C13: =Prezentace!D15 -> R | D13: =IF(Prezentace!F15=0,"",Prezentace!F15) -> Lukáš | E13: =IF(Prezentace!E15=0,"",Prezentace!E15) -> Bouda | T13: 0
A14: =IF(Prezentace!A16=0,"",Prezentace!A16) ->  | B14: =IF(Prezentace!B16=0,"",Prezentace!B16) ->  | C14: =Prezentace!D16 -> P | D14: =IF(Prezentace!F16=0,"",Prezentace!F16) -> Lukáš | E14: =IF(Prezentace!E16=0,"",Prezentace!E16) -> Bouda | T14: 0
A15: =IF(Prezentace!A17=0,"",Prezentace!A17) ->  | B15: =IF(Prezentace!B17=0,"",Prezentace!B17) ->  | C15: =Prezentace!D17 -> P | D15: =IF(Prezentace!F17=0,"",Prezentace!F17) -> Pavel | E15: =IF(Prezentace!E17=0,"",Prezentace!E17) -> Koltai | T15: 0
A16: =IF(Prezentace!A18=0,"",Prezentace!A18) ->  | B16: =IF(Prezentace!B18=0,"",Prezentace!B18) ->  | C16: =Prezentace!D18 -> P | D16: =IF(Prezentace!F18=0,"",Prezentace!F18) -> Vladislav | E16: =IF(Prezentace!E18=0,"",Prezentace!E18) -> Přibyl | T16: 0
A17: =IF(Prezentace!A19=0,"",Prezentace!A19) ->  | B17: =IF(Prezentace!B19=0,"",Prezentace!B19) ->  | C17: =Prezentace!D19 -> P | D17: =IF(Prezentace!F19=0,"",Prezentace!F19) -> Milan | E17: =IF(Prezentace!E19=0,"",Prezentace!E19) -> Matějka st. | T17: 0
A18: =IF(Prezentace!A20=0,"",Prezentace!A20) ->  | B18: =IF(Prezentace!B20=0,"",Prezentace!B20) ->  | C18: =Prezentace!D20 -> P | D18: =IF(Prezentace!F20=0,"",Prezentace!F20) -> Miroslav | E18: =IF(Prezentace!E20=0,"",Prezentace!E20) -> Fiala | T18: 0
A19: =IF(Prezentace!A21=0,"",Prezentace!A21) ->  | B19: =IF(Prezentace!B21=0,"",Prezentace!B21) ->  | C19: =Prezentace!D21 -> P | D19: =IF(Prezentace!F21=0,"",Prezentace!F21) -> Karel | E19: =IF(Prezentace!E21=0,"",Prezentace!E21) -> Gažák | T19: 0
A20: =IF(Prezentace!A22=0,"",Prezentace!A22) ->  | B20: =IF(Prezentace!B22=0,"",Prezentace!B22) ->  | C20: =Prezentace!D22 -> P | D20: =IF(Prezentace!F22=0,"",Prezentace!F22) -> Václav | E20: =IF(Prezentace!E22=0,"",Prezentace!E22) -> Landkammer | T20: 0
A21: =IF(Prezentace!A23=0,"",Prezentace!A23) ->  | B21: =IF(Prezentace!B23=0,"",Prezentace!B23) ->  | C21: =Prezentace!D23 -> P | D21: =IF(Prezentace!F23=0,"",Prezentace!F23) -> Vojtěch | E21: =IF(Prezentace!E23=0,"",Prezentace!E23) -> Brejžek | T21: 0
A22: =IF(Prezentace!A24=0,"",Prezentace!A24) ->  | B22: =IF(Prezentace!B24=0,"",Prezentace!B24) ->  | C22: =Prezentace!D24 -> P | D22: =IF(Prezentace!F24=0,"",Prezentace!F24) -> Antonín | E22: =IF(Prezentace!E24=0,"",Prezentace!E24) -> Urbanec | T22: 0
A23: =IF(Prezentace!A25=0,"",Prezentace!A25) ->  | B23: =IF(Prezentace!B25=0,"",Prezentace!B25) ->  | C23: =Prezentace!D25 -> P | D23: =IF(Prezentace!F25=0,"",Prezentace!F25) -> Milan | E23: =IF(Prezentace!E25=0,"",Prezentace!E25) -> Jílek | T23: 0
A24: =IF(Prezentace!A26=0,"",Prezentace!A26) ->  | B24: =IF(Prezentace!B26=0,"",Prezentace!B26) ->  | C24: =Prezentace!D26 -> P | D24: =IF(Prezentace!F26=0,"",Prezentace!F26) -> Václav | E24: =IF(Prezentace!E26=0,"",Prezentace!E26) -> Jírů | T24: 0
A25: =IF(Prezentace!A27=0,"",Prezentace!A27) ->  | B25: =IF(Prezentace!B27=0,"",Prezentace!B27) ->  | C25: =Prezentace!D27 -> P | D25: =IF(Prezentace!F27=0,"",Prezentace!F27) -> Milan | E25: =IF(Prezentace!E27=0,"",Prezentace!E27) -> Krupica | T25: 0
A26: =IF(Prezentace!A28=0,"",Prezentace!A28) ->  | B26: =IF(Prezentace!B28=0,"",Prezentace!B28) ->  | C26: =Prezentace!D28 -> R | D26: =IF(Prezentace!F28=0,"",Prezentace!F28) -> Milan | E26: =IF(Prezentace!E28=0,"",Prezentace!E28) -> Krupica | T26: 0
A27: =IF(Prezentace!A29=0,"",Prezentace!A29) ->  | B27: =IF(Prezentace!B29=0,"",Prezentace!B29) ->  | C27: =Prezentace!D29 -> P | D27: =IF(Prezentace!F29=0,"",Prezentace!F29) -> Miloslav | E27: =IF(Prezentace!E29=0,"",Prezentace!E29) -> Petržílka | T27: 0
A28: =IF(Prezentace!A30=0,"",Prezentace!A30) ->  | B28: =IF(Prezentace!B30=0,"",Prezentace!B30) ->  | C28: =Prezentace!D30 -> R | D28: =IF(Prezentace!F30=0,"",Prezentace!F30) -> Aleš | E28: =IF(Prezentace!E30=0,"",Prezentace!E30) -> Seitl | T28: 0
A29: =IF(Prezentace!A31=0,"",Prezentace!A31) ->  | B29: =IF(Prezentace!B31=0,"",Prezentace!B31) ->  | C29: =Prezentace!D31 -> P | D29: =IF(Prezentace!F31=0,"",Prezentace!F31) -> Aleš | E29: =IF(Prezentace!E31=0,"",Prezentace!E31) -> Seitl | T29: 0
A30: =IF(Prezentace!A32=0,"",Prezentace!A32) ->  | B30: =IF(Prezentace!B32=0,"",Prezentace!B32) ->  | C30: =Prezentace!D32 -> P | D30: =IF(Prezentace!F32=0,"",Prezentace!F32) -> Karel | E30: =IF(Prezentace!E32=0,"",Prezentace!E32) -> Seitl | T30: 0
A31: =IF(Prezentace!A33=0,"",Prezentace!A33) ->  | B31: =IF(Prezentace!B33=0,"",Prezentace!B33) ->  | C31: =Prezentace!D33 -> P | D31: =IF(Prezentace!F33=0,"",Prezentace!F33) -> David | E31: =IF(Prezentace!E33=0,"",Prezentace!E33) -> Nikodým | T31: 0
A32: =IF(Prezentace!A34=0,"",Prezentace!A34) ->  | B32: =IF(Prezentace!B34=0,"",Prezentace!B34) ->  | C32: =Prezentace!D34 -> R | D32: =IF(Prezentace!F34=0,"",Prezentace!F34) -> David | E32: =IF(Prezentace!E34=0,"",Prezentace!E34) -> Nikodým | T32: 0
A33: =IF(Prezentace!A35=0,"",Prezentace!A35) ->  | B33: =IF(Prezentace!B35=0,"",Prezentace!B35) ->  | C33: =Prezentace!D35 -> P | D33: =IF(Prezentace!F35=0,"",Prezentace!F35) -> Lukáš | E33: =IF(Prezentace!E35=0,"",Prezentace!E35) -> Hobza | T33: 0
A34: =IF(Prezentace!A36=0,"",Prezentace!A36) ->  | B34: =IF(Prezentace!B36=0,"",Prezentace!B36) ->  | C34: =Prezentace!D36 -> P | D34: =IF(Prezentace!F36=0,"",Prezentace!F36) -> Antonín | E34: =IF(Prezentace!E36=0,"",Prezentace!E36) -> Jelínek | T34: 0
A35: =IF(Prezentace!A37=0,"",Prezentace!A37) ->  | B35: =IF(Prezentace!B37=0,"",Prezentace!B37) ->  | C35: =Prezentace!D37 -> R | D35: =IF(Prezentace!F37=0,"",Prezentace!F37) -> Antonín | E35: =IF(Prezentace!E37=0,"",Prezentace!E37) -> Jelínek | T35: 0
A36: =IF(Prezentace!A38=0,"",Prezentace!A38) ->  | B36: =IF(Prezentace!B38=0,"",Prezentace!B38) ->  | C36: =Prezentace!D38 -> P | D36: =IF(Prezentace!F38=0,"",Prezentace!F38) -> Ladislav | E36: =IF(Prezentace!E38=0,"",Prezentace!E38) -> Píša | T36: 0
A37: =IF(Prezentace!A39=0,"",Prezentace!A39) ->  | B37: =IF(Prezentace!B39=0,"",Prezentace!B39) ->  | C37: =Prezentace!D39 -> P | D37: =IF(Prezentace!F39=0,"",Prezentace!F39) -> Štefan | E37: =IF(Prezentace!E39=0,"",Prezentace!E39) -> Mesároš | T37: 0
A38: =IF(Prezentace!A40=0,"",Prezentace!A40) ->  | B38: =IF(Prezentace!B40=0,"",Prezentace!B40) ->  | C38: =Prezentace!D40 -> P | D38: =IF(Prezentace!F40=0,"",Prezentace!F40) -> Pavel | E38: =IF(Prezentace!E40=0,"",Prezentace!E40) -> Červenka | T38: =(SUM(F38*$F$3,G38*$G$3,H38*$H$3,I38*$I$3,J38*$J$3,K38*$K$3,L38*$L$3,M38*$M$3,N38*$N$3,O38*$O$3,P38*$P$3,Q38*$Q$3,R38*$R$3))-S38 -> 0
A39: =IF(Prezentace!A41=0,"",Prezentace!A41) ->  | B39: =IF(Prezentace!B41=0,"",Prezentace!B41) ->  | C39: =Prezentace!D41 -> R | D39: =IF(Prezentace!F41=0,"",Prezentace!F41) -> Pavel | E39: =IF(Prezentace!E41=0,"",Prezentace!E41) -> Červenka | T39: 0
A40: =IF(Prezentace!A42=0,"",Prezentace!A42) ->  | B40: =IF(Prezentace!B42=0,"",Prezentace!B42) ->  | C40: =Prezentace!D42 -> P | D40: =IF(Prezentace!F42=0,"",Prezentace!F42) -> Jiří | E40: =IF(Prezentace!E42=0,"",Prezentace!E42) -> Švihálek | T40: 0
A41: =IF(Prezentace!A43=0,"",Prezentace!A43) ->  | B41: =IF(Prezentace!B43=0,"",Prezentace!B43) ->  | C41: =Prezentace!D43 -> R | D41: =IF(Prezentace!F43=0,"",Prezentace!F43) -> Jiří | E41: =IF(Prezentace!E43=0,"",Prezentace!E43) -> Švihálek | T41: 0
A42: =IF(Prezentace!A44=0,"",Prezentace!A44) ->  | B42: =IF(Prezentace!B44=0,"",Prezentace!B44) ->  | C42: =Prezentace!D44 -> P | D42: =IF(Prezentace!F44=0,"",Prezentace!F44) -> František | E42: =IF(Prezentace!E44=0,"",Prezentace!E44) -> Toman | T42: 0
A43: =IF(Prezentace!A45=0,"",Prezentace!A45) ->  | B43: =IF(Prezentace!B45=0,"",Prezentace!B45) ->  | C43: =Prezentace!D45 -> P | D43: =IF(Prezentace!F45=0,"",Prezentace!F45) -> Vladimír | E43: =IF(Prezentace!E45=0,"",Prezentace!E45) -> VejslíK | T43: 0
A44: =IF(Prezentace!A46=0,"",Prezentace!A46) ->  | B44: =IF(Prezentace!B46=0,"",Prezentace!B46) ->  | C44: =Prezentace!D46 -> P | D44: =IF(Prezentace!F46=0,"",Prezentace!F46) -> Karel | E44: =IF(Prezentace!E46=0,"",Prezentace!E46) -> Získal | T44: 0
A45: =IF(Prezentace!A47=0,"",Prezentace!A47) ->  | B45: =IF(Prezentace!B47=0,"",Prezentace!B47) ->  | C45: =Prezentace!D47 -> R | D45: =IF(Prezentace!F47=0,"",Prezentace!F47) -> Karel | E45: =IF(Prezentace!E47=0,"",Prezentace!E47) -> Získal | T45: 0
A46: =IF(Prezentace!A48=0,"",Prezentace!A48) ->  | B46: =IF(Prezentace!B48=0,"",Prezentace!B48) ->  | C46: =Prezentace!D48 -> P | D46: =IF(Prezentace!F48=0,"",Prezentace!F48) -> Jaroslav | E46: =IF(Prezentace!E48=0,"",Prezentace!E48) -> Sokolík | T46: 0
A47: =IF(Prezentace!A49=0,"",Prezentace!A49) ->  | B47: =IF(Prezentace!B49=0,"",Prezentace!B49) ->  | C47: =Prezentace!D49 -> P | D47: =IF(Prezentace!F49=0,"",Prezentace!F49) -> Milan | E47: =IF(Prezentace!E49=0,"",Prezentace!E49) -> Kraus | T47: 0
A48: =IF(Prezentace!A50=0,"",Prezentace!A50) ->  | B48: =IF(Prezentace!B50=0,"",Prezentace!B50) ->  | C48: =Prezentace!D50 -> P | D48: =IF(Prezentace!F50=0,"",Prezentace!F50) ->  | E48: =IF(Prezentace!E50=0,"",Prezentace!E50) ->  | T48: 0
A49: =IF(Prezentace!A51=0,"",Prezentace!A51) ->  | B49: =IF(Prezentace!B51=0,"",Prezentace!B51) ->  | C49: =Prezentace!D51 -> P | D49: =IF(Prezentace!F51=0,"",Prezentace!F51) ->  | E49: =IF(Prezentace!E51=0,"",Prezentace!E51) ->  | T49: 0
A50: =IF(Prezentace!A52=0,"",Prezentace!A52) ->  | B50: =IF(Prezentace!B52=0,"",Prezentace!B52) ->  | C50: =Prezentace!D52 -> P | D50: =IF(Prezentace!F52=0,"",Prezentace!F52) ->  | E50: =IF(Prezentace!E52=0,"",Prezentace!E52) ->  | T50: 0
A51: =IF(Prezentace!A53=0,"",Prezentace!A53) ->  | B51: =IF(Prezentace!B53=0,"",Prezentace!B53) ->  | C51: =Prezentace!D53 -> P | D51: =IF(Prezentace!F53=0,"",Prezentace!F53) ->  | E51: =IF(Prezentace!E53=0,"",Prezentace!E53) ->  | T51: 0
A52: =IF(Prezentace!A54=0,"",Prezentace!A54) ->  | B52: =IF(Prezentace!B54=0,"",Prezentace!B54) ->  | C52: =Prezentace!D54 -> P | D52: =IF(Prezentace!F54=0,"",Prezentace!F54) ->  | E52: =IF(Prezentace!E54=0,"",Prezentace!E54) ->  | T52: 0
A53: =IF(Prezentace!A55=0,"",Prezentace!A55) ->  | B53: =IF(Prezentace!B55=0,"",Prezentace!B55) ->  | C53: =Prezentace!D55 -> P | D53: =IF(Prezentace!F55=0,"",Prezentace!F55) ->  | E53: =IF(Prezentace!E55=0,"",Prezentace!E55) ->  | T53: 0
A54: =IF(Prezentace!A56=0,"",Prezentace!A56) ->  | B54: =IF(Prezentace!B56=0,"",Prezentace!B56) ->  | C54: =Prezentace!D56 -> P | D54: =IF(Prezentace!F56=0,"",Prezentace!F56) ->  | E54: =IF(Prezentace!E56=0,"",Prezentace!E56) ->  | T54: 0
A55: =IF(Prezentace!A57=0,"",Prezentace!A57) ->  | B55: =IF(Prezentace!B57=0,"",Prezentace!B57) ->  | C55: =Prezentace!D57 -> P | D55: =IF(Prezentace!F57=0,"",Prezentace!F57) ->  | E55: =IF(Prezentace!E57=0,"",Prezentace!E57) ->  | T55: 0
A56: =IF(Prezentace!A58=0,"",Prezentace!A58) ->  | B56: =IF(Prezentace!B58=0,"",Prezentace!B58) ->  | C56: =Prezentace!D58 -> P | D56: =IF(Prezentace!F58=0,"",Prezentace!F58) ->  | E56: =IF(Prezentace!E58=0,"",Prezentace!E58) ->  | T56: 0
A57: =IF(Prezentace!A59=0,"",Prezentace!A59) ->  | B57: =IF(Prezentace!B59=0,"",Prezentace!B59) ->  | C57: =Prezentace!D59 -> P | D57: =IF(Prezentace!F59=0,"",Prezentace!F59) ->  | E57: =IF(Prezentace!E59=0,"",Prezentace!E59) ->  | T57: 0
A58: =IF(Prezentace!A60=0,"",Prezentace!A60) ->  | B58: =IF(Prezentace!B60=0,"",Prezentace!B60) ->  | C58: =Prezentace!D60 -> P | D58: =IF(Prezentace!F60=0,"",Prezentace!F60) ->  | E58: =IF(Prezentace!E60=0,"",Prezentace!E60) ->  | T58: 0
A59: =IF(Prezentace!A61=0,"",Prezentace!A61) ->  | B59: =IF(Prezentace!B61=0,"",Prezentace!B61) ->  | C59: =Prezentace!D61 -> P | D59: =IF(Prezentace!F61=0,"",Prezentace!F61) ->  | E59: =IF(Prezentace!E61=0,"",Prezentace!E61) ->  | T59: 0
A60: =IF(Prezentace!A62=0,"",Prezentace!A62) ->  | B60: =IF(Prezentace!B62=0,"",Prezentace!B62) ->  | C60: =Prezentace!D62 -> P | D60: =IF(Prezentace!F62=0,"",Prezentace!F62) ->  | E60: =IF(Prezentace!E62=0,"",Prezentace!E62) ->  | T60: 0
A61: =IF(Prezentace!A63=0,"",Prezentace!A63) ->  | B61: =IF(Prezentace!B63=0,"",Prezentace!B63) ->  | C61: =Prezentace!D63 -> P | D61: =IF(Prezentace!F63=0,"",Prezentace!F63) ->  | E61: =IF(Prezentace!E63=0,"",Prezentace!E63) ->  | T61: 0
A62: =IF(Prezentace!A64=0,"",Prezentace!A64) ->  | B62: =IF(Prezentace!B64=0,"",Prezentace!B64) ->  | C62: =Prezentace!D64 -> P | D62: =IF(Prezentace!F64=0,"",Prezentace!F64) ->  | E62: =IF(Prezentace!E64=0,"",Prezentace!E64) ->  | T62: 0
A63: =IF(Prezentace!A65=0,"",Prezentace!A65) ->  | B63: =IF(Prezentace!B65=0,"",Prezentace!B65) ->  | C63: =Prezentace!D65 -> P | D63: =IF(Prezentace!F65=0,"",Prezentace!F65) ->  | E63: =IF(Prezentace!E65=0,"",Prezentace!E65) ->  | T63: 0
A64: =IF(Prezentace!A66=0,"",Prezentace!A66) ->  | B64: =IF(Prezentace!B66=0,"",Prezentace!B66) ->  | C64: =Prezentace!D66 -> P | D64: =IF(Prezentace!F66=0,"",Prezentace!F66) ->  | E64: =IF(Prezentace!E66=0,"",Prezentace!E66) ->  | T64: 0
A65: =IF(Prezentace!A67=0,"",Prezentace!A67) ->  | B65: =IF(Prezentace!B67=0,"",Prezentace!B67) ->  | C65: =Prezentace!D67 -> P | D65: =IF(Prezentace!F67=0,"",Prezentace!F67) ->  | E65: =IF(Prezentace!E67=0,"",Prezentace!E67) ->  | T65: 0
A66: =IF(Prezentace!A68=0,"",Prezentace!A68) ->  | B66: =IF(Prezentace!B68=0,"",Prezentace!B68) ->  | C66: =Prezentace!D68 -> P | D66: =IF(Prezentace!F68=0,"",Prezentace!F68) ->  | E66: =IF(Prezentace!E68=0,"",Prezentace!E68) ->  | T66: 0
A67: =IF(Prezentace!A69=0,"",Prezentace!A69) ->  | B67: =IF(Prezentace!B69=0,"",Prezentace!B69) ->  | C67: =Prezentace!D69 -> P | D67: =IF(Prezentace!F69=0,"",Prezentace!F69) ->  | E67: =IF(Prezentace!E69=0,"",Prezentace!E69) ->  | T67: 0
A68: =IF(Prezentace!A70=0,"",Prezentace!A70) ->  | B68: =IF(Prezentace!B70=0,"",Prezentace!B70) ->  | C68: =Prezentace!D70 -> P | D68: =IF(Prezentace!F70=0,"",Prezentace!F70) ->  | E68: =IF(Prezentace!E70=0,"",Prezentace!E70) ->  | T68: 0
A69: =IF(Prezentace!A71=0,"",Prezentace!A71) ->  | B69: =IF(Prezentace!B71=0,"",Prezentace!B71) ->  | C69: =Prezentace!D71 -> P | D69: =IF(Prezentace!F71=0,"",Prezentace!F71) ->  | E69: =IF(Prezentace!E71=0,"",Prezentace!E71) ->  | T69: 0
A70: =IF(Prezentace!A72=0,"",Prezentace!A72) ->  | B70: =IF(Prezentace!B72=0,"",Prezentace!B72) ->  | C70: =Prezentace!D72 -> P | D70: =IF(Prezentace!F72=0,"",Prezentace!F72) ->  | E70: =IF(Prezentace!E72=0,"",Prezentace!E72) ->  | T70: 0
A71: =IF(Prezentace!A73=0,"",Prezentace!A73) ->  | B71: =IF(Prezentace!B73=0,"",Prezentace!B73) ->  | C71: =Prezentace!D73 -> P | D71: =IF(Prezentace!F73=0,"",Prezentace!F73) ->  | E71: =IF(Prezentace!E73=0,"",Prezentace!E73) ->  | T71: 0
A72: =IF(Prezentace!A74=0,"",Prezentace!A74) ->  | B72: =IF(Prezentace!B74=0,"",Prezentace!B74) ->  | C72: =Prezentace!D74 -> P | D72: =IF(Prezentace!F74=0,"",Prezentace!F74) ->  | E72: =IF(Prezentace!E74=0,"",Prezentace!E74) ->  | T72: 0
A73: =IF(Prezentace!A75=0,"",Prezentace!A75) ->  | B73: =IF(Prezentace!B75=0,"",Prezentace!B75) ->  | C73: =Prezentace!D75 -> P | D73: =IF(Prezentace!F75=0,"",Prezentace!F75) ->  | E73: =IF(Prezentace!E75=0,"",Prezentace!E75) ->  | T73: 0
A74: =IF(Prezentace!A76=0,"",Prezentace!A76) ->  | B74: =IF(Prezentace!B76=0,"",Prezentace!B76) ->  | C74: =Prezentace!D76 -> P | D74: =IF(Prezentace!F76=0,"",Prezentace!F76) ->  | E74: =IF(Prezentace!E76=0,"",Prezentace!E76) ->  | T74: 0
A75: =IF(Prezentace!A77=0,"",Prezentace!A77) ->  | B75: =IF(Prezentace!B77=0,"",Prezentace!B77) ->  | C75: =Prezentace!D77 -> P | D75: =IF(Prezentace!F77=0,"",Prezentace!F77) ->  | E75: =IF(Prezentace!E77=0,"",Prezentace!E77) ->  | T75: 0
A76: =IF(Prezentace!A78=0,"",Prezentace!A78) ->  | B76: =IF(Prezentace!B78=0,"",Prezentace!B78) ->  | C76: =Prezentace!D78 -> P | D76: =IF(Prezentace!F78=0,"",Prezentace!F78) ->  | E76: =IF(Prezentace!E78=0,"",Prezentace!E78) ->  | T76: 0
A77: =IF(Prezentace!A79=0,"",Prezentace!A79) ->  | B77: =IF(Prezentace!B79=0,"",Prezentace!B79) ->  | C77: =Prezentace!D79 -> P | D77: =IF(Prezentace!F79=0,"",Prezentace!F79) ->  | E77: =IF(Prezentace!E79=0,"",Prezentace!E79) ->  | T77: 0
A78: =IF(Prezentace!A80=0,"",Prezentace!A80) ->  | B78: =IF(Prezentace!B80=0,"",Prezentace!B80) ->  | C78: =Prezentace!D80 -> P | D78: =IF(Prezentace!F80=0,"",Prezentace!F80) ->  | E78: =IF(Prezentace!E80=0,"",Prezentace!E80) ->  | T78: 0
A79: =IF(Prezentace!A81=0,"",Prezentace!A81) ->  | B79: =IF(Prezentace!B81=0,"",Prezentace!B81) ->  | C79: =Prezentace!D81 -> P | D79: =IF(Prezentace!F81=0,"",Prezentace!F81) ->  | E79: =IF(Prezentace!E81=0,"",Prezentace!E81) ->  | T79: 0
A80: =IF(Prezentace!A82=0,"",Prezentace!A82) ->  | B80: =IF(Prezentace!B82=0,"",Prezentace!B82) ->  | C80: =Prezentace!D82 -> P | D80: =IF(Prezentace!F82=0,"",Prezentace!F82) ->  | E80: =IF(Prezentace!E82=0,"",Prezentace!E82) ->  | T80: 0
A81: =IF(Prezentace!A83=0,"",Prezentace!A83) ->  | B81: =IF(Prezentace!B83=0,"",Prezentace!B83) ->  | C81: =Prezentace!D83 -> P | D81: =IF(Prezentace!F83=0,"",Prezentace!F83) ->  | E81: =IF(Prezentace!E83=0,"",Prezentace!E83) ->  | T81: 0
A82: =IF(Prezentace!A84=0,"",Prezentace!A84) ->  | B82: =IF(Prezentace!B84=0,"",Prezentace!B84) ->  | C82: =Prezentace!D84 -> P | D82: =IF(Prezentace!F84=0,"",Prezentace!F84) ->  | E82: =IF(Prezentace!E84=0,"",Prezentace!E84) ->  | T82: 0
A83: =IF(Prezentace!A85=0,"",Prezentace!A85) ->  | B83: =IF(Prezentace!B85=0,"",Prezentace!B85) ->  | C83: =Prezentace!D85 -> P | D83: =IF(Prezentace!F85=0,"",Prezentace!F85) ->  | E83: =IF(Prezentace!E85=0,"",Prezentace!E85) ->  | T83: 0
A84: =IF(Prezentace!A86=0,"",Prezentace!A86) ->  | B84: =IF(Prezentace!B86=0,"",Prezentace!B86) ->  | C84: =Prezentace!D86 -> P | D84: =IF(Prezentace!F86=0,"",Prezentace!F86) ->  | E84: =IF(Prezentace!E86=0,"",Prezentace!E86) ->  | T84: 0
A85: =IF(Prezentace!A87=0,"",Prezentace!A87) ->  | B85: =IF(Prezentace!B87=0,"",Prezentace!B87) ->  | C85: =Prezentace!D87 -> P | D85: =IF(Prezentace!F87=0,"",Prezentace!F87) ->  | E85: =IF(Prezentace!E87=0,"",Prezentace!E87) ->  | T85: 0
A86: =IF(Prezentace!A88=0,"",Prezentace!A88) ->  | B86: =IF(Prezentace!B88=0,"",Prezentace!B88) ->  | C86: =Prezentace!D88 -> P | D86: =IF(Prezentace!F88=0,"",Prezentace!F88) ->  | E86: =IF(Prezentace!E88=0,"",Prezentace!E88) ->  | T86: 0
A87: =IF(Prezentace!A89=0,"",Prezentace!A89) ->  | B87: =IF(Prezentace!B89=0,"",Prezentace!B89) ->  | C87: =Prezentace!D89 -> P | D87: =IF(Prezentace!F89=0,"",Prezentace!F89) ->  | E87: =IF(Prezentace!E89=0,"",Prezentace!E89) ->  | T87: 0
A88: =IF(Prezentace!A90=0,"",Prezentace!A90) ->  | B88: =IF(Prezentace!B90=0,"",Prezentace!B90) ->  | C88: =Prezentace!D90 -> P | D88: =IF(Prezentace!F90=0,"",Prezentace!F90) ->  | E88: =IF(Prezentace!E90=0,"",Prezentace!E90) ->  | T88: 0
A89: =IF(Prezentace!A91=0,"",Prezentace!A91) ->  | B89: =IF(Prezentace!B91=0,"",Prezentace!B91) ->  | C89: =Prezentace!D91 -> P | D89: =IF(Prezentace!F91=0,"",Prezentace!F91) ->  | E89: =IF(Prezentace!E91=0,"",Prezentace!E91) ->  | T89: 0
A90: =IF(Prezentace!A92=0,"",Prezentace!A92) ->  | B90: =IF(Prezentace!B92=0,"",Prezentace!B92) ->  | C90: =Prezentace!D92 -> P | D90: =IF(Prezentace!F92=0,"",Prezentace!F92) ->  | E90: =IF(Prezentace!E92=0,"",Prezentace!E92) ->  | T90: 0
A91: =IF(Prezentace!A93=0,"",Prezentace!A93) ->  | B91: =IF(Prezentace!B93=0,"",Prezentace!B93) ->  | C91: =Prezentace!D93 -> P | D91: =IF(Prezentace!F93=0,"",Prezentace!F93) ->  | E91: =IF(Prezentace!E93=0,"",Prezentace!E93) ->  | T91: 0
A92: =IF(Prezentace!A94=0,"",Prezentace!A94) ->  | B92: =IF(Prezentace!B94=0,"",Prezentace!B94) ->  | C92: =Prezentace!D94 -> P | D92: =IF(Prezentace!F94=0,"",Prezentace!F94) ->  | E92: =IF(Prezentace!E94=0,"",Prezentace!E94) ->  | T92: 0
A93: =IF(Prezentace!A95=0,"",Prezentace!A95) ->  | B93: =IF(Prezentace!B95=0,"",Prezentace!B95) ->  | C93: =Prezentace!D95 -> P | D93: =IF(Prezentace!F95=0,"",Prezentace!F95) ->  | E93: =IF(Prezentace!E95=0,"",Prezentace!E95) ->  | T93: 0
A94: =IF(Prezentace!A96=0,"",Prezentace!A96) ->  | B94: =IF(Prezentace!B96=0,"",Prezentace!B96) ->  | C94: =Prezentace!D96 -> P | D94: =IF(Prezentace!F96=0,"",Prezentace!F96) ->  | E94: =IF(Prezentace!E96=0,"",Prezentace!E96) ->  | T94: 0
A95: =IF(Prezentace!A97=0,"",Prezentace!A97) ->  | B95: =IF(Prezentace!B97=0,"",Prezentace!B97) ->  | C95: =Prezentace!D97 -> P | D95: =IF(Prezentace!F97=0,"",Prezentace!F97) ->  | E95: =IF(Prezentace!E97=0,"",Prezentace!E97) ->  | T95: 0
A96: =IF(Prezentace!A98=0,"",Prezentace!A98) ->  | B96: =IF(Prezentace!B98=0,"",Prezentace!B98) ->  | C96: =Prezentace!D98 -> P | D96: =IF(Prezentace!F98=0,"",Prezentace!F98) ->  | E96: =IF(Prezentace!E98=0,"",Prezentace!E98) ->  | T96: 0
A97: =IF(Prezentace!A99=0,"",Prezentace!A99) ->  | B97: =IF(Prezentace!B99=0,"",Prezentace!B99) ->  | C97: =Prezentace!D99 -> P | D97: =IF(Prezentace!F99=0,"",Prezentace!F99) ->  | E97: =IF(Prezentace!E99=0,"",Prezentace!E99) ->  | T97: 0
A98: =IF(Prezentace!A100=0,"",Prezentace!A100) ->  | B98: =IF(Prezentace!B100=0,"",Prezentace!B100) ->  | C98: =Prezentace!D100 -> P | D98: =IF(Prezentace!F100=0,"",Prezentace!F100) ->  | E98: =IF(Prezentace!E100=0,"",Prezentace!E100) ->  | T98: 0
A99: =IF(Prezentace!A101=0,"",Prezentace!A101) ->  | B99: =IF(Prezentace!B101=0,"",Prezentace!B101) ->  | C99: =Prezentace!D101 -> P | D99: =IF(Prezentace!F101=0,"",Prezentace!F101) ->  | E99: =IF(Prezentace!E101=0,"",Prezentace!E101) ->  | T99: 0
A100: =IF(Prezentace!A102=0,"",Prezentace!A102) ->  | B100: =IF(Prezentace!B102=0,"",Prezentace!B102) ->  | C100: =Prezentace!D102 -> P | D100: =IF(Prezentace!F102=0,"",Prezentace!F102) ->  | E100: =IF(Prezentace!E102=0,"",Prezentace!E102) ->  | T100: 0
A101: =IF(Prezentace!A103=0,"",Prezentace!A103) ->  | B101: =IF(Prezentace!B103=0,"",Prezentace!B103) ->  | C101: =Prezentace!D103 -> P | D101: =IF(Prezentace!F103=0,"",Prezentace!F103) ->  | E101: =IF(Prezentace!E103=0,"",Prezentace!E103) ->  | T101: 0
A102: =IF(Prezentace!A104=0,"",Prezentace!A104) ->  | B102: =IF(Prezentace!B104=0,"",Prezentace!B104) ->  | C102: =Prezentace!D104 -> P | D102: =IF(Prezentace!F104=0,"",Prezentace!F104) ->  | E102: =IF(Prezentace!E104=0,"",Prezentace!E104) ->  | T102: =(SUM(F102*$F$3,G102*$G$3,H102*$H$3,I102*$I$3,J102*$J$3,K102*$K$3,L102*$L$3,M102*$M$3,N102*$N$3,O102*$O$3,P102*$P$3,Q102*$Q$3,R102*$R$3))-S102 -> 0

Sheet 3(M) (hidden)
A1: Druž. | B1: Kap. | D1: Disciplina 3
F3: 0 | G3: 1 | H3: 2 | I3: 3 | J3: 4 | K3: 5 | L3: 6 | M3: 7 | N3: 8 | O3: 9 | P3: 10 | Q3: 12 | R3: 15 | S3: Čas | T3: Součet
A4: =IF(Prezentace!A6=0,"",Prezentace!A6) ->  | B4: =IF(Prezentace!B6=0,"",Prezentace!B6) ->  | C4: =Prezentace!D6 -> P | D4: =IF(Prezentace!F6=0,"",Prezentace!F6) -> Martin | E4: =IF(Prezentace!E6=0,"",Prezentace!E6) -> Adensam | T4: =(SUM(F4*$F$3,G4*$G$3,H4*$H$3,I4*$I$3,J4*$J$3,K4*$K$3,L4*$L$3,M4*$M$3,N4*$N$3,O4*$O$3,P4*$P$3,Q4*$Q$3,R4*$R$3))-S4 -> 0
A5: =IF(Prezentace!A7=0,"",Prezentace!A7) ->  | B5: =IF(Prezentace!B7=0,"",Prezentace!B7) ->  | C5: =Prezentace!D7 -> R | D5: =IF(Prezentace!F7=0,"",Prezentace!F7) -> Martin | E5: =IF(Prezentace!E7=0,"",Prezentace!E7) -> Adensam | T5: =(SUM(F5*$F$3,G5*$G$3,H5*$H$3,I5*$I$3,J5*$J$3,K5*$K$3,L5*$L$3,M5*$M$3,N5*$N$3,O5*$O$3,P5*$P$3,Q5*$Q$3,R5*$R$3))-S5 -> 0
A6: =IF(Prezentace!A8=0,"",Prezentace!A8) ->  | B6: =IF(Prezentace!B8=0,"",Prezentace!B8) ->  | C6: =Prezentace!D8 -> P | D6: =IF(Prezentace!F8=0,"",Prezentace!F8) -> Jaroslav | E6: =IF(Prezentace!E8=0,"",Prezentace!E8) -> Kostříž | T6: 0
A7: =IF(Prezentace!A9=0,"",Prezentace!A9) ->  | B7: =IF(Prezentace!B9=0,"",Prezentace!B9) ->  | C7: =Prezentace!D9 -> P | D7: =IF(Prezentace!F9=0,"",Prezentace!F9) -> Miroslav | E7: =IF(Prezentace!E9=0,"",Prezentace!E9) -> Koch ml. | T7: 0
A8: =IF(Prezentace!A10=0,"",Prezentace!A10) ->  | B8: =IF(Prezentace!B10=0,"",Prezentace!B10) ->  | C8: =Prezentace!D10 -> P | D8: =IF(Prezentace!F10=0,"",Prezentace!F10) -> Miroslav | E8: =IF(Prezentace!E10=0,"",Prezentace!E10) -> Koch st. | T8: 0
A9: =IF(Prezentace!A11=0,"",Prezentace!A11) ->  | B9: =IF(Prezentace!B11=0,"",Prezentace!B11) ->  | C9: =Prezentace!D11 -> P | D9: =IF(Prezentace!F11=0,"",Prezentace!F11) -> Bohumil | E9: =IF(Prezentace!E11=0,"",Prezentace!E11) -> Herceg | T9: 0
A10: =IF(Prezentace!A12=0,"",Prezentace!A12) ->  | B10: =IF(Prezentace!B12=0,"",Prezentace!B12) ->  | C10: =Prezentace!D12 -> P | D10: =IF(Prezentace!F12=0,"",Prezentace!F12) -> Viktor | E10: =IF(Prezentace!E12=0,"",Prezentace!E12) -> Fuksa | T10: 0
A11: =IF(Prezentace!A13=0,"",Prezentace!A13) ->  | B11: =IF(Prezentace!B13=0,"",Prezentace!B13) ->  | C11: =Prezentace!D13 -> P | D11: =IF(Prezentace!F13=0,"",Prezentace!F13) -> Milan | E11: =IF(Prezentace!E13=0,"",Prezentace!E13) -> Matějka ml. | T11: 0
A12: =IF(Prezentace!A14=0,"",Prezentace!A14) ->  | B12: =IF(Prezentace!B14=0,"",Prezentace!B14) ->  | C12: =Prezentace!D14 -> P | D12: =IF(Prezentace!F14=0,"",Prezentace!F14) -> Michal | E12: =IF(Prezentace!E14=0,"",Prezentace!E14) -> Svoboda | T12: 0
A13: =IF(Prezentace!A15=0,"",Prezentace!A15) ->  | B13: =IF(Prezentace!B15=0,"",Prezentace!B15) ->  | C13: =Prezentace!D15 -> R | D13: =IF(Prezentace!F15=0,"",Prezentace!F15) -> Lukáš | E13: =IF(Prezentace!E15=0,"",Prezentace!E15) -> Bouda | T13: 0
A14: =IF(Prezentace!A16=0,"",Prezentace!A16) ->  | B14: =IF(Prezentace!B16=0,"",Prezentace!B16) ->  | C14: =Prezentace!D16 -> P | D14: =IF(Prezentace!F16=0,"",Prezentace!F16) -> Lukáš | E14: =IF(Prezentace!E16=0,"",Prezentace!E16) -> Bouda | T14: 0
A15: =IF(Prezentace!A17=0,"",Prezentace!A17) ->  | B15: =IF(Prezentace!B17=0,"",Prezentace!B17) ->  | C15: =Prezentace!D17 -> P | D15: =IF(Prezentace!F17=0,"",Prezentace!F17) -> Pavel | E15: =IF(Prezentace!E17=0,"",Prezentace!E17) -> Koltai | T15: 0
A16: =IF(Prezentace!A18=0,"",Prezentace!A18) ->  | B16: =IF(Prezentace!B18=0,"",Prezentace!B18) ->  | C16: =Prezentace!D18 -> P | D16: =IF(Prezentace!F18=0,"",Prezentace!F18) -> Vladislav | E16: =IF(Prezentace!E18=0,"",Prezentace!E18) -> Přibyl | T16: 0
A17: =IF(Prezentace!A19=0,"",Prezentace!A19) ->  | B17: =IF(Prezentace!B19=0,"",Prezentace!B19) ->  | C17: =Prezentace!D19 -> P | D17: =IF(Prezentace!F19=0,"",Prezentace!F19) -> Milan | E17: =IF(Prezentace!E19=0,"",Prezentace!E19) -> Matějka st. | T17: 0
A18: =IF(Prezentace!A20=0,"",Prezentace!A20) ->  | B18: =IF(Prezentace!B20=0,"",Prezentace!B20) ->  | C18: =Prezentace!D20 -> P | D18: =IF(Prezentace!F20=0,"",Prezentace!F20) -> Miroslav | E18: =IF(Prezentace!E20=0,"",Prezentace!E20) -> Fiala | T18: 0
A19: =IF(Prezentace!A21=0,"",Prezentace!A21) ->  | B19: =IF(Prezentace!B21=0,"",Prezentace!B21) ->  | C19: =Prezentace!D21 -> P | D19: =IF(Prezentace!F21=0,"",Prezentace!F21) -> Karel | E19: =IF(Prezentace!E21=0,"",Prezentace!E21) -> Gažák | T19: 0
A20: =IF(Prezentace!A22=0,"",Prezentace!A22) ->  | B20: =IF(Prezentace!B22=0,"",Prezentace!B22) ->  | C20: =Prezentace!D22 -> P | D20: =IF(Prezentace!F22=0,"",Prezentace!F22) -> Václav | E20: =IF(Prezentace!E22=0,"",Prezentace!E22) -> Landkammer | T20: 0
A21: =IF(Prezentace!A23=0,"",Prezentace!A23) ->  | B21: =IF(Prezentace!B23=0,"",Prezentace!B23) ->  | C21: =Prezentace!D23 -> P | D21: =IF(Prezentace!F23=0,"",Prezentace!F23) -> Vojtěch | E21: =IF(Prezentace!E23=0,"",Prezentace!E23) -> Brejžek | T21: 0
A22: =IF(Prezentace!A24=0,"",Prezentace!A24) ->  | B22: =IF(Prezentace!B24=0,"",Prezentace!B24) ->  | C22: =Prezentace!D24 -> P | D22: =IF(Prezentace!F24=0,"",Prezentace!F24) -> Antonín | E22: =IF(Prezentace!E24=0,"",Prezentace!E24) -> Urbanec | T22: 0
A23: =IF(Prezentace!A25=0,"",Prezentace!A25) ->  | B23: =IF(Prezentace!B25=0,"",Prezentace!B25) ->  | C23: =Prezentace!D25 -> P | D23: =IF(Prezentace!F25=0,"",Prezentace!F25) -> Milan | E23: =IF(Prezentace!E25=0,"",Prezentace!E25) -> Jílek | T23: 0
A24: =IF(Prezentace!A26=0,"",Prezentace!A26) ->  | B24: =IF(Prezentace!B26=0,"",Prezentace!B26) ->  | C24: =Prezentace!D26 -> P | D24: =IF(Prezentace!F26=0,"",Prezentace!F26) -> Václav | E24: =IF(Prezentace!E26=0,"",Prezentace!E26) -> Jírů | T24: 0
A25: =IF(Prezentace!A27=0,"",Prezentace!A27) ->  | B25: =IF(Prezentace!B27=0,"",Prezentace!B27) ->  | C25: =Prezentace!D27 -> P | D25: =IF(Prezentace!F27=0,"",Prezentace!F27) -> Milan | E25: =IF(Prezentace!E27=0,"",Prezentace!E27) -> Krupica | T25: 0
A26: =IF(Prezentace!A28=0,"",Prezentace!A28) ->  | B26: =IF(Prezentace!B28=0,"",Prezentace!B28) ->  | C26: =Prezentace!D28 -> R | D26: =IF(Prezentace!F28=0,"",Prezentace!F28) -> Milan | E26: =IF(Prezentace!E28=0,"",Prezentace!E28) -> Krupica | T26: 0
A27: =IF(Prezentace!A29=0,"",Prezentace!A29) ->  | B27: =IF(Prezentace!B29=0,"",Prezentace!B29) ->  | C27: =Prezentace!D29 -> P | D27: =IF(Prezentace!F29=0,"",Prezentace!F29) -> Miloslav | E27: =IF(Prezentace!E29=0,"",Prezentace!E29) -> Petržílka | T27: 0
A28: =IF(Prezentace!A30=0,"",Prezentace!A30) ->  | B28: =IF(Prezentace!B30=0,"",Prezentace!B30) ->  | C28: =Prezentace!D30 -> R | D28: =IF(Prezentace!F30=0,"",Prezentace!F30) -> Aleš | E28: =IF(Prezentace!E30=0,"",Prezentace!E30) -> Seitl | T28: 0
A29: =IF(Prezentace!A31=0,"",Prezentace!A31) ->  | B29: =IF(Prezentace!B31=0,"",Prezentace!B31) ->  | C29: =Prezentace!D31 -> P | D29: =IF(Prezentace!F31=0,"",Prezentace!F31) -> Aleš | E29: =IF(Prezentace!E31=0,"",Prezentace!E31) -> Seitl | T29: 0
A30: =IF(Prezentace!A32=0,"",Prezentace!A32) ->  | B30: =IF(Prezentace!B32=0,"",Prezentace!B32) ->  | C30: =Prezentace!D32 -> P | D30: =IF(Prezentace!F32=0,"",Prezentace!F32) -> Karel | E30: =IF(Prezentace!E32=0,"",Prezentace!E32) -> Seitl | T30: 0
A31: =IF(Prezentace!A33=0,"",Prezentace!A33) ->  | B31: =IF(Prezentace!B33=0,"",Prezentace!B33) ->  | C31: =Prezentace!D33 -> P | D31: =IF(Prezentace!F33=0,"",Prezentace!F33) -> David | E31: =IF(Prezentace!E33=0,"",Prezentace!E33) -> Nikodým | T31: 0
A32: =IF(Prezentace!A34=0,"",Prezentace!A34) ->  | B32: =IF(Prezentace!B34=0,"",Prezentace!B34) ->  | C32: =Prezentace!D34 -> R | D32: =IF(Prezentace!F34=0,"",Prezentace!F34) -> David | E32: =IF(Prezentace!E34=0,"",Prezentace!E34) -> Nikodým | T32: 0
A33: =IF(Prezentace!A35=0,"",Prezentace!A35) ->  | B33: =IF(Prezentace!B35=0,"",Prezentace!B35) ->  | C33: =Prezentace!D35 -> P | D33: =IF(Prezentace!F35=0,"",Prezentace!F35) -> Lukáš | E33: =IF(Prezentace!E35=0,"",Prezentace!E35) -> Hobza | T33: 0
A34: =IF(Prezentace!A36=0,"",Prezentace!A36) ->  | B34: =IF(Prezentace!B36=0,"",Prezentace!B36) ->  | C34: =Prezentace!D36 -> P | D34: =IF(Prezentace!F36=0,"",Prezentace!F36) -> Antonín | E34: =IF(Prezentace!E36=0,"",Prezentace!E36) -> Jelínek | T34: 0
A35: =IF(Prezentace!A37=0,"",Prezentace!A37) ->  | B35: =IF(Prezentace!B37=0,"",Prezentace!B37) ->  | C35: =Prezentace!D37 -> R | D35: =IF(Prezentace!F37=0,"",Prezentace!F37) -> Antonín | E35: =IF(Prezentace!E37=0,"",Prezentace!E37) -> Jelínek | T35: 0
A36: =IF(Prezentace!A38=0,"",Prezentace!A38) ->  | B36: =IF(Prezentace!B38=0,"",Prezentace!B38) ->  | C36: =Prezentace!D38 -> P | D36: =IF(Prezentace!F38=0,"",Prezentace!F38) -> Ladislav | E36: =IF(Prezentace!E38=0,"",Prezentace!E38) -> Píša | T36: 0
A37: =IF(Prezentace!A39=0,"",Prezentace!A39) ->  | B37: =IF(Prezentace!B39=0,"",Prezentace!B39) ->  | C37: =Prezentace!D39 -> P | D37: =IF(Prezentace!F39=0,"",Prezentace!F39) -> Štefan | E37: =IF(Prezentace!E39=0,"",Prezentace!E39) -> Mesároš | T37: 0
A38: =IF(Prezentace!A40=0,"",Prezentace!A40) ->  | B38: =IF(Prezentace!B40=0,"",Prezentace!B40) ->  | C38: =Prezentace!D40 -> P | D38: =IF(Prezentace!F40=0,"",Prezentace!F40) -> Pavel | E38: =IF(Prezentace!E40=0,"",Prezentace!E40) -> Červenka | T38: =(SUM(F38*$F$3,G38*$G$3,H38*$H$3,I38*$I$3,J38*$J$3,K38*$K$3,L38*$L$3,M38*$M$3,N38*$N$3,O38*$O$3,P38*$P$3,Q38*$Q$3,R38*$R$3))-S38 -> 0
A39: =IF(Prezentace!A41=0,"",Prezentace!A41) ->  | B39: =IF(Prezentace!B41=0,"",Prezentace!B41) ->  | C39: =Prezentace!D41 -> R | D39: =IF(Prezentace!F41=0,"",Prezentace!F41) -> Pavel | E39: =IF(Prezentace!E41=0,"",Prezentace!E41) -> Červenka | T39: 0
A40: =IF(Prezentace!A42=0,"",Prezentace!A42) ->  | B40: =IF(Prezentace!B42=0,"",Prezentace!B42) ->  | C40: =Prezentace!D42 -> P | D40: =IF(Prezentace!F42=0,"",Prezentace!F42) -> Jiří | E40: =IF(Prezentace!E42=0,"",Prezentace!E42) -> Švihálek | T40: 0
A41: =IF(Prezentace!A43=0,"",Prezentace!A43) ->  | B41: =IF(Prezentace!B43=0,"",Prezentace!B43) ->  | C41: =Prezentace!D43 -> R | D41: =IF(Prezentace!F43=0,"",Prezentace!F43) -> Jiří | E41: =IF(Prezentace!E43=0,"",Prezentace!E43) -> Švihálek | T41: 0
A42: =IF(Prezentace!A44=0,"",Prezentace!A44) ->  | B42: =IF(Prezentace!B44=0,"",Prezentace!B44) ->  | C42: =Prezentace!D44 -> P | D42: =IF(Prezentace!F44=0,"",Prezentace!F44) -> František | E42: =IF(Prezentace!E44=0,"",Prezentace!E44) -> Toman | T42: 0
A43: =IF(Prezentace!A45=0,"",Prezentace!A45) ->  | B43: =IF(Prezentace!B45=0,"",Prezentace!B45) ->  | C43: =Prezentace!D45 -> P | D43: =IF(Prezentace!F45=0,"",Prezentace!F45) -> Vladimír | E43: =IF(Prezentace!E45=0,"",Prezentace!E45) -> VejslíK | T43: 0
A44: =IF(Prezentace!A46=0,"",Prezentace!A46) ->  | B44: =IF(Prezentace!B46=0,"",Prezentace!B46) ->  | C44: =Prezentace!D46 -> P | D44: =IF(Prezentace!F46=0,"",Prezentace!F46) -> Karel | E44: =IF(Prezentace!E46=0,"",Prezentace!E46) -> Získal | T44: 0
A45: =IF(Prezentace!A47=0,"",Prezentace!A47) ->  | B45: =IF(Prezentace!B47=0,"",Prezentace!B47) ->  | C45: =Prezentace!D47 -> R | D45: =IF(Prezentace!F47=0,"",Prezentace!F47) -> Karel | E45: =IF(Prezentace!E47=0,"",Prezentace!E47) -> Získal | T45: 0
A46: =IF(Prezentace!A48=0,"",Prezentace!A48) ->  | B46: =IF(Prezentace!B48=0,"",Prezentace!B48) ->  | C46: =Prezentace!D48 -> P | D46: =IF(Prezentace!F48=0,"",Prezentace!F48) -> Jaroslav | E46: =IF(Prezentace!E48=0,"",Prezentace!E48) -> Sokolík | T46: 0
A47: =IF(Prezentace!A49=0,"",Prezentace!A49) ->  | B47: =IF(Prezentace!B49=0,"",Prezentace!B49) ->  | C47: =Prezentace!D49 -> P | D47: =IF(Prezentace!F49=0,"",Prezentace!F49) -> Milan | E47: =IF(Prezentace!E49=0,"",Prezentace!E49) -> Kraus | T47: 0
A48: =IF(Prezentace!A50=0,"",Prezentace!A50) ->  | B48: =IF(Prezentace!B50=0,"",Prezentace!B50) ->  | C48: =Prezentace!D50 -> P | D48: =IF(Prezentace!F50=0,"",Prezentace!F50) ->  | E48: =IF(Prezentace!E50=0,"",Prezentace!E50) ->  | T48: 0
A49: =IF(Prezentace!A51=0,"",Prezentace!A51) ->  | B49: =IF(Prezentace!B51=0,"",Prezentace!B51) ->  | C49: =Prezentace!D51 -> P | D49: =IF(Prezentace!F51=0,"",Prezentace!F51) ->  | E49: =IF(Prezentace!E51=0,"",Prezentace!E51) ->  | T49: 0
A50: =IF(Prezentace!A52=0,"",Prezentace!A52) ->  | B50: =IF(Prezentace!B52=0,"",Prezentace!B52) ->  | C50: =Prezentace!D52 -> P | D50: =IF(Prezentace!F52=0,"",Prezentace!F52) ->  | E50: =IF(Prezentace!E52=0,"",Prezentace!E52) ->  | T50: 0
A51: =IF(Prezentace!A53=0,"",Prezentace!A53) ->  | B51: =IF(Prezentace!B53=0,"",Prezentace!B53) ->  | C51: =Prezentace!D53 -> P | D51: =IF(Prezentace!F53=0,"",Prezentace!F53) ->  | E51: =IF(Prezentace!E53=0,"",Prezentace!E53) ->  | T51: 0
A52: =IF(Prezentace!A54=0,"",Prezentace!A54) ->  | B52: =IF(Prezentace!B54=0,"",Prezentace!B54) ->  | C52: =Prezentace!D54 -> P | D52: =IF(Prezentace!F54=0,"",Prezentace!F54) ->  | E52: =IF(Prezentace!E54=0,"",Prezentace!E54) ->  | T52: 0
A53: =IF(Prezentace!A55=0,"",Prezentace!A55) ->  | B53: =IF(Prezentace!B55=0,"",Prezentace!B55) ->  | C53: =Prezentace!D55 -> P | D53: =IF(Prezentace!F55=0,"",Prezentace!F55) ->  | E53: =IF(Prezentace!E55=0,"",Prezentace!E55) ->  | T53: 0
A54: =IF(Prezentace!A56=0,"",Prezentace!A56) ->  | B54: =IF(Prezentace!B56=0,"",Prezentace!B56) ->  | C54: =Prezentace!D56 -> P | D54: =IF(Prezentace!F56=0,"",Prezentace!F56) ->  | E54: =IF(Prezentace!E56=0,"",Prezentace!E56) ->  | T54: 0
A55: =IF(Prezentace!A57=0,"",Prezentace!A57) ->  | B55: =IF(Prezentace!B57=0,"",Prezentace!B57) ->  | C55: =Prezentace!D57 -> P | D55: =IF(Prezentace!F57=0,"",Prezentace!F57) ->  | E55: =IF(Prezentace!E57=0,"",Prezentace!E57) ->  | T55: 0
A56: =IF(Prezentace!A58=0,"",Prezentace!A58) ->  | B56: =IF(Prezentace!B58=0,"",Prezentace!B58) ->  | C56: =Prezentace!D58 -> P | D56: =IF(Prezentace!F58=0,"",Prezentace!F58) ->  | E56: =IF(Prezentace!E58=0,"",Prezentace!E58) ->  | T56: 0
A57: =IF(Prezentace!A59=0,"",Prezentace!A59) ->  | B57: =IF(Prezentace!B59=0,"",Prezentace!B59) ->  | C57: =Prezentace!D59 -> P | D57: =IF(Prezentace!F59=0,"",Prezentace!F59) ->  | E57: =IF(Prezentace!E59=0,"",Prezentace!E59) ->  | T57: 0
A58: =IF(Prezentace!A60=0,"",Prezentace!A60) ->  | B58: =IF(Prezentace!B60=0,"",Prezentace!B60) ->  | C58: =Prezentace!D60 -> P | D58: =IF(Prezentace!F60=0,"",Prezentace!F60) ->  | E58: =IF(Prezentace!E60=0,"",Prezentace!E60) ->  | T58: 0
A59: =IF(Prezentace!A61=0,"",Prezentace!A61) ->  | B59: =IF(Prezentace!B61=0,"",Prezentace!B61) ->  | C59: =Prezentace!D61 -> P | D59: =IF(Prezentace!F61=0,"",Prezentace!F61) ->  | E59: =IF(Prezentace!E61=0,"",Prezentace!E61) ->  | T59: 0
A60: =IF(Prezentace!A62=0,"",Prezentace!A62) ->  | B60: =IF(Prezentace!B62=0,"",Prezentace!B62) ->  | C60: =Prezentace!D62 -> P | D60: =IF(Prezentace!F62=0,"",Prezentace!F62) ->  | E60: =IF(Prezentace!E62=0,"",Prezentace!E62) ->  | T60: 0
A61: =IF(Prezentace!A63=0,"",Prezentace!A63) ->  | B61: =IF(Prezentace!B63=0,"",Prezentace!B63) ->  | C61: =Prezentace!D63 -> P | D61: =IF(Prezentace!F63=0,"",Prezentace!F63) ->  | E61: =IF(Prezentace!E63=0,"",Prezentace!E63) ->  | T61: 0
A62: =IF(Prezentace!A64=0,"",Prezentace!A64) ->  | B62: =IF(Prezentace!B64=0,"",Prezentace!B64) ->  | C62: =Prezentace!D64 -> P | D62: =IF(Prezentace!F64=0,"",Prezentace!F64) ->  | E62: =IF(Prezentace!E64=0,"",Prezentace!E64) ->  | T62: 0
A63: =IF(Prezentace!A65=0,"",Prezentace!A65) ->  | B63: =IF(Prezentace!B65=0,"",Prezentace!B65) ->  | C63: =Prezentace!D65 -> P | D63: =IF(Prezentace!F65=0,"",Prezentace!F65) ->  | E63: =IF(Prezentace!E65=0,"",Prezentace!E65) ->  | T63: 0
A64: =IF(Prezentace!A66=0,"",Prezentace!A66) ->  | B64: =IF(Prezentace!B66=0,"",Prezentace!B66) ->  | C64: =Prezentace!D66 -> P | D64: =IF(Prezentace!F66=0,"",Prezentace!F66) ->  | E64: =IF(Prezentace!E66=0,"",Prezentace!E66) ->  | T64: 0
A65: =IF(Prezentace!A67=0,"",Prezentace!A67) ->  | B65: =IF(Prezentace!B67=0,"",Prezentace!B67) ->  | C65: =Prezentace!D67 -> P | D65: =IF(Prezentace!F67=0,"",Prezentace!F67) ->  | E65: =IF(Prezentace!E67=0,"",Prezentace!E67) ->  | T65: 0
A66: =IF(Prezentace!A68=0,"",Prezentace!A68) ->  | B66: =IF(Prezentace!B68=0,"",Prezentace!B68) ->  | C66: =Prezentace!D68 -> P | D66: =IF(Prezentace!F68=0,"",Prezentace!F68) ->  | E66: =IF(Prezentace!E68=0,"",Prezentace!E68) ->  | T66: 0
A67: =IF(Prezentace!A69=0,"",Prezentace!A69) ->  | B67: =IF(Prezentace!B69=0,"",Prezentace!B69) ->  | C67: =Prezentace!D69 -> P | D67: =IF(Prezentace!F69=0,"",Prezentace!F69) ->  | E67: =IF(Prezentace!E69=0,"",Prezentace!E69) ->  | T67: 0
A68: =IF(Prezentace!A70=0,"",Prezentace!A70) ->  | B68: =IF(Prezentace!B70=0,"",Prezentace!B70) ->  | C68: =Prezentace!D70 -> P | D68: =IF(Prezentace!F70=0,"",Prezentace!F70) ->  | E68: =IF(Prezentace!E70=0,"",Prezentace!E70) ->  | T68: 0
A69: =IF(Prezentace!A71=0,"",Prezentace!A71) ->  | B69: =IF(Prezentace!B71=0,"",Prezentace!B71) ->  | C69: =Prezentace!D71 -> P | D69: =IF(Prezentace!F71=0,"",Prezentace!F71) ->  | E69: =IF(Prezentace!E71=0,"",Prezentace!E71) ->  | T69: 0
A70: =IF(Prezentace!A72=0,"",Prezentace!A72) ->  | B70: =IF(Prezentace!B72=0,"",Prezentace!B72) ->  | C70: =Prezentace!D72 -> P | D70: =IF(Prezentace!F72=0,"",Prezentace!F72) ->  | E70: =IF(Prezentace!E72=0,"",Prezentace!E72) ->  | T70: 0
A71: =IF(Prezentace!A73=0,"",Prezentace!A73) ->  | B71: =IF(Prezentace!B73=0,"",Prezentace!B73) ->  | C71: =Prezentace!D73 -> P | D71: =IF(Prezentace!F73=0,"",Prezentace!F73) ->  | E71: =IF(Prezentace!E73=0,"",Prezentace!E73) ->  | T71: 0
A72: =IF(Prezentace!A74=0,"",Prezentace!A74) ->  | B72: =IF(Prezentace!B74=0,"",Prezentace!B74) ->  | C72: =Prezentace!D74 -> P | D72: =IF(Prezentace!F74=0,"",Prezentace!F74) ->  | E72: =IF(Prezentace!E74=0,"",Prezentace!E74) ->  | T72: 0
A73: =IF(Prezentace!A75=0,"",Prezentace!A75) ->  | B73: =IF(Prezentace!B75=0,"",Prezentace!B75) ->  | C73: =Prezentace!D75 -> P | D73: =IF(Prezentace!F75=0,"",Prezentace!F75) ->  | E73: =IF(Prezentace!E75=0,"",Prezentace!E75) ->  | T73: 0
A74: =IF(Prezentace!A76=0,"",Prezentace!A76) ->  | B74: =IF(Prezentace!B76=0,"",Prezentace!B76) ->  | C74: =Prezentace!D76 -> P | D74: =IF(Prezentace!F76=0,"",Prezentace!F76) ->  | E74: =IF(Prezentace!E76=0,"",Prezentace!E76) ->  | T74: 0
A75: =IF(Prezentace!A77=0,"",Prezentace!A77) ->  | B75: =IF(Prezentace!B77=0,"",Prezentace!B77) ->  | C75: =Prezentace!D77 -> P | D75: =IF(Prezentace!F77=0,"",Prezentace!F77) ->  | E75: =IF(Prezentace!E77=0,"",Prezentace!E77) ->  | T75: 0
A76: =IF(Prezentace!A78=0,"",Prezentace!A78) ->  | B76: =IF(Prezentace!B78=0,"",Prezentace!B78) ->  | C76: =Prezentace!D78 -> P | D76: =IF(Prezentace!F78=0,"",Prezentace!F78) ->  | E76: =IF(Prezentace!E78=0,"",Prezentace!E78) ->  | T76: 0
A77: =IF(Prezentace!A79=0,"",Prezentace!A79) ->  | B77: =IF(Prezentace!B79=0,"",Prezentace!B79) ->  | C77: =Prezentace!D79 -> P | D77: =IF(Prezentace!F79=0,"",Prezentace!F79) ->  | E77: =IF(Prezentace!E79=0,"",Prezentace!E79) ->  | T77: 0
A78: =IF(Prezentace!A80=0,"",Prezentace!A80) ->  | B78: =IF(Prezentace!B80=0,"",Prezentace!B80) ->  | C78: =Prezentace!D80 -> P | D78: =IF(Prezentace!F80=0,"",Prezentace!F80) ->  | E78: =IF(Prezentace!E80=0,"",Prezentace!E80) ->  | T78: 0
A79: =IF(Prezentace!A81=0,"",Prezentace!A81) ->  | B79: =IF(Prezentace!B81=0,"",Prezentace!B81) ->  | C79: =Prezentace!D81 -> P | D79: =IF(Prezentace!F81=0,"",Prezentace!F81) ->  | E79: =IF(Prezentace!E81=0,"",Prezentace!E81) ->  | T79: 0
A80: =IF(Prezentace!A82=0,"",Prezentace!A82) ->  | B80: =IF(Prezentace!B82=0,"",Prezentace!B82) ->  | C80: =Prezentace!D82 -> P | D80: =IF(Prezentace!F82=0,"",Prezentace!F82) ->  | E80: =IF(Prezentace!E82=0,"",Prezentace!E82) ->  | T80: 0
A81: =IF(Prezentace!A83=0,"",Prezentace!A83) ->  | B81: =IF(Prezentace!B83=0,"",Prezentace!B83) ->  | C81: =Prezentace!D83 -> P | D81: =IF(Prezentace!F83=0,"",Prezentace!F83) ->  | E81: =IF(Prezentace!E83=0,"",Prezentace!E83) ->  | T81: 0
A82: =IF(Prezentace!A84=0,"",Prezentace!A84) ->  | B82: =IF(Prezentace!B84=0,"",Prezentace!B84) ->  | C82: =Prezentace!D84 -> P | D82: =IF(Prezentace!F84=0,"",Prezentace!F84) ->  | E82: =IF(Prezentace!E84=0,"",Prezentace!E84) ->  | T82: 0
A83: =IF(Prezentace!A85=0,"",Prezentace!A85) ->  | B83: =IF(Prezentace!B85=0,"",Prezentace!B85) ->  | C83: =Prezentace!D85 -> P | D83: =IF(Prezentace!F85=0,"",Prezentace!F85) ->  | E83: =IF(Prezentace!E85=0,"",Prezentace!E85) ->  | T83: 0
A84: =IF(Prezentace!A86=0,"",Prezentace!A86) ->  | B84: =IF(Prezentace!B86=0,"",Prezentace!B86) ->  | C84: =Prezentace!D86 -> P | D84: =IF(Prezentace!F86=0,"",Prezentace!F86) ->  | E84: =IF(Prezentace!E86=0,"",Prezentace!E86) ->  | T84: 0
A85: =IF(Prezentace!A87=0,"",Prezentace!A87) ->  | B85: =IF(Prezentace!B87=0,"",Prezentace!B87) ->  | C85: =Prezentace!D87 -> P | D85: =IF(Prezentace!F87=0,"",Prezentace!F87) ->  | E85: =IF(Prezentace!E87=0,"",Prezentace!E87) ->  | T85: 0
A86: =IF(Prezentace!A88=0,"",Prezentace!A88) ->  | B86: =IF(Prezentace!B88=0,"",Prezentace!B88) ->  | C86: =Prezentace!D88 -> P | D86: =IF(Prezentace!F88=0,"",Prezentace!F88) ->  | E86: =IF(Prezentace!E88=0,"",Prezentace!E88) ->  | T86: 0
A87: =IF(Prezentace!A89=0,"",Prezentace!A89) ->  | B87: =IF(Prezentace!B89=0,"",Prezentace!B89) ->  | C87: =Prezentace!D89 -> P | D87: =IF(Prezentace!F89=0,"",Prezentace!F89) ->  | E87: =IF(Prezentace!E89=0,"",Prezentace!E89) ->  | T87: 0
A88: =IF(Prezentace!A90=0,"",Prezentace!A90) ->  | B88: =IF(Prezentace!B90=0,"",Prezentace!B90) ->  | C88: =Prezentace!D90 -> P | D88: =IF(Prezentace!F90=0,"",Prezentace!F90) ->  | E88: =IF(Prezentace!E90=0,"",Prezentace!E90) ->  | T88: 0
A89: =IF(Prezentace!A91=0,"",Prezentace!A91) ->  | B89: =IF(Prezentace!B91=0,"",Prezentace!B91) ->  | C89: =Prezentace!D91 -> P | D89: =IF(Prezentace!F91=0,"",Prezentace!F91) ->  | E89: =IF(Prezentace!E91=0,"",Prezentace!E91) ->  | T89: 0
A90: =IF(Prezentace!A92=0,"",Prezentace!A92) ->  | B90: =IF(Prezentace!B92=0,"",Prezentace!B92) ->  | C90: =Prezentace!D92 -> P | D90: =IF(Prezentace!F92=0,"",Prezentace!F92) ->  | E90: =IF(Prezentace!E92=0,"",Prezentace!E92) ->  | T90: 0
A91: =IF(Prezentace!A93=0,"",Prezentace!A93) ->  | B91: =IF(Prezentace!B93=0,"",Prezentace!B93) ->  | C91: =Prezentace!D93 -> P | D91: =IF(Prezentace!F93=0,"",Prezentace!F93) ->  | E91: =IF(Prezentace!E93=0,"",Prezentace!E93) ->  | T91: 0
A92: =IF(Prezentace!A94=0,"",Prezentace!A94) ->  | B92: =IF(Prezentace!B94=0,"",Prezentace!B94) ->  | C92: =Prezentace!D94 -> P | D92: =IF(Prezentace!F94=0,"",Prezentace!F94) ->  | E92: =IF(Prezentace!E94=0,"",Prezentace!E94) ->  | T92: 0
A93: =IF(Prezentace!A95=0,"",Prezentace!A95) ->  | B93: =IF(Prezentace!B95=0,"",Prezentace!B95) ->  | C93: =Prezentace!D95 -> P | D93: =IF(Prezentace!F95=0,"",Prezentace!F95) ->  | E93: =IF(Prezentace!E95=0,"",Prezentace!E95) ->  | T93: 0
A94: =IF(Prezentace!A96=0,"",Prezentace!A96) ->  | B94: =IF(Prezentace!B96=0,"",Prezentace!B96) ->  | C94: =Prezentace!D96 -> P | D94: =IF(Prezentace!F96=0,"",Prezentace!F96) ->  | E94: =IF(Prezentace!E96=0,"",Prezentace!E96) ->  | T94: 0
A95: =IF(Prezentace!A97=0,"",Prezentace!A97) ->  | B95: =IF(Prezentace!B97=0,"",Prezentace!B97) ->  | C95: =Prezentace!D97 -> P | D95: =IF(Prezentace!F97=0,"",Prezentace!F97) ->  | E95: =IF(Prezentace!E97=0,"",Prezentace!E97) ->  | T95: 0
A96: =IF(Prezentace!A98=0,"",Prezentace!A98) ->  | B96: =IF(Prezentace!B98=0,"",Prezentace!B98) ->  | C96: =Prezentace!D98 -> P | D96: =IF(Prezentace!F98=0,"",Prezentace!F98) ->  | E96: =IF(Prezentace!E98=0,"",Prezentace!E98) ->  | T96: 0
A97: =IF(Prezentace!A99=0,"",Prezentace!A99) ->  | B97: =IF(Prezentace!B99=0,"",Prezentace!B99) ->  | C97: =Prezentace!D99 -> P | D97: =IF(Prezentace!F99=0,"",Prezentace!F99) ->  | E97: =IF(Prezentace!E99=0,"",Prezentace!E99) ->  | T97: 0
A98: =IF(Prezentace!A100=0,"",Prezentace!A100) ->  | B98: =IF(Prezentace!B100=0,"",Prezentace!B100) ->  | C98: =Prezentace!D100 -> P | D98: =IF(Prezentace!F100=0,"",Prezentace!F100) ->  | E98: =IF(Prezentace!E100=0,"",Prezentace!E100) ->  | T98: 0
A99: =IF(Prezentace!A101=0,"",Prezentace!A101) ->  | B99: =IF(Prezentace!B101=0,"",Prezentace!B101) ->  | C99: =Prezentace!D101 -> P | D99: =IF(Prezentace!F101=0,"",Prezentace!F101) ->  | E99: =IF(Prezentace!E101=0,"",Prezentace!E101) ->  | T99: 0
A100: =IF(Prezentace!A102=0,"",Prezentace!A102) ->  | B100: =IF(Prezentace!B102=0,"",Prezentace!B102) ->  | C100: =Prezentace!D102 -> P | D100: =IF(Prezentace!F102=0,"",Prezentace!F102) ->  | E100: =IF(Prezentace!E102=0,"",Prezentace!E102) ->  | T100: 0
A101: =IF(Prezentace!A103=0,"",Prezentace!A103) ->  | B101: =IF(Prezentace!B103=0,"",Prezentace!B103) ->  | C101: =Prezentace!D103 -> P | D101: =IF(Prezentace!F103=0,"",Prezentace!F103) ->  | E101: =IF(Prezentace!E103=0,"",Prezentace!E103) ->  | T101: 0
A102: =IF(Prezentace!A104=0,"",Prezentace!A104) ->  | B102: =IF(Prezentace!B104=0,"",Prezentace!B104) ->  | C102: =Prezentace!D104 -> P | D102: =IF(Prezentace!F104=0,"",Prezentace!F104) ->  | E102: =IF(Prezentace!E104=0,"",Prezentace!E104) ->  | T102: =(SUM(F102*$F$3,G102*$G$3,H102*$H$3,I102*$I$3,J102*$J$3,K102*$K$3,L102*$L$3,M102*$M$3,N102*$N$3,O102*$O$3,P102*$P$3,Q102*$Q$3,R102*$R$3))-S102 -> 0

Sheet 3
A1: Druž. | B1: Kap. | D1: Disciplina 3
F3: K | G3: M | H3: 1 | I3: 2 | J3: 3 | K3: 4 | L3: 5 | M3: 6 | N3: 7 | O3: 8 | P3: 9 | Q3: 10 | R3: 11 | S3: 12 | T3: TB | U3: Čas | V3: Součet
A4: =IF(Prezentace!A6=0,"",Prezentace!A6) ->  | B4: =IF(Prezentace!B6=0,"",Prezentace!B6) ->  | C4: =Prezentace!D6 -> P | D4: =IF(Prezentace!F6=0,"",Prezentace!F6) -> Martin | E4: =IF(Prezentace!E6=0,"",Prezentace!E6) -> Adensam | F4: 250 | H4: 9 | I4: 8 | J4: 10 | K4: 9 | L4: 11 | M4: 8 | N4: 9 | O4: 8 | U4: 52.25 | V4: =(SUM(F4:T4))-U4 -> 269.75
A5: =IF(Prezentace!A7=0,"",Prezentace!A7) ->  | B5: =IF(Prezentace!B7=0,"",Prezentace!B7) ->  | C5: =Prezentace!D7 -> R | D5: =IF(Prezentace!F7=0,"",Prezentace!F7) -> Martin | E5: =IF(Prezentace!E7=0,"",Prezentace!E7) -> Adensam | F5: 240 | H5: 10 | I5: 9 | J5: 10 | K5: 9 | L5: 8 | M5: 0 | N5: 9 | O5: 8 | U5: 99.12 | V5: =(SUM(F5:T5))-U5 -> 203.88
A6: =IF(Prezentace!A8=0,"",Prezentace!A8) ->  | B6: =IF(Prezentace!B8=0,"",Prezentace!B8) ->  | C6: =Prezentace!D8 -> P | D6: =IF(Prezentace!F8=0,"",Prezentace!F8) -> Jaroslav | E6: =IF(Prezentace!E8=0,"",Prezentace!E8) -> Kostříž | F6: 240 | H6: 8 | I6: 0 | J6: 10 | K6: 9 | L6: 10 | M6: 8 | N6: 9 | O6: 8 | U6: 90.28 | V6: 211.72
A7: =IF(Prezentace!A9=0,"",Prezentace!A9) ->  | B7: =IF(Prezentace!B9=0,"",Prezentace!B9) ->  | C7: =Prezentace!D9 -> P | D7: =IF(Prezentace!F9=0,"",Prezentace!F9) -> Miroslav | E7: =IF(Prezentace!E9=0,"",Prezentace!E9) -> Koch ml. | F7: 250 | H7: 9 | I7: 8 | J7: 9 | K7: 9 | L7: 9 | M7: 9 | N7: 7 | O7: 7 | U7: 69.12 | V7: 247.88
A8: =IF(Prezentace!A10=0,"",Prezentace!A10) ->  | B8: =IF(Prezentace!B10=0,"",Prezentace!B10) ->  | C8: =Prezentace!D10 -> P | D8: =IF(Prezentace!F10=0,"",Prezentace!F10) -> Miroslav | E8: =IF(Prezentace!E10=0,"",Prezentace!E10) -> Koch st. | F8: 250 | H8: 8 | I8: 7 | J8: 10 | K8: 10 | L8: 10 | M8: 10 | N8: 10 | O8: 9 | U8: 79.94 | V8: 244.06
A9: =IF(Prezentace!A11=0,"",Prezentace!A11) ->  | B9: =IF(Prezentace!B11=0,"",Prezentace!B11) ->  | C9: =Prezentace!D11 -> P | D9: =IF(Prezentace!F11=0,"",Prezentace!F11) -> Bohumil | E9: =IF(Prezentace!E11=0,"",Prezentace!E11) -> Herceg | F9: 250 | H9: 9 | I9: 8 | J9: 9 | K9: 8 | L9: 10 | M9: 0 | N9: 7 | O9: 7 | U9: 84.69 | V9: 223.31
A10: =IF(Prezentace!A12=0,"",Prezentace!A12) ->  | B10: =IF(Prezentace!B12=0,"",Prezentace!B12) ->  | C10: =Prezentace!D12 -> P | D10: =IF(Prezentace!F12=0,"",Prezentace!F12) -> Viktor | E10: =IF(Prezentace!E12=0,"",Prezentace!E12) -> Fuksa | F10: 250 | H10: 10 | I10: 9 | J10: 10 | K10: 10 | L10: 9 | M10: 9 | N10: 9 | O10: 8 | U10: 70.06 | V10: 253.94
A11: =IF(Prezentace!A13=0,"",Prezentace!A13) ->  | B11: =IF(Prezentace!B13=0,"",Prezentace!B13) ->  | C11: =Prezentace!D13 -> P | D11: =IF(Prezentace!F13=0,"",Prezentace!F13) -> Milan | E11: =IF(Prezentace!E13=0,"",Prezentace!E13) -> Matějka ml. | F11: 250 | H11: 7 | I11: 7 | J11: 8 | K11: 0 | L11: 9 | M11: 9 | N11: 7 | O11: 8 | U11: 79.13 | V11: 225.87
A12: =IF(Prezentace!A14=0,"",Prezentace!A14) ->  | B12: =IF(Prezentace!B14=0,"",Prezentace!B14) ->  | C12: =Prezentace!D14 -> P | D12: =IF(Prezentace!F14=0,"",Prezentace!F14) -> Michal | E12: =IF(Prezentace!E14=0,"",Prezentace!E14) -> Svoboda | F12: 250 | H12: 9 | I12: 9 | J12: 8 | K12: 8 | L12: 11 | M12: 9 | N12: 10 | O12: 9 | U12: 58.6 | V12: 264.4
A13: =IF(Prezentace!A15=0,"",Prezentace!A15) ->  | B13: =IF(Prezentace!B15=0,"",Prezentace!B15) ->  | C13: =Prezentace!D15 -> R | D13: =IF(Prezentace!F15=0,"",Prezentace!F15) -> Lukáš | E13: =IF(Prezentace!E15=0,"",Prezentace!E15) -> Bouda | F13: 250 | H13: 7 | I13: 6 | J13: 10 | K13: 9 | L13: 10 | M13: 9 | N13: 9 | O13: 7 | U13: 70.7 | V13: 246.3
A14: =IF(Prezentace!A16=0,"",Prezentace!A16) ->  | B14: =IF(Prezentace!B16=0,"",Prezentace!B16) ->  | C14: =Prezentace!D16 -> P | D14: =IF(Prezentace!F16=0,"",Prezentace!F16) -> Lukáš | E14: =IF(Prezentace!E16=0,"",Prezentace!E16) -> Bouda | F14: 250 | H14: 9 | I14: 8 | J14: 11 | K14: 10 | L14: 11 | M14: 10 | N14: 10 | O14: 10 | U14: 46.22 | V14: 282.78
A15: =IF(Prezentace!A17=0,"",Prezentace!A17) ->  | B15: =IF(Prezentace!B17=0,"",Prezentace!B17) ->  | C15: =Prezentace!D17 -> P | D15: =IF(Prezentace!F17=0,"",Prezentace!F17) -> Pavel | E15: =IF(Prezentace!E17=0,"",Prezentace!E17) -> Koltai | F15: 250 | H15: 9 | I15: 0 | J15: 10 | K15: 9 | L15: 11 | M15: 9 | N15: 10 | O15: 9 | U15: 50.59 | V15: 266.41
A16: =IF(Prezentace!A18=0,"",Prezentace!A18) ->  | B16: =IF(Prezentace!B18=0,"",Prezentace!B18) ->  | C16: =Prezentace!D18 -> P | D16: =IF(Prezentace!F18=0,"",Prezentace!F18) -> Vladislav | E16: =IF(Prezentace!E18=0,"",Prezentace!E18) -> Přibyl | F16: 250 | H16: 0 | I16: 0 | J16: 8 | K16: 0 | L16: 10 | M16: 0 | N16: 5 | O16: 7 | U16: 119.5 | V16: 160.5
A17: =IF(Prezentace!A19=0,"",Prezentace!A19) ->  | B17: =IF(Prezentace!B19=0,"",Prezentace!B19) ->  | C17: =Prezentace!D19 -> P | D17: =IF(Prezentace!F19=0,"",Prezentace!F19) -> Milan | E17: =IF(Prezentace!E19=0,"",Prezentace!E19) -> Matějka st. | F17: 250 | H17: 6 | I17: 0 | J17: 8 | K17: 0 | L17: 9 | M17: 10 | N17: 9 | O17: 8 | U17: 183.4 | V17: 116.6
A18: =IF(Prezentace!A20=0,"",Prezentace!A20) ->  | B18: =IF(Prezentace!B20=0,"",Prezentace!B20) ->  | C18: =Prezentace!D20 -> P | D18: =IF(Prezentace!F20=0,"",Prezentace!F20) -> Miroslav | E18: =IF(Prezentace!E20=0,"",Prezentace!E20) -> Fiala | F18: 250 | H18: 9 | I18: 9 | J18: 10 | K18: 10 | L18: 11 | M18: 10 | N18: 9 | O18: 8 | U18: 73.25 | V18: 252.75
A19: =IF(Prezentace!A21=0,"",Prezentace!A21) ->  | B19: =IF(Prezentace!B21=0,"",Prezentace!B21) ->  | C19: =Prezentace!D21 -> P | D19: =IF(Prezentace!F21=0,"",Prezentace!F21) -> Karel | E19: =IF(Prezentace!E21=0,"",Prezentace!E21) -> Gažák | F19: 250 | H19: 9 | I19: 9 | J19: 11 | K19: 10 | L19: 9 | M19: 8 | N19: 9 | O19: 6 | U19: 69.15 | V19: 251.85
A20: =IF(Prezentace!A22=0,"",Prezentace!A22) ->  | B20: =IF(Prezentace!B22=0,"",Prezentace!B22) ->  | C20: =Prezentace!D22 -> P | D20: =IF(Prezentace!F22=0,"",Prezentace!F22) -> Václav | E20: =IF(Prezentace!E22=0,"",Prezentace!E22) -> Landkammer | F20: 250 | H20: 10 | I20: 0 | J20: 9 | K20: 11 | L20: 9 | M20: 0 | N20: 10 | O20: 6 | U20: 71.96 | V20: 233.04
A21: =IF(Prezentace!A23=0,"",Prezentace!A23) ->  | B21: =IF(Prezentace!B23=0,"",Prezentace!B23) ->  | C21: =Prezentace!D23 -> P | D21: =IF(Prezentace!F23=0,"",Prezentace!F23) -> Vojtěch | E21: =IF(Prezentace!E23=0,"",Prezentace!E23) -> Brejžek | F21: 250 | H21: 10 | I21: 8 | J21: 11 | K21: 9 | L21: 9 | M21: 9 | N21: 8 | O21: 7 | U21: 73.37 | V21: 247.63
A22: =IF(Prezentace!A24=0,"",Prezentace!A24) ->  | B22: =IF(Prezentace!B24=0,"",Prezentace!B24) ->  | C22: =Prezentace!D24 -> P | D22: =IF(Prezentace!F24=0,"",Prezentace!F24) -> Antonín | E22: =IF(Prezentace!E24=0,"",Prezentace!E24) -> Urbanec | F22: 220 | H22: 10 | I22: 0 | J22: 0 | K22: 0 | L22: 0 | M22: 0 | N22: 7 | O22: 0 | U22: 157.7 | V22: 79.3
A23: =IF(Prezentace!A25=0,"",Prezentace!A25) ->  | B23: =IF(Prezentace!B25=0,"",Prezentace!B25) ->  | C23: =Prezentace!D25 -> P | D23: =IF(Prezentace!F25=0,"",Prezentace!F25) -> Milan | E23: =IF(Prezentace!E25=0,"",Prezentace!E25) -> Jílek | F23: 250 | H23: 10 | I23: 0 | J23: 10 | K23: 10 | L23: 10 | M23: 10 | N23: 9 | O23: 8 | U23: 113.7 | V23: 203.3
A24: =IF(Prezentace!A26=0,"",Prezentace!A26) ->  | B24: =IF(Prezentace!B26=0,"",Prezentace!B26) ->  | C24: =Prezentace!D26 -> P | D24: =IF(Prezentace!F26=0,"",Prezentace!F26) -> Václav | E24: =IF(Prezentace!E26=0,"",Prezentace!E26) -> Jírů | F24: 250 | H24: 9 | I24: 8 | J24: 10 | K24: 9 | L24: 9 | M24: 9 | N24: 9 | O24: 8 | U24: 66.86 | V24: 254.14
A25: =IF(Prezentace!A27=0,"",Prezentace!A27) ->  | B25: =IF(Prezentace!B27=0,"",Prezentace!B27) ->  | C25: =Prezentace!D27 -> P | D25: =IF(Prezentace!F27=0,"",Prezentace!F27) -> Milan | E25: =IF(Prezentace!E27=0,"",Prezentace!E27) -> Krupica | F25: 250 | H25: 8 | I25: 7 | J25: 11 | K25: 9 | L25: 10 | M25: 8 | N25: 10 | O25: 9 | U25: 69.07 | V25: 252.93
A26: =IF(Prezentace!A28=0,"",Prezentace!A28) ->  | B26: =IF(Prezentace!B28=0,"",Prezentace!B28) ->  | C26: =Prezentace!D28 -> R | D26: =IF(Prezentace!F28=0,"",Prezentace!F28) -> Milan | E26: =IF(Prezentace!E28=0,"",Prezentace!E28) -> Krupica | F26: 250 | H26: 7 | I26: 7 | J26: 9 | K26: 10 | L26: 10 | M26: 9 | N26: 10 | O26: 9 | U26: 125.3 | V26: 195.7
A27: =IF(Prezentace!A29=0,"",Prezentace!A29) ->  | B27: =IF(Prezentace!B29=0,"",Prezentace!B29) ->  | C27: =Prezentace!D29 -> P | D27: =IF(Prezentace!F29=0,"",Prezentace!F29) -> Miloslav | E27: =IF(Prezentace!E29=0,"",Prezentace!E29) -> Petržílka | F27: 250 | H27: 9 | I27: 6 | J27: 10 | K27: 10 | L27: 10 | M27: 10 | N27: 8 | O27: 8 | U27: 59.51 | V27: 261.49
A28: =IF(Prezentace!A30=0,"",Prezentace!A30) ->  | B28: =IF(Prezentace!B30=0,"",Prezentace!B30) ->  | C28: =Prezentace!D30 -> R | D28: =IF(Prezentace!F30=0,"",Prezentace!F30) -> Aleš | E28: =IF(Prezentace!E30=0,"",Prezentace!E30) -> Seitl | F28: 250 | H28: 9 | I28: 6 | J28: 11 | K28: 10 | L28: 10 | M28: 0 | N28: 10 | O28: 9 | U28: 79.62 | V28: 235.38
A29: =IF(Prezentace!A31=0,"",Prezentace!A31) ->  | B29: =IF(Prezentace!B31=0,"",Prezentace!B31) ->  | C29: =Prezentace!D31 -> P | D29: =IF(Prezentace!F31=0,"",Prezentace!F31) -> Aleš | E29: =IF(Prezentace!E31=0,"",Prezentace!E31) -> Seitl | F29: 250 | H29: 7 | I29: 7 | J29: 10 | K29: 9 | L29: 11 | M29: 9 | N29: 9 | O29: 8 | U29: 124.7 | V29: 195.3
A30: =IF(Prezentace!A32=0,"",Prezentace!A32) ->  | B30: =IF(Prezentace!B32=0,"",Prezentace!B32) ->  | C30: =Prezentace!D32 -> P | D30: =IF(Prezentace!F32=0,"",Prezentace!F32) -> Karel | E30: =IF(Prezentace!E32=0,"",Prezentace!E32) -> Seitl | F30: 250 | H30: 7 | I30: 7 | J30: 10 | K30: 9 | L30: 9 | M30: 8 | N30: 9 | O30: 6 | U30: 74.85 | V30: 240.15
A31: =IF(Prezentace!A33=0,"",Prezentace!A33) ->  | B31: =IF(Prezentace!B33=0,"",Prezentace!B33) ->  | C31: =Prezentace!D33 -> P | D31: =IF(Prezentace!F33=0,"",Prezentace!F33) -> David | E31: =IF(Prezentace!E33=0,"",Prezentace!E33) -> Nikodým | F31: 250 | H31: 9 | I31: 8 | J31: 10 | K31: 9 | L31: 11 | M31: 9 | N31: 10 | O31: 7 | U31: 73.68 | V31: 249.32
A32: =IF(Prezentace!A34=0,"",Prezentace!A34) ->  | B32: =IF(Prezentace!B34=0,"",Prezentace!B34) ->  | C32: =Prezentace!D34 -> R | D32: =IF(Prezentace!F34=0,"",Prezentace!F34) -> David | E32: =IF(Prezentace!E34=0,"",Prezentace!E34) -> Nikodým | F32: 250 | H32: 9 | I32: 6 | J32: 11 | K32: 10 | L32: 11 | M32: 9 | N32: 9 | O32: 8 | U32: 69.51 | V32: 253.49
A33: =IF(Prezentace!A35=0,"",Prezentace!A35) ->  | B33: =IF(Prezentace!B35=0,"",Prezentace!B35) ->  | C33: =Prezentace!D35 -> P | D33: =IF(Prezentace!F35=0,"",Prezentace!F35) -> Lukáš | E33: =IF(Prezentace!E35=0,"",Prezentace!E35) -> Hobza | F33: 250 | H33: 9 | I33: 7 | J33: 10 | K33: 9 | L33: 0 | M33: 0 | N33: 10 | O33: 9 | U33: 45.66 | V33: 258.34
A34: =IF(Prezentace!A36=0,"",Prezentace!A36) ->  | B34: =IF(Prezentace!B36=0,"",Prezentace!B36) ->  | C34: =Prezentace!D36 -> P | D34: =IF(Prezentace!F36=0,"",Prezentace!F36) -> Antonín | E34: =IF(Prezentace!E36=0,"",Prezentace!E36) -> Jelínek | F34: 250 | H34: 8 | I34: 6 | J34: 11 | K34: 11 | L34: 9 | M34: 0 | N34: 9 | O34: 0 | U34: 72.26 | V34: 231.74
A35: =IF(Prezentace!A37=0,"",Prezentace!A37) ->  | B35: =IF(Prezentace!B37=0,"",Prezentace!B37) ->  | C35: =Prezentace!D37 -> R | D35: =IF(Prezentace!F37=0,"",Prezentace!F37) -> Antonín | E35: =IF(Prezentace!E37=0,"",Prezentace!E37) -> Jelínek | F35: 240 | H35: 9 | I35: 8 | J35: 9 | K35: 8 | L35: 10 | M35: 10 | N35: 10 | O35: 9 | U35: 66.44 | V35: 246.56
A36: =IF(Prezentace!A38=0,"",Prezentace!A38) ->  | B36: =IF(Prezentace!B38=0,"",Prezentace!B38) ->  | C36: =Prezentace!D38 -> P | D36: =IF(Prezentace!F38=0,"",Prezentace!F38) -> Ladislav | E36: =IF(Prezentace!E38=0,"",Prezentace!E38) -> Píša | F36: 250 | H36: 7 | I36: 7 | J36: 11 | K36: 10 | L36: 11 | M36: 11 | N36: 10 | O36: 10 | U36: 85.53 | V36: 241.47
A37: =IF(Prezentace!A39=0,"",Prezentace!A39) ->  | B37: =IF(Prezentace!B39=0,"",Prezentace!B39) ->  | C37: =Prezentace!D39 -> P | D37: =IF(Prezentace!F39=0,"",Prezentace!F39) -> Štefan | E37: =IF(Prezentace!E39=0,"",Prezentace!E39) -> Mesároš | F37: 250 | H37: 9 | I37: 9 | J37: 9 | K37: 10 | L37: 10 | M37: 9 | N37: 10 | O37: 9 | U37: 43.3 | V37: 281.7
A38: =IF(Prezentace!A40=0,"",Prezentace!A40) ->  | B38: =IF(Prezentace!B40=0,"",Prezentace!B40) ->  | C38: =Prezentace!D40 -> P | D38: =IF(Prezentace!F40=0,"",Prezentace!F40) -> Pavel | E38: =IF(Prezentace!E40=0,"",Prezentace!E40) -> Červenka | F38: 250 | H38: 10 | I38: 9 | J38: 10 | K38: 9 | L38: 9 | M38: 9 | N38: 9 | O38: 7 | U38: 53.77 | V38: =(SUM(F38:T38))-U38 -> 268.23
A39: =IF(Prezentace!A41=0,"",Prezentace!A41) ->  | B39: =IF(Prezentace!B41=0,"",Prezentace!B41) ->  | C39: =Prezentace!D41 -> R | D39: =IF(Prezentace!F41=0,"",Prezentace!F41) -> Pavel | E39: =IF(Prezentace!E41=0,"",Prezentace!E41) -> Červenka | F39: 250 | H39: 10 | I39: 10 | J39: 10 | K39: 10 | L39: 10 | M39: 10 | N39: 10 | O39: 9 | U39: 65.71 | V39: 263.29
A40: =IF(Prezentace!A42=0,"",Prezentace!A42) ->  | B40: =IF(Prezentace!B42=0,"",Prezentace!B42) ->  | C40: =Prezentace!D42 -> P | D40: =IF(Prezentace!F42=0,"",Prezentace!F42) -> Jiří | E40: =IF(Prezentace!E42=0,"",Prezentace!E42) -> Švihálek | F40: 250 | H40: 9 | I40: 8 | J40: 10 | K40: 8 | L40: 10 | M40: 10 | N40: 9 | O40: 9 | U40: 72.39 | V40: 250.61
A41: =IF(Prezentace!A43=0,"",Prezentace!A43) ->  | B41: =IF(Prezentace!B43=0,"",Prezentace!B43) ->  | C41: =Prezentace!D43 -> R | D41: =IF(Prezentace!F43=0,"",Prezentace!F43) -> Jiří | E41: =IF(Prezentace!E43=0,"",Prezentace!E43) -> Švihálek | F41: 250 | H41: 9 | I41: 8 | J41: 11 | K41: 11 | L41: 10 | M41: 9 | N41: 10 | O41: 9 | U41: 77.69 | V41: 249.31
A42: =IF(Prezentace!A44=0,"",Prezentace!A44) ->  | B42: =IF(Prezentace!B44=0,"",Prezentace!B44) ->  | C42: =Prezentace!D44 -> P | D42: =IF(Prezentace!F44=0,"",Prezentace!F44) -> František | E42: =IF(Prezentace!E44=0,"",Prezentace!E44) -> Toman | F42: 250 | H42: 9 | I42: 7 | J42: 8 | K42: 0 | L42: 10 | M42: 9 | N42: 8 | O42: 8 | U42: 68.92 | V42: 240.08
A43: =IF(Prezentace!A45=0,"",Prezentace!A45) ->  | B43: =IF(Prezentace!B45=0,"",Prezentace!B45) ->  | C43: =Prezentace!D45 -> P | D43: =IF(Prezentace!F45=0,"",Prezentace!F45) -> Vladimír | E43: =IF(Prezentace!E45=0,"",Prezentace!E45) -> VejslíK | F43: 250 | H43: 9 | I43: 8 | J43: 10 | K43: 10 | L43: 10 | M43: 9 | N43: 9 | O43: 9 | U43: 53.04 | V43: 270.96
A44: =IF(Prezentace!A46=0,"",Prezentace!A46) ->  | B44: =IF(Prezentace!B46=0,"",Prezentace!B46) ->  | C44: =Prezentace!D46 -> P | D44: =IF(Prezentace!F46=0,"",Prezentace!F46) -> Karel | E44: =IF(Prezentace!E46=0,"",Prezentace!E46) -> Získal | F44: 250 | H44: 10 | I44: 0 | J44: 10 | K44: 10 | L44: 10 | M44: 9 | N44: 10 | O44: 8 | U44: 65.61 | V44: 251.39
A45: =IF(Prezentace!A47=0,"",Prezentace!A47) ->  | B45: =IF(Prezentace!B47=0,"",Prezentace!B47) ->  | C45: =Prezentace!D47 -> R | D45: =IF(Prezentace!F47=0,"",Prezentace!F47) -> Karel | E45: =IF(Prezentace!E47=0,"",Prezentace!E47) -> Získal | F45: 250 | H45: 8 | I45: 8 | J45: 10 | K45: 0 | L45: 10 | M45: 9 | N45: 9 | O45: 0 | U45: 148.4 | V45: 155.6
A46: =IF(Prezentace!A48=0,"",Prezentace!A48) ->  | B46: =IF(Prezentace!B48=0,"",Prezentace!B48) ->  | C46: =Prezentace!D48 -> P | D46: =IF(Prezentace!F48=0,"",Prezentace!F48) -> Jaroslav | E46: =IF(Prezentace!E48=0,"",Prezentace!E48) -> Sokolík | F46: 250 | H46: 8 | I46: 9 | J46: 10 | K46: 9 | L46: 10 | M46: 9 | N46: 10 | O46: 9 | U46: 34.38 | V46: 289.62
A47: =IF(Prezentace!A49=0,"",Prezentace!A49) ->  | B47: =IF(Prezentace!B49=0,"",Prezentace!B49) ->  | C47: =Prezentace!D49 -> P | D47: =IF(Prezentace!F49=0,"",Prezentace!F49) -> Milan | E47: =IF(Prezentace!E49=0,"",Prezentace!E49) -> Kraus | F47: 250 | H47: 9 | I47: 8 | J47: 11 | K47: 9 | L47: 9 | M47: 8 | N47: 10 | O47: 9 | U47: 61.86 | V47: 261.14
A48: =IF(Prezentace!A50=0,"",Prezentace!A50) ->  | B48: =IF(Prezentace!B50=0,"",Prezentace!B50) ->  | C48: =Prezentace!D50 -> P | D48: =IF(Prezentace!F50=0,"",Prezentace!F50) ->  | E48: =IF(Prezentace!E50=0,"",Prezentace!E50) ->  | V48: 0
A49: =IF(Prezentace!A51=0,"",Prezentace!A51) ->  | B49: =IF(Prezentace!B51=0,"",Prezentace!B51) ->  | C49: =Prezentace!D51 -> P | D49: =IF(Prezentace!F51=0,"",Prezentace!F51) ->  | E49: =IF(Prezentace!E51=0,"",Prezentace!E51) ->  | V49: 0
A50: =IF(Prezentace!A52=0,"",Prezentace!A52) ->  | B50: =IF(Prezentace!B52=0,"",Prezentace!B52) ->  | C50: =Prezentace!D52 -> P | D50: =IF(Prezentace!F52=0,"",Prezentace!F52) ->  | E50: =IF(Prezentace!E52=0,"",Prezentace!E52) ->  | V50: 0
A51: =IF(Prezentace!A53=0,"",Prezentace!A53) ->  | B51: =IF(Prezentace!B53=0,"",Prezentace!B53) ->  | C51: =Prezentace!D53 -> P | D51: =IF(Prezentace!F53=0,"",Prezentace!F53) ->  | E51: =IF(Prezentace!E53=0,"",Prezentace!E53) ->  | V51: 0
A52: =IF(Prezentace!A54=0,"",Prezentace!A54) ->  | B52: =IF(Prezentace!B54=0,"",Prezentace!B54) ->  | C52: =Prezentace!D54 -> P | D52: =IF(Prezentace!F54=0,"",Prezentace!F54) ->  | E52: =IF(Prezentace!E54=0,"",Prezentace!E54) ->  | V52: 0
A53: =IF(Prezentace!A55=0,"",Prezentace!A55) ->  | B53: =IF(Prezentace!B55=0,"",Prezentace!B55) ->  | C53: =Prezentace!D55 -> P | D53: =IF(Prezentace!F55=0,"",Prezentace!F55) ->  | E53: =IF(Prezentace!E55=0,"",Prezentace!E55) ->  | V53: 0
A54: =IF(Prezentace!A56=0,"",Prezentace!A56) ->  | B54: =IF(Prezentace!B56=0,"",Prezentace!B56) ->  | C54: =Prezentace!D56 -> P | D54: =IF(Prezentace!F56=0,"",Prezentace!F56) ->  | E54: =IF(Prezentace!E56=0,"",Prezentace!E56) ->  | V54: 0
A55: =IF(Prezentace!A57=0,"",Prezentace!A57) ->  | B55: =IF(Prezentace!B57=0,"",Prezentace!B57) ->  | C55: =Prezentace!D57 -> P | D55: =IF(Prezentace!F57=0,"",Prezentace!F57) ->  | E55: =IF(Prezentace!E57=0,"",Prezentace!E57) ->  | V55: 0
A56: =IF(Prezentace!A58=0,"",Prezentace!A58) ->  | B56: =IF(Prezentace!B58=0,"",Prezentace!B58) ->  | C56: =Prezentace!D58 -> P | D56: =IF(Prezentace!F58=0,"",Prezentace!F58) ->  | E56: =IF(Prezentace!E58=0,"",Prezentace!E58) ->  | V56: 0
A57: =IF(Prezentace!A59=0,"",Prezentace!A59) ->  | B57: =IF(Prezentace!B59=0,"",Prezentace!B59) ->  | C57: =Prezentace!D59 -> P | D57: =IF(Prezentace!F59=0,"",Prezentace!F59) ->  | E57: =IF(Prezentace!E59=0,"",Prezentace!E59) ->  | V57: 0
A58: =IF(Prezentace!A60=0,"",Prezentace!A60) ->  | B58: =IF(Prezentace!B60=0,"",Prezentace!B60) ->  | C58: =Prezentace!D60 -> P | D58: =IF(Prezentace!F60=0,"",Prezentace!F60) ->  | E58: =IF(Prezentace!E60=0,"",Prezentace!E60) ->  | V58: 0
A59: =IF(Prezentace!A61=0,"",Prezentace!A61) ->  | B59: =IF(Prezentace!B61=0,"",Prezentace!B61) ->  | C59: =Prezentace!D61 -> P | D59: =IF(Prezentace!F61=0,"",Prezentace!F61) ->  | E59: =IF(Prezentace!E61=0,"",Prezentace!E61) ->  | V59: 0
A60: =IF(Prezentace!A62=0,"",Prezentace!A62) ->  | B60: =IF(Prezentace!B62=0,"",Prezentace!B62) ->  | C60: =Prezentace!D62 -> P | D60: =IF(Prezentace!F62=0,"",Prezentace!F62) ->  | E60: =IF(Prezentace!E62=0,"",Prezentace!E62) ->  | V60: 0
A61: =IF(Prezentace!A63=0,"",Prezentace!A63) ->  | B61: =IF(Prezentace!B63=0,"",Prezentace!B63) ->  | C61: =Prezentace!D63 -> P | D61: =IF(Prezentace!F63=0,"",Prezentace!F63) ->  | E61: =IF(Prezentace!E63=0,"",Prezentace!E63) ->  | V61: 0
A62: =IF(Prezentace!A64=0,"",Prezentace!A64) ->  | B62: =IF(Prezentace!B64=0,"",Prezentace!B64) ->  | C62: =Prezentace!D64 -> P | D62: =IF(Prezentace!F64=0,"",Prezentace!F64) ->  | E62: =IF(Prezentace!E64=0,"",Prezentace!E64) ->  | V62: 0
A63: =IF(Prezentace!A65=0,"",Prezentace!A65) ->  | B63: =IF(Prezentace!B65=0,"",Prezentace!B65) ->  | C63: =Prezentace!D65 -> P | D63: =IF(Prezentace!F65=0,"",Prezentace!F65) ->  | E63: =IF(Prezentace!E65=0,"",Prezentace!E65) ->  | V63: 0
A64: =IF(Prezentace!A66=0,"",Prezentace!A66) ->  | B64: =IF(Prezentace!B66=0,"",Prezentace!B66) ->  | C64: =Prezentace!D66 -> P | D64: =IF(Prezentace!F66=0,"",Prezentace!F66) ->  | E64: =IF(Prezentace!E66=0,"",Prezentace!E66) ->  | V64: 0
A65: =IF(Prezentace!A67=0,"",Prezentace!A67) ->  | B65: =IF(Prezentace!B67=0,"",Prezentace!B67) ->  | C65: =Prezentace!D67 -> P | D65: =IF(Prezentace!F67=0,"",Prezentace!F67) ->  | E65: =IF(Prezentace!E67=0,"",Prezentace!E67) ->  | V65: 0
A66: =IF(Prezentace!A68=0,"",Prezentace!A68) ->  | B66: =IF(Prezentace!B68=0,"",Prezentace!B68) ->  | C66: =Prezentace!D68 -> P | D66: =IF(Prezentace!F68=0,"",Prezentace!F68) ->  | E66: =IF(Prezentace!E68=0,"",Prezentace!E68) ->  | V66: 0
A67: =IF(Prezentace!A69=0,"",Prezentace!A69) ->  | B67: =IF(Prezentace!B69=0,"",Prezentace!B69) ->  | C67: =Prezentace!D69 -> P | D67: =IF(Prezentace!F69=0,"",Prezentace!F69) ->  | E67: =IF(Prezentace!E69=0,"",Prezentace!E69) ->  | V67: 0
A68: =IF(Prezentace!A70=0,"",Prezentace!A70) ->  | B68: =IF(Prezentace!B70=0,"",Prezentace!B70) ->  | C68: =Prezentace!D70 -> P | D68: =IF(Prezentace!F70=0,"",Prezentace!F70) ->  | E68: =IF(Prezentace!E70=0,"",Prezentace!E70) ->  | V68: 0
A69: =IF(Prezentace!A71=0,"",Prezentace!A71) ->  | B69: =IF(Prezentace!B71=0,"",Prezentace!B71) ->  | C69: =Prezentace!D71 -> P | D69: =IF(Prezentace!F71=0,"",Prezentace!F71) ->  | E69: =IF(Prezentace!E71=0,"",Prezentace!E71) ->  | V69: 0
A70: =IF(Prezentace!A72=0,"",Prezentace!A72) ->  | B70: =IF(Prezentace!B72=0,"",Prezentace!B72) ->  | C70: =Prezentace!D72 -> P | D70: =IF(Prezentace!F72=0,"",Prezentace!F72) ->  | E70: =IF(Prezentace!E72=0,"",Prezentace!E72) ->  | V70: 0
A71: =IF(Prezentace!A73=0,"",Prezentace!A73) ->  | B71: =IF(Prezentace!B73=0,"",Prezentace!B73) ->  | C71: =Prezentace!D73 -> P | D71: =IF(Prezentace!F73=0,"",Prezentace!F73) ->  | E71: =IF(Prezentace!E73=0,"",Prezentace!E73) ->  | V71: 0
A72: =IF(Prezentace!A74=0,"",Prezentace!A74) ->  | B72: =IF(Prezentace!B74=0,"",Prezentace!B74) ->  | C72: =Prezentace!D74 -> P | D72: =IF(Prezentace!F74=0,"",Prezentace!F74) ->  | E72: =IF(Prezentace!E74=0,"",Prezentace!E74) ->  | V72: 0
A73: =IF(Prezentace!A75=0,"",Prezentace!A75) ->  | B73: =IF(Prezentace!B75=0,"",Prezentace!B75) ->  | C73: =Prezentace!D75 -> P | D73: =IF(Prezentace!F75=0,"",Prezentace!F75) ->  | E73: =IF(Prezentace!E75=0,"",Prezentace!E75) ->  | V73: 0
A74: =IF(Prezentace!A76=0,"",Prezentace!A76) ->  | B74: =IF(Prezentace!B76=0,"",Prezentace!B76) ->  | C74: =Prezentace!D76 -> P | D74: =IF(Prezentace!F76=0,"",Prezentace!F76) ->  | E74: =IF(Prezentace!E76=0,"",Prezentace!E76) ->  | V74: 0
A75: =IF(Prezentace!A77=0,"",Prezentace!A77) ->  | B75: =IF(Prezentace!B77=0,"",Prezentace!B77) ->  | C75: =Prezentace!D77 -> P | D75: =IF(Prezentace!F77=0,"",Prezentace!F77) ->  | E75: =IF(Prezentace!E77=0,"",Prezentace!E77) ->  | V75: 0
A76: =IF(Prezentace!A78=0,"",Prezentace!A78) ->  | B76: =IF(Prezentace!B78=0,"",Prezentace!B78) ->  | C76: =Prezentace!D78 -> P | D76: =IF(Prezentace!F78=0,"",Prezentace!F78) ->  | E76: =IF(Prezentace!E78=0,"",Prezentace!E78) ->  | V76: 0
A77: =IF(Prezentace!A79=0,"",Prezentace!A79) ->  | B77: =IF(Prezentace!B79=0,"",Prezentace!B79) ->  | C77: =Prezentace!D79 -> P | D77: =IF(Prezentace!F79=0,"",Prezentace!F79) ->  | E77: =IF(Prezentace!E79=0,"",Prezentace!E79) ->  | V77: 0
A78: =IF(Prezentace!A80=0,"",Prezentace!A80) ->  | B78: =IF(Prezentace!B80=0,"",Prezentace!B80) ->  | C78: =Prezentace!D80 -> P | D78: =IF(Prezentace!F80=0,"",Prezentace!F80) ->  | E78: =IF(Prezentace!E80=0,"",Prezentace!E80) ->  | V78: 0
A79: =IF(Prezentace!A81=0,"",Prezentace!A81) ->  | B79: =IF(Prezentace!B81=0,"",Prezentace!B81) ->  | C79: =Prezentace!D81 -> P | D79: =IF(Prezentace!F81=0,"",Prezentace!F81) ->  | E79: =IF(Prezentace!E81=0,"",Prezentace!E81) ->  | V79: 0
A80: =IF(Prezentace!A82=0,"",Prezentace!A82) ->  | B80: =IF(Prezentace!B82=0,"",Prezentace!B82) ->  | C80: =Prezentace!D82 -> P | D80: =IF(Prezentace!F82=0,"",Prezentace!F82) ->  | E80: =IF(Prezentace!E82=0,"",Prezentace!E82) ->  | V80: 0
A81: =IF(Prezentace!A83=0,"",Prezentace!A83) ->  | B81: =IF(Prezentace!B83=0,"",Prezentace!B83) ->  | C81: =Prezentace!D83 -> P | D81: =IF(Prezentace!F83=0,"",Prezentace!F83) ->  | E81: =IF(Prezentace!E83=0,"",Prezentace!E83) ->  | V81: 0
A82: =IF(Prezentace!A84=0,"",Prezentace!A84) ->  | B82: =IF(Prezentace!B84=0,"",Prezentace!B84) ->  | C82: =Prezentace!D84 -> P | D82: =IF(Prezentace!F84=0,"",Prezentace!F84) ->  | E82: =IF(Prezentace!E84=0,"",Prezentace!E84) ->  | V82: 0
A83: =IF(Prezentace!A85=0,"",Prezentace!A85) ->  | B83: =IF(Prezentace!B85=0,"",Prezentace!B85) ->  | C83: =Prezentace!D85 -> P | D83: =IF(Prezentace!F85=0,"",Prezentace!F85) ->  | E83: =IF(Prezentace!E85=0,"",Prezentace!E85) ->  | V83: 0
A84: =IF(Prezentace!A86=0,"",Prezentace!A86) ->  | B84: =IF(Prezentace!B86=0,"",Prezentace!B86) ->  | C84: =Prezentace!D86 -> P | D84: =IF(Prezentace!F86=0,"",Prezentace!F86) ->  | E84: =IF(Prezentace!E86=0,"",Prezentace!E86) ->  | V84: 0
A85: =IF(Prezentace!A87=0,"",Prezentace!A87) ->  | B85: =IF(Prezentace!B87=0,"",Prezentace!B87) ->  | C85: =Prezentace!D87 -> P | D85: =IF(Prezentace!F87=0,"",Prezentace!F87) ->  | E85: =IF(Prezentace!E87=0,"",Prezentace!E87) ->  | V85: 0
A86: =IF(Prezentace!A88=0,"",Prezentace!A88) ->  | B86: =IF(Prezentace!B88=0,"",Prezentace!B88) ->  | C86: =Prezentace!D88 -> P | D86: =IF(Prezentace!F88=0,"",Prezentace!F88) ->  | E86: =IF(Prezentace!E88=0,"",Prezentace!E88) ->  | V86: 0
A87: =IF(Prezentace!A89=0,"",Prezentace!A89) ->  | B87: =IF(Prezentace!B89=0,"",Prezentace!B89) ->  | C87: =Prezentace!D89 -> P | D87: =IF(Prezentace!F89=0,"",Prezentace!F89) ->  | E87: =IF(Prezentace!E89=0,"",Prezentace!E89) ->  | V87: 0
A88: =IF(Prezentace!A90=0,"",Prezentace!A90) ->  | B88: =IF(Prezentace!B90=0,"",Prezentace!B90) ->  | C88: =Prezentace!D90 -> P | D88: =IF(Prezentace!F90=0,"",Prezentace!F90) ->  | E88: =IF(Prezentace!E90=0,"",Prezentace!E90) ->  | V88: 0
A89: =IF(Prezentace!A91=0,"",Prezentace!A91) ->  | B89: =IF(Prezentace!B91=0,"",Prezentace!B91) ->  | C89: =Prezentace!D91 -> P | D89: =IF(Prezentace!F91=0,"",Prezentace!F91) ->  | E89: =IF(Prezentace!E91=0,"",Prezentace!E91) ->  | V89: 0
A90: =IF(Prezentace!A92=0,"",Prezentace!A92) ->  | B90: =IF(Prezentace!B92=0,"",Prezentace!B92) ->  | C90: =Prezentace!D92 -> P | D90: =IF(Prezentace!F92=0,"",Prezentace!F92) ->  | E90: =IF(Prezentace!E92=0,"",Prezentace!E92) ->  | V90: 0
A91: =IF(Prezentace!A93=0,"",Prezentace!A93) ->  | B91: =IF(Prezentace!B93=0,"",Prezentace!B93) ->  | C91: =Prezentace!D93 -> P | D91: =IF(Prezentace!F93=0,"",Prezentace!F93) ->  | E91: =IF(Prezentace!E93=0,"",Prezentace!E93) ->  | V91: 0
A92: =IF(Prezentace!A94=0,"",Prezentace!A94) ->  | B92: =IF(Prezentace!B94=0,"",Prezentace!B94) ->  | C92: =Prezentace!D94 -> P | D92: =IF(Prezentace!F94=0,"",Prezentace!F94) ->  | E92: =IF(Prezentace!E94=0,"",Prezentace!E94) ->  | V92: 0
A93: =IF(Prezentace!A95=0,"",Prezentace!A95) ->  | B93: =IF(Prezentace!B95=0,"",Prezentace!B95) ->  | C93: =Prezentace!D95 -> P | D93: =IF(Prezentace!F95=0,"",Prezentace!F95) ->  | E93: =IF(Prezentace!E95=0,"",Prezentace!E95) ->  | V93: 0
A94: =IF(Prezentace!A96=0,"",Prezentace!A96) ->  | B94: =IF(Prezentace!B96=0,"",Prezentace!B96) ->  | C94: =Prezentace!D96 -> P | D94: =IF(Prezentace!F96=0,"",Prezentace!F96) ->  | E94: =IF(Prezentace!E96=0,"",Prezentace!E96) ->  | V94: 0
A95: =IF(Prezentace!A97=0,"",Prezentace!A97) ->  | B95: =IF(Prezentace!B97=0,"",Prezentace!B97) ->  | C95: =Prezentace!D97 -> P | D95: =IF(Prezentace!F97=0,"",Prezentace!F97) ->  | E95: =IF(Prezentace!E97=0,"",Prezentace!E97) ->  | V95: 0
A96: =IF(Prezentace!A98=0,"",Prezentace!A98) ->  | B96: =IF(Prezentace!B98=0,"",Prezentace!B98) ->  | C96: =Prezentace!D98 -> P | D96: =IF(Prezentace!F98=0,"",Prezentace!F98) ->  | E96: =IF(Prezentace!E98=0,"",Prezentace!E98) ->  | V96: 0
A97: =IF(Prezentace!A99=0,"",Prezentace!A99) ->  | B97: =IF(Prezentace!B99=0,"",Prezentace!B99) ->  | C97: =Prezentace!D99 -> P | D97: =IF(Prezentace!F99=0,"",Prezentace!F99) ->  | E97: =IF(Prezentace!E99=0,"",Prezentace!E99) ->  | V97: 0
A98: =IF(Prezentace!A100=0,"",Prezentace!A100) ->  | B98: =IF(Prezentace!B100=0,"",Prezentace!B100) ->  | C98: =Prezentace!D100 -> P | D98: =IF(Prezentace!F100=0,"",Prezentace!F100) ->  | E98: =IF(Prezentace!E100=0,"",Prezentace!E100) ->  | V98: 0
A99: =IF(Prezentace!A101=0,"",Prezentace!A101) ->  | B99: =IF(Prezentace!B101=0,"",Prezentace!B101) ->  | C99: =Prezentace!D101 -> P | D99: =IF(Prezentace!F101=0,"",Prezentace!F101) ->  | E99: =IF(Prezentace!E101=0,"",Prezentace!E101) ->  | V99: 0
A100: =IF(Prezentace!A102=0,"",Prezentace!A102) ->  | B100: =IF(Prezentace!B102=0,"",Prezentace!B102) ->  | C100: =Prezentace!D102 -> P | D100: =IF(Prezentace!F102=0,"",Prezentace!F102) ->  | E100: =IF(Prezentace!E102=0,"",Prezentace!E102) ->  | V100: 0
A101: =IF(Prezentace!A103=0,"",Prezentace!A103) ->  | B101: =IF(Prezentace!B103=0,"",Prezentace!B103) ->  | C101: =Prezentace!D103 -> P | D101: =IF(Prezentace!F103=0,"",Prezentace!F103) ->  | E101: =IF(Prezentace!E103=0,"",Prezentace!E103) ->  | V101: 0
A102: =IF(Prezentace!A104=0,"",Prezentace!A104) ->  | B102: =IF(Prezentace!B104=0,"",Prezentace!B104) ->  | C102: =Prezentace!D104 -> P | D102: =IF(Prezentace!F104=0,"",Prezentace!F104) ->  | E102: =IF(Prezentace!E104=0,"",Prezentace!E104) ->  | V102: =(SUM(F102:T102))-U102 -> 0

Sheet 4 (hidden)
A1: Druž. | B1: Kap. | D1: Disciplina 4
F3: K | G3: M | H3: 1 | I3: 2 | J3: 3 | K3: 4 | L3: 5 | M3: 6 | N3: 7 | O3: 8 | P3: 9 | Q3: 10 | R3: 11 | S3: 12 | T3: TB | U3: Čas | V3: Součet
A4: =IF(Prezentace!A6=0,"",Prezentace!A6) ->  | B4: =IF(Prezentace!B6=0,"",Prezentace!B6) ->  | C4: =Prezentace!D6 -> P | D4: =IF(Prezentace!F6=0,"",Prezentace!F6) -> Martin | E4: =IF(Prezentace!E6=0,"",Prezentace!E6) -> Adensam | V4: =(SUM(F4:T4))-U4 -> 0
A5: =IF(Prezentace!A7=0,"",Prezentace!A7) ->  | B5: =IF(Prezentace!B7=0,"",Prezentace!B7) ->  | C5: =Prezentace!D7 -> R | D5: =IF(Prezentace!F7=0,"",Prezentace!F7) -> Martin | E5: =IF(Prezentace!E7=0,"",Prezentace!E7) -> Adensam | V5: =(SUM(F5:T5))-U5 -> 0
A6: =IF(Prezentace!A8=0,"",Prezentace!A8) ->  | B6: =IF(Prezentace!B8=0,"",Prezentace!B8) ->  | C6: =Prezentace!D8 -> P | D6: =IF(Prezentace!F8=0,"",Prezentace!F8) -> Jaroslav | E6: =IF(Prezentace!E8=0,"",Prezentace!E8) -> Kostříž | V6: 0
A7: =IF(Prezentace!A9=0,"",Prezentace!A9) ->  | B7: =IF(Prezentace!B9=0,"",Prezentace!B9) ->  | C7: =Prezentace!D9 -> P | D7: =IF(Prezentace!F9=0,"",Prezentace!F9) -> Miroslav | E7: =IF(Prezentace!E9=0,"",Prezentace!E9) -> Koch ml. | V7: 0
A8: =IF(Prezentace!A10=0,"",Prezentace!A10) ->  | B8: =IF(Prezentace!B10=0,"",Prezentace!B10) ->  | C8: =Prezentace!D10 -> P | D8: =IF(Prezentace!F10=0,"",Prezentace!F10) -> Miroslav | E8: =IF(Prezentace!E10=0,"",Prezentace!E10) -> Koch st. | V8: 0
A9: =IF(Prezentace!A11=0,"",Prezentace!A11) ->  | B9: =IF(Prezentace!B11=0,"",Prezentace!B11) ->  | C9: =Prezentace!D11 -> P | D9: =IF(Prezentace!F11=0,"",Prezentace!F11) -> Bohumil | E9: =IF(Prezentace!E11=0,"",Prezentace!E11) -> Herceg | V9: 0
A10: =IF(Prezentace!A12=0,"",Prezentace!A12) ->  | B10: =IF(Prezentace!B12=0,"",Prezentace!B12) ->  | C10: =Prezentace!D12 -> P | D10: =IF(Prezentace!F12=0,"",Prezentace!F12) -> Viktor | E10: =IF(Prezentace!E12=0,"",Prezentace!E12) -> Fuksa | V10: 0
A11: =IF(Prezentace!A13=0,"",Prezentace!A13) ->  | B11: =IF(Prezentace!B13=0,"",Prezentace!B13) ->  | C11: =Prezentace!D13 -> P | D11: =IF(Prezentace!F13=0,"",Prezentace!F13) -> Milan | E11: =IF(Prezentace!E13=0,"",Prezentace!E13) -> Matějka ml. | V11: 0
A12: =IF(Prezentace!A14=0,"",Prezentace!A14) ->  | B12: =IF(Prezentace!B14=0,"",Prezentace!B14) ->  | C12: =Prezentace!D14 -> P | D12: =IF(Prezentace!F14=0,"",Prezentace!F14) -> Michal | E12: =IF(Prezentace!E14=0,"",Prezentace!E14) -> Svoboda | V12: 0
A13: =IF(Prezentace!A15=0,"",Prezentace!A15) ->  | B13: =IF(Prezentace!B15=0,"",Prezentace!B15) ->  | C13: =Prezentace!D15 -> R | D13: =IF(Prezentace!F15=0,"",Prezentace!F15) -> Lukáš | E13: =IF(Prezentace!E15=0,"",Prezentace!E15) -> Bouda | V13: 0
A14: =IF(Prezentace!A16=0,"",Prezentace!A16) ->  | B14: =IF(Prezentace!B16=0,"",Prezentace!B16) ->  | C14: =Prezentace!D16 -> P | D14: =IF(Prezentace!F16=0,"",Prezentace!F16) -> Lukáš | E14: =IF(Prezentace!E16=0,"",Prezentace!E16) -> Bouda | V14: 0
A15: =IF(Prezentace!A17=0,"",Prezentace!A17) ->  | B15: =IF(Prezentace!B17=0,"",Prezentace!B17) ->  | C15: =Prezentace!D17 -> P | D15: =IF(Prezentace!F17=0,"",Prezentace!F17) -> Pavel | E15: =IF(Prezentace!E17=0,"",Prezentace!E17) -> Koltai | V15: 0
A16: =IF(Prezentace!A18=0,"",Prezentace!A18) ->  | B16: =IF(Prezentace!B18=0,"",Prezentace!B18) ->  | C16: =Prezentace!D18 -> P | D16: =IF(Prezentace!F18=0,"",Prezentace!F18) -> Vladislav | E16: =IF(Prezentace!E18=0,"",Prezentace!E18) -> Přibyl | V16: 0
A17: =IF(Prezentace!A19=0,"",Prezentace!A19) ->  | B17: =IF(Prezentace!B19=0,"",Prezentace!B19) ->  | C17: =Prezentace!D19 -> P | D17: =IF(Prezentace!F19=0,"",Prezentace!F19) -> Milan | E17: =IF(Prezentace!E19=0,"",Prezentace!E19) -> Matějka st. | V17: 0
A18: =IF(Prezentace!A20=0,"",Prezentace!A20) ->  | B18: =IF(Prezentace!B20=0,"",Prezentace!B20) ->  | C18: =Prezentace!D20 -> P | D18: =IF(Prezentace!F20=0,"",Prezentace!F20) -> Miroslav | E18: =IF(Prezentace!E20=0,"",Prezentace!E20) -> Fiala | V18: 0
A19: =IF(Prezentace!A21=0,"",Prezentace!A21) ->  | B19: =IF(Prezentace!B21=0,"",Prezentace!B21) ->  | C19: =Prezentace!D21 -> P | D19: =IF(Prezentace!F21=0,"",Prezentace!F21) -> Karel | E19: =IF(Prezentace!E21=0,"",Prezentace!E21) -> Gažák | V19: 0
A20: =IF(Prezentace!A22=0,"",Prezentace!A22) ->  | B20: =IF(Prezentace!B22=0,"",Prezentace!B22) ->  | C20: =Prezentace!D22 -> P | D20: =IF(Prezentace!F22=0,"",Prezentace!F22) -> Václav | E20: =IF(Prezentace!E22=0,"",Prezentace!E22) -> Landkammer | V20: 0
A21: =IF(Prezentace!A23=0,"",Prezentace!A23) ->  | B21: =IF(Prezentace!B23=0,"",Prezentace!B23) ->  | C21: =Prezentace!D23 -> P | D21: =IF(Prezentace!F23=0,"",Prezentace!F23) -> Vojtěch | E21: =IF(Prezentace!E23=0,"",Prezentace!E23) -> Brejžek | V21: 0
A22: =IF(Prezentace!A24=0,"",Prezentace!A24) ->  | B22: =IF(Prezentace!B24=0,"",Prezentace!B24) ->  | C22: =Prezentace!D24 -> P | D22: =IF(Prezentace!F24=0,"",Prezentace!F24) -> Antonín | E22: =IF(Prezentace!E24=0,"",Prezentace!E24) -> Urbanec | V22: 0
A23: =IF(Prezentace!A25=0,"",Prezentace!A25) ->  | B23: =IF(Prezentace!B25=0,"",Prezentace!B25) ->  | C23: =Prezentace!D25 -> P | D23: =IF(Prezentace!F25=0,"",Prezentace!F25) -> Milan | E23: =IF(Prezentace!E25=0,"",Prezentace!E25) -> Jílek | V23: 0
A24: =IF(Prezentace!A26=0,"",Prezentace!A26) ->  | B24: =IF(Prezentace!B26=0,"",Prezentace!B26) ->  | C24: =Prezentace!D26 -> P | D24: =IF(Prezentace!F26=0,"",Prezentace!F26) -> Václav | E24: =IF(Prezentace!E26=0,"",Prezentace!E26) -> Jírů | V24: 0
A25: =IF(Prezentace!A27=0,"",Prezentace!A27) ->  | B25: =IF(Prezentace!B27=0,"",Prezentace!B27) ->  | C25: =Prezentace!D27 -> P | D25: =IF(Prezentace!F27=0,"",Prezentace!F27) -> Milan | E25: =IF(Prezentace!E27=0,"",Prezentace!E27) -> Krupica | V25: 0
A26: =IF(Prezentace!A28=0,"",Prezentace!A28) ->  | B26: =IF(Prezentace!B28=0,"",Prezentace!B28) ->  | C26: =Prezentace!D28 -> R | D26: =IF(Prezentace!F28=0,"",Prezentace!F28) -> Milan | E26: =IF(Prezentace!E28=0,"",Prezentace!E28) -> Krupica | V26: 0
A27: =IF(Prezentace!A29=0,"",Prezentace!A29) ->  | B27: =IF(Prezentace!B29=0,"",Prezentace!B29) ->  | C27: =Prezentace!D29 -> P | D27: =IF(Prezentace!F29=0,"",Prezentace!F29) -> Miloslav | E27: =IF(Prezentace!E29=0,"",Prezentace!E29) -> Petržílka | V27: 0
A28: =IF(Prezentace!A30=0,"",Prezentace!A30) ->  | B28: =IF(Prezentace!B30=0,"",Prezentace!B30) ->  | C28: =Prezentace!D30 -> R | D28: =IF(Prezentace!F30=0,"",Prezentace!F30) -> Aleš | E28: =IF(Prezentace!E30=0,"",Prezentace!E30) -> Seitl | V28: 0
A29: =IF(Prezentace!A31=0,"",Prezentace!A31) ->  | B29: =IF(Prezentace!B31=0,"",Prezentace!B31) ->  | C29: =Prezentace!D31 -> P | D29: =IF(Prezentace!F31=0,"",Prezentace!F31) -> Aleš | E29: =IF(Prezentace!E31=0,"",Prezentace!E31) -> Seitl | V29: 0
A30: =IF(Prezentace!A32=0,"",Prezentace!A32) ->  | B30: =IF(Prezentace!B32=0,"",Prezentace!B32) ->  | C30: =Prezentace!D32 -> P | D30: =IF(Prezentace!F32=0,"",Prezentace!F32) -> Karel | E30: =IF(Prezentace!E32=0,"",Prezentace!E32) -> Seitl | V30: 0
A31: =IF(Prezentace!A33=0,"",Prezentace!A33) ->  | B31: =IF(Prezentace!B33=0,"",Prezentace!B33) ->  | C31: =Prezentace!D33 -> P | D31: =IF(Prezentace!F33=0,"",Prezentace!F33) -> David | E31: =IF(Prezentace!E33=0,"",Prezentace!E33) -> Nikodým | V31: 0
A32: =IF(Prezentace!A34=0,"",Prezentace!A34) ->  | B32: =IF(Prezentace!B34=0,"",Prezentace!B34) ->  | C32: =Prezentace!D34 -> R | D32: =IF(Prezentace!F34=0,"",Prezentace!F34) -> David | E32: =IF(Prezentace!E34=0,"",Prezentace!E34) -> Nikodým | V32: 0
A33: =IF(Prezentace!A35=0,"",Prezentace!A35) ->  | B33: =IF(Prezentace!B35=0,"",Prezentace!B35) ->  | C33: =Prezentace!D35 -> P | D33: =IF(Prezentace!F35=0,"",Prezentace!F35) -> Lukáš | E33: =IF(Prezentace!E35=0,"",Prezentace!E35) -> Hobza | V33: 0
A34: =IF(Prezentace!A36=0,"",Prezentace!A36) ->  | B34: =IF(Prezentace!B36=0,"",Prezentace!B36) ->  | C34: =Prezentace!D36 -> P | D34: =IF(Prezentace!F36=0,"",Prezentace!F36) -> Antonín | E34: =IF(Prezentace!E36=0,"",Prezentace!E36) -> Jelínek | V34: 0
A35: =IF(Prezentace!A37=0,"",Prezentace!A37) ->  | B35: =IF(Prezentace!B37=0,"",Prezentace!B37) ->  | C35: =Prezentace!D37 -> R | D35: =IF(Prezentace!F37=0,"",Prezentace!F37) -> Antonín | E35: =IF(Prezentace!E37=0,"",Prezentace!E37) -> Jelínek | V35: 0
A36: =IF(Prezentace!A38=0,"",Prezentace!A38) ->  | B36: =IF(Prezentace!B38=0,"",Prezentace!B38) ->  | C36: =Prezentace!D38 -> P | D36: =IF(Prezentace!F38=0,"",Prezentace!F38) -> Ladislav | E36: =IF(Prezentace!E38=0,"",Prezentace!E38) -> Píša | V36: 0
A37: =IF(Prezentace!A39=0,"",Prezentace!A39) ->  | B37: =IF(Prezentace!B39=0,"",Prezentace!B39) ->  | C37: =Prezentace!D39 -> P | D37: =IF(Prezentace!F39=0,"",Prezentace!F39) -> Štefan | E37: =IF(Prezentace!E39=0,"",Prezentace!E39) -> Mesároš | V37: 0
A38: =IF(Prezentace!A40=0,"",Prezentace!A40) ->  | B38: =IF(Prezentace!B40=0,"",Prezentace!B40) ->  | C38: =Prezentace!D40 -> P | D38: =IF(Prezentace!F40=0,"",Prezentace!F40) -> Pavel | E38: =IF(Prezentace!E40=0,"",Prezentace!E40) -> Červenka | V38: =(SUM(F38:T38))-U38 -> 0
A39: =IF(Prezentace!A41=0,"",Prezentace!A41) ->  | B39: =IF(Prezentace!B41=0,"",Prezentace!B41) ->  | C39: =Prezentace!D41 -> R | D39: =IF(Prezentace!F41=0,"",Prezentace!F41) -> Pavel | E39: =IF(Prezentace!E41=0,"",Prezentace!E41) -> Červenka | V39: 0
A40: =IF(Prezentace!A42=0,"",Prezentace!A42) ->  | B40: =IF(Prezentace!B42=0,"",Prezentace!B42) ->  | C40: =Prezentace!D42 -> P | D40: =IF(Prezentace!F42=0,"",Prezentace!F42) -> Jiří | E40: =IF(Prezentace!E42=0,"",Prezentace!E42) -> Švihálek | V40: 0
A41: =IF(Prezentace!A43=0,"",Prezentace!A43) ->  | B41: =IF(Prezentace!B43=0,"",Prezentace!B43) ->  | C41: =Prezentace!D43 -> R | D41: =IF(Prezentace!F43=0,"",Prezentace!F43) -> Jiří | E41: =IF(Prezentace!E43=0,"",Prezentace!E43) -> Švihálek | V41: 0
A42: =IF(Prezentace!A44=0,"",Prezentace!A44) ->  | B42: =IF(Prezentace!B44=0,"",Prezentace!B44) ->  | C42: =Prezentace!D44 -> P | D42: =IF(Prezentace!F44=0,"",Prezentace!F44) -> František | E42: =IF(Prezentace!E44=0,"",Prezentace!E44) -> Toman | V42: 0
A43: =IF(Prezentace!A45=0,"",Prezentace!A45) ->  | B43: =IF(Prezentace!B45=0,"",Prezentace!B45) ->  | C43: =Prezentace!D45 -> P | D43: =IF(Prezentace!F45=0,"",Prezentace!F45) -> Vladimír | E43: =IF(Prezentace!E45=0,"",Prezentace!E45) -> VejslíK | V43: 0
A44: =IF(Prezentace!A46=0,"",Prezentace!A46) ->  | B44: =IF(Prezentace!B46=0,"",Prezentace!B46) ->  | C44: =Prezentace!D46 -> P | D44: =IF(Prezentace!F46=0,"",Prezentace!F46) -> Karel | E44: =IF(Prezentace!E46=0,"",Prezentace!E46) -> Získal | V44: 0
A45: =IF(Prezentace!A47=0,"",Prezentace!A47) ->  | B45: =IF(Prezentace!B47=0,"",Prezentace!B47) ->  | C45: =Prezentace!D47 -> R | D45: =IF(Prezentace!F47=0,"",Prezentace!F47) -> Karel | E45: =IF(Prezentace!E47=0,"",Prezentace!E47) -> Získal | V45: 0
A46: =IF(Prezentace!A48=0,"",Prezentace!A48) ->  | B46: =IF(Prezentace!B48=0,"",Prezentace!B48) ->  | C46: =Prezentace!D48 -> P | D46: =IF(Prezentace!F48=0,"",Prezentace!F48) -> Jaroslav | E46: =IF(Prezentace!E48=0,"",Prezentace!E48) -> Sokolík | V46: 0
A47: =IF(Prezentace!A49=0,"",Prezentace!A49) ->  | B47: =IF(Prezentace!B49=0,"",Prezentace!B49) ->  | C47: =Prezentace!D49 -> P | D47: =IF(Prezentace!F49=0,"",Prezentace!F49) -> Milan | E47: =IF(Prezentace!E49=0,"",Prezentace!E49) -> Kraus | V47: 0
A48: =IF(Prezentace!A50=0,"",Prezentace!A50) ->  | B48: =IF(Prezentace!B50=0,"",Prezentace!B50) ->  | C48: =Prezentace!D50 -> P | D48: =IF(Prezentace!F50=0,"",Prezentace!F50) ->  | E48: =IF(Prezentace!E50=0,"",Prezentace!E50) ->  | V48: 0
A49: =IF(Prezentace!A51=0,"",Prezentace!A51) ->  | B49: =IF(Prezentace!B51=0,"",Prezentace!B51) ->  | C49: =Prezentace!D51 -> P | D49: =IF(Prezentace!F51=0,"",Prezentace!F51) ->  | E49: =IF(Prezentace!E51=0,"",Prezentace!E51) ->  | V49: 0
A50: =IF(Prezentace!A52=0,"",Prezentace!A52) ->  | B50: =IF(Prezentace!B52=0,"",Prezentace!B52) ->  | C50: =Prezentace!D52 -> P | D50: =IF(Prezentace!F52=0,"",Prezentace!F52) ->  | E50: =IF(Prezentace!E52=0,"",Prezentace!E52) ->  | V50: 0
A51: =IF(Prezentace!A53=0,"",Prezentace!A53) ->  | B51: =IF(Prezentace!B53=0,"",Prezentace!B53) ->  | C51: =Prezentace!D53 -> P | D51: =IF(Prezentace!F53=0,"",Prezentace!F53) ->  | E51: =IF(Prezentace!E53=0,"",Prezentace!E53) ->  | V51: 0
A52: =IF(Prezentace!A54=0,"",Prezentace!A54) ->  | B52: =IF(Prezentace!B54=0,"",Prezentace!B54) ->  | C52: =Prezentace!D54 -> P | D52: =IF(Prezentace!F54=0,"",Prezentace!F54) ->  | E52: =IF(Prezentace!E54=0,"",Prezentace!E54) ->  | V52: 0
A53: =IF(Prezentace!A55=0,"",Prezentace!A55) ->  | B53: =IF(Prezentace!B55=0,"",Prezentace!B55) ->  | C53: =Prezentace!D55 -> P | D53: =IF(Prezentace!F55=0,"",Prezentace!F55) ->  | E53: =IF(Prezentace!E55=0,"",Prezentace!E55) ->  | V53: 0
A54: =IF(Prezentace!A56=0,"",Prezentace!A56) ->  | B54: =IF(Prezentace!B56=0,"",Prezentace!B56) ->  | C54: =Prezentace!D56 -> P | D54: =IF(Prezentace!F56=0,"",Prezentace!F56) ->  | E54: =IF(Prezentace!E56=0,"",Prezentace!E56) ->  | V54: 0
A55: =IF(Prezentace!A57=0,"",Prezentace!A57) ->  | B55: =IF(Prezentace!B57=0,"",Prezentace!B57) ->  | C55: =Prezentace!D57 -> P | D55: =IF(Prezentace!F57=0,"",Prezentace!F57) ->  | E55: =IF(Prezentace!E57=0,"",Prezentace!E57) ->  | V55: 0
A56: =IF(Prezentace!A58=0,"",Prezentace!A58) ->  | B56: =IF(Prezentace!B58=0,"",Prezentace!B58) ->  | C56: =Prezentace!D58 -> P | D56: =IF(Prezentace!F58=0,"",Prezentace!F58) ->  | E56: =IF(Prezentace!E58=0,"",Prezentace!E58) ->  | V56: 0
A57: =IF(Prezentace!A59=0,"",Prezentace!A59) ->  | B57: =IF(Prezentace!B59=0,"",Prezentace!B59) ->  | C57: =Prezentace!D59 -> P | D57: =IF(Prezentace!F59=0,"",Prezentace!F59) ->  | E57: =IF(Prezentace!E59=0,"",Prezentace!E59) ->  | V57: 0
A58: =IF(Prezentace!A60=0,"",Prezentace!A60) ->  | B58: =IF(Prezentace!B60=0,"",Prezentace!B60) ->  | C58: =Prezentace!D60 -> P | D58: =IF(Prezentace!F60=0,"",Prezentace!F60) ->  | E58: =IF(Prezentace!E60=0,"",Prezentace!E60) ->  | V58: 0
A59: =IF(Prezentace!A61=0,"",Prezentace!A61) ->  | B59: =IF(Prezentace!B61=0,"",Prezentace!B61) ->  | C59: =Prezentace!D61 -> P | D59: =IF(Prezentace!F61=0,"",Prezentace!F61) ->  | E59: =IF(Prezentace!E61=0,"",Prezentace!E61) ->  | V59: 0
A60: =IF(Prezentace!A62=0,"",Prezentace!A62) ->  | B60: =IF(Prezentace!B62=0,"",Prezentace!B62) ->  | C60: =Prezentace!D62 -> P | D60: =IF(Prezentace!F62=0,"",Prezentace!F62) ->  | E60: =IF(Prezentace!E62=0,"",Prezentace!E62) ->  | V60: 0
A61: =IF(Prezentace!A63=0,"",Prezentace!A63) ->  | B61: =IF(Prezentace!B63=0,"",Prezentace!B63) ->  | C61: =Prezentace!D63 -> P | D61: =IF(Prezentace!F63=0,"",Prezentace!F63) ->  | E61: =IF(Prezentace!E63=0,"",Prezentace!E63) ->  | V61: 0
A62: =IF(Prezentace!A64=0,"",Prezentace!A64) ->  | B62: =IF(Prezentace!B64=0,"",Prezentace!B64) ->  | C62: =Prezentace!D64 -> P | D62: =IF(Prezentace!F64=0,"",Prezentace!F64) ->  | E62: =IF(Prezentace!E64=0,"",Prezentace!E64) ->  | V62: 0
A63: =IF(Prezentace!A65=0,"",Prezentace!A65) ->  | B63: =IF(Prezentace!B65=0,"",Prezentace!B65) ->  | C63: =Prezentace!D65 -> P | D63: =IF(Prezentace!F65=0,"",Prezentace!F65) ->  | E63: =IF(Prezentace!E65=0,"",Prezentace!E65) ->  | V63: 0
A64: =IF(Prezentace!A66=0,"",Prezentace!A66) ->  | B64: =IF(Prezentace!B66=0,"",Prezentace!B66) ->  | C64: =Prezentace!D66 -> P | D64: =IF(Prezentace!F66=0,"",Prezentace!F66) ->  | E64: =IF(Prezentace!E66=0,"",Prezentace!E66) ->  | V64: 0
A65: =IF(Prezentace!A67=0,"",Prezentace!A67) ->  | B65: =IF(Prezentace!B67=0,"",Prezentace!B67) ->  | C65: =Prezentace!D67 -> P | D65: =IF(Prezentace!F67=0,"",Prezentace!F67) ->  | E65: =IF(Prezentace!E67=0,"",Prezentace!E67) ->  | V65: 0
A66: =IF(Prezentace!A68=0,"",Prezentace!A68) ->  | B66: =IF(Prezentace!B68=0,"",Prezentace!B68) ->  | C66: =Prezentace!D68 -> P | D66: =IF(Prezentace!F68=0,"",Prezentace!F68) ->  | E66: =IF(Prezentace!E68=0,"",Prezentace!E68) ->  | V66: 0
A67: =IF(Prezentace!A69=0,"",Prezentace!A69) ->  | B67: =IF(Prezentace!B69=0,"",Prezentace!B69) ->  | C67: =Prezentace!D69 -> P | D67: =IF(Prezentace!F69=0,"",Prezentace!F69) ->  | E67: =IF(Prezentace!E69=0,"",Prezentace!E69) ->  | V67: 0
A68: =IF(Prezentace!A70=0,"",Prezentace!A70) ->  | B68: =IF(Prezentace!B70=0,"",Prezentace!B70) ->  | C68: =Prezentace!D70 -> P | D68: =IF(Prezentace!F70=0,"",Prezentace!F70) ->  | E68: =IF(Prezentace!E70=0,"",Prezentace!E70) ->  | V68: 0
A69: =IF(Prezentace!A71=0,"",Prezentace!A71) ->  | B69: =IF(Prezentace!B71=0,"",Prezentace!B71) ->  | C69: =Prezentace!D71 -> P | D69: =IF(Prezentace!F71=0,"",Prezentace!F71) ->  | E69: =IF(Prezentace!E71=0,"",Prezentace!E71) ->  | V69: 0
A70: =IF(Prezentace!A72=0,"",Prezentace!A72) ->  | B70: =IF(Prezentace!B72=0,"",Prezentace!B72) ->  | C70: =Prezentace!D72 -> P | D70: =IF(Prezentace!F72=0,"",Prezentace!F72) ->  | E70: =IF(Prezentace!E72=0,"",Prezentace!E72) ->  | V70: 0
A71: =IF(Prezentace!A73=0,"",Prezentace!A73) ->  | B71: =IF(Prezentace!B73=0,"",Prezentace!B73) ->  | C71: =Prezentace!D73 -> P | D71: =IF(Prezentace!F73=0,"",Prezentace!F73) ->  | E71: =IF(Prezentace!E73=0,"",Prezentace!E73) ->  | V71: 0
A72: =IF(Prezentace!A74=0,"",Prezentace!A74) ->  | B72: =IF(Prezentace!B74=0,"",Prezentace!B74) ->  | C72: =Prezentace!D74 -> P | D72: =IF(Prezentace!F74=0,"",Prezentace!F74) ->  | E72: =IF(Prezentace!E74=0,"",Prezentace!E74) ->  | V72: 0
A73: =IF(Prezentace!A75=0,"",Prezentace!A75) ->  | B73: =IF(Prezentace!B75=0,"",Prezentace!B75) ->  | C73: =Prezentace!D75 -> P | D73: =IF(Prezentace!F75=0,"",Prezentace!F75) ->  | E73: =IF(Prezentace!E75=0,"",Prezentace!E75) ->  | V73: 0
A74: =IF(Prezentace!A76=0,"",Prezentace!A76) ->  | B74: =IF(Prezentace!B76=0,"",Prezentace!B76) ->  | C74: =Prezentace!D76 -> P | D74: =IF(Prezentace!F76=0,"",Prezentace!F76) ->  | E74: =IF(Prezentace!E76=0,"",Prezentace!E76) ->  | V74: 0
A75: =IF(Prezentace!A77=0,"",Prezentace!A77) ->  | B75: =IF(Prezentace!B77=0,"",Prezentace!B77) ->  | C75: =Prezentace!D77 -> P | D75: =IF(Prezentace!F77=0,"",Prezentace!F77) ->  | E75: =IF(Prezentace!E77=0,"",Prezentace!E77) ->  | V75: 0
A76: =IF(Prezentace!A78=0,"",Prezentace!A78) ->  | B76: =IF(Prezentace!B78=0,"",Prezentace!B78) ->  | C76: =Prezentace!D78 -> P | D76: =IF(Prezentace!F78=0,"",Prezentace!F78) ->  | E76: =IF(Prezentace!E78=0,"",Prezentace!E78) ->  | V76: 0
A77: =IF(Prezentace!A79=0,"",Prezentace!A79) ->  | B77: =IF(Prezentace!B79=0,"",Prezentace!B79) ->  | C77: =Prezentace!D79 -> P | D77: =IF(Prezentace!F79=0,"",Prezentace!F79) ->  | E77: =IF(Prezentace!E79=0,"",Prezentace!E79) ->  | V77: 0
A78: =IF(Prezentace!A80=0,"",Prezentace!A80) ->  | B78: =IF(Prezentace!B80=0,"",Prezentace!B80) ->  | C78: =Prezentace!D80 -> P | D78: =IF(Prezentace!F80=0,"",Prezentace!F80) ->  | E78: =IF(Prezentace!E80=0,"",Prezentace!E80) ->  | V78: 0
A79: =IF(Prezentace!A81=0,"",Prezentace!A81) ->  | B79: =IF(Prezentace!B81=0,"",Prezentace!B81) ->  | C79: =Prezentace!D81 -> P | D79: =IF(Prezentace!F81=0,"",Prezentace!F81) ->  | E79: =IF(Prezentace!E81=0,"",Prezentace!E81) ->  | V79: 0
A80: =IF(Prezentace!A82=0,"",Prezentace!A82) ->  | B80: =IF(Prezentace!B82=0,"",Prezentace!B82) ->  | C80: =Prezentace!D82 -> P | D80: =IF(Prezentace!F82=0,"",Prezentace!F82) ->  | E80: =IF(Prezentace!E82=0,"",Prezentace!E82) ->  | V80: 0
A81: =IF(Prezentace!A83=0,"",Prezentace!A83) ->  | B81: =IF(Prezentace!B83=0,"",Prezentace!B83) ->  | C81: =Prezentace!D83 -> P | D81: =IF(Prezentace!F83=0,"",Prezentace!F83) ->  | E81: =IF(Prezentace!E83=0,"",Prezentace!E83) ->  | V81: 0
A82: =IF(Prezentace!A84=0,"",Prezentace!A84) ->  | B82: =IF(Prezentace!B84=0,"",Prezentace!B84) ->  | C82: =Prezentace!D84 -> P | D82: =IF(Prezentace!F84=0,"",Prezentace!F84) ->  | E82: =IF(Prezentace!E84=0,"",Prezentace!E84) ->  | V82: 0
A83: =IF(Prezentace!A85=0,"",Prezentace!A85) ->  | B83: =IF(Prezentace!B85=0,"",Prezentace!B85) ->  | C83: =Prezentace!D85 -> P | D83: =IF(Prezentace!F85=0,"",Prezentace!F85) ->  | E83: =IF(Prezentace!E85=0,"",Prezentace!E85) ->  | V83: 0
A84: =IF(Prezentace!A86=0,"",Prezentace!A86) ->  | B84: =IF(Prezentace!B86=0,"",Prezentace!B86) ->  | C84: =Prezentace!D86 -> P | D84: =IF(Prezentace!F86=0,"",Prezentace!F86) ->  | E84: =IF(Prezentace!E86=0,"",Prezentace!E86) ->  | V84: 0
A85: =IF(Prezentace!A87=0,"",Prezentace!A87) ->  | B85: =IF(Prezentace!B87=0,"",Prezentace!B87) ->  | C85: =Prezentace!D87 -> P | D85: =IF(Prezentace!F87=0,"",Prezentace!F87) ->  | E85: =IF(Prezentace!E87=0,"",Prezentace!E87) ->  | V85: 0
A86: =IF(Prezentace!A88=0,"",Prezentace!A88) ->  | B86: =IF(Prezentace!B88=0,"",Prezentace!B88) ->  | C86: =Prezentace!D88 -> P | D86: =IF(Prezentace!F88=0,"",Prezentace!F88) ->  | E86: =IF(Prezentace!E88=0,"",Prezentace!E88) ->  | V86: 0
A87: =IF(Prezentace!A89=0,"",Prezentace!A89) ->  | B87: =IF(Prezentace!B89=0,"",Prezentace!B89) ->  | C87: =Prezentace!D89 -> P | D87: =IF(Prezentace!F89=0,"",Prezentace!F89) ->  | E87: =IF(Prezentace!E89=0,"",Prezentace!E89) ->  | V87: 0
A88: =IF(Prezentace!A90=0,"",Prezentace!A90) ->  | B88: =IF(Prezentace!B90=0,"",Prezentace!B90) ->  | C88: =Prezentace!D90 -> P | D88: =IF(Prezentace!F90=0,"",Prezentace!F90) ->  | E88: =IF(Prezentace!E90=0,"",Prezentace!E90) ->  | V88: 0
A89: =IF(Prezentace!A91=0,"",Prezentace!A91) ->  | B89: =IF(Prezentace!B91=0,"",Prezentace!B91) ->  | C89: =Prezentace!D91 -> P | D89: =IF(Prezentace!F91=0,"",Prezentace!F91) ->  | E89: =IF(Prezentace!E91=0,"",Prezentace!E91) ->  | V89: 0
A90: =IF(Prezentace!A92=0,"",Prezentace!A92) ->  | B90: =IF(Prezentace!B92=0,"",Prezentace!B92) ->  | C90: =Prezentace!D92 -> P | D90: =IF(Prezentace!F92=0,"",Prezentace!F92) ->  | E90: =IF(Prezentace!E92=0,"",Prezentace!E92) ->  | V90: 0
A91: =IF(Prezentace!A93=0,"",Prezentace!A93) ->  | B91: =IF(Prezentace!B93=0,"",Prezentace!B93) ->  | C91: =Prezentace!D93 -> P | D91: =IF(Prezentace!F93=0,"",Prezentace!F93) ->  | E91: =IF(Prezentace!E93=0,"",Prezentace!E93) ->  | V91: 0
A92: =IF(Prezentace!A94=0,"",Prezentace!A94) ->  | B92: =IF(Prezentace!B94=0,"",Prezentace!B94) ->  | C92: =Prezentace!D94 -> P | D92: =IF(Prezentace!F94=0,"",Prezentace!F94) ->  | E92: =IF(Prezentace!E94=0,"",Prezentace!E94) ->  | V92: 0
A93: =IF(Prezentace!A95=0,"",Prezentace!A95) ->  | B93: =IF(Prezentace!B95=0,"",Prezentace!B95) ->  | C93: =Prezentace!D95 -> P | D93: =IF(Prezentace!F95=0,"",Prezentace!F95) ->  | E93: =IF(Prezentace!E95=0,"",Prezentace!E95) ->  | V93: 0
A94: =IF(Prezentace!A96=0,"",Prezentace!A96) ->  | B94: =IF(Prezentace!B96=0,"",Prezentace!B96) ->  | C94: =Prezentace!D96 -> P | D94: =IF(Prezentace!F96=0,"",Prezentace!F96) ->  | E94: =IF(Prezentace!E96=0,"",Prezentace!E96) ->  | V94: 0
A95: =IF(Prezentace!A97=0,"",Prezentace!A97) ->  | B95: =IF(Prezentace!B97=0,"",Prezentace!B97) ->  | C95: =Prezentace!D97 -> P | D95: =IF(Prezentace!F97=0,"",Prezentace!F97) ->  | E95: =IF(Prezentace!E97=0,"",Prezentace!E97) ->  | V95: 0
A96: =IF(Prezentace!A98=0,"",Prezentace!A98) ->  | B96: =IF(Prezentace!B98=0,"",Prezentace!B98) ->  | C96: =Prezentace!D98 -> P | D96: =IF(Prezentace!F98=0,"",Prezentace!F98) ->  | E96: =IF(Prezentace!E98=0,"",Prezentace!E98) ->  | V96: 0
A97: =IF(Prezentace!A99=0,"",Prezentace!A99) ->  | B97: =IF(Prezentace!B99=0,"",Prezentace!B99) ->  | C97: =Prezentace!D99 -> P | D97: =IF(Prezentace!F99=0,"",Prezentace!F99) ->  | E97: =IF(Prezentace!E99=0,"",Prezentace!E99) ->  | V97: 0
A98: =IF(Prezentace!A100=0,"",Prezentace!A100) ->  | B98: =IF(Prezentace!B100=0,"",Prezentace!B100) ->  | C98: =Prezentace!D100 -> P | D98: =IF(Prezentace!F100=0,"",Prezentace!F100) ->  | E98: =IF(Prezentace!E100=0,"",Prezentace!E100) ->  | V98: 0
A99: =IF(Prezentace!A101=0,"",Prezentace!A101) ->  | B99: =IF(Prezentace!B101=0,"",Prezentace!B101) ->  | C99: =Prezentace!D101 -> P | D99: =IF(Prezentace!F101=0,"",Prezentace!F101) ->  | E99: =IF(Prezentace!E101=0,"",Prezentace!E101) ->  | V99: 0
A100: =IF(Prezentace!A102=0,"",Prezentace!A102) ->  | B100: =IF(Prezentace!B102=0,"",Prezentace!B102) ->  | C100: =Prezentace!D102 -> P | D100: =IF(Prezentace!F102=0,"",Prezentace!F102) ->  | E100: =IF(Prezentace!E102=0,"",Prezentace!E102) ->  | V100: 0
A101: =IF(Prezentace!A103=0,"",Prezentace!A103) ->  | B101: =IF(Prezentace!B103=0,"",Prezentace!B103) ->  | C101: =Prezentace!D103 -> P | D101: =IF(Prezentace!F103=0,"",Prezentace!F103) ->  | E101: =IF(Prezentace!E103=0,"",Prezentace!E103) ->  | V101: 0
A102: =IF(Prezentace!A104=0,"",Prezentace!A104) ->  | B102: =IF(Prezentace!B104=0,"",Prezentace!B104) ->  | C102: =Prezentace!D104 -> P | D102: =IF(Prezentace!F104=0,"",Prezentace!F104) ->  | E102: =IF(Prezentace!E104=0,"",Prezentace!E104) ->  | V102: =(SUM(F102:T102))-U102 -> 0

Sheet 4(M) (hidden)
A1: Druž. | B1: Kap. | D1: Disciplina 4
F3: 0 | G3: 1 | H3: 2 | I3: 3 | J3: 4 | K3: 5 | L3: 6 | M3: 7 | N3: 8 | O3: 9 | P3: 10 | Q3: 12 | R3: 15 | S3: Čas | T3: Součet
A4: =IF(Prezentace!A6=0,"",Prezentace!A6) ->  | B4: =IF(Prezentace!B6=0,"",Prezentace!B6) ->  | C4: =Prezentace!D6 -> P | D4: =IF(Prezentace!F6=0,"",Prezentace!F6) -> Martin | E4: =IF(Prezentace!E6=0,"",Prezentace!E6) -> Adensam | T4: =(SUM(F4*$F$3,G4*$G$3,H4*$H$3,I4*$I$3,J4*$J$3,K4*$K$3,L4*$L$3,M4*$M$3,N4*$N$3,O4*$O$3,P4*$P$3,Q4*$Q$3,R4*$R$3))-S4 -> 0
A5: =IF(Prezentace!A7=0,"",Prezentace!A7) ->  | B5: =IF(Prezentace!B7=0,"",Prezentace!B7) ->  | C5: =Prezentace!D7 -> R | D5: =IF(Prezentace!F7=0,"",Prezentace!F7) -> Martin | E5: =IF(Prezentace!E7=0,"",Prezentace!E7) -> Adensam | T5: =(SUM(F5*$F$3,G5*$G$3,H5*$H$3,I5*$I$3,J5*$J$3,K5*$K$3,L5*$L$3,M5*$M$3,N5*$N$3,O5*$O$3,P5*$P$3,Q5*$Q$3,R5*$R$3))-S5 -> 0
A6: =IF(Prezentace!A8=0,"",Prezentace!A8) ->  | B6: =IF(Prezentace!B8=0,"",Prezentace!B8) ->  | C6: =Prezentace!D8 -> P | D6: =IF(Prezentace!F8=0,"",Prezentace!F8) -> Jaroslav | E6: =IF(Prezentace!E8=0,"",Prezentace!E8) -> Kostříž | T6: 0
A7: =IF(Prezentace!A9=0,"",Prezentace!A9) ->  | B7: =IF(Prezentace!B9=0,"",Prezentace!B9) ->  | C7: =Prezentace!D9 -> P | D7: =IF(Prezentace!F9=0,"",Prezentace!F9) -> Miroslav | E7: =IF(Prezentace!E9=0,"",Prezentace!E9) -> Koch ml. | T7: 0
A8: =IF(Prezentace!A10=0,"",Prezentace!A10) ->  | B8: =IF(Prezentace!B10=0,"",Prezentace!B10) ->  | C8: =Prezentace!D10 -> P | D8: =IF(Prezentace!F10=0,"",Prezentace!F10) -> Miroslav | E8: =IF(Prezentace!E10=0,"",Prezentace!E10) -> Koch st. | T8: 0
A9: =IF(Prezentace!A11=0,"",Prezentace!A11) ->  | B9: =IF(Prezentace!B11=0,"",Prezentace!B11) ->  | C9: =Prezentace!D11 -> P | D9: =IF(Prezentace!F11=0,"",Prezentace!F11) -> Bohumil | E9: =IF(Prezentace!E11=0,"",Prezentace!E11) -> Herceg | T9: 0
A10: =IF(Prezentace!A12=0,"",Prezentace!A12) ->  | B10: =IF(Prezentace!B12=0,"",Prezentace!B12) ->  | C10: =Prezentace!D12 -> P | D10: =IF(Prezentace!F12=0,"",Prezentace!F12) -> Viktor | E10: =IF(Prezentace!E12=0,"",Prezentace!E12) -> Fuksa | T10: 0
A11: =IF(Prezentace!A13=0,"",Prezentace!A13) ->  | B11: =IF(Prezentace!B13=0,"",Prezentace!B13) ->  | C11: =Prezentace!D13 -> P | D11: =IF(Prezentace!F13=0,"",Prezentace!F13) -> Milan | E11: =IF(Prezentace!E13=0,"",Prezentace!E13) -> Matějka ml. | T11: 0
A12: =IF(Prezentace!A14=0,"",Prezentace!A14) ->  | B12: =IF(Prezentace!B14=0,"",Prezentace!B14) ->  | C12: =Prezentace!D14 -> P | D12: =IF(Prezentace!F14=0,"",Prezentace!F14) -> Michal | E12: =IF(Prezentace!E14=0,"",Prezentace!E14) -> Svoboda | T12: 0
A13: =IF(Prezentace!A15=0,"",Prezentace!A15) ->  | B13: =IF(Prezentace!B15=0,"",Prezentace!B15) ->  | C13: =Prezentace!D15 -> R | D13: =IF(Prezentace!F15=0,"",Prezentace!F15) -> Lukáš | E13: =IF(Prezentace!E15=0,"",Prezentace!E15) -> Bouda | T13: 0
A14: =IF(Prezentace!A16=0,"",Prezentace!A16) ->  | B14: =IF(Prezentace!B16=0,"",Prezentace!B16) ->  | C14: =Prezentace!D16 -> P | D14: =IF(Prezentace!F16=0,"",Prezentace!F16) -> Lukáš | E14: =IF(Prezentace!E16=0,"",Prezentace!E16) -> Bouda | T14: 0
A15: =IF(Prezentace!A17=0,"",Prezentace!A17) ->  | B15: =IF(Prezentace!B17=0,"",Prezentace!B17) ->  | C15: =Prezentace!D17 -> P | D15: =IF(Prezentace!F17=0,"",Prezentace!F17) -> Pavel | E15: =IF(Prezentace!E17=0,"",Prezentace!E17) -> Koltai | T15: 0
A16: =IF(Prezentace!A18=0,"",Prezentace!A18) ->  | B16: =IF(Prezentace!B18=0,"",Prezentace!B18) ->  | C16: =Prezentace!D18 -> P | D16: =IF(Prezentace!F18=0,"",Prezentace!F18) -> Vladislav | E16: =IF(Prezentace!E18=0,"",Prezentace!E18) -> Přibyl | T16: 0
A17: =IF(Prezentace!A19=0,"",Prezentace!A19) ->  | B17: =IF(Prezentace!B19=0,"",Prezentace!B19) ->  | C17: =Prezentace!D19 -> P | D17: =IF(Prezentace!F19=0,"",Prezentace!F19) -> Milan | E17: =IF(Prezentace!E19=0,"",Prezentace!E19) -> Matějka st. | T17: 0
A18: =IF(Prezentace!A20=0,"",Prezentace!A20) ->  | B18: =IF(Prezentace!B20=0,"",Prezentace!B20) ->  | C18: =Prezentace!D20 -> P | D18: =IF(Prezentace!F20=0,"",Prezentace!F20) -> Miroslav | E18: =IF(Prezentace!E20=0,"",Prezentace!E20) -> Fiala | T18: 0
A19: =IF(Prezentace!A21=0,"",Prezentace!A21) ->  | B19: =IF(Prezentace!B21=0,"",Prezentace!B21) ->  | C19: =Prezentace!D21 -> P | D19: =IF(Prezentace!F21=0,"",Prezentace!F21) -> Karel | E19: =IF(Prezentace!E21=0,"",Prezentace!E21) -> Gažák | T19: 0
A20: =IF(Prezentace!A22=0,"",Prezentace!A22) ->  | B20: =IF(Prezentace!B22=0,"",Prezentace!B22) ->  | C20: =Prezentace!D22 -> P | D20: =IF(Prezentace!F22=0,"",Prezentace!F22) -> Václav | E20: =IF(Prezentace!E22=0,"",Prezentace!E22) -> Landkammer | T20: 0
A21: =IF(Prezentace!A23=0,"",Prezentace!A23) ->  | B21: =IF(Prezentace!B23=0,"",Prezentace!B23) ->  | C21: =Prezentace!D23 -> P | D21: =IF(Prezentace!F23=0,"",Prezentace!F23) -> Vojtěch | E21: =IF(Prezentace!E23=0,"",Prezentace!E23) -> Brejžek | T21: 0
A22: =IF(Prezentace!A24=0,"",Prezentace!A24) ->  | B22: =IF(Prezentace!B24=0,"",Prezentace!B24) ->  | C22: =Prezentace!D24 -> P | D22: =IF(Prezentace!F24=0,"",Prezentace!F24) -> Antonín | E22: =IF(Prezentace!E24=0,"",Prezentace!E24) -> Urbanec | T22: 0
A23: =IF(Prezentace!A25=0,"",Prezentace!A25) ->  | B23: =IF(Prezentace!B25=0,"",Prezentace!B25) ->  | C23: =Prezentace!D25 -> P | D23: =IF(Prezentace!F25=0,"",Prezentace!F25) -> Milan | E23: =IF(Prezentace!E25=0,"",Prezentace!E25) -> Jílek | T23: 0
A24: =IF(Prezentace!A26=0,"",Prezentace!A26) ->  | B24: =IF(Prezentace!B26=0,"",Prezentace!B26) ->  | C24: =Prezentace!D26 -> P | D24: =IF(Prezentace!F26=0,"",Prezentace!F26) -> Václav | E24: =IF(Prezentace!E26=0,"",Prezentace!E26) -> Jírů | T24: 0
A25: =IF(Prezentace!A27=0,"",Prezentace!A27) ->  | B25: =IF(Prezentace!B27=0,"",Prezentace!B27) ->  | C25: =Prezentace!D27 -> P | D25: =IF(Prezentace!F27=0,"",Prezentace!F27) -> Milan | E25: =IF(Prezentace!E27=0,"",Prezentace!E27) -> Krupica | T25: 0
A26: =IF(Prezentace!A28=0,"",Prezentace!A28) ->  | B26: =IF(Prezentace!B28=0,"",Prezentace!B28) ->  | C26: =Prezentace!D28 -> R | D26: =IF(Prezentace!F28=0,"",Prezentace!F28) -> Milan | E26: =IF(Prezentace!E28=0,"",Prezentace!E28) -> Krupica | T26: 0
A27: =IF(Prezentace!A29=0,"",Prezentace!A29) ->  | B27: =IF(Prezentace!B29=0,"",Prezentace!B29) ->  | C27: =Prezentace!D29 -> P | D27: =IF(Prezentace!F29=0,"",Prezentace!F29) -> Miloslav | E27: =IF(Prezentace!E29=0,"",Prezentace!E29) -> Petržílka | T27: 0
A28: =IF(Prezentace!A30=0,"",Prezentace!A30) ->  | B28: =IF(Prezentace!B30=0,"",Prezentace!B30) ->  | C28: =Prezentace!D30 -> R | D28: =IF(Prezentace!F30=0,"",Prezentace!F30) -> Aleš | E28: =IF(Prezentace!E30=0,"",Prezentace!E30) -> Seitl | T28: 0
A29: =IF(Prezentace!A31=0,"",Prezentace!A31) ->  | B29: =IF(Prezentace!B31=0,"",Prezentace!B31) ->  | C29: =Prezentace!D31 -> P | D29: =IF(Prezentace!F31=0,"",Prezentace!F31) -> Aleš | E29: =IF(Prezentace!E31=0,"",Prezentace!E31) -> Seitl | T29: 0
A30: =IF(Prezentace!A32=0,"",Prezentace!A32) ->  | B30: =IF(Prezentace!B32=0,"",Prezentace!B32) ->  | C30: =Prezentace!D32 -> P | D30: =IF(Prezentace!F32=0,"",Prezentace!F32) -> Karel | E30: =IF(Prezentace!E32=0,"",Prezentace!E32) -> Seitl | T30: 0
A31: =IF(Prezentace!A33=0,"",Prezentace!A33) ->  | B31: =IF(Prezentace!B33=0,"",Prezentace!B33) ->  | C31: =Prezentace!D33 -> P | D31: =IF(Prezentace!F33=0,"",Prezentace!F33) -> David | E31: =IF(Prezentace!E33=0,"",Prezentace!E33) -> Nikodým | T31: 0
A32: =IF(Prezentace!A34=0,"",Prezentace!A34) ->  | B32: =IF(Prezentace!B34=0,"",Prezentace!B34) ->  | C32: =Prezentace!D34 -> R | D32: =IF(Prezentace!F34=0,"",Prezentace!F34) -> David | E32: =IF(Prezentace!E34=0,"",Prezentace!E34) -> Nikodým | T32: 0
A33: =IF(Prezentace!A35=0,"",Prezentace!A35) ->  | B33: =IF(Prezentace!B35=0,"",Prezentace!B35) ->  | C33: =Prezentace!D35 -> P | D33: =IF(Prezentace!F35=0,"",Prezentace!F35) -> Lukáš | E33: =IF(Prezentace!E35=0,"",Prezentace!E35) -> Hobza | T33: 0
A34: =IF(Prezentace!A36=0,"",Prezentace!A36) ->  | B34: =IF(Prezentace!B36=0,"",Prezentace!B36) ->  | C34: =Prezentace!D36 -> P | D34: =IF(Prezentace!F36=0,"",Prezentace!F36) -> Antonín | E34: =IF(Prezentace!E36=0,"",Prezentace!E36) -> Jelínek | T34: 0
A35: =IF(Prezentace!A37=0,"",Prezentace!A37) ->  | B35: =IF(Prezentace!B37=0,"",Prezentace!B37) ->  | C35: =Prezentace!D37 -> R | D35: =IF(Prezentace!F37=0,"",Prezentace!F37) -> Antonín | E35: =IF(Prezentace!E37=0,"",Prezentace!E37) -> Jelínek | T35: 0
A36: =IF(Prezentace!A38=0,"",Prezentace!A38) ->  | B36: =IF(Prezentace!B38=0,"",Prezentace!B38) ->  | C36: =Prezentace!D38 -> P | D36: =IF(Prezentace!F38=0,"",Prezentace!F38) -> Ladislav | E36: =IF(Prezentace!E38=0,"",Prezentace!E38) -> Píša | T36: 0
A37: =IF(Prezentace!A39=0,"",Prezentace!A39) ->  | B37: =IF(Prezentace!B39=0,"",Prezentace!B39) ->  | C37: =Prezentace!D39 -> P | D37: =IF(Prezentace!F39=0,"",Prezentace!F39) -> Štefan | E37: =IF(Prezentace!E39=0,"",Prezentace!E39) -> Mesároš | T37: 0
A38: =IF(Prezentace!A40=0,"",Prezentace!A40) ->  | B38: =IF(Prezentace!B40=0,"",Prezentace!B40) ->  | C38: =Prezentace!D40 -> P | D38: =IF(Prezentace!F40=0,"",Prezentace!F40) -> Pavel | E38: =IF(Prezentace!E40=0,"",Prezentace!E40) -> Červenka | T38: =(SUM(F38*$F$3,G38*$G$3,H38*$H$3,I38*$I$3,J38*$J$3,K38*$K$3,L38*$L$3,M38*$M$3,N38*$N$3,O38*$O$3,P38*$P$3,Q38*$Q$3,R38*$R$3))-S38 -> 0
A39: =IF(Prezentace!A41=0,"",Prezentace!A41) ->  | B39: =IF(Prezentace!B41=0,"",Prezentace!B41) ->  | C39: =Prezentace!D41 -> R | D39: =IF(Prezentace!F41=0,"",Prezentace!F41) -> Pavel | E39: =IF(Prezentace!E41=0,"",Prezentace!E41) -> Červenka | T39: 0
A40: =IF(Prezentace!A42=0,"",Prezentace!A42) ->  | B40: =IF(Prezentace!B42=0,"",Prezentace!B42) ->  | C40: =Prezentace!D42 -> P | D40: =IF(Prezentace!F42=0,"",Prezentace!F42) -> Jiří | E40: =IF(Prezentace!E42=0,"",Prezentace!E42) -> Švihálek | T40: 0
A41: =IF(Prezentace!A43=0,"",Prezentace!A43) ->  | B41: =IF(Prezentace!B43=0,"",Prezentace!B43) ->  | C41: =Prezentace!D43 -> R | D41: =IF(Prezentace!F43=0,"",Prezentace!F43) -> Jiří | E41: =IF(Prezentace!E43=0,"",Prezentace!E43) -> Švihálek | T41: 0
A42: =IF(Prezentace!A44=0,"",Prezentace!A44) ->  | B42: =IF(Prezentace!B44=0,"",Prezentace!B44) ->  | C42: =Prezentace!D44 -> P | D42: =IF(Prezentace!F44=0,"",Prezentace!F44) -> František | E42: =IF(Prezentace!E44=0,"",Prezentace!E44) -> Toman | T42: 0
A43: =IF(Prezentace!A45=0,"",Prezentace!A45) ->  | B43: =IF(Prezentace!B45=0,"",Prezentace!B45) ->  | C43: =Prezentace!D45 -> P | D43: =IF(Prezentace!F45=0,"",Prezentace!F45) -> Vladimír | E43: =IF(Prezentace!E45=0,"",Prezentace!E45) -> VejslíK | T43: 0
A44: =IF(Prezentace!A46=0,"",Prezentace!A46) ->  | B44: =IF(Prezentace!B46=0,"",Prezentace!B46) ->  | C44: =Prezentace!D46 -> P | D44: =IF(Prezentace!F46=0,"",Prezentace!F46) -> Karel | E44: =IF(Prezentace!E46=0,"",Prezentace!E46) -> Získal | T44: 0
A45: =IF(Prezentace!A47=0,"",Prezentace!A47) ->  | B45: =IF(Prezentace!B47=0,"",Prezentace!B47) ->  | C45: =Prezentace!D47 -> R | D45: =IF(Prezentace!F47=0,"",Prezentace!F47) -> Karel | E45: =IF(Prezentace!E47=0,"",Prezentace!E47) -> Získal | T45: 0
A46: =IF(Prezentace!A48=0,"",Prezentace!A48) ->  | B46: =IF(Prezentace!B48=0,"",Prezentace!B48) ->  | C46: =Prezentace!D48 -> P | D46: =IF(Prezentace!F48=0,"",Prezentace!F48) -> Jaroslav | E46: =IF(Prezentace!E48=0,"",Prezentace!E48) -> Sokolík | T46: 0
A47: =IF(Prezentace!A49=0,"",Prezentace!A49) ->  | B47: =IF(Prezentace!B49=0,"",Prezentace!B49) ->  | C47: =Prezentace!D49 -> P | D47: =IF(Prezentace!F49=0,"",Prezentace!F49) -> Milan | E47: =IF(Prezentace!E49=0,"",Prezentace!E49) -> Kraus | T47: 0
A48: =IF(Prezentace!A50=0,"",Prezentace!A50) ->  | B48: =IF(Prezentace!B50=0,"",Prezentace!B50) ->  | C48: =Prezentace!D50 -> P | D48: =IF(Prezentace!F50=0,"",Prezentace!F50) ->  | E48: =IF(Prezentace!E50=0,"",Prezentace!E50) ->  | T48: 0
A49: =IF(Prezentace!A51=0,"",Prezentace!A51) ->  | B49: =IF(Prezentace!B51=0,"",Prezentace!B51) ->  | C49: =Prezentace!D51 -> P | D49: =IF(Prezentace!F51=0,"",Prezentace!F51) ->  | E49: =IF(Prezentace!E51=0,"",Prezentace!E51) ->  | T49: 0
A50: =IF(Prezentace!A52=0,"",Prezentace!A52) ->  | B50: =IF(Prezentace!B52=0,"",Prezentace!B52) ->  | C50: =Prezentace!D52 -> P | D50: =IF(Prezentace!F52=0,"",Prezentace!F52) ->  | E50: =IF(Prezentace!E52=0,"",Prezentace!E52) ->  | T50: 0
A51: =IF(Prezentace!A53=0,"",Prezentace!A53) ->  | B51: =IF(Prezentace!B53=0,"",Prezentace!B53) ->  | C51: =Prezentace!D53 -> P | D51: =IF(Prezentace!F53=0,"",Prezentace!F53) ->  | E51: =IF(Prezentace!E53=0,"",Prezentace!E53) ->  | T51: 0
A52: =IF(Prezentace!A54=0,"",Prezentace!A54) ->  | B52: =IF(Prezentace!B54=0,"",Prezentace!B54) ->  | C52: =Prezentace!D54 -> P | D52: =IF(Prezentace!F54=0,"",Prezentace!F54) ->  | E52: =IF(Prezentace!E54=0,"",Prezentace!E54) ->  | T52: 0
A53: =IF(Prezentace!A55=0,"",Prezentace!A55) ->  | B53: =IF(Prezentace!B55=0,"",Prezentace!B55) ->  | C53: =Prezentace!D55 -> P | D53: =IF(Prezentace!F55=0,"",Prezentace!F55) ->  | E53: =IF(Prezentace!E55=0,"",Prezentace!E55) ->  | T53: 0
A54: =IF(Prezentace!A56=0,"",Prezentace!A56) ->  | B54: =IF(Prezentace!B56=0,"",Prezentace!B56) ->  | C54: =Prezentace!D56 -> P | D54: =IF(Prezentace!F56=0,"",Prezentace!F56) ->  | E54: =IF(Prezentace!E56=0,"",Prezentace!E56) ->  | T54: 0
A55: =IF(Prezentace!A57=0,"",Prezentace!A57) ->  | B55: =IF(Prezentace!B57=0,"",Prezentace!B57) ->  | C55: =Prezentace!D57 -> P | D55: =IF(Prezentace!F57=0,"",Prezentace!F57) ->  | E55: =IF(Prezentace!E57=0,"",Prezentace!E57) ->  | T55: 0
A56: =IF(Prezentace!A58=0,"",Prezentace!A58) ->  | B56: =IF(Prezentace!B58=0,"",Prezentace!B58) ->  | C56: =Prezentace!D58 -> P | D56: =IF(Prezentace!F58=0,"",Prezentace!F58) ->  | E56: =IF(Prezentace!E58=0,"",Prezentace!E58) ->  | T56: 0
A57: =IF(Prezentace!A59=0,"",Prezentace!A59) ->  | B57: =IF(Prezentace!B59=0,"",Prezentace!B59) ->  | C57: =Prezentace!D59 -> P | D57: =IF(Prezentace!F59=0,"",Prezentace!F59) ->  | E57: =IF(Prezentace!E59=0,"",Prezentace!E59) ->  | T57: 0
A58: =IF(Prezentace!A60=0,"",Prezentace!A60) ->  | B58: =IF(Prezentace!B60=0,"",Prezentace!B60) ->  | C58: =Prezentace!D60 -> P | D58: =IF(Prezentace!F60=0,"",Prezentace!F60) ->  | E58: =IF(Prezentace!E60=0,"",Prezentace!E60) ->  | T58: 0
A59: =IF(Prezentace!A61=0,"",Prezentace!A61) ->  | B59: =IF(Prezentace!B61=0,"",Prezentace!B61) ->  | C59: =Prezentace!D61 -> P | D59: =IF(Prezentace!F61=0,"",Prezentace!F61) ->  | E59: =IF(Prezentace!E61=0,"",Prezentace!E61) ->  | T59: 0
A60: =IF(Prezentace!A62=0,"",Prezentace!A62) ->  | B60: =IF(Prezentace!B62=0,"",Prezentace!B62) ->  | C60: =Prezentace!D62 -> P | D60: =IF(Prezentace!F62=0,"",Prezentace!F62) ->  | E60: =IF(Prezentace!E62=0,"",Prezentace!E62) ->  | T60: 0
A61: =IF(Prezentace!A63=0,"",Prezentace!A63) ->  | B61: =IF(Prezentace!B63=0,"",Prezentace!B63) ->  | C61: =Prezentace!D63 -> P | D61: =IF(Prezentace!F63=0,"",Prezentace!F63) ->  | E61: =IF(Prezentace!E63=0,"",Prezentace!E63) ->  | T61: 0
A62: =IF(Prezentace!A64=0,"",Prezentace!A64) ->  | B62: =IF(Prezentace!B64=0,"",Prezentace!B64) ->  | C62: =Prezentace!D64 -> P | D62: =IF(Prezentace!F64=0,"",Prezentace!F64) ->  | E62: =IF(Prezentace!E64=0,"",Prezentace!E64) ->  | T62: 0
A63: =IF(Prezentace!A65=0,"",Prezentace!A65) ->  | B63: =IF(Prezentace!B65=0,"",Prezentace!B65) ->  | C63: =Prezentace!D65 -> P | D63: =IF(Prezentace!F65=0,"",Prezentace!F65) ->  | E63: =IF(Prezentace!E65=0,"",Prezentace!E65) ->  | T63: 0
A64: =IF(Prezentace!A66=0,"",Prezentace!A66) ->  | B64: =IF(Prezentace!B66=0,"",Prezentace!B66) ->  | C64: =Prezentace!D66 -> P | D64: =IF(Prezentace!F66=0,"",Prezentace!F66) ->  | E64: =IF(Prezentace!E66=0,"",Prezentace!E66) ->  | T64: 0
A65: =IF(Prezentace!A67=0,"",Prezentace!A67) ->  | B65: =IF(Prezentace!B67=0,"",Prezentace!B67) ->  | C65: =Prezentace!D67 -> P | D65: =IF(Prezentace!F67=0,"",Prezentace!F67) ->  | E65: =IF(Prezentace!E67=0,"",Prezentace!E67) ->  | T65: 0
A66: =IF(Prezentace!A68=0,"",Prezentace!A68) ->  | B66: =IF(Prezentace!B68=0,"",Prezentace!B68) ->  | C66: =Prezentace!D68 -> P | D66: =IF(Prezentace!F68=0,"",Prezentace!F68) ->  | E66: =IF(Prezentace!E68=0,"",Prezentace!E68) ->  | T66: 0
A67: =IF(Prezentace!A69=0,"",Prezentace!A69) ->  | B67: =IF(Prezentace!B69=0,"",Prezentace!B69) ->  | C67: =Prezentace!D69 -> P | D67: =IF(Prezentace!F69=0,"",Prezentace!F69) ->  | E67: =IF(Prezentace!E69=0,"",Prezentace!E69) ->  | T67: 0
A68: =IF(Prezentace!A70=0,"",Prezentace!A70) ->  | B68: =IF(Prezentace!B70=0,"",Prezentace!B70) ->  | C68: =Prezentace!D70 -> P | D68: =IF(Prezentace!F70=0,"",Prezentace!F70) ->  | E68: =IF(Prezentace!E70=0,"",Prezentace!E70) ->  | T68: 0
A69: =IF(Prezentace!A71=0,"",Prezentace!A71) ->  | B69: =IF(Prezentace!B71=0,"",Prezentace!B71) ->  | C69: =Prezentace!D71 -> P | D69: =IF(Prezentace!F71=0,"",Prezentace!F71) ->  | E69: =IF(Prezentace!E71=0,"",Prezentace!E71) ->  | T69: 0
A70: =IF(Prezentace!A72=0,"",Prezentace!A72) ->  | B70: =IF(Prezentace!B72=0,"",Prezentace!B72) ->  | C70: =Prezentace!D72 -> P | D70: =IF(Prezentace!F72=0,"",Prezentace!F72) ->  | E70: =IF(Prezentace!E72=0,"",Prezentace!E72) ->  | T70: 0
A71: =IF(Prezentace!A73=0,"",Prezentace!A73) ->  | B71: =IF(Prezentace!B73=0,"",Prezentace!B73) ->  | C71: =Prezentace!D73 -> P | D71: =IF(Prezentace!F73=0,"",Prezentace!F73) ->  | E71: =IF(Prezentace!E73=0,"",Prezentace!E73) ->  | T71: 0
A72: =IF(Prezentace!A74=0,"",Prezentace!A74) ->  | B72: =IF(Prezentace!B74=0,"",Prezentace!B74) ->  | C72: =Prezentace!D74 -> P | D72: =IF(Prezentace!F74=0,"",Prezentace!F74) ->  | E72: =IF(Prezentace!E74=0,"",Prezentace!E74) ->  | T72: 0
A73: =IF(Prezentace!A75=0,"",Prezentace!A75) ->  | B73: =IF(Prezentace!B75=0,"",Prezentace!B75) ->  | C73: =Prezentace!D75 -> P | D73: =IF(Prezentace!F75=0,"",Prezentace!F75) ->  | E73: =IF(Prezentace!E75=0,"",Prezentace!E75) ->  | T73: 0
A74: =IF(Prezentace!A76=0,"",Prezentace!A76) ->  | B74: =IF(Prezentace!B76=0,"",Prezentace!B76) ->  | C74: =Prezentace!D76 -> P | D74: =IF(Prezentace!F76=0,"",Prezentace!F76) ->  | E74: =IF(Prezentace!E76=0,"",Prezentace!E76) ->  | T74: 0
A75: =IF(Prezentace!A77=0,"",Prezentace!A77) ->  | B75: =IF(Prezentace!B77=0,"",Prezentace!B77) ->  | C75: =Prezentace!D77 -> P | D75: =IF(Prezentace!F77=0,"",Prezentace!F77) ->  | E75: =IF(Prezentace!E77=0,"",Prezentace!E77) ->  | T75: 0
A76: =IF(Prezentace!A78=0,"",Prezentace!A78) ->  | B76: =IF(Prezentace!B78=0,"",Prezentace!B78) ->  | C76: =Prezentace!D78 -> P | D76: =IF(Prezentace!F78=0,"",Prezentace!F78) ->  | E76: =IF(Prezentace!E78=0,"",Prezentace!E78) ->  | T76: 0
A77: =IF(Prezentace!A79=0,"",Prezentace!A79) ->  | B77: =IF(Prezentace!B79=0,"",Prezentace!B79) ->  | C77: =Prezentace!D79 -> P | D77: =IF(Prezentace!F79=0,"",Prezentace!F79) ->  | E77: =IF(Prezentace!E79=0,"",Prezentace!E79) ->  | T77: 0
A78: =IF(Prezentace!A80=0,"",Prezentace!A80) ->  | B78: =IF(Prezentace!B80=0,"",Prezentace!B80) ->  | C78: =Prezentace!D80 -> P | D78: =IF(Prezentace!F80=0,"",Prezentace!F80) ->  | E78: =IF(Prezentace!E80=0,"",Prezentace!E80) ->  | T78: 0
A79: =IF(Prezentace!A81=0,"",Prezentace!A81) ->  | B79: =IF(Prezentace!B81=0,"",Prezentace!B81) ->  | C79: =Prezentace!D81 -> P | D79: =IF(Prezentace!F81=0,"",Prezentace!F81) ->  | E79: =IF(Prezentace!E81=0,"",Prezentace!E81) ->  | T79: 0
A80: =IF(Prezentace!A82=0,"",Prezentace!A82) ->  | B80: =IF(Prezentace!B82=0,"",Prezentace!B82) ->  | C80: =Prezentace!D82 -> P | D80: =IF(Prezentace!F82=0,"",Prezentace!F82) ->  | E80: =IF(Prezentace!E82=0,"",Prezentace!E82) ->  | T80: 0
A81: =IF(Prezentace!A83=0,"",Prezentace!A83) ->  | B81: =IF(Prezentace!B83=0,"",Prezentace!B83) ->  | C81: =Prezentace!D83 -> P | D81: =IF(Prezentace!F83=0,"",Prezentace!F83) ->  | E81: =IF(Prezentace!E83=0,"",Prezentace!E83) ->  | T81: 0
A82: =IF(Prezentace!A84=0,"",Prezentace!A84) ->  | B82: =IF(Prezentace!B84=0,"",Prezentace!B84) ->  | C82: =Prezentace!D84 -> P | D82: =IF(Prezentace!F84=0,"",Prezentace!F84) ->  | E82: =IF(Prezentace!E84=0,"",Prezentace!E84) ->  | T82: 0
A83: =IF(Prezentace!A85=0,"",Prezentace!A85) ->  | B83: =IF(Prezentace!B85=0,"",Prezentace!B85) ->  | C83: =Prezentace!D85 -> P | D83: =IF(Prezentace!F85=0,"",Prezentace!F85) ->  | E83: =IF(Prezentace!E85=0,"",Prezentace!E85) ->  | T83: 0
A84: =IF(Prezentace!A86=0,"",Prezentace!A86) ->  | B84: =IF(Prezentace!B86=0,"",Prezentace!B86) ->  | C84: =Prezentace!D86 -> P | D84: =IF(Prezentace!F86=0,"",Prezentace!F86) ->  | E84: =IF(Prezentace!E86=0,"",Prezentace!E86) ->  | T84: 0
A85: =IF(Prezentace!A87=0,"",Prezentace!A87) ->  | B85: =IF(Prezentace!B87=0,"",Prezentace!B87) ->  | C85: =Prezentace!D87 -> P | D85: =IF(Prezentace!F87=0,"",Prezentace!F87) ->  | E85: =IF(Prezentace!E87=0,"",Prezentace!E87) ->  | T85: 0
A86: =IF(Prezentace!A88=0,"",Prezentace!A88) ->  | B86: =IF(Prezentace!B88=0,"",Prezentace!B88) ->  | C86: =Prezentace!D88 -> P | D86: =IF(Prezentace!F88=0,"",Prezentace!F88) ->  | E86: =IF(Prezentace!E88=0,"",Prezentace!E88) ->  | T86: 0
A87: =IF(Prezentace!A89=0,"",Prezentace!A89) ->  | B87: =IF(Prezentace!B89=0,"",Prezentace!B89) ->  | C87: =Prezentace!D89 -> P | D87: =IF(Prezentace!F89=0,"",Prezentace!F89) ->  | E87: =IF(Prezentace!E89=0,"",Prezentace!E89) ->  | T87: 0
A88: =IF(Prezentace!A90=0,"",Prezentace!A90) ->  | B88: =IF(Prezentace!B90=0,"",Prezentace!B90) ->  | C88: =Prezentace!D90 -> P | D88: =IF(Prezentace!F90=0,"",Prezentace!F90) ->  | E88: =IF(Prezentace!E90=0,"",Prezentace!E90) ->  | T88: 0
A89: =IF(Prezentace!A91=0,"",Prezentace!A91) ->  | B89: =IF(Prezentace!B91=0,"",Prezentace!B91) ->  | C89: =Prezentace!D91 -> P | D89: =IF(Prezentace!F91=0,"",Prezentace!F91) ->  | E89: =IF(Prezentace!E91=0,"",Prezentace!E91) ->  | T89: 0
A90: =IF(Prezentace!A92=0,"",Prezentace!A92) ->  | B90: =IF(Prezentace!B92=0,"",Prezentace!B92) ->  | C90: =Prezentace!D92 -> P | D90: =IF(Prezentace!F92=0,"",Prezentace!F92) ->  | E90: =IF(Prezentace!E92=0,"",Prezentace!E92) ->  | T90: 0
A91: =IF(Prezentace!A93=0,"",Prezentace!A93) ->  | B91: =IF(Prezentace!B93=0,"",Prezentace!B93) ->  | C91: =Prezentace!D93 -> P | D91: =IF(Prezentace!F93=0,"",Prezentace!F93) ->  | E91: =IF(Prezentace!E93=0,"",Prezentace!E93) ->  | T91: 0
A92: =IF(Prezentace!A94=0,"",Prezentace!A94) ->  | B92: =IF(Prezentace!B94=0,"",Prezentace!B94) ->  | C92: =Prezentace!D94 -> P | D92: =IF(Prezentace!F94=0,"",Prezentace!F94) ->  | E92: =IF(Prezentace!E94=0,"",Prezentace!E94) ->  | T92: 0
A93: =IF(Prezentace!A95=0,"",Prezentace!A95) ->  | B93: =IF(Prezentace!B95=0,"",Prezentace!B95) ->  | C93: =Prezentace!D95 -> P | D93: =IF(Prezentace!F95=0,"",Prezentace!F95) ->  | E93: =IF(Prezentace!E95=0,"",Prezentace!E95) ->  | T93: 0
A94: =IF(Prezentace!A96=0,"",Prezentace!A96) ->  | B94: =IF(Prezentace!B96=0,"",Prezentace!B96) ->  | C94: =Prezentace!D96 -> P | D94: =IF(Prezentace!F96=0,"",Prezentace!F96) ->  | E94: =IF(Prezentace!E96=0,"",Prezentace!E96) ->  | T94: 0
A95: =IF(Prezentace!A97=0,"",Prezentace!A97) ->  | B95: =IF(Prezentace!B97=0,"",Prezentace!B97) ->  | C95: =Prezentace!D97 -> P | D95: =IF(Prezentace!F97=0,"",Prezentace!F97) ->  | E95: =IF(Prezentace!E97=0,"",Prezentace!E97) ->  | T95: 0
A96: =IF(Prezentace!A98=0,"",Prezentace!A98) ->  | B96: =IF(Prezentace!B98=0,"",Prezentace!B98) ->  | C96: =Prezentace!D98 -> P | D96: =IF(Prezentace!F98=0,"",Prezentace!F98) ->  | E96: =IF(Prezentace!E98=0,"",Prezentace!E98) ->  | T96: 0
A97: =IF(Prezentace!A99=0,"",Prezentace!A99) ->  | B97: =IF(Prezentace!B99=0,"",Prezentace!B99) ->  | C97: =Prezentace!D99 -> P | D97: =IF(Prezentace!F99=0,"",Prezentace!F99) ->  | E97: =IF(Prezentace!E99=0,"",Prezentace!E99) ->  | T97: 0
A98: =IF(Prezentace!A100=0,"",Prezentace!A100) ->  | B98: =IF(Prezentace!B100=0,"",Prezentace!B100) ->  | C98: =Prezentace!D100 -> P | D98: =IF(Prezentace!F100=0,"",Prezentace!F100) ->  | E98: =IF(Prezentace!E100=0,"",Prezentace!E100) ->  | T98: 0
A99: =IF(Prezentace!A101=0,"",Prezentace!A101) ->  | B99: =IF(Prezentace!B101=0,"",Prezentace!B101) ->  | C99: =Prezentace!D101 -> P | D99: =IF(Prezentace!F101=0,"",Prezentace!F101) ->  | E99: =IF(Prezentace!E101=0,"",Prezentace!E101) ->  | T99: 0
A100: =IF(Prezentace!A102=0,"",Prezentace!A102) ->  | B100: =IF(Prezentace!B102=0,"",Prezentace!B102) ->  | C100: =Prezentace!D102 -> P | D100: =IF(Prezentace!F102=0,"",Prezentace!F102) ->  | E100: =IF(Prezentace!E102=0,"",Prezentace!E102) ->  | T100: 0
A101: =IF(Prezentace!A103=0,"",Prezentace!A103) ->  | B101: =IF(Prezentace!B103=0,"",Prezentace!B103) ->  | C101: =Prezentace!D103 -> P | D101: =IF(Prezentace!F103=0,"",Prezentace!F103) ->  | E101: =IF(Prezentace!E103=0,"",Prezentace!E103) ->  | T101: 0
A102: =IF(Prezentace!A104=0,"",Prezentace!A104) ->  | B102: =IF(Prezentace!B104=0,"",Prezentace!B104) ->  | C102: =Prezentace!D104 -> P | D102: =IF(Prezentace!F104=0,"",Prezentace!F104) ->  | E102: =IF(Prezentace!E104=0,"",Prezentace!E104) ->  | T102: =(SUM(F102*$F$3,G102*$G$3,H102*$H$3,I102*$I$3,J102*$J$3,K102*$K$3,L102*$L$3,M102*$M$3,N102*$N$3,O102*$O$3,P102*$P$3,Q102*$Q$3,R102*$R$3))-S102 -> 0

Sheet 5 (hidden)
A1: Druž. | B1: Kap. | D1: Disciplina 5
F3: K | G3: M | H3: 1 | I3: 2 | J3: 3 | K3: 4 | L3: 5 | M3: 6 | N3: 7 | O3: 8 | P3: 9 | Q3: 10 | R3: 11 | S3: 12 | T3: TB | U3: Čas | V3: Součet
A4: =IF(Prezentace!A6=0,"",Prezentace!A6) ->  | B4: =IF(Prezentace!B6=0,"",Prezentace!B6) ->  | C4: =Prezentace!D6 -> P | D4: =IF(Prezentace!F6=0,"",Prezentace!F6) -> Martin | E4: =IF(Prezentace!E6=0,"",Prezentace!E6) -> Adensam | V4: =(SUM(F4:T4))-U4 -> 0
A5: =IF(Prezentace!A7=0,"",Prezentace!A7) ->  | B5: =IF(Prezentace!B7=0,"",Prezentace!B7) ->  | C5: =Prezentace!D7 -> R | D5: =IF(Prezentace!F7=0,"",Prezentace!F7) -> Martin | E5: =IF(Prezentace!E7=0,"",Prezentace!E7) -> Adensam | V5: =(SUM(F5:T5))-U5 -> 0
A6: =IF(Prezentace!A8=0,"",Prezentace!A8) ->  | B6: =IF(Prezentace!B8=0,"",Prezentace!B8) ->  | C6: =Prezentace!D8 -> P | D6: =IF(Prezentace!F8=0,"",Prezentace!F8) -> Jaroslav | E6: =IF(Prezentace!E8=0,"",Prezentace!E8) -> Kostříž | V6: 0
A7: =IF(Prezentace!A9=0,"",Prezentace!A9) ->  | B7: =IF(Prezentace!B9=0,"",Prezentace!B9) ->  | C7: =Prezentace!D9 -> P | D7: =IF(Prezentace!F9=0,"",Prezentace!F9) -> Miroslav | E7: =IF(Prezentace!E9=0,"",Prezentace!E9) -> Koch ml. | V7: 0
A8: =IF(Prezentace!A10=0,"",Prezentace!A10) ->  | B8: =IF(Prezentace!B10=0,"",Prezentace!B10) ->  | C8: =Prezentace!D10 -> P | D8: =IF(Prezentace!F10=0,"",Prezentace!F10) -> Miroslav | E8: =IF(Prezentace!E10=0,"",Prezentace!E10) -> Koch st. | V8: 0
A9: =IF(Prezentace!A11=0,"",Prezentace!A11) ->  | B9: =IF(Prezentace!B11=0,"",Prezentace!B11) ->  | C9: =Prezentace!D11 -> P | D9: =IF(Prezentace!F11=0,"",Prezentace!F11) -> Bohumil | E9: =IF(Prezentace!E11=0,"",Prezentace!E11) -> Herceg | V9: 0
A10: =IF(Prezentace!A12=0,"",Prezentace!A12) ->  | B10: =IF(Prezentace!B12=0,"",Prezentace!B12) ->  | C10: =Prezentace!D12 -> P | D10: =IF(Prezentace!F12=0,"",Prezentace!F12) -> Viktor | E10: =IF(Prezentace!E12=0,"",Prezentace!E12) -> Fuksa | V10: 0
A11: =IF(Prezentace!A13=0,"",Prezentace!A13) ->  | B11: =IF(Prezentace!B13=0,"",Prezentace!B13) ->  | C11: =Prezentace!D13 -> P | D11: =IF(Prezentace!F13=0,"",Prezentace!F13) -> Milan | E11: =IF(Prezentace!E13=0,"",Prezentace!E13) -> Matějka ml. | V11: 0
A12: =IF(Prezentace!A14=0,"",Prezentace!A14) ->  | B12: =IF(Prezentace!B14=0,"",Prezentace!B14) ->  | C12: =Prezentace!D14 -> P | D12: =IF(Prezentace!F14=0,"",Prezentace!F14) -> Michal | E12: =IF(Prezentace!E14=0,"",Prezentace!E14) -> Svoboda | V12: 0
A13: =IF(Prezentace!A15=0,"",Prezentace!A15) ->  | B13: =IF(Prezentace!B15=0,"",Prezentace!B15) ->  | C13: =Prezentace!D15 -> R | D13: =IF(Prezentace!F15=0,"",Prezentace!F15) -> Lukáš | E13: =IF(Prezentace!E15=0,"",Prezentace!E15) -> Bouda | V13: 0
A14: =IF(Prezentace!A16=0,"",Prezentace!A16) ->  | B14: =IF(Prezentace!B16=0,"",Prezentace!B16) ->  | C14: =Prezentace!D16 -> P | D14: =IF(Prezentace!F16=0,"",Prezentace!F16) -> Lukáš | E14: =IF(Prezentace!E16=0,"",Prezentace!E16) -> Bouda | V14: 0
A15: =IF(Prezentace!A17=0,"",Prezentace!A17) ->  | B15: =IF(Prezentace!B17=0,"",Prezentace!B17) ->  | C15: =Prezentace!D17 -> P | D15: =IF(Prezentace!F17=0,"",Prezentace!F17) -> Pavel | E15: =IF(Prezentace!E17=0,"",Prezentace!E17) -> Koltai | V15: 0
A16: =IF(Prezentace!A18=0,"",Prezentace!A18) ->  | B16: =IF(Prezentace!B18=0,"",Prezentace!B18) ->  | C16: =Prezentace!D18 -> P | D16: =IF(Prezentace!F18=0,"",Prezentace!F18) -> Vladislav | E16: =IF(Prezentace!E18=0,"",Prezentace!E18) -> Přibyl | V16: 0
A17: =IF(Prezentace!A19=0,"",Prezentace!A19) ->  | B17: =IF(Prezentace!B19=0,"",Prezentace!B19) ->  | C17: =Prezentace!D19 -> P | D17: =IF(Prezentace!F19=0,"",Prezentace!F19) -> Milan | E17: =IF(Prezentace!E19=0,"",Prezentace!E19) -> Matějka st. | V17: 0
A18: =IF(Prezentace!A20=0,"",Prezentace!A20) ->  | B18: =IF(Prezentace!B20=0,"",Prezentace!B20) ->  | C18: =Prezentace!D20 -> P | D18: =IF(Prezentace!F20=0,"",Prezentace!F20) -> Miroslav | E18: =IF(Prezentace!E20=0,"",Prezentace!E20) -> Fiala | V18: 0
A19: =IF(Prezentace!A21=0,"",Prezentace!A21) ->  | B19: =IF(Prezentace!B21=0,"",Prezentace!B21) ->  | C19: =Prezentace!D21 -> P | D19: =IF(Prezentace!F21=0,"",Prezentace!F21) -> Karel | E19: =IF(Prezentace!E21=0,"",Prezentace!E21) -> Gažák | V19: 0
A20: =IF(Prezentace!A22=0,"",Prezentace!A22) ->  | B20: =IF(Prezentace!B22=0,"",Prezentace!B22) ->  | C20: =Prezentace!D22 -> P | D20: =IF(Prezentace!F22=0,"",Prezentace!F22) -> Václav | E20: =IF(Prezentace!E22=0,"",Prezentace!E22) -> Landkammer | V20: 0
A21: =IF(Prezentace!A23=0,"",Prezentace!A23) ->  | B21: =IF(Prezentace!B23=0,"",Prezentace!B23) ->  | C21: =Prezentace!D23 -> P | D21: =IF(Prezentace!F23=0,"",Prezentace!F23) -> Vojtěch | E21: =IF(Prezentace!E23=0,"",Prezentace!E23) -> Brejžek | V21: 0
A22: =IF(Prezentace!A24=0,"",Prezentace!A24) ->  | B22: =IF(Prezentace!B24=0,"",Prezentace!B24) ->  | C22: =Prezentace!D24 -> P | D22: =IF(Prezentace!F24=0,"",Prezentace!F24) -> Antonín | E22: =IF(Prezentace!E24=0,"",Prezentace!E24) -> Urbanec | V22: 0
A23: =IF(Prezentace!A25=0,"",Prezentace!A25) ->  | B23: =IF(Prezentace!B25=0,"",Prezentace!B25) ->  | C23: =Prezentace!D25 -> P | D23: =IF(Prezentace!F25=0,"",Prezentace!F25) -> Milan | E23: =IF(Prezentace!E25=0,"",Prezentace!E25) -> Jílek | V23: 0
A24: =IF(Prezentace!A26=0,"",Prezentace!A26) ->  | B24: =IF(Prezentace!B26=0,"",Prezentace!B26) ->  | C24: =Prezentace!D26 -> P | D24: =IF(Prezentace!F26=0,"",Prezentace!F26) -> Václav | E24: =IF(Prezentace!E26=0,"",Prezentace!E26) -> Jírů | V24: 0
A25: =IF(Prezentace!A27=0,"",Prezentace!A27) ->  | B25: =IF(Prezentace!B27=0,"",Prezentace!B27) ->  | C25: =Prezentace!D27 -> P | D25: =IF(Prezentace!F27=0,"",Prezentace!F27) -> Milan | E25: =IF(Prezentace!E27=0,"",Prezentace!E27) -> Krupica | V25: 0
A26: =IF(Prezentace!A28=0,"",Prezentace!A28) ->  | B26: =IF(Prezentace!B28=0,"",Prezentace!B28) ->  | C26: =Prezentace!D28 -> R | D26: =IF(Prezentace!F28=0,"",Prezentace!F28) -> Milan | E26: =IF(Prezentace!E28=0,"",Prezentace!E28) -> Krupica | V26: 0
A27: =IF(Prezentace!A29=0,"",Prezentace!A29) ->  | B27: =IF(Prezentace!B29=0,"",Prezentace!B29) ->  | C27: =Prezentace!D29 -> P | D27: =IF(Prezentace!F29=0,"",Prezentace!F29) -> Miloslav | E27: =IF(Prezentace!E29=0,"",Prezentace!E29) -> Petržílka | V27: 0
A28: =IF(Prezentace!A30=0,"",Prezentace!A30) ->  | B28: =IF(Prezentace!B30=0,"",Prezentace!B30) ->  | C28: =Prezentace!D30 -> R | D28: =IF(Prezentace!F30=0,"",Prezentace!F30) -> Aleš | E28: =IF(Prezentace!E30=0,"",Prezentace!E30) -> Seitl | V28: 0
A29: =IF(Prezentace!A31=0,"",Prezentace!A31) ->  | B29: =IF(Prezentace!B31=0,"",Prezentace!B31) ->  | C29: =Prezentace!D31 -> P | D29: =IF(Prezentace!F31=0,"",Prezentace!F31) -> Aleš | E29: =IF(Prezentace!E31=0,"",Prezentace!E31) -> Seitl | V29: 0
A30: =IF(Prezentace!A32=0,"",Prezentace!A32) ->  | B30: =IF(Prezentace!B32=0,"",Prezentace!B32) ->  | C30: =Prezentace!D32 -> P | D30: =IF(Prezentace!F32=0,"",Prezentace!F32) -> Karel | E30: =IF(Prezentace!E32=0,"",Prezentace!E32) -> Seitl | V30: 0
A31: =IF(Prezentace!A33=0,"",Prezentace!A33) ->  | B31: =IF(Prezentace!B33=0,"",Prezentace!B33) ->  | C31: =Prezentace!D33 -> P | D31: =IF(Prezentace!F33=0,"",Prezentace!F33) -> David | E31: =IF(Prezentace!E33=0,"",Prezentace!E33) -> Nikodým | V31: 0
A32: =IF(Prezentace!A34=0,"",Prezentace!A34) ->  | B32: =IF(Prezentace!B34=0,"",Prezentace!B34) ->  | C32: =Prezentace!D34 -> R | D32: =IF(Prezentace!F34=0,"",Prezentace!F34) -> David | E32: =IF(Prezentace!E34=0,"",Prezentace!E34) -> Nikodým | V32: 0
A33: =IF(Prezentace!A35=0,"",Prezentace!A35) ->  | B33: =IF(Prezentace!B35=0,"",Prezentace!B35) ->  | C33: =Prezentace!D35 -> P | D33: =IF(Prezentace!F35=0,"",Prezentace!F35) -> Lukáš | E33: =IF(Prezentace!E35=0,"",Prezentace!E35) -> Hobza | V33: 0
A34: =IF(Prezentace!A36=0,"",Prezentace!A36) ->  | B34: =IF(Prezentace!B36=0,"",Prezentace!B36) ->  | C34: =Prezentace!D36 -> P | D34: =IF(Prezentace!F36=0,"",Prezentace!F36) -> Antonín | E34: =IF(Prezentace!E36=0,"",Prezentace!E36) -> Jelínek | V34: 0
A35: =IF(Prezentace!A37=0,"",Prezentace!A37) ->  | B35: =IF(Prezentace!B37=0,"",Prezentace!B37) ->  | C35: =Prezentace!D37 -> R | D35: =IF(Prezentace!F37=0,"",Prezentace!F37) -> Antonín | E35: =IF(Prezentace!E37=0,"",Prezentace!E37) -> Jelínek | V35: 0
A36: =IF(Prezentace!A38=0,"",Prezentace!A38) ->  | B36: =IF(Prezentace!B38=0,"",Prezentace!B38) ->  | C36: =Prezentace!D38 -> P | D36: =IF(Prezentace!F38=0,"",Prezentace!F38) -> Ladislav | E36: =IF(Prezentace!E38=0,"",Prezentace!E38) -> Píša | V36: 0
A37: =IF(Prezentace!A39=0,"",Prezentace!A39) ->  | B37: =IF(Prezentace!B39=0,"",Prezentace!B39) ->  | C37: =Prezentace!D39 -> P | D37: =IF(Prezentace!F39=0,"",Prezentace!F39) -> Štefan | E37: =IF(Prezentace!E39=0,"",Prezentace!E39) -> Mesároš | V37: 0
A38: =IF(Prezentace!A40=0,"",Prezentace!A40) ->  | B38: =IF(Prezentace!B40=0,"",Prezentace!B40) ->  | C38: =Prezentace!D40 -> P | D38: =IF(Prezentace!F40=0,"",Prezentace!F40) -> Pavel | E38: =IF(Prezentace!E40=0,"",Prezentace!E40) -> Červenka | V38: =(SUM(F38:T38))-U38 -> 0
A39: =IF(Prezentace!A41=0,"",Prezentace!A41) ->  | B39: =IF(Prezentace!B41=0,"",Prezentace!B41) ->  | C39: =Prezentace!D41 -> R | D39: =IF(Prezentace!F41=0,"",Prezentace!F41) -> Pavel | E39: =IF(Prezentace!E41=0,"",Prezentace!E41) -> Červenka | V39: 0
A40: =IF(Prezentace!A42=0,"",Prezentace!A42) ->  | B40: =IF(Prezentace!B42=0,"",Prezentace!B42) ->  | C40: =Prezentace!D42 -> P | D40: =IF(Prezentace!F42=0,"",Prezentace!F42) -> Jiří | E40: =IF(Prezentace!E42=0,"",Prezentace!E42) -> Švihálek | V40: 0
A41: =IF(Prezentace!A43=0,"",Prezentace!A43) ->  | B41: =IF(Prezentace!B43=0,"",Prezentace!B43) ->  | C41: =Prezentace!D43 -> R | D41: =IF(Prezentace!F43=0,"",Prezentace!F43) -> Jiří | E41: =IF(Prezentace!E43=0,"",Prezentace!E43) -> Švihálek | V41: 0
A42: =IF(Prezentace!A44=0,"",Prezentace!A44) ->  | B42: =IF(Prezentace!B44=0,"",Prezentace!B44) ->  | C42: =Prezentace!D44 -> P | D42: =IF(Prezentace!F44=0,"",Prezentace!F44) -> František | E42: =IF(Prezentace!E44=0,"",Prezentace!E44) -> Toman | V42: 0
A43: =IF(Prezentace!A45=0,"",Prezentace!A45) ->  | B43: =IF(Prezentace!B45=0,"",Prezentace!B45) ->  | C43: =Prezentace!D45 -> P | D43: =IF(Prezentace!F45=0,"",Prezentace!F45) -> Vladimír | E43: =IF(Prezentace!E45=0,"",Prezentace!E45) -> VejslíK | V43: 0
A44: =IF(Prezentace!A46=0,"",Prezentace!A46) ->  | B44: =IF(Prezentace!B46=0,"",Prezentace!B46) ->  | C44: =Prezentace!D46 -> P | D44: =IF(Prezentace!F46=0,"",Prezentace!F46) -> Karel | E44: =IF(Prezentace!E46=0,"",Prezentace!E46) -> Získal | V44: 0
A45: =IF(Prezentace!A47=0,"",Prezentace!A47) ->  | B45: =IF(Prezentace!B47=0,"",Prezentace!B47) ->  | C45: =Prezentace!D47 -> R | D45: =IF(Prezentace!F47=0,"",Prezentace!F47) -> Karel | E45: =IF(Prezentace!E47=0,"",Prezentace!E47) -> Získal | V45: 0
A46: =IF(Prezentace!A48=0,"",Prezentace!A48) ->  | B46: =IF(Prezentace!B48=0,"",Prezentace!B48) ->  | C46: =Prezentace!D48 -> P | D46: =IF(Prezentace!F48=0,"",Prezentace!F48) -> Jaroslav | E46: =IF(Prezentace!E48=0,"",Prezentace!E48) -> Sokolík | V46: 0
A47: =IF(Prezentace!A49=0,"",Prezentace!A49) ->  | B47: =IF(Prezentace!B49=0,"",Prezentace!B49) ->  | C47: =Prezentace!D49 -> P | D47: =IF(Prezentace!F49=0,"",Prezentace!F49) -> Milan | E47: =IF(Prezentace!E49=0,"",Prezentace!E49) -> Kraus | V47: 0
A48: =IF(Prezentace!A50=0,"",Prezentace!A50) ->  | B48: =IF(Prezentace!B50=0,"",Prezentace!B50) ->  | C48: =Prezentace!D50 -> P | D48: =IF(Prezentace!F50=0,"",Prezentace!F50) ->  | E48: =IF(Prezentace!E50=0,"",Prezentace!E50) ->  | V48: 0
A49: =IF(Prezentace!A51=0,"",Prezentace!A51) ->  | B49: =IF(Prezentace!B51=0,"",Prezentace!B51) ->  | C49: =Prezentace!D51 -> P | D49: =IF(Prezentace!F51=0,"",Prezentace!F51) ->  | E49: =IF(Prezentace!E51=0,"",Prezentace!E51) ->  | V49: 0
A50: =IF(Prezentace!A52=0,"",Prezentace!A52) ->  | B50: =IF(Prezentace!B52=0,"",Prezentace!B52) ->  | C50: =Prezentace!D52 -> P | D50: =IF(Prezentace!F52=0,"",Prezentace!F52) ->  | E50: =IF(Prezentace!E52=0,"",Prezentace!E52) ->  | V50: 0
A51: =IF(Prezentace!A53=0,"",Prezentace!A53) ->  | B51: =IF(Prezentace!B53=0,"",Prezentace!B53) ->  | C51: =Prezentace!D53 -> P | D51: =IF(Prezentace!F53=0,"",Prezentace!F53) ->  | E51: =IF(Prezentace!E53=0,"",Prezentace!E53) ->  | V51: 0
A52: =IF(Prezentace!A54=0,"",Prezentace!A54) ->  | B52: =IF(Prezentace!B54=0,"",Prezentace!B54) ->  | C52: =Prezentace!D54 -> P | D52: =IF(Prezentace!F54=0,"",Prezentace!F54) ->  | E52: =IF(Prezentace!E54=0,"",Prezentace!E54) ->  | V52: 0
A53: =IF(Prezentace!A55=0,"",Prezentace!A55) ->  | B53: =IF(Prezentace!B55=0,"",Prezentace!B55) ->  | C53: =Prezentace!D55 -> P | D53: =IF(Prezentace!F55=0,"",Prezentace!F55) ->  | E53: =IF(Prezentace!E55=0,"",Prezentace!E55) ->  | V53: 0
A54: =IF(Prezentace!A56=0,"",Prezentace!A56) ->  | B54: =IF(Prezentace!B56=0,"",Prezentace!B56) ->  | C54: =Prezentace!D56 -> P | D54: =IF(Prezentace!F56=0,"",Prezentace!F56) ->  | E54: =IF(Prezentace!E56=0,"",Prezentace!E56) ->  | V54: 0
A55: =IF(Prezentace!A57=0,"",Prezentace!A57) ->  | B55: =IF(Prezentace!B57=0,"",Prezentace!B57) ->  | C55: =Prezentace!D57 -> P | D55: =IF(Prezentace!F57=0,"",Prezentace!F57) ->  | E55: =IF(Prezentace!E57=0,"",Prezentace!E57) ->  | V55: 0
A56: =IF(Prezentace!A58=0,"",Prezentace!A58) ->  | B56: =IF(Prezentace!B58=0,"",Prezentace!B58) ->  | C56: =Prezentace!D58 -> P | D56: =IF(Prezentace!F58=0,"",Prezentace!F58) ->  | E56: =IF(Prezentace!E58=0,"",Prezentace!E58) ->  | V56: 0
A57: =IF(Prezentace!A59=0,"",Prezentace!A59) ->  | B57: =IF(Prezentace!B59=0,"",Prezentace!B59) ->  | C57: =Prezentace!D59 -> P | D57: =IF(Prezentace!F59=0,"",Prezentace!F59) ->  | E57: =IF(Prezentace!E59=0,"",Prezentace!E59) ->  | V57: 0
A58: =IF(Prezentace!A60=0,"",Prezentace!A60) ->  | B58: =IF(Prezentace!B60=0,"",Prezentace!B60) ->  | C58: =Prezentace!D60 -> P | D58: =IF(Prezentace!F60=0,"",Prezentace!F60) ->  | E58: =IF(Prezentace!E60=0,"",Prezentace!E60) ->  | V58: 0
A59: =IF(Prezentace!A61=0,"",Prezentace!A61) ->  | B59: =IF(Prezentace!B61=0,"",Prezentace!B61) ->  | C59: =Prezentace!D61 -> P | D59: =IF(Prezentace!F61=0,"",Prezentace!F61) ->  | E59: =IF(Prezentace!E61=0,"",Prezentace!E61) ->  | V59: 0
A60: =IF(Prezentace!A62=0,"",Prezentace!A62) ->  | B60: =IF(Prezentace!B62=0,"",Prezentace!B62) ->  | C60: =Prezentace!D62 -> P | D60: =IF(Prezentace!F62=0,"",Prezentace!F62) ->  | E60: =IF(Prezentace!E62=0,"",Prezentace!E62) ->  | V60: 0
A61: =IF(Prezentace!A63=0,"",Prezentace!A63) ->  | B61: =IF(Prezentace!B63=0,"",Prezentace!B63) ->  | C61: =Prezentace!D63 -> P | D61: =IF(Prezentace!F63=0,"",Prezentace!F63) ->  | E61: =IF(Prezentace!E63=0,"",Prezentace!E63) ->  | V61: 0
A62: =IF(Prezentace!A64=0,"",Prezentace!A64) ->  | B62: =IF(Prezentace!B64=0,"",Prezentace!B64) ->  | C62: =Prezentace!D64 -> P | D62: =IF(Prezentace!F64=0,"",Prezentace!F64) ->  | E62: =IF(Prezentace!E64=0,"",Prezentace!E64) ->  | V62: 0
A63: =IF(Prezentace!A65=0,"",Prezentace!A65) ->  | B63: =IF(Prezentace!B65=0,"",Prezentace!B65) ->  | C63: =Prezentace!D65 -> P | D63: =IF(Prezentace!F65=0,"",Prezentace!F65) ->  | E63: =IF(Prezentace!E65=0,"",Prezentace!E65) ->  | V63: 0
A64: =IF(Prezentace!A66=0,"",Prezentace!A66) ->  | B64: =IF(Prezentace!B66=0,"",Prezentace!B66) ->  | C64: =Prezentace!D66 -> P | D64: =IF(Prezentace!F66=0,"",Prezentace!F66) ->  | E64: =IF(Prezentace!E66=0,"",Prezentace!E66) ->  | V64: 0
A65: =IF(Prezentace!A67=0,"",Prezentace!A67) ->  | B65: =IF(Prezentace!B67=0,"",Prezentace!B67) ->  | C65: =Prezentace!D67 -> P | D65: =IF(Prezentace!F67=0,"",Prezentace!F67) ->  | E65: =IF(Prezentace!E67=0,"",Prezentace!E67) ->  | V65: 0
A66: =IF(Prezentace!A68=0,"",Prezentace!A68) ->  | B66: =IF(Prezentace!B68=0,"",Prezentace!B68) ->  | C66: =Prezentace!D68 -> P | D66: =IF(Prezentace!F68=0,"",Prezentace!F68) ->  | E66: =IF(Prezentace!E68=0,"",Prezentace!E68) ->  | V66: 0
A67: =IF(Prezentace!A69=0,"",Prezentace!A69) ->  | B67: =IF(Prezentace!B69=0,"",Prezentace!B69) ->  | C67: =Prezentace!D69 -> P | D67: =IF(Prezentace!F69=0,"",Prezentace!F69) ->  | E67: =IF(Prezentace!E69=0,"",Prezentace!E69) ->  | V67: 0
A68: =IF(Prezentace!A70=0,"",Prezentace!A70) ->  | B68: =IF(Prezentace!B70=0,"",Prezentace!B70) ->  | C68: =Prezentace!D70 -> P | D68: =IF(Prezentace!F70=0,"",Prezentace!F70) ->  | E68: =IF(Prezentace!E70=0,"",Prezentace!E70) ->  | V68: 0
A69: =IF(Prezentace!A71=0,"",Prezentace!A71) ->  | B69: =IF(Prezentace!B71=0,"",Prezentace!B71) ->  | C69: =Prezentace!D71 -> P | D69: =IF(Prezentace!F71=0,"",Prezentace!F71) ->  | E69: =IF(Prezentace!E71=0,"",Prezentace!E71) ->  | V69: 0
A70: =IF(Prezentace!A72=0,"",Prezentace!A72) ->  | B70: =IF(Prezentace!B72=0,"",Prezentace!B72) ->  | C70: =Prezentace!D72 -> P | D70: =IF(Prezentace!F72=0,"",Prezentace!F72) ->  | E70: =IF(Prezentace!E72=0,"",Prezentace!E72) ->  | V70: 0
A71: =IF(Prezentace!A73=0,"",Prezentace!A73) ->  | B71: =IF(Prezentace!B73=0,"",Prezentace!B73) ->  | C71: =Prezentace!D73 -> P | D71: =IF(Prezentace!F73=0,"",Prezentace!F73) ->  | E71: =IF(Prezentace!E73=0,"",Prezentace!E73) ->  | V71: 0
A72: =IF(Prezentace!A74=0,"",Prezentace!A74) ->  | B72: =IF(Prezentace!B74=0,"",Prezentace!B74) ->  | C72: =Prezentace!D74 -> P | D72: =IF(Prezentace!F74=0,"",Prezentace!F74) ->  | E72: =IF(Prezentace!E74=0,"",Prezentace!E74) ->  | V72: 0
A73: =IF(Prezentace!A75=0,"",Prezentace!A75) ->  | B73: =IF(Prezentace!B75=0,"",Prezentace!B75) ->  | C73: =Prezentace!D75 -> P | D73: =IF(Prezentace!F75=0,"",Prezentace!F75) ->  | E73: =IF(Prezentace!E75=0,"",Prezentace!E75) ->  | V73: 0
A74: =IF(Prezentace!A76=0,"",Prezentace!A76) ->  | B74: =IF(Prezentace!B76=0,"",Prezentace!B76) ->  | C74: =Prezentace!D76 -> P | D74: =IF(Prezentace!F76=0,"",Prezentace!F76) ->  | E74: =IF(Prezentace!E76=0,"",Prezentace!E76) ->  | V74: 0
A75: =IF(Prezentace!A77=0,"",Prezentace!A77) ->  | B75: =IF(Prezentace!B77=0,"",Prezentace!B77) ->  | C75: =Prezentace!D77 -> P | D75: =IF(Prezentace!F77=0,"",Prezentace!F77) ->  | E75: =IF(Prezentace!E77=0,"",Prezentace!E77) ->  | V75: 0
A76: =IF(Prezentace!A78=0,"",Prezentace!A78) ->  | B76: =IF(Prezentace!B78=0,"",Prezentace!B78) ->  | C76: =Prezentace!D78 -> P | D76: =IF(Prezentace!F78=0,"",Prezentace!F78) ->  | E76: =IF(Prezentace!E78=0,"",Prezentace!E78) ->  | V76: 0
A77: =IF(Prezentace!A79=0,"",Prezentace!A79) ->  | B77: =IF(Prezentace!B79=0,"",Prezentace!B79) ->  | C77: =Prezentace!D79 -> P | D77: =IF(Prezentace!F79=0,"",Prezentace!F79) ->  | E77: =IF(Prezentace!E79=0,"",Prezentace!E79) ->  | V77: 0
A78: =IF(Prezentace!A80=0,"",Prezentace!A80) ->  | B78: =IF(Prezentace!B80=0,"",Prezentace!B80) ->  | C78: =Prezentace!D80 -> P | D78: =IF(Prezentace!F80=0,"",Prezentace!F80) ->  | E78: =IF(Prezentace!E80=0,"",Prezentace!E80) ->  | V78: 0
A79: =IF(Prezentace!A81=0,"",Prezentace!A81) ->  | B79: =IF(Prezentace!B81=0,"",Prezentace!B81) ->  | C79: =Prezentace!D81 -> P | D79: =IF(Prezentace!F81=0,"",Prezentace!F81) ->  | E79: =IF(Prezentace!E81=0,"",Prezentace!E81) ->  | V79: 0
A80: =IF(Prezentace!A82=0,"",Prezentace!A82) ->  | B80: =IF(Prezentace!B82=0,"",Prezentace!B82) ->  | C80: =Prezentace!D82 -> P | D80: =IF(Prezentace!F82=0,"",Prezentace!F82) ->  | E80: =IF(Prezentace!E82=0,"",Prezentace!E82) ->  | V80: 0
A81: =IF(Prezentace!A83=0,"",Prezentace!A83) ->  | B81: =IF(Prezentace!B83=0,"",Prezentace!B83) ->  | C81: =Prezentace!D83 -> P | D81: =IF(Prezentace!F83=0,"",Prezentace!F83) ->  | E81: =IF(Prezentace!E83=0,"",Prezentace!E83) ->  | V81: 0
A82: =IF(Prezentace!A84=0,"",Prezentace!A84) ->  | B82: =IF(Prezentace!B84=0,"",Prezentace!B84) ->  | C82: =Prezentace!D84 -> P | D82: =IF(Prezentace!F84=0,"",Prezentace!F84) ->  | E82: =IF(Prezentace!E84=0,"",Prezentace!E84) ->  | V82: 0
A83: =IF(Prezentace!A85=0,"",Prezentace!A85) ->  | B83: =IF(Prezentace!B85=0,"",Prezentace!B85) ->  | C83: =Prezentace!D85 -> P | D83: =IF(Prezentace!F85=0,"",Prezentace!F85) ->  | E83: =IF(Prezentace!E85=0,"",Prezentace!E85) ->  | V83: 0
A84: =IF(Prezentace!A86=0,"",Prezentace!A86) ->  | B84: =IF(Prezentace!B86=0,"",Prezentace!B86) ->  | C84: =Prezentace!D86 -> P | D84: =IF(Prezentace!F86=0,"",Prezentace!F86) ->  | E84: =IF(Prezentace!E86=0,"",Prezentace!E86) ->  | V84: 0
A85: =IF(Prezentace!A87=0,"",Prezentace!A87) ->  | B85: =IF(Prezentace!B87=0,"",Prezentace!B87) ->  | C85: =Prezentace!D87 -> P | D85: =IF(Prezentace!F87=0,"",Prezentace!F87) ->  | E85: =IF(Prezentace!E87=0,"",Prezentace!E87) ->  | V85: 0
A86: =IF(Prezentace!A88=0,"",Prezentace!A88) ->  | B86: =IF(Prezentace!B88=0,"",Prezentace!B88) ->  | C86: =Prezentace!D88 -> P | D86: =IF(Prezentace!F88=0,"",Prezentace!F88) ->  | E86: =IF(Prezentace!E88=0,"",Prezentace!E88) ->  | V86: 0
A87: =IF(Prezentace!A89=0,"",Prezentace!A89) ->  | B87: =IF(Prezentace!B89=0,"",Prezentace!B89) ->  | C87: =Prezentace!D89 -> P | D87: =IF(Prezentace!F89=0,"",Prezentace!F89) ->  | E87: =IF(Prezentace!E89=0,"",Prezentace!E89) ->  | V87: 0
A88: =IF(Prezentace!A90=0,"",Prezentace!A90) ->  | B88: =IF(Prezentace!B90=0,"",Prezentace!B90) ->  | C88: =Prezentace!D90 -> P | D88: =IF(Prezentace!F90=0,"",Prezentace!F90) ->  | E88: =IF(Prezentace!E90=0,"",Prezentace!E90) ->  | V88: 0
A89: =IF(Prezentace!A91=0,"",Prezentace!A91) ->  | B89: =IF(Prezentace!B91=0,"",Prezentace!B91) ->  | C89: =Prezentace!D91 -> P | D89: =IF(Prezentace!F91=0,"",Prezentace!F91) ->  | E89: =IF(Prezentace!E91=0,"",Prezentace!E91) ->  | V89: 0
A90: =IF(Prezentace!A92=0,"",Prezentace!A92) ->  | B90: =IF(Prezentace!B92=0,"",Prezentace!B92) ->  | C90: =Prezentace!D92 -> P | D90: =IF(Prezentace!F92=0,"",Prezentace!F92) ->  | E90: =IF(Prezentace!E92=0,"",Prezentace!E92) ->  | V90: 0
A91: =IF(Prezentace!A93=0,"",Prezentace!A93) ->  | B91: =IF(Prezentace!B93=0,"",Prezentace!B93) ->  | C91: =Prezentace!D93 -> P | D91: =IF(Prezentace!F93=0,"",Prezentace!F93) ->  | E91: =IF(Prezentace!E93=0,"",Prezentace!E93) ->  | V91: 0
A92: =IF(Prezentace!A94=0,"",Prezentace!A94) ->  | B92: =IF(Prezentace!B94=0,"",Prezentace!B94) ->  | C92: =Prezentace!D94 -> P | D92: =IF(Prezentace!F94=0,"",Prezentace!F94) ->  | E92: =IF(Prezentace!E94=0,"",Prezentace!E94) ->  | V92: 0
A93: =IF(Prezentace!A95=0,"",Prezentace!A95) ->  | B93: =IF(Prezentace!B95=0,"",Prezentace!B95) ->  | C93: =Prezentace!D95 -> P | D93: =IF(Prezentace!F95=0,"",Prezentace!F95) ->  | E93: =IF(Prezentace!E95=0,"",Prezentace!E95) ->  | V93: 0
A94: =IF(Prezentace!A96=0,"",Prezentace!A96) ->  | B94: =IF(Prezentace!B96=0,"",Prezentace!B96) ->  | C94: =Prezentace!D96 -> P | D94: =IF(Prezentace!F96=0,"",Prezentace!F96) ->  | E94: =IF(Prezentace!E96=0,"",Prezentace!E96) ->  | V94: 0
A95: =IF(Prezentace!A97=0,"",Prezentace!A97) ->  | B95: =IF(Prezentace!B97=0,"",Prezentace!B97) ->  | C95: =Prezentace!D97 -> P | D95: =IF(Prezentace!F97=0,"",Prezentace!F97) ->  | E95: =IF(Prezentace!E97=0,"",Prezentace!E97) ->  | V95: 0
A96: =IF(Prezentace!A98=0,"",Prezentace!A98) ->  | B96: =IF(Prezentace!B98=0,"",Prezentace!B98) ->  | C96: =Prezentace!D98 -> P | D96: =IF(Prezentace!F98=0,"",Prezentace!F98) ->  | E96: =IF(Prezentace!E98=0,"",Prezentace!E98) ->  | V96: 0
A97: =IF(Prezentace!A99=0,"",Prezentace!A99) ->  | B97: =IF(Prezentace!B99=0,"",Prezentace!B99) ->  | C97: =Prezentace!D99 -> P | D97: =IF(Prezentace!F99=0,"",Prezentace!F99) ->  | E97: =IF(Prezentace!E99=0,"",Prezentace!E99) ->  | V97: 0
A98: =IF(Prezentace!A100=0,"",Prezentace!A100) ->  | B98: =IF(Prezentace!B100=0,"",Prezentace!B100) ->  | C98: =Prezentace!D100 -> P | D98: =IF(Prezentace!F100=0,"",Prezentace!F100) ->  | E98: =IF(Prezentace!E100=0,"",Prezentace!E100) ->  | V98: 0
A99: =IF(Prezentace!A101=0,"",Prezentace!A101) ->  | B99: =IF(Prezentace!B101=0,"",Prezentace!B101) ->  | C99: =Prezentace!D101 -> P | D99: =IF(Prezentace!F101=0,"",Prezentace!F101) ->  | E99: =IF(Prezentace!E101=0,"",Prezentace!E101) ->  | V99: 0
A100: =IF(Prezentace!A102=0,"",Prezentace!A102) ->  | B100: =IF(Prezentace!B102=0,"",Prezentace!B102) ->  | C100: =Prezentace!D102 -> P | D100: =IF(Prezentace!F102=0,"",Prezentace!F102) ->  | E100: =IF(Prezentace!E102=0,"",Prezentace!E102) ->  | V100: 0
A101: =IF(Prezentace!A103=0,"",Prezentace!A103) ->  | B101: =IF(Prezentace!B103=0,"",Prezentace!B103) ->  | C101: =Prezentace!D103 -> P | D101: =IF(Prezentace!F103=0,"",Prezentace!F103) ->  | E101: =IF(Prezentace!E103=0,"",Prezentace!E103) ->  | V101: 0
A102: =IF(Prezentace!A104=0,"",Prezentace!A104) ->  | B102: =IF(Prezentace!B104=0,"",Prezentace!B104) ->  | C102: =Prezentace!D104 -> P | D102: =IF(Prezentace!F104=0,"",Prezentace!F104) ->  | E102: =IF(Prezentace!E104=0,"",Prezentace!E104) ->  | V102: =(SUM(F102:T102))-U102 -> 0

Sheet 5(M) (hidden)
A1: Druž. | B1: Kap. | D1: Disciplina 5
F3: 0 | G3: 1 | H3: 2 | I3: 3 | J3: 4 | K3: 5 | L3: 6 | M3: 7 | N3: 8 | O3: 9 | P3: 10 | Q3: 12 | R3: 15 | S3: Čas | T3: Součet
A4: =IF(Prezentace!A6=0,"",Prezentace!A6) ->  | B4: =IF(Prezentace!B6=0,"",Prezentace!B6) ->  | C4: =Prezentace!D6 -> P | D4: =IF(Prezentace!F6=0,"",Prezentace!F6) -> Martin | E4: =IF(Prezentace!E6=0,"",Prezentace!E6) -> Adensam | T4: =(SUM(F4*$F$3,G4*$G$3,H4*$H$3,I4*$I$3,J4*$J$3,K4*$K$3,L4*$L$3,M4*$M$3,N4*$N$3,O4*$O$3,P4*$P$3,Q4*$Q$3,R4*$R$3))-S4 -> 0
A5: =IF(Prezentace!A7=0,"",Prezentace!A7) ->  | B5: =IF(Prezentace!B7=0,"",Prezentace!B7) ->  | C5: =Prezentace!D7 -> R | D5: =IF(Prezentace!F7=0,"",Prezentace!F7) -> Martin | E5: =IF(Prezentace!E7=0,"",Prezentace!E7) -> Adensam | T5: =(SUM(F5*$F$3,G5*$G$3,H5*$H$3,I5*$I$3,J5*$J$3,K5*$K$3,L5*$L$3,M5*$M$3,N5*$N$3,O5*$O$3,P5*$P$3,Q5*$Q$3,R5*$R$3))-S5 -> 0
A6: =IF(Prezentace!A8=0,"",Prezentace!A8) ->  | B6: =IF(Prezentace!B8=0,"",Prezentace!B8) ->  | C6: =Prezentace!D8 -> P | D6: =IF(Prezentace!F8=0,"",Prezentace!F8) -> Jaroslav | E6: =IF(Prezentace!E8=0,"",Prezentace!E8) -> Kostříž | T6: 0
A7: =IF(Prezentace!A9=0,"",Prezentace!A9) ->  | B7: =IF(Prezentace!B9=0,"",Prezentace!B9) ->  | C7: =Prezentace!D9 -> P | D7: =IF(Prezentace!F9=0,"",Prezentace!F9) -> Miroslav | E7: =IF(Prezentace!E9=0,"",Prezentace!E9) -> Koch ml. | T7: 0
A8: =IF(Prezentace!A10=0,"",Prezentace!A10) ->  | B8: =IF(Prezentace!B10=0,"",Prezentace!B10) ->  | C8: =Prezentace!D10 -> P | D8: =IF(Prezentace!F10=0,"",Prezentace!F10) -> Miroslav | E8: =IF(Prezentace!E10=0,"",Prezentace!E10) -> Koch st. | T8: 0
A9: =IF(Prezentace!A11=0,"",Prezentace!A11) ->  | B9: =IF(Prezentace!B11=0,"",Prezentace!B11) ->  | C9: =Prezentace!D11 -> P | D9: =IF(Prezentace!F11=0,"",Prezentace!F11) -> Bohumil | E9: =IF(Prezentace!E11=0,"",Prezentace!E11) -> Herceg | T9: 0
A10: =IF(Prezentace!A12=0,"",Prezentace!A12) ->  | B10: =IF(Prezentace!B12=0,"",Prezentace!B12) ->  | C10: =Prezentace!D12 -> P | D10: =IF(Prezentace!F12=0,"",Prezentace!F12) -> Viktor | E10: =IF(Prezentace!E12=0,"",Prezentace!E12) -> Fuksa | T10: 0
A11: =IF(Prezentace!A13=0,"",Prezentace!A13) ->  | B11: =IF(Prezentace!B13=0,"",Prezentace!B13) ->  | C11: =Prezentace!D13 -> P | D11: =IF(Prezentace!F13=0,"",Prezentace!F13) -> Milan | E11: =IF(Prezentace!E13=0,"",Prezentace!E13) -> Matějka ml. | T11: 0
A12: =IF(Prezentace!A14=0,"",Prezentace!A14) ->  | B12: =IF(Prezentace!B14=0,"",Prezentace!B14) ->  | C12: =Prezentace!D14 -> P | D12: =IF(Prezentace!F14=0,"",Prezentace!F14) -> Michal | E12: =IF(Prezentace!E14=0,"",Prezentace!E14) -> Svoboda | T12: 0
A13: =IF(Prezentace!A15=0,"",Prezentace!A15) ->  | B13: =IF(Prezentace!B15=0,"",Prezentace!B15) ->  | C13: =Prezentace!D15 -> R | D13: =IF(Prezentace!F15=0,"",Prezentace!F15) -> Lukáš | E13: =IF(Prezentace!E15=0,"",Prezentace!E15) -> Bouda | T13: 0
A14: =IF(Prezentace!A16=0,"",Prezentace!A16) ->  | B14: =IF(Prezentace!B16=0,"",Prezentace!B16) ->  | C14: =Prezentace!D16 -> P | D14: =IF(Prezentace!F16=0,"",Prezentace!F16) -> Lukáš | E14: =IF(Prezentace!E16=0,"",Prezentace!E16) -> Bouda | T14: 0
A15: =IF(Prezentace!A17=0,"",Prezentace!A17) ->  | B15: =IF(Prezentace!B17=0,"",Prezentace!B17) ->  | C15: =Prezentace!D17 -> P | D15: =IF(Prezentace!F17=0,"",Prezentace!F17) -> Pavel | E15: =IF(Prezentace!E17=0,"",Prezentace!E17) -> Koltai | T15: 0
A16: =IF(Prezentace!A18=0,"",Prezentace!A18) ->  | B16: =IF(Prezentace!B18=0,"",Prezentace!B18) ->  | C16: =Prezentace!D18 -> P | D16: =IF(Prezentace!F18=0,"",Prezentace!F18) -> Vladislav | E16: =IF(Prezentace!E18=0,"",Prezentace!E18) -> Přibyl | T16: 0
A17: =IF(Prezentace!A19=0,"",Prezentace!A19) ->  | B17: =IF(Prezentace!B19=0,"",Prezentace!B19) ->  | C17: =Prezentace!D19 -> P | D17: =IF(Prezentace!F19=0,"",Prezentace!F19) -> Milan | E17: =IF(Prezentace!E19=0,"",Prezentace!E19) -> Matějka st. | T17: 0
A18: =IF(Prezentace!A20=0,"",Prezentace!A20) ->  | B18: =IF(Prezentace!B20=0,"",Prezentace!B20) ->  | C18: =Prezentace!D20 -> P | D18: =IF(Prezentace!F20=0,"",Prezentace!F20) -> Miroslav | E18: =IF(Prezentace!E20=0,"",Prezentace!E20) -> Fiala | T18: 0
A19: =IF(Prezentace!A21=0,"",Prezentace!A21) ->  | B19: =IF(Prezentace!B21=0,"",Prezentace!B21) ->  | C19: =Prezentace!D21 -> P | D19: =IF(Prezentace!F21=0,"",Prezentace!F21) -> Karel | E19: =IF(Prezentace!E21=0,"",Prezentace!E21) -> Gažák | T19: 0
A20: =IF(Prezentace!A22=0,"",Prezentace!A22) ->  | B20: =IF(Prezentace!B22=0,"",Prezentace!B22) ->  | C20: =Prezentace!D22 -> P | D20: =IF(Prezentace!F22=0,"",Prezentace!F22) -> Václav | E20: =IF(Prezentace!E22=0,"",Prezentace!E22) -> Landkammer | T20: 0
A21: =IF(Prezentace!A23=0,"",Prezentace!A23) ->  | B21: =IF(Prezentace!B23=0,"",Prezentace!B23) ->  | C21: =Prezentace!D23 -> P | D21: =IF(Prezentace!F23=0,"",Prezentace!F23) -> Vojtěch | E21: =IF(Prezentace!E23=0,"",Prezentace!E23) -> Brejžek | T21: 0
A22: =IF(Prezentace!A24=0,"",Prezentace!A24) ->  | B22: =IF(Prezentace!B24=0,"",Prezentace!B24) ->  | C22: =Prezentace!D24 -> P | D22: =IF(Prezentace!F24=0,"",Prezentace!F24) -> Antonín | E22: =IF(Prezentace!E24=0,"",Prezentace!E24) -> Urbanec | T22: 0
A23: =IF(Prezentace!A25=0,"",Prezentace!A25) ->  | B23: =IF(Prezentace!B25=0,"",Prezentace!B25) ->  | C23: =Prezentace!D25 -> P | D23: =IF(Prezentace!F25=0,"",Prezentace!F25) -> Milan | E23: =IF(Prezentace!E25=0,"",Prezentace!E25) -> Jílek | T23: 0
A24: =IF(Prezentace!A26=0,"",Prezentace!A26) ->  | B24: =IF(Prezentace!B26=0,"",Prezentace!B26) ->  | C24: =Prezentace!D26 -> P | D24: =IF(Prezentace!F26=0,"",Prezentace!F26) -> Václav | E24: =IF(Prezentace!E26=0,"",Prezentace!E26) -> Jírů | T24: 0
A25: =IF(Prezentace!A27=0,"",Prezentace!A27) ->  | B25: =IF(Prezentace!B27=0,"",Prezentace!B27) ->  | C25: =Prezentace!D27 -> P | D25: =IF(Prezentace!F27=0,"",Prezentace!F27) -> Milan | E25: =IF(Prezentace!E27=0,"",Prezentace!E27) -> Krupica | T25: 0
A26: =IF(Prezentace!A28=0,"",Prezentace!A28) ->  | B26: =IF(Prezentace!B28=0,"",Prezentace!B28) ->  | C26: =Prezentace!D28 -> R | D26: =IF(Prezentace!F28=0,"",Prezentace!F28) -> Milan | E26: =IF(Prezentace!E28=0,"",Prezentace!E28) -> Krupica | T26: 0
A27: =IF(Prezentace!A29=0,"",Prezentace!A29) ->  | B27: =IF(Prezentace!B29=0,"",Prezentace!B29) ->  | C27: =Prezentace!D29 -> P | D27: =IF(Prezentace!F29=0,"",Prezentace!F29) -> Miloslav | E27: =IF(Prezentace!E29=0,"",Prezentace!E29) -> Petržílka | T27: 0
A28: =IF(Prezentace!A30=0,"",Prezentace!A30) ->  | B28: =IF(Prezentace!B30=0,"",Prezentace!B30) ->  | C28: =Prezentace!D30 -> R | D28: =IF(Prezentace!F30=0,"",Prezentace!F30) -> Aleš | E28: =IF(Prezentace!E30=0,"",Prezentace!E30) -> Seitl | T28: 0
A29: =IF(Prezentace!A31=0,"",Prezentace!A31) ->  | B29: =IF(Prezentace!B31=0,"",Prezentace!B31) ->  | C29: =Prezentace!D31 -> P | D29: =IF(Prezentace!F31=0,"",Prezentace!F31) -> Aleš | E29: =IF(Prezentace!E31=0,"",Prezentace!E31) -> Seitl | T29: 0
A30: =IF(Prezentace!A32=0,"",Prezentace!A32) ->  | B30: =IF(Prezentace!B32=0,"",Prezentace!B32) ->  | C30: =Prezentace!D32 -> P | D30: =IF(Prezentace!F32=0,"",Prezentace!F32) -> Karel | E30: =IF(Prezentace!E32=0,"",Prezentace!E32) -> Seitl | T30: 0
A31: =IF(Prezentace!A33=0,"",Prezentace!A33) ->  | B31: =IF(Prezentace!B33=0,"",Prezentace!B33) ->  | C31: =Prezentace!D33 -> P | D31: =IF(Prezentace!F33=0,"",Prezentace!F33) -> David | E31: =IF(Prezentace!E33=0,"",Prezentace!E33) -> Nikodým | T31: 0
A32: =IF(Prezentace!A34=0,"",Prezentace!A34) ->  | B32: =IF(Prezentace!B34=0,"",Prezentace!B34) ->  | C32: =Prezentace!D34 -> R | D32: =IF(Prezentace!F34=0,"",Prezentace!F34) -> David | E32: =IF(Prezentace!E34=0,"",Prezentace!E34) -> Nikodým | T32: 0
A33: =IF(Prezentace!A35=0,"",Prezentace!A35) ->  | B33: =IF(Prezentace!B35=0,"",Prezentace!B35) ->  | C33: =Prezentace!D35 -> P | D33: =IF(Prezentace!F35=0,"",Prezentace!F35) -> Lukáš | E33: =IF(Prezentace!E35=0,"",Prezentace!E35) -> Hobza | T33: 0
A34: =IF(Prezentace!A36=0,"",Prezentace!A36) ->  | B34: =IF(Prezentace!B36=0,"",Prezentace!B36) ->  | C34: =Prezentace!D36 -> P | D34: =IF(Prezentace!F36=0,"",Prezentace!F36) -> Antonín | E34: =IF(Prezentace!E36=0,"",Prezentace!E36) -> Jelínek | T34: 0
A35: =IF(Prezentace!A37=0,"",Prezentace!A37) ->  | B35: =IF(Prezentace!B37=0,"",Prezentace!B37) ->  | C35: =Prezentace!D37 -> R | D35: =IF(Prezentace!F37=0,"",Prezentace!F37) -> Antonín | E35: =IF(Prezentace!E37=0,"",Prezentace!E37) -> Jelínek | T35: 0
A36: =IF(Prezentace!A38=0,"",Prezentace!A38) ->  | B36: =IF(Prezentace!B38=0,"",Prezentace!B38) ->  | C36: =Prezentace!D38 -> P | D36: =IF(Prezentace!F38=0,"",Prezentace!F38) -> Ladislav | E36: =IF(Prezentace!E38=0,"",Prezentace!E38) -> Píša | T36: 0
A37: =IF(Prezentace!A39=0,"",Prezentace!A39) ->  | B37: =IF(Prezentace!B39=0,"",Prezentace!B39) ->  | C37: =Prezentace!D39 -> P | D37: =IF(Prezentace!F39=0,"",Prezentace!F39) -> Štefan | E37: =IF(Prezentace!E39=0,"",Prezentace!E39) -> Mesároš | T37: 0
A38: =IF(Prezentace!A40=0,"",Prezentace!A40) ->  | B38: =IF(Prezentace!B40=0,"",Prezentace!B40) ->  | C38: =Prezentace!D40 -> P | D38: =IF(Prezentace!F40=0,"",Prezentace!F40) -> Pavel | E38: =IF(Prezentace!E40=0,"",Prezentace!E40) -> Červenka | T38: =(SUM(F38*$F$3,G38*$G$3,H38*$H$3,I38*$I$3,J38*$J$3,K38*$K$3,L38*$L$3,M38*$M$3,N38*$N$3,O38*$O$3,P38*$P$3,Q38*$Q$3,R38*$R$3))-S38 -> 0
A39: =IF(Prezentace!A41=0,"",Prezentace!A41) ->  | B39: =IF(Prezentace!B41=0,"",Prezentace!B41) ->  | C39: =Prezentace!D41 -> R | D39: =IF(Prezentace!F41=0,"",Prezentace!F41) -> Pavel | E39: =IF(Prezentace!E41=0,"",Prezentace!E41) -> Červenka | T39: 0
A40: =IF(Prezentace!A42=0,"",Prezentace!A42) ->  | B40: =IF(Prezentace!B42=0,"",Prezentace!B42) ->  | C40: =Prezentace!D42 -> P | D40: =IF(Prezentace!F42=0,"",Prezentace!F42) -> Jiří | E40: =IF(Prezentace!E42=0,"",Prezentace!E42) -> Švihálek | T40: 0
A41: =IF(Prezentace!A43=0,"",Prezentace!A43) ->  | B41: =IF(Prezentace!B43=0,"",Prezentace!B43) ->  | C41: =Prezentace!D43 -> R | D41: =IF(Prezentace!F43=0,"",Prezentace!F43) -> Jiří | E41: =IF(Prezentace!E43=0,"",Prezentace!E43) -> Švihálek | T41: 0
A42: =IF(Prezentace!A44=0,"",Prezentace!A44) ->  | B42: =IF(Prezentace!B44=0,"",Prezentace!B44) ->  | C42: =Prezentace!D44 -> P | D42: =IF(Prezentace!F44=0,"",Prezentace!F44) -> František | E42: =IF(Prezentace!E44=0,"",Prezentace!E44) -> Toman | T42: 0
A43: =IF(Prezentace!A45=0,"",Prezentace!A45) ->  | B43: =IF(Prezentace!B45=0,"",Prezentace!B45) ->  | C43: =Prezentace!D45 -> P | D43: =IF(Prezentace!F45=0,"",Prezentace!F45) -> Vladimír | E43: =IF(Prezentace!E45=0,"",Prezentace!E45) -> VejslíK | T43: 0
A44: =IF(Prezentace!A46=0,"",Prezentace!A46) ->  | B44: =IF(Prezentace!B46=0,"",Prezentace!B46) ->  | C44: =Prezentace!D46 -> P | D44: =IF(Prezentace!F46=0,"",Prezentace!F46) -> Karel | E44: =IF(Prezentace!E46=0,"",Prezentace!E46) -> Získal | T44: 0
A45: =IF(Prezentace!A47=0,"",Prezentace!A47) ->  | B45: =IF(Prezentace!B47=0,"",Prezentace!B47) ->  | C45: =Prezentace!D47 -> R | D45: =IF(Prezentace!F47=0,"",Prezentace!F47) -> Karel | E45: =IF(Prezentace!E47=0,"",Prezentace!E47) -> Získal | T45: 0
A46: =IF(Prezentace!A48=0,"",Prezentace!A48) ->  | B46: =IF(Prezentace!B48=0,"",Prezentace!B48) ->  | C46: =Prezentace!D48 -> P | D46: =IF(Prezentace!F48=0,"",Prezentace!F48) -> Jaroslav | E46: =IF(Prezentace!E48=0,"",Prezentace!E48) -> Sokolík | T46: 0
A47: =IF(Prezentace!A49=0,"",Prezentace!A49) ->  | B47: =IF(Prezentace!B49=0,"",Prezentace!B49) ->  | C47: =Prezentace!D49 -> P | D47: =IF(Prezentace!F49=0,"",Prezentace!F49) -> Milan | E47: =IF(Prezentace!E49=0,"",Prezentace!E49) -> Kraus | T47: 0
A48: =IF(Prezentace!A50=0,"",Prezentace!A50) ->  | B48: =IF(Prezentace!B50=0,"",Prezentace!B50) ->  | C48: =Prezentace!D50 -> P | D48: =IF(Prezentace!F50=0,"",Prezentace!F50) ->  | E48: =IF(Prezentace!E50=0,"",Prezentace!E50) ->  | T48: 0
A49: =IF(Prezentace!A51=0,"",Prezentace!A51) ->  | B49: =IF(Prezentace!B51=0,"",Prezentace!B51) ->  | C49: =Prezentace!D51 -> P | D49: =IF(Prezentace!F51=0,"",Prezentace!F51) ->  | E49: =IF(Prezentace!E51=0,"",Prezentace!E51) ->  | T49: 0
A50: =IF(Prezentace!A52=0,"",Prezentace!A52) ->  | B50: =IF(Prezentace!B52=0,"",Prezentace!B52) ->  | C50: =Prezentace!D52 -> P | D50: =IF(Prezentace!F52=0,"",Prezentace!F52) ->  | E50: =IF(Prezentace!E52=0,"",Prezentace!E52) ->  | T50: 0
A51: =IF(Prezentace!A53=0,"",Prezentace!A53) ->  | B51: =IF(Prezentace!B53=0,"",Prezentace!B53) ->  | C51: =Prezentace!D53 -> P | D51: =IF(Prezentace!F53=0,"",Prezentace!F53) ->  | E51: =IF(Prezentace!E53=0,"",Prezentace!E53) ->  | T51: 0
A52: =IF(Prezentace!A54=0,"",Prezentace!A54) ->  | B52: =IF(Prezentace!B54=0,"",Prezentace!B54) ->  | C52: =Prezentace!D54 -> P | D52: =IF(Prezentace!F54=0,"",Prezentace!F54) ->  | E52: =IF(Prezentace!E54=0,"",Prezentace!E54) ->  | T52: 0
A53: =IF(Prezentace!A55=0,"",Prezentace!A55) ->  | B53: =IF(Prezentace!B55=0,"",Prezentace!B55) ->  | C53: =Prezentace!D55 -> P | D53: =IF(Prezentace!F55=0,"",Prezentace!F55) ->  | E53: =IF(Prezentace!E55=0,"",Prezentace!E55) ->  | T53: 0
A54: =IF(Prezentace!A56=0,"",Prezentace!A56) ->  | B54: =IF(Prezentace!B56=0,"",Prezentace!B56) ->  | C54: =Prezentace!D56 -> P | D54: =IF(Prezentace!F56=0,"",Prezentace!F56) ->  | E54: =IF(Prezentace!E56=0,"",Prezentace!E56) ->  | T54: 0
A55: =IF(Prezentace!A57=0,"",Prezentace!A57) ->  | B55: =IF(Prezentace!B57=0,"",Prezentace!B57) ->  | C55: =Prezentace!D57 -> P | D55: =IF(Prezentace!F57=0,"",Prezentace!F57) ->  | E55: =IF(Prezentace!E57=0,"",Prezentace!E57) ->  | T55: 0
A56: =IF(Prezentace!A58=0,"",Prezentace!A58) ->  | B56: =IF(Prezentace!B58=0,"",Prezentace!B58) ->  | C56: =Prezentace!D58 -> P | D56: =IF(Prezentace!F58=0,"",Prezentace!F58) ->  | E56: =IF(Prezentace!E58=0,"",Prezentace!E58) ->  | T56: 0
A57: =IF(Prezentace!A59=0,"",Prezentace!A59) ->  | B57: =IF(Prezentace!B59=0,"",Prezentace!B59) ->  | C57: =Prezentace!D59 -> P | D57: =IF(Prezentace!F59=0,"",Prezentace!F59) ->  | E57: =IF(Prezentace!E59=0,"",Prezentace!E59) ->  | T57: 0
A58: =IF(Prezentace!A60=0,"",Prezentace!A60) ->  | B58: =IF(Prezentace!B60=0,"",Prezentace!B60) ->  | C58: =Prezentace!D60 -> P | D58: =IF(Prezentace!F60=0,"",Prezentace!F60) ->  | E58: =IF(Prezentace!E60=0,"",Prezentace!E60) ->  | T58: 0
A59: =IF(Prezentace!A61=0,"",Prezentace!A61) ->  | B59: =IF(Prezentace!B61=0,"",Prezentace!B61) ->  | C59: =Prezentace!D61 -> P | D59: =IF(Prezentace!F61=0,"",Prezentace!F61) ->  | E59: =IF(Prezentace!E61=0,"",Prezentace!E61) ->  | T59: 0
A60: =IF(Prezentace!A62=0,"",Prezentace!A62) ->  | B60: =IF(Prezentace!B62=0,"",Prezentace!B62) ->  | C60: =Prezentace!D62 -> P | D60: =IF(Prezentace!F62=0,"",Prezentace!F62) ->  | E60: =IF(Prezentace!E62=0,"",Prezentace!E62) ->  | T60: 0
A61: =IF(Prezentace!A63=0,"",Prezentace!A63) ->  | B61: =IF(Prezentace!B63=0,"",Prezentace!B63) ->  | C61: =Prezentace!D63 -> P | D61: =IF(Prezentace!F63=0,"",Prezentace!F63) ->  | E61: =IF(Prezentace!E63=0,"",Prezentace!E63) ->  | T61: 0
A62: =IF(Prezentace!A64=0,"",Prezentace!A64) ->  | B62: =IF(Prezentace!B64=0,"",Prezentace!B64) ->  | C62: =Prezentace!D64 -> P | D62: =IF(Prezentace!F64=0,"",Prezentace!F64) ->  | E62: =IF(Prezentace!E64=0,"",Prezentace!E64) ->  | T62: 0
A63: =IF(Prezentace!A65=0,"",Prezentace!A65) ->  | B63: =IF(Prezentace!B65=0,"",Prezentace!B65) ->  | C63: =Prezentace!D65 -> P | D63: =IF(Prezentace!F65=0,"",Prezentace!F65) ->  | E63: =IF(Prezentace!E65=0,"",Prezentace!E65) ->  | T63: 0
A64: =IF(Prezentace!A66=0,"",Prezentace!A66) ->  | B64: =IF(Prezentace!B66=0,"",Prezentace!B66) ->  | C64: =Prezentace!D66 -> P | D64: =IF(Prezentace!F66=0,"",Prezentace!F66) ->  | E64: =IF(Prezentace!E66=0,"",Prezentace!E66) ->  | T64: 0
A65: =IF(Prezentace!A67=0,"",Prezentace!A67) ->  | B65: =IF(Prezentace!B67=0,"",Prezentace!B67) ->  | C65: =Prezentace!D67 -> P | D65: =IF(Prezentace!F67=0,"",Prezentace!F67) ->  | E65: =IF(Prezentace!E67=0,"",Prezentace!E67) ->  | T65: 0
A66: =IF(Prezentace!A68=0,"",Prezentace!A68) ->  | B66: =IF(Prezentace!B68=0,"",Prezentace!B68) ->  | C66: =Prezentace!D68 -> P | D66: =IF(Prezentace!F68=0,"",Prezentace!F68) ->  | E66: =IF(Prezentace!E68=0,"",Prezentace!E68) ->  | T66: 0
A67: =IF(Prezentace!A69=0,"",Prezentace!A69) ->  | B67: =IF(Prezentace!B69=0,"",Prezentace!B69) ->  | C67: =Prezentace!D69 -> P | D67: =IF(Prezentace!F69=0,"",Prezentace!F69) ->  | E67: =IF(Prezentace!E69=0,"",Prezentace!E69) ->  | T67: 0
A68: =IF(Prezentace!A70=0,"",Prezentace!A70) ->  | B68: =IF(Prezentace!B70=0,"",Prezentace!B70) ->  | C68: =Prezentace!D70 -> P | D68: =IF(Prezentace!F70=0,"",Prezentace!F70) ->  | E68: =IF(Prezentace!E70=0,"",Prezentace!E70) ->  | T68: 0
A69: =IF(Prezentace!A71=0,"",Prezentace!A71) ->  | B69: =IF(Prezentace!B71=0,"",Prezentace!B71) ->  | C69: =Prezentace!D71 -> P | D69: =IF(Prezentace!F71=0,"",Prezentace!F71) ->  | E69: =IF(Prezentace!E71=0,"",Prezentace!E71) ->  | T69: 0
A70: =IF(Prezentace!A72=0,"",Prezentace!A72) ->  | B70: =IF(Prezentace!B72=0,"",Prezentace!B72) ->  | C70: =Prezentace!D72 -> P | D70: =IF(Prezentace!F72=0,"",Prezentace!F72) ->  | E70: =IF(Prezentace!E72=0,"",Prezentace!E72) ->  | T70: 0
A71: =IF(Prezentace!A73=0,"",Prezentace!A73) ->  | B71: =IF(Prezentace!B73=0,"",Prezentace!B73) ->  | C71: =Prezentace!D73 -> P | D71: =IF(Prezentace!F73=0,"",Prezentace!F73) ->  | E71: =IF(Prezentace!E73=0,"",Prezentace!E73) ->  | T71: 0
A72: =IF(Prezentace!A74=0,"",Prezentace!A74) ->  | B72: =IF(Prezentace!B74=0,"",Prezentace!B74) ->  | C72: =Prezentace!D74 -> P | D72: =IF(Prezentace!F74=0,"",Prezentace!F74) ->  | E72: =IF(Prezentace!E74=0,"",Prezentace!E74) ->  | T72: 0
A73: =IF(Prezentace!A75=0,"",Prezentace!A75) ->  | B73: =IF(Prezentace!B75=0,"",Prezentace!B75) ->  | C73: =Prezentace!D75 -> P | D73: =IF(Prezentace!F75=0,"",Prezentace!F75) ->  | E73: =IF(Prezentace!E75=0,"",Prezentace!E75) ->  | T73: 0
A74: =IF(Prezentace!A76=0,"",Prezentace!A76) ->  | B74: =IF(Prezentace!B76=0,"",Prezentace!B76) ->  | C74: =Prezentace!D76 -> P | D74: =IF(Prezentace!F76=0,"",Prezentace!F76) ->  | E74: =IF(Prezentace!E76=0,"",Prezentace!E76) ->  | T74: 0
A75: =IF(Prezentace!A77=0,"",Prezentace!A77) ->  | B75: =IF(Prezentace!B77=0,"",Prezentace!B77) ->  | C75: =Prezentace!D77 -> P | D75: =IF(Prezentace!F77=0,"",Prezentace!F77) ->  | E75: =IF(Prezentace!E77=0,"",Prezentace!E77) ->  | T75: 0
A76: =IF(Prezentace!A78=0,"",Prezentace!A78) ->  | B76: =IF(Prezentace!B78=0,"",Prezentace!B78) ->  | C76: =Prezentace!D78 -> P | D76: =IF(Prezentace!F78=0,"",Prezentace!F78) ->  | E76: =IF(Prezentace!E78=0,"",Prezentace!E78) ->  | T76: 0
A77: =IF(Prezentace!A79=0,"",Prezentace!A79) ->  | B77: =IF(Prezentace!B79=0,"",Prezentace!B79) ->  | C77: =Prezentace!D79 -> P | D77: =IF(Prezentace!F79=0,"",Prezentace!F79) ->  | E77: =IF(Prezentace!E79=0,"",Prezentace!E79) ->  | T77: 0
A78: =IF(Prezentace!A80=0,"",Prezentace!A80) ->  | B78: =IF(Prezentace!B80=0,"",Prezentace!B80) ->  | C78: =Prezentace!D80 -> P | D78: =IF(Prezentace!F80=0,"",Prezentace!F80) ->  | E78: =IF(Prezentace!E80=0,"",Prezentace!E80) ->  | T78: 0
A79: =IF(Prezentace!A81=0,"",Prezentace!A81) ->  | B79: =IF(Prezentace!B81=0,"",Prezentace!B81) ->  | C79: =Prezentace!D81 -> P | D79: =IF(Prezentace!F81=0,"",Prezentace!F81) ->  | E79: =IF(Prezentace!E81=0,"",Prezentace!E81) ->  | T79: 0
A80: =IF(Prezentace!A82=0,"",Prezentace!A82) ->  | B80: =IF(Prezentace!B82=0,"",Prezentace!B82) ->  | C80: =Prezentace!D82 -> P | D80: =IF(Prezentace!F82=0,"",Prezentace!F82) ->  | E80: =IF(Prezentace!E82=0,"",Prezentace!E82) ->  | T80: 0
A81: =IF(Prezentace!A83=0,"",Prezentace!A83) ->  | B81: =IF(Prezentace!B83=0,"",Prezentace!B83) ->  | C81: =Prezentace!D83 -> P | D81: =IF(Prezentace!F83=0,"",Prezentace!F83) ->  | E81: =IF(Prezentace!E83=0,"",Prezentace!E83) ->  | T81: 0
A82: =IF(Prezentace!A84=0,"",Prezentace!A84) ->  | B82: =IF(Prezentace!B84=0,"",Prezentace!B84) ->  | C82: =Prezentace!D84 -> P | D82: =IF(Prezentace!F84=0,"",Prezentace!F84) ->  | E82: =IF(Prezentace!E84=0,"",Prezentace!E84) ->  | T82: 0
A83: =IF(Prezentace!A85=0,"",Prezentace!A85) ->  | B83: =IF(Prezentace!B85=0,"",Prezentace!B85) ->  | C83: =Prezentace!D85 -> P | D83: =IF(Prezentace!F85=0,"",Prezentace!F85) ->  | E83: =IF(Prezentace!E85=0,"",Prezentace!E85) ->  | T83: 0
A84: =IF(Prezentace!A86=0,"",Prezentace!A86) ->  | B84: =IF(Prezentace!B86=0,"",Prezentace!B86) ->  | C84: =Prezentace!D86 -> P | D84: =IF(Prezentace!F86=0,"",Prezentace!F86) ->  | E84: =IF(Prezentace!E86=0,"",Prezentace!E86) ->  | T84: 0
A85: =IF(Prezentace!A87=0,"",Prezentace!A87) ->  | B85: =IF(Prezentace!B87=0,"",Prezentace!B87) ->  | C85: =Prezentace!D87 -> P | D85: =IF(Prezentace!F87=0,"",Prezentace!F87) ->  | E85: =IF(Prezentace!E87=0,"",Prezentace!E87) ->  | T85: 0
A86: =IF(Prezentace!A88=0,"",Prezentace!A88) ->  | B86: =IF(Prezentace!B88=0,"",Prezentace!B88) ->  | C86: =Prezentace!D88 -> P | D86: =IF(Prezentace!F88=0,"",Prezentace!F88) ->  | E86: =IF(Prezentace!E88=0,"",Prezentace!E88) ->  | T86: 0
A87: =IF(Prezentace!A89=0,"",Prezentace!A89) ->  | B87: =IF(Prezentace!B89=0,"",Prezentace!B89) ->  | C87: =Prezentace!D89 -> P | D87: =IF(Prezentace!F89=0,"",Prezentace!F89) ->  | E87: =IF(Prezentace!E89=0,"",Prezentace!E89) ->  | T87: 0
A88: =IF(Prezentace!A90=0,"",Prezentace!A90) ->  | B88: =IF(Prezentace!B90=0,"",Prezentace!B90) ->  | C88: =Prezentace!D90 -> P | D88: =IF(Prezentace!F90=0,"",Prezentace!F90) ->  | E88: =IF(Prezentace!E90=0,"",Prezentace!E90) ->  | T88: 0
A89: =IF(Prezentace!A91=0,"",Prezentace!A91) ->  | B89: =IF(Prezentace!B91=0,"",Prezentace!B91) ->  | C89: =Prezentace!D91 -> P | D89: =IF(Prezentace!F91=0,"",Prezentace!F91) ->  | E89: =IF(Prezentace!E91=0,"",Prezentace!E91) ->  | T89: 0
A90: =IF(Prezentace!A92=0,"",Prezentace!A92) ->  | B90: =IF(Prezentace!B92=0,"",Prezentace!B92) ->  | C90: =Prezentace!D92 -> P | D90: =IF(Prezentace!F92=0,"",Prezentace!F92) ->  | E90: =IF(Prezentace!E92=0,"",Prezentace!E92) ->  | T90: 0
A91: =IF(Prezentace!A93=0,"",Prezentace!A93) ->  | B91: =IF(Prezentace!B93=0,"",Prezentace!B93) ->  | C91: =Prezentace!D93 -> P | D91: =IF(Prezentace!F93=0,"",Prezentace!F93) ->  | E91: =IF(Prezentace!E93=0,"",Prezentace!E93) ->  | T91: 0
A92: =IF(Prezentace!A94=0,"",Prezentace!A94) ->  | B92: =IF(Prezentace!B94=0,"",Prezentace!B94) ->  | C92: =Prezentace!D94 -> P | D92: =IF(Prezentace!F94=0,"",Prezentace!F94) ->  | E92: =IF(Prezentace!E94=0,"",Prezentace!E94) ->  | T92: 0
A93: =IF(Prezentace!A95=0,"",Prezentace!A95) ->  | B93: =IF(Prezentace!B95=0,"",Prezentace!B95) ->  | C93: =Prezentace!D95 -> P | D93: =IF(Prezentace!F95=0,"",Prezentace!F95) ->  | E93: =IF(Prezentace!E95=0,"",Prezentace!E95) ->  | T93: 0
A94: =IF(Prezentace!A96=0,"",Prezentace!A96) ->  | B94: =IF(Prezentace!B96=0,"",Prezentace!B96) ->  | C94: =Prezentace!D96 -> P | D94: =IF(Prezentace!F96=0,"",Prezentace!F96) ->  | E94: =IF(Prezentace!E96=0,"",Prezentace!E96) ->  | T94: 0
A95: =IF(Prezentace!A97=0,"",Prezentace!A97) ->  | B95: =IF(Prezentace!B97=0,"",Prezentace!B97) ->  | C95: =Prezentace!D97 -> P | D95: =IF(Prezentace!F97=0,"",Prezentace!F97) ->  | E95: =IF(Prezentace!E97=0,"",Prezentace!E97) ->  | T95: 0
A96: =IF(Prezentace!A98=0,"",Prezentace!A98) ->  | B96: =IF(Prezentace!B98=0,"",Prezentace!B98) ->  | C96: =Prezentace!D98 -> P | D96: =IF(Prezentace!F98=0,"",Prezentace!F98) ->  | E96: =IF(Prezentace!E98=0,"",Prezentace!E98) ->  | T96: 0
A97: =IF(Prezentace!A99=0,"",Prezentace!A99) ->  | B97: =IF(Prezentace!B99=0,"",Prezentace!B99) ->  | C97: =Prezentace!D99 -> P | D97: =IF(Prezentace!F99=0,"",Prezentace!F99) ->  | E97: =IF(Prezentace!E99=0,"",Prezentace!E99) ->  | T97: 0
A98: =IF(Prezentace!A100=0,"",Prezentace!A100) ->  | B98: =IF(Prezentace!B100=0,"",Prezentace!B100) ->  | C98: =Prezentace!D100 -> P | D98: =IF(Prezentace!F100=0,"",Prezentace!F100) ->  | E98: =IF(Prezentace!E100=0,"",Prezentace!E100) ->  | T98: 0
A99: =IF(Prezentace!A101=0,"",Prezentace!A101) ->  | B99: =IF(Prezentace!B101=0,"",Prezentace!B101) ->  | C99: =Prezentace!D101 -> P | D99: =IF(Prezentace!F101=0,"",Prezentace!F101) ->  | E99: =IF(Prezentace!E101=0,"",Prezentace!E101) ->  | T99: 0
A100: =IF(Prezentace!A102=0,"",Prezentace!A102) ->  | B100: =IF(Prezentace!B102=0,"",Prezentace!B102) ->  | C100: =Prezentace!D102 -> P | D100: =IF(Prezentace!F102=0,"",Prezentace!F102) ->  | E100: =IF(Prezentace!E102=0,"",Prezentace!E102) ->  | T100: 0
A101: =IF(Prezentace!A103=0,"",Prezentace!A103) ->  | B101: =IF(Prezentace!B103=0,"",Prezentace!B103) ->  | C101: =Prezentace!D103 -> P | D101: =IF(Prezentace!F103=0,"",Prezentace!F103) ->  | E101: =IF(Prezentace!E103=0,"",Prezentace!E103) ->  | T101: 0
A102: =IF(Prezentace!A104=0,"",Prezentace!A104) ->  | B102: =IF(Prezentace!B104=0,"",Prezentace!B104) ->  | C102: =Prezentace!D104 -> P | D102: =IF(Prezentace!F104=0,"",Prezentace!F104) ->  | E102: =IF(Prezentace!E104=0,"",Prezentace!E104) ->  | T102: =(SUM(F102*$F$3,G102*$G$3,H102*$H$3,I102*$I$3,J102*$J$3,K102*$K$3,L102*$L$3,M102*$M$3,N102*$N$3,O102*$O$3,P102*$P$3,Q102*$Q$3,R102*$R$3))-S102 -> 0

Sheet 6 (hidden)
A1: Druž. | B1: Kap. | D1: Disciplina 6
F3: K | G3: M | H3: 1 | I3: 2 | J3: 3 | K3: 4 | L3: 5 | M3: 6 | N3: 7 | O3: 8 | P3: 9 | Q3: 10 | R3: 11 | S3: 12 | T3: TB | U3: Čas | V3: Součet
A4: =IF(Prezentace!A6=0,"",Prezentace!A6) ->  | B4: =IF(Prezentace!B6=0,"",Prezentace!B6) ->  | C4: =Prezentace!D6 -> P | D4: =IF(Prezentace!F6=0,"",Prezentace!F6) -> Martin | E4: =IF(Prezentace!E6=0,"",Prezentace!E6) -> Adensam | V4: =(SUM(F4:T4))-U4 -> 0
A5: =IF(Prezentace!A7=0,"",Prezentace!A7) ->  | B5: =IF(Prezentace!B7=0,"",Prezentace!B7) ->  | C5: =Prezentace!D7 -> R | D5: =IF(Prezentace!F7=0,"",Prezentace!F7) -> Martin | E5: =IF(Prezentace!E7=0,"",Prezentace!E7) -> Adensam | V5: =(SUM(F5:T5))-U5 -> 0
A6: =IF(Prezentace!A8=0,"",Prezentace!A8) ->  | B6: =IF(Prezentace!B8=0,"",Prezentace!B8) ->  | C6: =Prezentace!D8 -> P | D6: =IF(Prezentace!F8=0,"",Prezentace!F8) -> Jaroslav | E6: =IF(Prezentace!E8=0,"",Prezentace!E8) -> Kostříž | V6: 0
A7: =IF(Prezentace!A9=0,"",Prezentace!A9) ->  | B7: =IF(Prezentace!B9=0,"",Prezentace!B9) ->  | C7: =Prezentace!D9 -> P | D7: =IF(Prezentace!F9=0,"",Prezentace!F9) -> Miroslav | E7: =IF(Prezentace!E9=0,"",Prezentace!E9) -> Koch ml. | V7: 0
A8: =IF(Prezentace!A10=0,"",Prezentace!A10) ->  | B8: =IF(Prezentace!B10=0,"",Prezentace!B10) ->  | C8: =Prezentace!D10 -> P | D8: =IF(Prezentace!F10=0,"",Prezentace!F10) -> Miroslav | E8: =IF(Prezentace!E10=0,"",Prezentace!E10) -> Koch st. | V8: 0
A9: =IF(Prezentace!A11=0,"",Prezentace!A11) ->  | B9: =IF(Prezentace!B11=0,"",Prezentace!B11) ->  | C9: =Prezentace!D11 -> P | D9: =IF(Prezentace!F11=0,"",Prezentace!F11) -> Bohumil | E9: =IF(Prezentace!E11=0,"",Prezentace!E11) -> Herceg | V9: 0
A10: =IF(Prezentace!A12=0,"",Prezentace!A12) ->  | B10: =IF(Prezentace!B12=0,"",Prezentace!B12) ->  | C10: =Prezentace!D12 -> P | D10: =IF(Prezentace!F12=0,"",Prezentace!F12) -> Viktor | E10: =IF(Prezentace!E12=0,"",Prezentace!E12) -> Fuksa | V10: 0
A11: =IF(Prezentace!A13=0,"",Prezentace!A13) ->  | B11: =IF(Prezentace!B13=0,"",Prezentace!B13) ->  | C11: =Prezentace!D13 -> P | D11: =IF(Prezentace!F13=0,"",Prezentace!F13) -> Milan | E11: =IF(Prezentace!E13=0,"",Prezentace!E13) -> Matějka ml. | V11: 0
A12: =IF(Prezentace!A14=0,"",Prezentace!A14) ->  | B12: =IF(Prezentace!B14=0,"",Prezentace!B14) ->  | C12: =Prezentace!D14 -> P | D12: =IF(Prezentace!F14=0,"",Prezentace!F14) -> Michal | E12: =IF(Prezentace!E14=0,"",Prezentace!E14) -> Svoboda | V12: 0
A13: =IF(Prezentace!A15=0,"",Prezentace!A15) ->  | B13: =IF(Prezentace!B15=0,"",Prezentace!B15) ->  | C13: =Prezentace!D15 -> R | D13: =IF(Prezentace!F15=0,"",Prezentace!F15) -> Lukáš | E13: =IF(Prezentace!E15=0,"",Prezentace!E15) -> Bouda | V13: 0
A14: =IF(Prezentace!A16=0,"",Prezentace!A16) ->  | B14: =IF(Prezentace!B16=0,"",Prezentace!B16) ->  | C14: =Prezentace!D16 -> P | D14: =IF(Prezentace!F16=0,"",Prezentace!F16) -> Lukáš | E14: =IF(Prezentace!E16=0,"",Prezentace!E16) -> Bouda | V14: 0
A15: =IF(Prezentace!A17=0,"",Prezentace!A17) ->  | B15: =IF(Prezentace!B17=0,"",Prezentace!B17) ->  | C15: =Prezentace!D17 -> P | D15: =IF(Prezentace!F17=0,"",Prezentace!F17) -> Pavel | E15: =IF(Prezentace!E17=0,"",Prezentace!E17) -> Koltai | V15: 0
A16: =IF(Prezentace!A18=0,"",Prezentace!A18) ->  | B16: =IF(Prezentace!B18=0,"",Prezentace!B18) ->  | C16: =Prezentace!D18 -> P | D16: =IF(Prezentace!F18=0,"",Prezentace!F18) -> Vladislav | E16: =IF(Prezentace!E18=0,"",Prezentace!E18) -> Přibyl | V16: 0
A17: =IF(Prezentace!A19=0,"",Prezentace!A19) ->  | B17: =IF(Prezentace!B19=0,"",Prezentace!B19) ->  | C17: =Prezentace!D19 -> P | D17: =IF(Prezentace!F19=0,"",Prezentace!F19) -> Milan | E17: =IF(Prezentace!E19=0,"",Prezentace!E19) -> Matějka st. | V17: 0
A18: =IF(Prezentace!A20=0,"",Prezentace!A20) ->  | B18: =IF(Prezentace!B20=0,"",Prezentace!B20) ->  | C18: =Prezentace!D20 -> P | D18: =IF(Prezentace!F20=0,"",Prezentace!F20) -> Miroslav | E18: =IF(Prezentace!E20=0,"",Prezentace!E20) -> Fiala | V18: 0
A19: =IF(Prezentace!A21=0,"",Prezentace!A21) ->  | B19: =IF(Prezentace!B21=0,"",Prezentace!B21) ->  | C19: =Prezentace!D21 -> P | D19: =IF(Prezentace!F21=0,"",Prezentace!F21) -> Karel | E19: =IF(Prezentace!E21=0,"",Prezentace!E21) -> Gažák | V19: 0
A20: =IF(Prezentace!A22=0,"",Prezentace!A22) ->  | B20: =IF(Prezentace!B22=0,"",Prezentace!B22) ->  | C20: =Prezentace!D22 -> P | D20: =IF(Prezentace!F22=0,"",Prezentace!F22) -> Václav | E20: =IF(Prezentace!E22=0,"",Prezentace!E22) -> Landkammer | V20: 0
A21: =IF(Prezentace!A23=0,"",Prezentace!A23) ->  | B21: =IF(Prezentace!B23=0,"",Prezentace!B23) ->  | C21: =Prezentace!D23 -> P | D21: =IF(Prezentace!F23=0,"",Prezentace!F23) -> Vojtěch | E21: =IF(Prezentace!E23=0,"",Prezentace!E23) -> Brejžek | V21: 0
A22: =IF(Prezentace!A24=0,"",Prezentace!A24) ->  | B22: =IF(Prezentace!B24=0,"",Prezentace!B24) ->  | C22: =Prezentace!D24 -> P | D22: =IF(Prezentace!F24=0,"",Prezentace!F24) -> Antonín | E22: =IF(Prezentace!E24=0,"",Prezentace!E24) -> Urbanec | V22: 0
A23: =IF(Prezentace!A25=0,"",Prezentace!A25) ->  | B23: =IF(Prezentace!B25=0,"",Prezentace!B25) ->  | C23: =Prezentace!D25 -> P | D23: =IF(Prezentace!F25=0,"",Prezentace!F25) -> Milan | E23: =IF(Prezentace!E25=0,"",Prezentace!E25) -> Jílek | V23: 0
A24: =IF(Prezentace!A26=0,"",Prezentace!A26) ->  | B24: =IF(Prezentace!B26=0,"",Prezentace!B26) ->  | C24: =Prezentace!D26 -> P | D24: =IF(Prezentace!F26=0,"",Prezentace!F26) -> Václav | E24: =IF(Prezentace!E26=0,"",Prezentace!E26) -> Jírů | V24: 0
A25: =IF(Prezentace!A27=0,"",Prezentace!A27) ->  | B25: =IF(Prezentace!B27=0,"",Prezentace!B27) ->  | C25: =Prezentace!D27 -> P | D25: =IF(Prezentace!F27=0,"",Prezentace!F27) -> Milan | E25: =IF(Prezentace!E27=0,"",Prezentace!E27) -> Krupica | V25: 0
A26: =IF(Prezentace!A28=0,"",Prezentace!A28) ->  | B26: =IF(Prezentace!B28=0,"",Prezentace!B28) ->  | C26: =Prezentace!D28 -> R | D26: =IF(Prezentace!F28=0,"",Prezentace!F28) -> Milan | E26: =IF(Prezentace!E28=0,"",Prezentace!E28) -> Krupica | V26: 0
A27: =IF(Prezentace!A29=0,"",Prezentace!A29) ->  | B27: =IF(Prezentace!B29=0,"",Prezentace!B29) ->  | C27: =Prezentace!D29 -> P | D27: =IF(Prezentace!F29=0,"",Prezentace!F29) -> Miloslav | E27: =IF(Prezentace!E29=0,"",Prezentace!E29) -> Petržílka | V27: 0
A28: =IF(Prezentace!A30=0,"",Prezentace!A30) ->  | B28: =IF(Prezentace!B30=0,"",Prezentace!B30) ->  | C28: =Prezentace!D30 -> R | D28: =IF(Prezentace!F30=0,"",Prezentace!F30) -> Aleš | E28: =IF(Prezentace!E30=0,"",Prezentace!E30) -> Seitl | V28: 0
A29: =IF(Prezentace!A31=0,"",Prezentace!A31) ->  | B29: =IF(Prezentace!B31=0,"",Prezentace!B31) ->  | C29: =Prezentace!D31 -> P | D29: =IF(Prezentace!F31=0,"",Prezentace!F31) -> Aleš | E29: =IF(Prezentace!E31=0,"",Prezentace!E31) -> Seitl | V29: 0
A30: =IF(Prezentace!A32=0,"",Prezentace!A32) ->  | B30: =IF(Prezentace!B32=0,"",Prezentace!B32) ->  | C30: =Prezentace!D32 -> P | D30: =IF(Prezentace!F32=0,"",Prezentace!F32) -> Karel | E30: =IF(Prezentace!E32=0,"",Prezentace!E32) -> Seitl | V30: 0
A31: =IF(Prezentace!A33=0,"",Prezentace!A33) ->  | B31: =IF(Prezentace!B33=0,"",Prezentace!B33) ->  | C31: =Prezentace!D33 -> P | D31: =IF(Prezentace!F33=0,"",Prezentace!F33) -> David | E31: =IF(Prezentace!E33=0,"",Prezentace!E33) -> Nikodým | V31: 0
A32: =IF(Prezentace!A34=0,"",Prezentace!A34) ->  | B32: =IF(Prezentace!B34=0,"",Prezentace!B34) ->  | C32: =Prezentace!D34 -> R | D32: =IF(Prezentace!F34=0,"",Prezentace!F34) -> David | E32: =IF(Prezentace!E34=0,"",Prezentace!E34) -> Nikodým | V32: 0
A33: =IF(Prezentace!A35=0,"",Prezentace!A35) ->  | B33: =IF(Prezentace!B35=0,"",Prezentace!B35) ->  | C33: =Prezentace!D35 -> P | D33: =IF(Prezentace!F35=0,"",Prezentace!F35) -> Lukáš | E33: =IF(Prezentace!E35=0,"",Prezentace!E35) -> Hobza | V33: 0
A34: =IF(Prezentace!A36=0,"",Prezentace!A36) ->  | B34: =IF(Prezentace!B36=0,"",Prezentace!B36) ->  | C34: =Prezentace!D36 -> P | D34: =IF(Prezentace!F36=0,"",Prezentace!F36) -> Antonín | E34: =IF(Prezentace!E36=0,"",Prezentace!E36) -> Jelínek | V34: 0
A35: =IF(Prezentace!A37=0,"",Prezentace!A37) ->  | B35: =IF(Prezentace!B37=0,"",Prezentace!B37) ->  | C35: =Prezentace!D37 -> R | D35: =IF(Prezentace!F37=0,"",Prezentace!F37) -> Antonín | E35: =IF(Prezentace!E37=0,"",Prezentace!E37) -> Jelínek | V35: 0
A36: =IF(Prezentace!A38=0,"",Prezentace!A38) ->  | B36: =IF(Prezentace!B38=0,"",Prezentace!B38) ->  | C36: =Prezentace!D38 -> P | D36: =IF(Prezentace!F38=0,"",Prezentace!F38) -> Ladislav | E36: =IF(Prezentace!E38=0,"",Prezentace!E38) -> Píša | V36: 0
A37: =IF(Prezentace!A39=0,"",Prezentace!A39) ->  | B37: =IF(Prezentace!B39=0,"",Prezentace!B39) ->  | C37: =Prezentace!D39 -> P | D37: =IF(Prezentace!F39=0,"",Prezentace!F39) -> Štefan | E37: =IF(Prezentace!E39=0,"",Prezentace!E39) -> Mesároš | V37: 0
A38: =IF(Prezentace!A40=0,"",Prezentace!A40) ->  | B38: =IF(Prezentace!B40=0,"",Prezentace!B40) ->  | C38: =Prezentace!D40 -> P | D38: =IF(Prezentace!F40=0,"",Prezentace!F40) -> Pavel | E38: =IF(Prezentace!E40=0,"",Prezentace!E40) -> Červenka | V38: =(SUM(F38:T38))-U38 -> 0
